Workbook

Sheet ORÇAMENTO
B1: CONTRATAÇÃO DE SERVIÇOS DE PAVIMENTAÇÃO ASFÁLTICA COM CONCRETO BETUMINOSO USINADO A QUENTE (CBUQ), INCLUSIVE SINALIZAÇÃO VIÁRIA E DRENAGEM SUPERFICAL, NA ESTRADA DO MELÃO, LOCALIZADA NO MUNICÍPIO DE MOSSORÓ/RN.
M2: SICRO: | N2: ='SINTÉTICO SICRO'!B2 -> Rio Grande do Norte - Abril/2025
M3: SINAPI: | N3: =RIGHT('INSUMOS SINAPI'!A3,7) -> 06/2025
M4: Data Base do Orçamento | N4: 2025-08-18
B5: =B1 -> CONTRATAÇÃO DE SERVIÇOS DE PAVIMENTAÇÃO ASFÁLTICA COM CONCRETO BETUMINOSO USINADO A QUENTE (CBUQ), INCLUSIVE SINALIZAÇÃO VIÁRIA E DRENAGEM SUPERFICAL, NA ESTRADA DO MELÃO, LOCALIZADA NO MUNICÍPIO DE MOSSORÓ/RN.
B6: ITEM | C6: ORIGEM COMPOSIÇÃO | D6: CÓDIGO COMPOSIÇÃO | E6: DISCRIMINAÇÃO DOS SERVIÇOS | I6: BDI % = | J6: =BDI!C17 -> 0.2308 | K6: BDI DIFERENCIADO% = | L6: =BDI!C68 -> 0.15 | M6: PREÇO UNITÁRIO COM BDI | N6: PREÇO TOTAL COM BDI
I7: Encargos Sociais: | K7: Horista | L7: Mensalista
K8: ='ENC. SOCIAIS'!$E$51 -> 115.21 | L8: ='ENC. SOCIAIS'!$F$51 -> 70.86 | S8: N1 | T8: TERRAPLENAGEM | U8: =(SUMIF(P:P,"TERRAPLENAGEM",N:N)/$N$50) -> 0 | V8: =(SUMIF(P:P,"TERRAPLENAGEM",N:N)) -> 0
I9: UND | J9: QTDE. | K9: BDI | L9: PREÇO UNITÁRIO | S9: N2 | T9: PAVIMENTAÇÃO | U9: =(SUMIF(P:P,"PAVIMENTAÇÃO",N:N)/$N$50) -> 0.8287132159 | V9: =(SUMIF(P:P,"PAVIMENTAÇÃO",N:N)) -> 3817324.18
E10: MOBILIZAÇÃO/DESMOBILIZAÇÃO | M10: SUB TOTAL R$ | N10: =SUM(N11:N12) -> 27755.80282 | S10: N3 | T10: CONSULTORIA | U10: =(SUMIF(P:P,"CONSULTORIA",N:N)/$N$50) -> 0 | V10: =(SUMIF(P:P,"CONSULTORIA",N:N)) -> 0
B11: 1 | C11: Codevasf | D11: Mob | E11: Mobilização | I11: kmx x frente | J11: ='Mob '!H6:H6*'Mob '!B65 -> 317 | K11: =(M11/L11-1) -> 0.2308 | L11: ='Mob '!B62 -> 35.56944167 | M11: ='Mob '!B64 -> 43.7788688 | N11: =M11*J11 -> 13877.90141 | O11: =N11/$N$50 -> 0.003012791098 | P11: INCC | S11: N4 | T11: DRENAGEM | U11: =(SUMIF(P:P,"DRENAGEM",N:N)/$N$50) -> 0.08832782983 | V11: =(SUMIF(P:P,"DRENAGEM",N:N)) -> 406866.88
B12: 2 | C12: Codevasf | D12: Mob | E12: Desmobilização | I12: km x frente | J12: ='Mob '!H6*'Mob '!B65 -> 317 | K12: =(M12/L12-1) -> 0.2308 | L12: ='Mob '!B62 -> 35.56944167 | M12: ='Mob '!B64 -> 43.7788688 | N12: =M12*J12 -> 13877.90141 | O12: =N12/$N$50 -> 0.003012791098 | P12: INCC | S12: N5 | T12: ADMINISTRAÇÃO LOCAL | U12: =(SUMIF(P:P,"ADMINISTRAÇÃO LOCAL",N:N)/$N$50) -> 0 | V12: =(SUMIF(P:P,"ADMINISTRAÇÃO LOCAL",N:N)) -> 0
E13: INSTALAÇÃO DE CANTEIRO | M13: SUB TOTAL R$ | N13: =SUM(N14:N15) -> 17398.07 | S13: N6 | T13: SINALIZAÇÃO VERTICAL | U13: =(SUMIF(P:P,"SINALIZAÇÃO VERTICAL",N:N)/$N$50) -> 0 | V13: =(SUMIF(P:P,"SINALIZAÇÃO VERTICAL",N:N)) -> 0
B14: 3 | C14: Codevasf | D14: Canteiro | E14: Canteiro de Obras e Almoxarifado | I14: und | J14: 1 | K14: =(M14/L14-1) -> 0.2308 | L14: =' Canteiro '!F11 -> 10390.14 | M14: =' Canteiro '!F13 -> 12788.18431 | N14: =ROUND(ROUND(J14,2)*ROUND(M14,6),2) -> 12788.18 | P14: INCC | S14: N7 | T14: SINALIZAÇÃO HORIZONTAL | U14: =(SUMIF(P:P,"SINALIZAÇÃO HORIZONTAL",N:N)/$N$50) -> 0 | V14: =(SUMIF(P:P,"SINALIZAÇÃO HORIZONTAL",N:N)) -> 0
B15: 4 | C15: SINAPI | D15: 103689 | E15: Fornecimento e instalação de placa de obra com chapa galvanizada e estrutura de madeira. af_03/2022_ps | I15: m² | J15: ='MEMÓRIA DE CÁLCULO'!H31 -> 8 | K15: =(M15/L15-1) -> 0.2308 | L15: =VLOOKUP(D15,'COMP Sint. Sinapi'!G5:K7542,5,0) -> 468.18 | M15: =L15*(1+$J$6) -> 576.235944 | N15: =ROUND(ROUND(J15,2)*ROUND(M15,6),2) -> 4609.89 | P15: INCC | S15: N8 | T15: CAP | U15: =(SUMIF(P:P,"CAP",N:N)/$N$50) -> 0 | V15: =(SUMIF(P:P,"CAP",N:N)) -> 0
E16: ADMINISTRAÇÃO LOCAL DA OBRA | M16: SUB TOTAL R$ | N16: =SUM(N17) -> 278837.88 | S16: N9 | T16: IMPRIMAÇÃO | U16: =(SUMIF(P:P,"IMPRIMAÇÃO",N:N)/$N$50) -> 0 | V16: =(SUMIF(P:P,"IMPRIMAÇÃO",N:N)) -> 0
B17: 5 | C17: Codevasf | D17: Adm Local | E17: Administração Local da Obra | I17: und | J17: 1 | K17: =(M17/L17-1) -> 0.2308 | L17: ='Adm Local'!J243 -> 226550.1097 | M17: ='Adm Local'!I245 -> 278837.875 | N17: =ROUND(ROUND(J17,2)*ROUND(M17,6),2) -> 278837.88 | O17: =N17/N50 -> 0.06053366844 | P17: INCC | S17: N10 | T17: EMULSÃO ASFÁLTICA | U17: =(SUMIF(P:P,"EMULSÃO ASFÁLTICA",N:N)/$N$50) -> 0 | V17: =(SUMIF(P:P,"EMULSÃO ASFÁLTICA",N:N)) -> 0
E18: PAVIMENTAÇÃO | M18: SUB TOTAL R$ | N18: =SUM(N19:N23) -> 1542067.02 | S18: N11 | T18: OBRAS COMPLEMENTARES | U18: =(SUMIF(P:P,"OBRAS COMPLEMENTARES",N:N)/$N$50) -> 0 | V18: =(SUMIF(P:P,"OBRAS COMPLEMENTARES",N:N)) -> 0
B19: 6 | C19: SICRO | D19: 4011342 | E19: =VLOOKUP(D19,'SINTÉTICO SICRO'!$A$4:$D$6492,2,0) -> Reestabilização de camada de base com adição de 30% de brita comercial - 100% Proctor modificado | I19: m³ | J19: ='MEMÓRIA DE CÁLCULO'!H44 -> 4845 | K19: =M19/L19-1 -> 0.2308 | L19: =ROUND(IF(C19="CODEVASF",VLOOKUP(D19,'CPU CODEVASF'!E:I,5,FALSE),VLOOKUP(D19,'SINTÉTICO SICRO'!A:D,4,FALSE)),6) -> 88.37 | M19: =ROUND(IF(C19="CODEVASF",VLOOKUP(D19,'CPU CODEVASF'!E:H,4,FALSE),VLOOKUP(D19,'SINTÉTICO SICRO'!A:D,4,FALSE)*(1+$J$6)),6) -> 108.765796 | N19: =ROUND(ROUND(J19,2)*ROUND(M19,6),2) -> 526970.28 | P19: PAVIMENTAÇÃO | S19: N12 | T19: MOBILIZAÇÃO/DESMOBILIZAÇÃO | U19: =(SUMIF(P:P,"MOBILIZAÇÃO/DESMOBILIZAÇÃO",N:N)/$N$50) -> 0 | V19: =(SUMIF(P:P,"MOBILIZAÇÃO/DESMOBILIZAÇÃO",N:N)) -> 0
B20: 7 | C20: SICRO | D20: 4011346 | E20: =VLOOKUP(D20,'SINTÉTICO SICRO'!$A$4:$D$6492,2,0) -> Reestabilização de camada de base sem adição de material - 100% Proctor modificado | I20: m³ | J20: ='MEMÓRIA DE CÁLCULO'!H49 -> 3230 | K20: =M20/L20-1 -> 0.2308 | L20: =ROUND(IF(C20="CODEVASF",VLOOKUP(D20,'CPU CODEVASF'!E:I,5,FALSE),VLOOKUP(D20,'SINTÉTICO SICRO'!A:D,4,FALSE)),6) -> 11.55 | M20: =ROUND(IF(C20="CODEVASF",VLOOKUP(D20,'CPU CODEVASF'!E:H,4,FALSE),VLOOKUP(D20,'SINTÉTICO SICRO'!A:D,4,FALSE)*(1+$J$6)),6) -> 14.21574 | N20: =ROUND(ROUND(J20,2)*ROUND(M20,6),2) -> 45916.84 | P20: PAVIMENTAÇÃO | S20: N13 | T20: INCC | U20: =(SUMIF(P:P,"INCC",N:N)/$N$50) -> 0.08295895428 | V20: =(SUMIF(P:P,"INCC",N:N)) -> 382136.0828
B21: 8 | C21: SICRO | D21: 4011463 | E21: =VLOOKUP(D21,'SINTÉTICO SICRO'!$A$4:$D$1048576,2,0) -> Concreto asfáltico - faixa C-12,5 - areia e brita comerciais | I21: t | J21: ='MEMÓRIA DE CÁLCULO'!H55 -> 4284 | K21: =M21/L21-1 -> 0.2308 | L21: =ROUND(IF(C21="CODEVASF",VLOOKUP(D21,'CPU CODEVASF'!E:I,5,FALSE),VLOOKUP(D21,'SINTÉTICO SICRO'!A:D,4,FALSE)),6) -> 177.47 | M21: =ROUND(IF(C21="CODEVASF",VLOOKUP(D21,'CPU CODEVASF'!E:H,4,FALSE),VLOOKUP(D21,'SINTÉTICO SICRO'!A:D,4,FALSE)*(1+$J$6)),6) -> 218.430076 | N21: =ROUND(ROUND(J21,2)*ROUND(M21,6),2) -> 935754.45 | P21: PAVIMENTAÇÃO
B22: 9 | C22: SICRO | D22: 4011352 | E22: =VLOOKUP(D22,'SINTÉTICO SICRO'!$A$4:$D$1048576,2,0) -> Imprimação com emulsão asfáltica | I22: m² | J22: ='MEMÓRIA DE CÁLCULO'!H62 -> 38250 | K22: =M22/L22-1 -> 0.2308 | L22: =ROUND(IF(C22="CODEVASF",VLOOKUP(D22,'CPU CODEVASF'!E:I,5,FALSE),VLOOKUP(D22,'SINTÉTICO SICRO'!A:D,4,FALSE)),6) -> 0.42 | M22: =ROUND(IF(C22="CODEVASF",VLOOKUP(D22,'CPU CODEVASF'!E:H,4,FALSE),VLOOKUP(D22,'SINTÉTICO SICRO'!A:D,4,FALSE)*(1+$J$6)),6) -> 0.516936 | N22: =ROUND(ROUND(J22,2)*ROUND(M22,6),2) -> 19772.8 | P22: PAVIMENTAÇÃO
B23: 10 | C23: SICRO | D23: 4011353 | E23: =VLOOKUP(D23,'SINTÉTICO SICRO'!$A$4:$D$1048576,2,0) -> Pintura de ligação | I23: m² | J23: ='MEMÓRIA DE CÁLCULO'!H68 -> 38250 | K23: =M23/L23-1 -> 0.2308 | L23: =ROUND(IF(C23="CODEVASF",VLOOKUP(D23,'CPU CODEVASF'!E:I,5,FALSE),VLOOKUP(D23,'SINTÉTICO SICRO'!A:D,4,FALSE)),6) -> 0.29 | M23: =ROUND(IF(C23="CODEVASF",VLOOKUP(D23,'CPU CODEVASF'!E:H,4,FALSE),VLOOKUP(D23,'SINTÉTICO SICRO'!A:D,4,FALSE)*(1+$J$6)),6) -> 0.356932 | N23: =ROUND(ROUND(J23,2)*ROUND(M23,6),2) -> 13652.65 | P23: PAVIMENTAÇÃO
E24: AQUISIÇÃO E TRANSPORTE DO MATERIAL BETUMINOSO | M24: SUB TOTAL R$ | N24: =SUM(N25:N30) -> 1833438.22
B25: 11 | C25: CODEVASF | D25: CPU-13 | E25: AQUISIÇÃO DE CIMENTO ASFALTICO CAP 50/70 | I25: t | J25: =' CONSUMO DE MAT. B TOTAL'!P13 -> 270.88 | K25: =M25/L25-1 -> 0.1500000001 | L25: =ROUND(IF(C25="CODEVASF",VLOOKUP(D25,'CPU CODEVASF'!E:I,5,FALSE),VLOOKUP(D25,'SINTÉTICO SICRO'!A:D,4,FALSE)),6) -> 4525.146243 | M25: =ROUND(IF(C25="CODEVASF",VLOOKUP(D25,'CPU CODEVASF'!E:H,4,FALSE),VLOOKUP(D25,'SINTÉTICO SICRO'!A:D,4,FALSE)*(1+$J$6)),6) -> 5203.91818 | N25: =ROUND(ROUND(J25,2)*ROUND(M25,6),2) -> 1409637.36 | P25: PAVIMENTAÇÃO
B26: 12 | C26: CODEVASF | D26: CPU-17 | E26: TRANSPORTE CAP 50/70 | I26: t | J26: =' CONSUMO DE MAT. B TOTAL'!P13 -> 270.88 | K26: 0.15 | L26: =ROUND(IF(C26="CODEVASF",VLOOKUP(D26,'CPU CODEVASF'!E:I,5,FALSE),VLOOKUP(D26,'SINTÉTICO SICRO'!A:D,4,FALSE)),6) -> 237.43 | M26: =ROUND(IF(C26="CODEVASF",VLOOKUP(D26,'CPU CODEVASF'!E:H,4,FALSE),VLOOKUP(D26,'SINTÉTICO SICRO'!A:D,4,FALSE)*(1+$J$6)),6) -> 273.0445 | N26: 73962.29 | P26: PAVIMENTAÇÃO
B27: 13 | C27: CODEVASF | D27: CPU-14 | E27: AQUISIÇÃO DE EAI | I27: t | J27: =' CONSUMO DE MAT. B TOTAL'!P8 -> 49.73 | K27: 0.15 | L27: =ROUND(IF(C27="CODEVASF",VLOOKUP(D27,'CPU CODEVASF'!E:I,5,FALSE),VLOOKUP(D27,'SINTÉTICO SICRO'!A:D,4,FALSE)),6) -> 2777.394487 | M27: =ROUND(IF(C27="CODEVASF",VLOOKUP(D27,'CPU CODEVASF'!E:H,4,FALSE),VLOOKUP(D27,'SINTÉTICO SICRO'!A:D,4,FALSE)*(1+$J$6)),6) -> 3194.00366 | N27: 158837.8 | P27: PAVIMENTAÇÃO
B28: 14 | C28: CODEVASF | D28: CPU-18 | E28: TRANSPORTE DE EAI | I28: t | J28: =' CONSUMO DE MAT. B TOTAL'!P8 -> 49.73 | K28: 0.1499999999 | L28: =ROUND(IF(C28="CODEVASF",VLOOKUP(D28,'CPU CODEVASF'!E:I,5,FALSE),VLOOKUP(D28,'SINTÉTICO SICRO'!A:D,4,FALSE)),6) -> 1596.959468 | M28: =ROUND(IF(C28="CODEVASF",VLOOKUP(D28,'CPU CODEVASF'!E:H,4,FALSE),VLOOKUP(D28,'SINTÉTICO SICRO'!A:D,4,FALSE)*(1+$J$6)),6) -> 1836.503388 | N28: 91329.31 | P28: PAVIMENTAÇÃO
B29: 15 | C29: CODEVASF | D29: CPU-15 | E29: AQUISIÇÃO DE EMULSÃO ASFÁLTICA RR-1C | I29: t | J29: =' CONSUMO DE MAT. B TOTAL'!P11 -> 17.21 | K29: 0.1500001279 | L29: =ROUND(IF(C29="CODEVASF",VLOOKUP(D29,'CPU CODEVASF'!E:I,5,FALSE),VLOOKUP(D29,'SINTÉTICO SICRO'!A:D,4,FALSE)),6) -> 3431.517075 | M29: =ROUND(IF(C29="CODEVASF",VLOOKUP(D29,'CPU CODEVASF'!E:H,4,FALSE),VLOOKUP(D29,'SINTÉTICO SICRO'!A:D,4,FALSE)*(1+$J$6)),6) -> 3946.245075 | N29: 67914.88 | P29: PAVIMENTAÇÃO
B30: 16 | C30: CODEVASF | D30: CPU-19 | E30: TRANSPORTE RR-1C | I30: t | J30: =' CONSUMO DE MAT. B TOTAL'!P11 -> 17.21 | K30: 0.1500000002 | L30: =ROUND(IF(C30="CODEVASF",VLOOKUP(D30,'CPU CODEVASF'!E:I,5,FALSE),VLOOKUP(D30,'SINTÉTICO SICRO'!A:D,4,FALSE)),6) -> 1604.556705 | M30: =ROUND(IF(C30="CODEVASF",VLOOKUP(D30,'CPU CODEVASF'!E:H,4,FALSE),VLOOKUP(D30,'SINTÉTICO SICRO'!A:D,4,FALSE)*(1+$J$6)),6) -> 1845.240211 | N30: 31756.58 | P30: PAVIMENTAÇÃO
E31: DRENAGEM | M31: SUB TOTAL R$ | N31: =SUM(N32:N34) -> 406866.88
B32: 17 | C32: SICRO | D32: 2003943 | E32: =VLOOKUP(D32,'SINTÉTICO SICRO'!$A$4:$D$1048576,2,0) -> Meio-fio de concreto - MFC 03 moldado no local com extrusora e concreto usinado - areia e brita comerciais | I32: m | J32: ='MEMÓRIA DE CÁLCULO'!H92 -> 9843.01 | K32: =M32/L32-1 -> 0.2308 | L32: =ROUND(IF(C32="CODEVASF",VLOOKUP(D32,'CPU CODEVASF'!E:I,5,FALSE),VLOOKUP(D32,'SINTÉTICO SICRO'!A:D,4,FALSE)),6) -> 26.54 | M32: =ROUND(IF(C32="CODEVASF",VLOOKUP(D32,'CPU CODEVASF'!E:H,4,FALSE),VLOOKUP(D32,'SINTÉTICO SICRO'!A:D,4,FALSE)*(1+$J$6)),6) -> 32.665432 | N32: =ROUND(ROUND(J32,2)*ROUND(M32,6),2) -> 321526.17 | P32: DRENAGEM
B33: 18 | C33: SICRO | D33: 2003389 | E33: =VLOOKUP(D33,'SINTÉTICO SICRO'!$A$4:$D$1048576,2,0) -> Descida d'água de aterros tipo rápido - DAR 40-20 - areia e brita comerciais | I33: m | J33: ='MEMÓRIA DE CÁLCULO'!G123 -> 133.74 | K33: =M33/L33-1 -> 0.2308 | L33: =ROUND(IF(C33="CODEVASF",VLOOKUP(D33,'CPU CODEVASF'!E:I,5,FALSE),VLOOKUP(D33,'SINTÉTICO SICRO'!A:D,4,FALSE)),6) -> 224.09 | M33: =ROUND(IF(C33="CODEVASF",VLOOKUP(D33,'CPU CODEVASF'!E:H,4,FALSE),VLOOKUP(D33,'SINTÉTICO SICRO'!A:D,4,FALSE)*(1+$J$6)),6) -> 275.809972 | N33: =ROUND(ROUND(J33,2)*ROUND(M33,6),2) -> 36886.83 | P33: DRENAGEM
B34: 19 | C34: SICRO | D34: 2003453 | E34: =VLOOKUP(D34,'SINTÉTICO SICRO'!$A$4:$D$1048576,2,0) -> Dissipador de energia - DEB 180-263 - areia, brita e pedra de mão comerciais | I34: und | J34: ='MEMÓRIA DE CÁLCULO'!B154 -> 41 | K34: =M34/L34-1 -> 0.2308 | L34: =ROUND(IF(C34="CODEVASF",VLOOKUP(D34,'CPU CODEVASF'!E:I,5,FALSE),VLOOKUP(D34,'SINTÉTICO SICRO'!A:D,4,FALSE)),6) -> 960.19 | M34: =ROUND(IF(C34="CODEVASF",VLOOKUP(D34,'CPU CODEVASF'!E:H,4,FALSE),VLOOKUP(D34,'SINTÉTICO SICRO'!A:D,4,FALSE)*(1+$J$6)),6) -> 1181.801852 | N34: =ROUND(ROUND(J34,2)*ROUND(M34,6),2) -> 48453.88 | P34: DRENAGEM
E35: SINALIZAÇÃO | M35: SUB TOTAL R$ | N35: =SUM(N36:N38) -> 58144.33
B36: 20 | C36: SICRO | D36: 5213400 | E36: =VLOOKUP(D36,'SINTÉTICO SICRO'!$A$4:$D$1048576,2,0) -> Pintura de faixa com tinta acrílica - espessura de 0,4 mm | I36: m² | J36: ='MEMÓRIA DE CÁLCULO'!G181 -> 2120.195 | K36: =M36/L36-1 -> 0.2308 | L36: =ROUND(IF(C36="CODEVASF",VLOOKUP(D36,'CPU CODEVASF'!E:I,5,FALSE),VLOOKUP(D36,'SINTÉTICO SICRO'!A:D,4,FALSE)),6) -> 21.23 | M36: =ROUND(IF(C36="CODEVASF",VLOOKUP(D36,'CPU CODEVASF'!E:H,4,FALSE),VLOOKUP(D36,'SINTÉTICO SICRO'!A:D,4,FALSE)*(1+$J$6)),6) -> 26.129884 | N36: =ROUND(ROUND(J36,2)*ROUND(M36,6),2) -> 55400.58 | P36: INCC
B37: 21 | C37: SICRO | D37: 5213440 | E37: =VLOOKUP(D37,'SINTÉTICO SICRO'!$A$4:$D$1048576,2,0) -> Placa de regulamentação em aço D = 0,60 m - película retrorrefletiva tipo I + SI - fornecimento e implantação | I37: und | J37: 3 | K37: =M37/L37-1 -> 0.2308 | L37: =ROUND(IF(C37="CODEVASF",VLOOKUP(D37,'CPU CODEVASF'!E:I,5,FALSE),VLOOKUP(D37,'SINTÉTICO SICRO'!A:D,4,FALSE)),6) -> 283.72 | M37: =ROUND(IF(C37="CODEVASF",VLOOKUP(D37,'CPU CODEVASF'!E:H,4,FALSE),VLOOKUP(D37,'SINTÉTICO SICRO'!A:D,4,FALSE)*(1+$J$6)),6) -> 349.202576 | N37: =ROUND(ROUND(J37,2)*ROUND(M37,6),2) -> 1047.61 | P37: INCC
B38: 22 | C38: SICRO | D38: 5213863 | E38: =VLOOKUP(D38,'SINTÉTICO SICRO'!$A$4:$D$1048576,2,0) -> Suporte metálico galvanizado para placa de advertência ou regulamentação - lado ou diâmetro de 0,60 m - fornecimento e implantação | I38: und | J38: 3 | K38: 0.2308 | L38: =ROUND(IF(C38="CODEVASF",VLOOKUP(D38,'CPU CODEVASF'!E:I,5,FALSE),VLOOKUP(D38,'SINTÉTICO SICRO'!A:D,4,FALSE)),6) -> 459.36 | M38: =ROUND(IF(C38="CODEVASF",VLOOKUP(D38,'CPU CODEVASF'!E:H,4,FALSE),VLOOKUP(D38,'SINTÉTICO SICRO'!A:D,4,FALSE)*(1+$J$6)),6) -> 565.380288 | N38: 1696.14 | P38: INCC
E39: MOMENTO DE TRANSPORTE | M39: SUB TOTAL R$ | N39: =SUM(N40:N49) -> 441818.94
B40: 18 | C40: SICRO | D40: 5914359 | E40: =VLOOKUP(D40,'SINTÉTICO SICRO'!$A$4:$D$1048576,2,0) -> Transporte com caminhão basculante de 10 m³ - rodovia em leito natural | I40: tkm | J40: =ROUND(SUMIF('MOMENTO DE TRANSPORTE - PRINC'!A:A,B10,'MOMENTO DE TRANSPORTE - PRINC'!K:K),2) -> 0 | K40: =M40/L40-1 -> 0.2308 | L40: =ROUND(IF(C40="CODEVASF",VLOOKUP(D40,'CPU CODEVASF'!E:I,5,FALSE),VLOOKUP(D40,'SINTÉTICO SICRO'!A:D,4,FALSE)),6) -> 1.21 | M40: =ROUND(IF(C40="CODEVASF",VLOOKUP(D40,'CPU CODEVASF'!E:H,4,FALSE),VLOOKUP(D40,'SINTÉTICO SICRO'!A:D,4,FALSE)*(1+$J$6)),6) -> 1.489268 | N40: =ROUND(ROUND(J40,2)*ROUND(M40,6),2) -> 0 | P40: PAVIMENTAÇÃO
B41: 19 | C41: SICRO | D41: 5914374 | E41: =VLOOKUP(D41,'SINTÉTICO SICRO'!$A$4:$D$1048576,2,0) -> Transporte com caminhão basculante de 10 m³ - rodovia em revestimento primário | I41: tkm | J41: =ROUND(SUMIF('MOMENTO DE TRANSPORTE - PRINC'!A:A,'ORÇAMENTO '!D41,'MOMENTO DE TRANSPORTE - PRINC'!K:K)+SUMIF('MOMENTO DE TRANSPORTE - AUX'!A:A,'ORÇAMENTO '!D41,'MOMENTO DE TRANSPORTE - AUX'!K:K),2) -> 55077.08 | K41: 0.2308 | L41: =ROUND(IF(C41="CODEVASF",VLOOKUP(D41,'CPU CODEVASF'!E:I,5,FALSE),VLOOKUP(D41,'SINTÉTICO SICRO'!A:D,4,FALSE)),6) -> 0.97 | M41: =ROUND(IF(C41="CODEVASF",VLOOKUP(D41,'CPU CODEVASF'!E:H,4,FALSE),VLOOKUP(D41,'SINTÉTICO SICRO'!A:D,4,FALSE)*(1+$J$6)),6) -> 1.193876 | N41: 65755.2 | P41: PAVIMENTAÇÃO
B42: 20 | C42: SICRO | D42: 5914389 | E42: =VLOOKUP(D42,'SINTÉTICO SICRO'!$A$4:$D$1048576,2,0) -> Transporte com caminhão basculante de 10 m³ - rodovia pavimentada | I42: tkm | J42: =ROUND(SUMIF('MOMENTO DE TRANSPORTE - PRINC'!A:A,'ORÇAMENTO '!D42,'MOMENTO DE TRANSPORTE - PRINC'!K:K)+SUMIF('MOMENTO DE TRANSPORTE - AUX'!A:A,'ORÇAMENTO '!D42,'MOMENTO DE TRANSPORTE - AUX'!K:K),2) -> 330327.36 | K42: 0.2308 | L42: =ROUND(IF(C42="CODEVASF",VLOOKUP(D42,'CPU CODEVASF'!E:I,5,FALSE),VLOOKUP(D42,'SINTÉTICO SICRO'!A:D,4,FALSE)),6) -> 0.8 | M42: =ROUND(IF(C42="CODEVASF",VLOOKUP(D42,'CPU CODEVASF'!E:H,4,FALSE),VLOOKUP(D42,'SINTÉTICO SICRO'!A:D,4,FALSE)*(1+$J$6)),6) -> 0.98464 | N42: 325253.53 | P42: PAVIMENTAÇÃO
B43: 21 | C43: SICRO | D43: 5914449 | E43: =VLOOKUP(D43,'SINTÉTICO SICRO'!$A$4:$D$1048576,2,0) -> Transporte com caminhão carroceria de 15 t - rodovia em leito natural | I43: tkm | J43: =ROUND(SUMIF('MOMENTO DE TRANSPORTE - PRINC'!A:A,'ORÇAMENTO '!D43,'MOMENTO DE TRANSPORTE - PRINC'!K:K)+SUMIF('MOMENTO DE TRANSPORTE - AUX'!A:A,'ORÇAMENTO '!D43,'MOMENTO DE TRANSPORTE - AUX'!K:K),2) -> 0 | K43: 0.2308 | L43: =ROUND(IF(C43="CODEVASF",VLOOKUP(D43,'CPU CODEVASF'!E:I,5,FALSE),VLOOKUP(D43,'SINTÉTICO SICRO'!A:D,4,FALSE)),6) -> 1.07 | M43: =ROUND(IF(C43="CODEVASF",VLOOKUP(D43,'CPU CODEVASF'!E:H,4,FALSE),VLOOKUP(D43,'SINTÉTICO SICRO'!A:D,4,FALSE)*(1+$J$6)),6) -> 1.316956 | N43: 0 | P43: PAVIMENTAÇÃO
B44: 22 | C44: SICRO | D44: 5914464 | E44: =VLOOKUP(D44,'SINTÉTICO SICRO'!$A$4:$D$1048576,2,0) -> Transporte com caminhão carroceria de 15 t - rodovia em revestimento primário | I44: tkm | J44: =ROUND(SUMIF('MOMENTO DE TRANSPORTE - PRINC'!A:A,'ORÇAMENTO '!D44,'MOMENTO DE TRANSPORTE - PRINC'!K:K)+SUMIF('MOMENTO DE TRANSPORTE - AUX'!A:A,'ORÇAMENTO '!D44,'MOMENTO DE TRANSPORTE - AUX'!K:K),2) -> 4.81 | K44: 0.2308 | L44: =ROUND(IF(C44="CODEVASF",VLOOKUP(D44,'CPU CODEVASF'!E:I,5,FALSE),VLOOKUP(D44,'SINTÉTICO SICRO'!A:D,4,FALSE)),6) -> 0.86 | M44: =ROUND(IF(C44="CODEVASF",VLOOKUP(D44,'CPU CODEVASF'!E:H,4,FALSE),VLOOKUP(D44,'SINTÉTICO SICRO'!A:D,4,FALSE)*(1+$J$6)),6) -> 1.058488 | N44: 5.09 | P44: PAVIMENTAÇÃO
B45: 23 | C45: SICRO | D45: 5914479 | E45: =VLOOKUP(D45,'SINTÉTICO SICRO'!$A$4:$D$1048576,2,0) -> Transporte com caminhão carroceria de 15 t - rodovia pavimentada | I45: tkm | J45: =ROUND(SUMIF('MOMENTO DE TRANSPORTE - PRINC'!A:A,'ORÇAMENTO '!D45,'MOMENTO DE TRANSPORTE - PRINC'!K:K)+SUMIF('MOMENTO DE TRANSPORTE - AUX'!A:A,'ORÇAMENTO '!D45,'MOMENTO DE TRANSPORTE - AUX'!K:K),2) -> 12232.89 | K45: 0.2308 | L45: =ROUND(IF(C45="CODEVASF",VLOOKUP(D45,'CPU CODEVASF'!E:I,5,FALSE),VLOOKUP(D45,'SINTÉTICO SICRO'!A:D,4,FALSE)),6) -> 0.71 | M45: =ROUND(IF(C45="CODEVASF",VLOOKUP(D45,'CPU CODEVASF'!E:H,4,FALSE),VLOOKUP(D45,'SINTÉTICO SICRO'!A:D,4,FALSE)*(1+$J$6)),6) -> 0.873868 | N45: 10689.93 | P45: PAVIMENTAÇÃO
B46: 24 | C46: SICRO | D46: 5914364 | E46: =VLOOKUP(D46,'SINTÉTICO SICRO'!$A$4:$D$1048576,2,0) -> Transporte de cimento ou cal hidratada a granel com caminhão silo de 30 m³ - rodovia em leito natural | I46: tkm | J46: =ROUND(SUMIF('MOMENTO DE TRANSPORTE - PRINC'!A:A,'ORÇAMENTO '!D46,'MOMENTO DE TRANSPORTE - PRINC'!K:K)+SUMIF('MOMENTO DE TRANSPORTE - AUX'!A:A,'ORÇAMENTO '!D46,'MOMENTO DE TRANSPORTE - AUX'!K:K),2) -> 0 | K46: 0.2308 | L46: =ROUND(IF(C46="CODEVASF",VLOOKUP(D46,'CPU CODEVASF'!E:I,5,FALSE),VLOOKUP(D46,'SINTÉTICO SICRO'!A:D,4,FALSE)),6) -> 0.89 | M46: =ROUND(IF(C46="CODEVASF",VLOOKUP(D46,'CPU CODEVASF'!E:H,4,FALSE),VLOOKUP(D46,'SINTÉTICO SICRO'!A:D,4,FALSE)*(1+$J$6)),6) -> 1.095412 | N46: 0 | P46: PAVIMENTAÇÃO
B47: 25 | C47: SICRO | D47: 5914365 | E47: =VLOOKUP(D47,'SINTÉTICO SICRO'!$A$4:$D$1048576,2,0) -> Transporte de cimento ou cal hidratada a granel com caminhão silo de 30 m³ - rodovia em revestimento primário | I47: tkm | J47: =ROUND(SUMIF('MOMENTO DE TRANSPORTE - PRINC'!A:A,'ORÇAMENTO '!D47,'MOMENTO DE TRANSPORTE - PRINC'!K:K)+SUMIF('MOMENTO DE TRANSPORTE - AUX'!A:A,'ORÇAMENTO '!D47,'MOMENTO DE TRANSPORTE - AUX'!K:K),2) -> 1964.61 | K47: 0.2308 | L47: =ROUND(IF(C47="CODEVASF",VLOOKUP(D47,'CPU CODEVASF'!E:I,5,FALSE),VLOOKUP(D47,'SINTÉTICO SICRO'!A:D,4,FALSE)),6) -> 0.71 | M47: =ROUND(IF(C47="CODEVASF",VLOOKUP(D47,'CPU CODEVASF'!E:H,4,FALSE),VLOOKUP(D47,'SINTÉTICO SICRO'!A:D,4,FALSE)*(1+$J$6)),6) -> 0.873868 | N47: 1716.81 | P47: PAVIMENTAÇÃO
B48: 26 | C48: SICRO | D48: 5914366 | E48: =VLOOKUP(D48,'SINTÉTICO SICRO'!$A$4:$D$1048576,2,0) -> Transporte de cimento ou cal hidratada a granel com caminhão silo de 30 m³ - rodovia pavimentada | I48: tkm | J48: =ROUND(SUMIF('MOMENTO DE TRANSPORTE - PRINC'!A:A,'ORÇAMENTO '!D48,'MOMENTO DE TRANSPORTE - PRINC'!K:K)+SUMIF('MOMENTO DE TRANSPORTE - AUX'!A:A,'ORÇAMENTO '!D48,'MOMENTO DE TRANSPORTE - AUX'!K:K),2) -> 1694.47 | K48: =M48/L48-1 -> 0.2308 | L48: =ROUND(IF(C48="CODEVASF",VLOOKUP(D48,'CPU CODEVASF'!E:I,5,FALSE),VLOOKUP(D48,'SINTÉTICO SICRO'!A:D,4,FALSE)),6) -> 0.63 | M48: =ROUND(IF(C48="CODEVASF",VLOOKUP(D48,'CPU CODEVASF'!E:H,4,FALSE),VLOOKUP(D48,'SINTÉTICO SICRO'!A:D,4,FALSE)*(1+$J$6)),6) -> 0.775404 | N48: =ROUND(ROUND(J48,2)*ROUND(M48,6),2) -> 1313.9 | P48: PAVIMENTAÇÃO
B49: 27 | C49: SICRO | D49: 5914569 | E49: =VLOOKUP(D49,'SINTÉTICO SICRO'!$A$4:$D$1048576,2,0) -> Transporte com caminhão betoneira - rodovia pavimentada | I49: tkm | J49: =ROUND(SUMIF('MOMENTO DE TRANSPORTE - PRINC'!A:A,'ORÇAMENTO '!D49,'MOMENTO DE TRANSPORTE - PRINC'!K:K)+SUMIF('MOMENTO DE TRANSPORTE - AUX'!A:A,'ORÇAMENTO '!D49,'MOMENTO DE TRANSPORTE - AUX'!K:K),2) -> 41274.5 | K49: =M49/L49-1 -> 0.2308 | L49: =ROUND(IF(C49="CODEVASF",VLOOKUP(D49,'CPU CODEVASF'!E:I,5,FALSE),VLOOKUP(D49,'SINTÉTICO SICRO'!A:D,4,FALSE)),6) -> 0.73 | M49: =ROUND(IF(C49="CODEVASF",VLOOKUP(D49,'CPU CODEVASF'!E:H,4,FALSE),VLOOKUP(D49,'SINTÉTICO SICRO'!A:D,4,FALSE)*(1+$J$6)),6) -> 0.898484 | N49: =ROUND(ROUND(J49,2)*ROUND(M49,6),2) -> 37084.48 | P49: PAVIMENTAÇÃO
B50: VALOR TOTAL R$ | N50: =N39+N31+N24+N18+N16+N13+N10+N35 -> 4606327.143

Sheet CRONOGRAMA TOTAL
A2: ='ORÇAMENTO '!B1 -> CONTRATAÇÃO DE SERVIÇOS DE PAVIMENTAÇÃO ASFÁLTICA COM CONCRETO BETUMINOSO USINADO A QUENTE (CBUQ), INCLUSIVE SINALIZAÇÃO VIÁRIA E DRENAGEM SUPERFICAL, NA ESTRADA DO MELÃO, LOCALIZADA NO MUNICÍPIO DE MOSSORÓ/RN.
A3: Cronograma Físico e Financeiro
A4: Item | B4: Descrição | C4: Total Por Etapa | D4: 30 DIAS | E4: 60 DIAS | F4: 90 DIAS | G4: 120 DIAS | H4: 150 DIAS | I4: 180 DIAS
B5: ='ORÇAMENTO '!E10 -> MOBILIZAÇÃO/DESMOBILIZAÇÃO | C5: =SUM(D5:I5) -> 1 | D5: 0.5 | I5: 0.5
C6: ='ORÇAMENTO '!N10 -> 27755.80282 | D6: =$C$6*D5 -> 13877.90141 | I6: =$C$6*I5 -> 13877.90141 | J6: =SUM(D6:I6) -> 27755.80282 | K6: =IF(J6=C6,"OK","") -> OK
B7: ='ORÇAMENTO '!E13 -> INSTALAÇÃO DE CANTEIRO | C7: =SUM(D7:I7) -> 1 | D7: 0.7 | E7: 0.3
C8: ='ORÇAMENTO '!N13 -> 17398.07 | D8: =$C$8*D7 -> 12178.649 | E8: 5219.421 | I8: 0 | J8: =SUM(D8:I8) -> 17398.07 | K8: =IF(J8=C8,"OK","") -> OK
B9: ='ORÇAMENTO '!E16 -> ADMINISTRAÇÃO LOCAL DA OBRA | C9: =SUM(D9:I9) -> 1 | D9: 0.0059 | E9: 0.2169 | F9: 0.2158 | G9: 0.2468 | H9: 0.2468 | I9: 0.0678
C10: ='ORÇAMENTO '!N16 -> 278837.88 | D10: =$C$10*D9 -> 1645.143492 | E10: 60479.93617 | F10: 60173.2145 | G10: 68817.18878 | H10: 68817.18878 | I10: 18905.20826 | J10: =SUM(D10:I10) -> 278837.88 | K10: =IF(J10=C10,"OK","") -> OK
B12: ='ORÇAMENTO '!E18 -> PAVIMENTAÇÃO | C12: =SUM(D12:I12) -> 1 | E12: 0.25 | F12: 0.25 | G12: 0.25 | H12: 0.25
C13: ='ORÇAMENTO '!N18 -> 1542067.02 | E13: =$C$13*E12 -> 385516.755 | F13: 385516.755 | G13: 385516.755 | H13: 385516.755 | J13: =SUM(D13:I13) -> 1542067.02 | K13: =IF(J13=C13,"OK","") -> OK
B14: AQUISIÇÃO E TRANSPORTE DE MATERIAL BETUMINOSO | C14: =SUM(D14:I14) -> 1 | E14: 0.25 | F14: 0.25 | G14: 0.25 | H14: 0.25
C15: ='ORÇAMENTO '!N24 -> 1833438.22 | E15: =$C$15*E14 -> 458359.555 | F15: 458359.555 | G15: 458359.555 | H15: 458359.555 | J15: =SUM(D15:I15) -> 1833438.22 | K15: =IF(J15=C15,"OK","") -> OK
B16: ='ORÇAMENTO '!E31 -> DRENAGEM | C16: =SUM(D16:I16) -> 1 | G16: =1/3 -> 0.3333333333 | H16: =1/3 -> 0.3333333333 | I16: =1/3 -> 0.3333333333
C17: ='ORÇAMENTO '!N31 -> 406866.88 | G17: =$C$17*G16 -> 135622.2933 | H17: =$C$17*H16 -> 135622.2933 | I17: =$C$17*I16 -> 135622.2933 | J17: =SUM(D17:I17) -> 406866.88 | K17: =IF(J17=C17,"OK","") -> OK
B18: ='ORÇAMENTO '!E35 -> SINALIZAÇÃO | C18: =SUM(D18:I18) -> 1 | H18: 0.4 | I18: 0.6
C19: ='ORÇAMENTO '!N35 -> 58144.33 | H19: =$C$19*H18 -> 23257.732 | I19: =$C$19*I18 -> 34886.598 | J19: =SUM(D19:I19) -> 58144.33 | K19: =IF(J19=C19,"OK","") -> OK
B20: ='ORÇAMENTO '!E39 -> MOMENTO DE TRANSPORTE | C20: =SUM(D20:I20) -> 1 | E20: =1/5 -> 0.2 | F20: =1/5 -> 0.2 | G20: =1/5 -> 0.2 | H20: =1/5 -> 0.2 | I20: =1/5 -> 0.2
C21: ='ORÇAMENTO '!N39 -> 441818.94 | E21: =$C$21*E20 -> 88363.788 | F21: 88363.788 | G21: 88363.788 | H21: 88363.788 | I21: 88363.788 | J21: =SUM(D21:I21) -> 441818.94 | K21: =IF(J21=C21,"OK","") -> OK
A23: Porcentagem | D23: =D24/$I$28 -> 0.006013835545 | E23: =E24/$I$28 -> 0.2166453715 | F23: 0.2154456863 | G23: 0.2467648399 | H23: 0.2518139238 | I23: 0.06331634293
A24: Custo | D24: =D6+D8+D10+D13+D15+D17+D19+D21 -> 27701.6939 | E24: =E6+E8+E10+E13+E15+E17+E19+E21 -> 997939.4552 | F24: 992413.3125 | G24: 1136679.58 | H24: 1159937.312 | I24: 291655.789
A25: Porcentagem Acumulado | D25: =D23 -> 0.006013835545 | E25: =D25+E23 -> 0.2226592071 | F25: =E25+F23 -> 0.4381048933 | G25: 0.6848697333 | H25: 0.9366836571 | I25: =H25+I23 -> 1
A26: Custo Acumulado | D26: =D24 -> 27701.6939 | E26: =D26+E24 -> 1025641.149 | F26: 2018054.462 | G26: 3154734.042 | H26: 4314671.354 | I26: =H26+I24 -> 4606327.143
D28: Total Geral | I28: =C6+C8+C10+C19+C13+C15+C17+C21 -> 4606327.143

Sheet MEMÓRIA DE CÁLCULO
A1: QUANTITATIVOS A SEREM EXECUTADOS - DADOS DE ENTRADA
A2: Estaca inicial: | B2: 0 | C2: Estaca Final: | D2: 273+10
A3: Pavimento Concluído em CBUQ
A4: Estaca 06 a 67: | B4: 61 Estacas | C4: =61*20 -> 1220 | D4: m
A5: Largura Rolamento: | B5: = | C5: 7 | D5: m
A6: Largura Acostamento (LE+LD) | B6: = | C6: 2 | D6: m
A7: Extensões e locais a serem trabalhados (base+revestimento)
A8: Estaca 00 a 06: | B8: =6*20 -> 120 | C8: m
A9: Estaca 67 a 275: | B9: =(273-67)*20+10 -> 4130 | C9: m
A10: Extensão Total: | B10: =B9+B8 -> 4250 | C10: m
B12: MOBUILIZAÇÃO
A13: 1 | B13: Implantação da obra
B15: Quantidade (un) | D15: Quantidade (un)
B16: =G4 -> 0 | C16: = | D16: =B16 -> 0
A18: 2 | B18: Administração da obra
B20: Quantidade (un) | D20: Quantidade (un)
B21: =G4 -> 0 | C21: = | D21: =B21 -> 0
A23: 3 | B23: Canteiro de Obras e Almoxarifado
B25: Quantidade (un) | D25: Quantidade (un)
B26: =G4 -> 0 | C26: = | D26: =B26 -> 0
A28: 4 | B28: Placa de Obra em Chapa de Aço Galvanizado
B30: Módulos(un) | C30: Comprimento(m) | D30: Largura (m) | H30: Total de Area de placa (m²)
B31: 1 | C31: 2 | D31: 4 | H31: =C31*D31*B31 -> 8
B33: TERRAPLENAGEM
A35: 5 | B35: Serviços topográficos para pavimentação, inclusive notas de serviços, acompanhamento e greide
B37: Extensão (m) | D37: Largura (m) | H37: area (m2)
B38: =C4*$G$4 -> 0 | C38: x | D38: 9.5 | G38: = | H38: =B38*D38 -> 0
B39: PAVIMENTAÇÃO
A41: 6 | B41: Reestabilização de camada de base com adição de 30% de brita comercial
B42: *Estimativa de 60% do trecho para fins de quantitativos, logo:
B43: Extensão (m) | D43: Largura (m) | F43: Espessura (m) | H43: Volume (m3)
B44: =(B10)*0.6 -> 2550 | C44: x | D44: 9.5 | E44: x | F44: 0.2 | G44: = | H44: =B44*D44*F44 -> 4845
A46: 7 | B46: Reestabilização de camada de base sem adição de material - 100% Proctor modificado
B47: *Estimativa de 40% do trecho para fins de quantitativos, logo:
B48: Extensão (m) | D48: Largura (m) | F48: Espessura (m) | H48: Volume (m3)
B49: =B10*0.4 -> 1700 | C49: x | D49: 9.5 | E49: x | F49: 0.2 | G49: = | H49: =B49*D49*F49 -> 3230
A50: 8 | B50: Concreto asfáltico - faixa C - areia e brita comerciais
B51: Pista de Rolamento
B52: Extensão (m) | C52: Largura (m) | D52: Espessura (m) | E52: Densidade (t/m³)
B53: =B10 -> 4250 | C53: =$C$5 -> 7 | D53: 0.05 | E53: 2.4
B54: Acostamento | H54: Volume (t)
B55: Extensão (m) | C55: Largura (m) | D55: Espessura (m) | E55: Densidade (t/m³) | G55: = | H55: =(B53*C53*D53*E53)+(B56*C56*D56*E56) -> 4284
B56: =B10 -> 4250 | C56: 2 | D56: 0.035 | E56: 2.4
A59: 9 | B59: Imprimação com emulsão asfáltica
B61: Extensão (m) | D61: Largura (m) | H61: area (m2)
B62: =B10 -> 4250 | C62: x | D62: 9 | G62: = | H62: =B62*D62 -> 38250
A65: 10 | B65: Pintura de ligação
B67: Extensão (m) | D67: Largura (m) | H67: area (m2)
B68: =B10 -> 4250 | C68: x | D68: 9 | G68: = | H68: =B68*D68 -> 38250
B70: SINALIZAÇÃO
A72: 20 | B72: Fornecimento e implantação de placa de regulamentação em aço D = 0,60 m - película retrorrefletiva tipo I + SI
D74: Quant. (un) | H74: Quant. (un)
D75: 0 | G75: = | H75: =D75 -> 0
A77: 20 | B77: Placa de advertência em aço, lado de 0,60 m - película retrorrefletiva tipo I + SI - fornecimento e implantação
D79: Quant. (un) | H79: Quant. (un)
D80: 0 | G80: = | H80: =D80 -> 0
A83: 21 | B83: Fornecimento e implantação de suporte metálico galvanizado para placa de regulamentação - D = 0,60 m
D85: Quant. (un) | H85: Quant. (un)
D86: =D75 -> 0 | G86: = | H86: =H75+H80 -> 0
B88: DRENAGEM
A89: ='ORÇAMENTO '!B32 -> 17 | B89: ='SINTÉTICO SICRO'!B3370 -> Meio-fio de concreto - MFC 03 moldado no local com extrusora e concreto usinado - areia e brita comerciais
A91: Extensão (m) Total retirada do projeto da Estaca 00 até Estaca 275 ( menos o já realizado anteriormente - 1138 m - E6 a E31 LE / E6 a E37+18 LD) | H91: Extensão(m)
G92: = | H92: =-1138+1989.6+2000+2000+1989.93+2001.48+25*20*2 -> 9843.01
A94: 18
A95: DESCIDA D'ÁGUA DE ATERROS TIPO RÁPIDO | E95: COMPRIMENTO ESTIMADO
A96: TIPO | B96: QUANTIDADE | C96: ESTACA | D96: LADO | E96: ESQ | F96: DIR | G96: TOTAL (m)
A97: 1 | B97: 2 | C97: 1+0,00 | D97: DIREITO E ESQUERDO | E97: 1 | F97: 1 | G97: =E97+F97 -> 2
A98: 1 | B98: 1 | C98: 3+0,00 | D98: ESQUERDO | E98: 1 | G98: =E98+F98 -> 1
A99: 1 | B99: 2 | C99: 12+0,00 | D99: DIREITO E ESQUERDO | E99: 2.5 | F99: 1 | G99: =E99+F99 -> 3.5
A100: 1 | B100: 1 | C100: 28+0,00 | D100: ESQUERDO | E100: 1 | G100: 1
A101: 1 | B101: 1 | C101: 74+0,00 | D101: DIREITO | F101: 4.8 | G101: 4.8
A102: 1 | B102: 2 | C102: 79+0,00 | D102: DIREITO E ESQUERDO | E102: 4.98 | F102: 4.94 | G102: 9.92
A103: 1 | B103: 2 | C103: 80+0,00 | D103: DIREITO E ESQUERDO | E103: 4.95 | F103: 2.7 | G103: 7.65
A104: 1 | B104: 2 | C104: 83+0,00 | D104: DIREITO E ESQUERDO | E104: 2 | F104: 4.12 | G104: 6.12
A105: 1 | B105: 1 | C105: 88+0,00 | D105: DIREITO | F105: 1.9 | G105: 1.9
A106: 1 | B106: 2 | C106: 98+0,00 | D106: DIREITO E ESQUERDO | E106: 4.5 | F106: 2.3 | G106: 6.8
A107: 1 | B107: 1 | C107: 99+0,00 | D107: DIREITO | F107: 3.5 | G107: 3.5
A108: 1 | B108: 2 | C108: 105+0,00 | D108: DIREITO E ESQUERDO | E108: 2.65 | F108: 2 | G108: 4.65
A109: 1 | B109: 2 | C109: 108+0,00 | D109: DIREITO E ESQUERDO | E109: 4.15 | F109: 4.5 | G109: 8.65
A110: 1 | B110: 2 | C110: 110+0,00 | D110: DIREITO E ESQUERDO | E110: 3.5 | F110: 4 | G110: 7.5
A111: 1 | B111: 2 | C111: 117+0,00 | D111: DIREITO E ESQUERDO | E111: 2.5 | F111: 2 | G111: 4.5
A112: 1 | B112: 1 | C112: 131+0,00 | D112: DIREITO | F112: 5 | G112: 5
A113: 1 | B113: 2 | C113: 142+0,00 | D113: DIREITO E ESQUERDO | E113: 2.5 | F113: 1 | G113: 3.5
A114: 1 | B114: 1 | C114: 177+0,00 | D114: ESQUERDO | E114: 5 | G114: 5
A115: 1 | B115: 2 | C115: 205+0,00 | D115: DIREITO E ESQUERDO | E115: 3 | F115: 4 | G115: 7
A116: 1 | B116: 1 | C116: 227+0,00 | D116: DIREITO | F116: 3.5 | G116: 3.5
A117: 1 | B117: 2 | C117: 253+0,00 | D117: DIREITO E ESQUERDO | E117: 4.6 | F117: 4 | G117: 8.6
A118: 1 | B118: 1 | C118: 257+0,00 | D118: ESQUERDO | E118: 4.85 | G118: 4.85
A119: 1 | B119: 2 | C119: 261+0,00 | D119: DIREITO E ESQUERDO | E119: 4.45 | F119: 4.6 | G119: 9.05
A120: 1 | B120: 2 | C120: 268+0,00 | D120: DIREITO E ESQUERDO | E120: 3.4 | F120: 4.35 | G120: 7.75
A121: 1 | B121: 2 | C121: 272+0,00 | D121: DIREITO E ESQUERDO | E121: 2.75 | F121: 3.25 | G121: 6
A122: 1 | B122: 2 | C122: 274+0,00 | D122: DIREITO E ESQUERDO | E122: 1.9 | F122: 2.2 | G122: 4.1
A123: TOTAL | B123: =SUM(B97:B121) -> 41 | C123: - | D123: - | E123: TOTAL (m) | G123: =SUM(G97:G121) -> 133.74
A125: 19
A126: DISSIPADORES DE ENERGIA APLICÁVEIS A DESCIDA D'ÁGUA DE ATERROS TIPO RÁPIDO
A127: TIPO | B127: QUANTIDADE | C127: ESTACA | D127: LADO
A128: 1 | B128: 2 | C128: 1+0,00 | D128: DIREITO E ESQUERDO
A129: 1 | B129: 1 | C129: 3+0,00 | D129: ESQUERDO
A130: 1 | B130: 2 | C130: 12+0,00 | D130: DIREITO E ESQUERDO
A131: 1 | B131: 1 | C131: 28+0,00 | D131: ESQUERDO
A132: 1 | B132: 1 | C132: 74+0,00 | D132: DIREITO
A133: 1 | B133: 2 | C133: 79+0,00 | D133: DIREITO E ESQUERDO
A134: 1 | B134: 2 | C134: 80+0,00 | D134: DIREITO E ESQUERDO
A135: 1 | B135: 2 | C135: 83+0,00 | D135: DIREITO E ESQUERDO
A136: 1 | B136: 1 | C136: 88+0,00 | D136: DIREITO
A137: 1 | B137: 2 | C137: 98+0,00 | D137: DIREITO E ESQUERDO
A138: 1 | B138: 1 | C138: 99+0,00 | D138: DIREITO
A139: 1 | B139: 2 | C139: 105+0,00 | D139: DIREITO E ESQUERDO
A140: 1 | B140: 2 | C140: 108+0,00 | D140: DIREITO E ESQUERDO
A141: 1 | B141: 2 | C141: 110+0,00 | D141: DIREITO E ESQUERDO
A142: 1 | B142: 2 | C142: 117+0,00 | D142: DIREITO E ESQUERDO
A143: 1 | B143: 1 | C143: 131+0,00 | D143: DIREITO
A144: 1 | B144: 2 | C144: 142+0,00 | D144: DIREITO E ESQUERDO
A145: 1 | B145: 1 | C145: 177+0,00 | D145: ESQUERDO
A146: 1 | B146: 2 | C146: 205+0,00 | D146: DIREITO E ESQUERDO
A147: 1 | B147: 1 | C147: 227+0,00 | D147: DIREITO
A148: 1 | B148: 2 | C148: 253+0,00 | D148: DIREITO E ESQUERDO
A149: 1 | B149: 1 | C149: 257+0,00 | D149: ESQUERDO
A150: 1 | B150: 2 | C150: 261+0,00 | D150: DIREITO E ESQUERDO
A151: 1 | B151: 2 | C151: 268+0,00 | D151: DIREITO E ESQUERDO
A152: 1 | B152: 2 | C152: 272+0,00 | D152: DIREITO E ESQUERDO
A153: 1 | C153: 274+0,00 | D153: DIREITO E ESQUERDO
A154: TOTAL | B154: =SUM(B128:B153) -> 41 | C154: - | D154: -
A157: 20
A158: RESUMO DE QUANTIDADES
A159: SINALIZAÇÃO HORIZONTAL - ESTRADA DO MELÃO
B160: Estaca | D160: Cor | E160: Comp. (m) | F160: Larg. (m) | G160: Área (m²)
A161: Descrição | B161: INICIAL | C161: FINAL
A162: Faixa de Bordo | B162: 0+0,00 | C162: 260+0,00 | D162: Branca | E162: =260*20 -> 5200 | F162: 0.1 | G162: =E162*F162*2 -> 1040
A163: Faixa de Retenção | B163: 0+1,00 | C163: 0+1,30 | D163: Branca | E163: 0.3 | F163: 3.05 | G163: =E163*F163 -> 0.915
A164: Faixa Contínua Dupla | B164: 0+0,00 | C164: 4+0,00 | D164: Amarela | E164: 80 | F164: 0.1 | G164: =E164*F164*2 -> 16
A165: Dizer de Pare | B165: 0+2,80 | C165: 0+5,20 | D165: Branca | E165: 2.4 | F165: 2.2 | G165: =E165*F165 -> 5.28
A166: Faixa Contínua/Seccionada | B166: 4+0,00 | C166: 25+0,00 | D166: Amarela | E166: 420 | F166: 0.1 | G166: =E166*F166*2 -> 84
A167: Faixa Contínua Dupla | B167: 25+0,00 | C167: 35+0,00 | D167: Amarela | E167: 200 | F167: 0.1 | G167: 40
A168: Faixa Contínua/Seccionada | B168: 35+0,00 | C168: 50+0,00 | D168: Amarela | E168: 300 | F168: 0.1 | G168: 60
A169: Faixa Contínua/Seccionada | B169: 50+0,00 | C169: 65+0,00 | D169: Amarela | E169: 300 | F169: 0.1 | G169: 60
A170: Faixa Contínua/Seccionada | B170: 65+0,00 | C170: 75+0,00 | D170: Amarela | E170: 200 | F170: 0.1 | G170: 40
A171: Faixa Contínua Dupla | B171: 75+0,00 | C171: 100+0,00 | D171: Amarela | E171: 500 | F171: 0.1 | G171: 100
A172: Faixa Tracejada Simples | B172: 100+0,00 | C172: 110+0,00 | D172: Amarela | E172: 200 | F172: 0.1 | G172: =E172*F172 -> 20
A173: Faixa Contínua Dupla | B173: 110+0,00 | C173: 130+0,00 | D173: Amarela | E173: 400 | F173: 0.1 | G173: =E173*F173*2 -> 80
A174: Faixa Contínua/Seccionada | B174: 130+0,00 | C174: 150+0,00 | D174: Amarela | E174: 400 | F174: 0.1 | G174: 80
A175: Faixa Contínua Dupla | B175: 150+0,00 | C175: 190+0,00 | D175: Amarela | E175: 800 | F175: 0.1 | G175: 160
A176: Faixa Contínua/Seccionada | B176: 190+0,00 | C176: 200+0,00 | D176: Amarela | E176: 200 | F176: 0.1 | G176: 40
A177: Faixa Contínua Dupla | B177: 200+0,00 | C177: 210+0,00 | D177: Amarela | E177: 200 | F177: 0.1 | G177: 40
A178: Faixa Contínua/Seccionada | B178: 210+0,00 | C178: 230+0,00 | D178: Amarela | E178: 400 | F178: 0.1 | G178: 80
A179: Faixa Tracejada Simples | B179: 230+0,00 | C179: 250+0,00 | D179: Amarela | E179: 400 | F179: 0.1 | G179: 80
A180: Faixa Contínua Dupla | B180: 250+0,00 | C180: 273+10,00 | D180: Amarela | E180: =23*20+10 -> 470 | F180: 0.1 | G180: 94
A181: Área | G181: =SUM(G162:G180) -> 2120.195
A183: 21
A184: RESUMO DE QUANTIDADES
A185: SINALIZAÇÃO VERTICAL - ESTRADA DO MELÃO
A186: Código | B186: Identificação | C186: Nome | D186: Área (m²) | E186: Localização (Estaca) | F186: Lado
A187: R-1 | B187: - | C187: Parada Obrigatória | D187: 0.18 | E187: 0+2,80 | F187: Esquerdo
A188: R-19.6 | B188: - | C188: Velocidade Máxima | D188: 0.18 | E188: 1+0,00 | F188: Direito
A189: R-19.6 | B189: - | C189: Velocidade Máxima | D189: 0.18 | E189: 150+0,00 | F189: Direito

Sheet CONSUMO DE MAT. B TOTAL
B3: CONSUMO DO MATERIAL BETUMINOSO TOTAL
B5: TRECHO | D5: QUANTIDADES | M5: MAT. BETUMINOSO
B6: Inicio (km) | C6: Fim (km) | D6: Extensão (m) | E6: Largura (m) | F6: Espess. (m) | G6: Área (m2) | H6: Volume (m3) | I6: Densidade (t/m3) | J6: Massa (t) | K6: Unid | L6: Quant. | M6: Tipo | N6: Consumo Taxa de Aplicação | O6: Unid. | P6: Quant.
B7: IMPRIMAÇÃO
F8: 1 | G8: ='MEMÓRIA DE CÁLCULO'!H62 -> 38250 | M8: EAI | N8: 1,3 l/m2 | O8: t | P8: =ROUND((G8*1.3)/1000,2) -> 49.73
F9: 1 | M9: CM-30 | N9: 1,2 l/m2 | O9: t | P9: =ROUND((G9*1.2)/1000,2) -> 0
B10: PINTURA DE LIGAÇÃO
F11: 1 | G11: ='MEMÓRIA DE CÁLCULO'!H68 -> 38250 | H11: =G11*F11 -> 38250 | M11: RR-1C | N11: 0,45 l/m2 | O11: t | P11: =ROUND((G11*0.45)/1000,2) -> 17.21
B12: CBUQ FAIXA "C"
H13: =G13*F13 -> 0 | J13: ='MEMÓRIA DE CÁLCULO'!H55 -> 4284 | M13: CAP-50/70 | N13: 63,23 t/m3 | O13: t | P13: =ROUND((J13*63.23)/1000,2) -> 270.88
B14: CBUQ FAIXA "B"
H15: =G15*F15 -> 0 | M15: CAP-50/70 | N15: 56,60 t/m3 | O15: t | P15: =ROUND((J15*56.6)/1000,2) -> 0
H17: =G17*F17 -> 0

Sheet CPU CODEVASF
A4: ='ORÇAMENTO '!B1 -> CONTRATAÇÃO DE SERVIÇOS DE PAVIMENTAÇÃO ASFÁLTICA COM CONCRETO BETUMINOSO USINADO A QUENTE (CBUQ), INCLUSIVE SINALIZAÇÃO VIÁRIA E DRENAGEM SUPERFICAL, NA ESTRADA DO MELÃO, LOCALIZADA NO MUNICÍPIO DE MOSSORÓ/RN.
F5: BDI %: | G5: =BDI!$C$17 -> 0.2308
E6: Encargos Sociais: | G6: Horista | H6: Mensalista
G7: ='ENC. SOCIAIS'!E51/100 -> 1.1521 | H7: ='ENC. SOCIAIS'!F51/100 -> 0.7086
A8: COMPOSIÇÕES DE CUSTO UNITARIO
A9: CPU-12 | B9: CODEVASF | D9: Correção de vazamentos no ramal na rua sem pavimento com fornecimento do material hidráulico | E9: M | F9: COEF. | G9: PRECO UNITÁRIO (R$) | H9: TOTAL (R$)
A11: SICRO | B11: SICRO | C11: P9824 | D11: =VLOOKUP(C11,'Pessoal Sicro'!$A$5:$G$1048576,2,0) -> Servente | E11: H | F11: 0.2 | G11: =VLOOKUP(C11,'Pessoal Sicro'!$A$5:$G$1048576,6,0) -> 21.8586 | H11: =F11*G11 -> 4.37172
A12: SICRO | B12: SICRO | C12: P9807 | D12: =VLOOKUP(C12,'Pessoal Sicro'!$A$5:$G$1048576,2,0) -> Bombeiro hidráulico | E12: H | F12: 0.1 | G12: =VLOOKUP(C12,'Pessoal Sicro'!$A$5:$G$1048576,6,0) -> 31.8601 | H12: =F12*G12 -> 3.18601
A13: INS. SINAPI | B13: SINAPI | C13: 9867 | D13: TUBO PVC, SOLDAVEL, DN 20 MM, AGUA FRIA (NBR-5648) | E13: m | F13: 1 | G13: =IFERROR(VLOOKUP(C13,'INSUMOS SINAPI'!A:E,5,FALSE),VLOOKUP(C13,'COMP Sint. Sinapi'!G:K,5,FALSE)) -> 3.59 | H13: =F13*G13 -> 3.59
A14: INSUMO | B14: ORSE | C14: 10585 | D14: Arco de serra | E14: un | F14: 0.1 | G14: 22.8 | H14: =F14*G14 -> 2.28
A15: INS. SINAPI | B15: SINAPI | C15: 3859 | D15: LUVA SOLDAVEL COM ROSCA, PVC, 20 MM X 1/2", PARA AGUA FRIA PREDIAL | E15: un | F15: 2 | G15: =IFERROR(VLOOKUP(C15,'INSUMOS SINAPI'!A:E,5,FALSE),VLOOKUP(C15,'COMP Sint. Sinapi'!G:K,5,FALSE)) -> 1.29 | H15: =F15*G15 -> 2.58
E16: Sub total: | H16: =SUM(H11:H15) -> 16.00773
F17: BDI | G17: =BDI!$C$17 -> 0.2308 | H17: =H16*G17 -> 3.694584084
G18: Total Serviços: | H18: =H16+H17 -> 19.70231408
E19: =A9 -> CPU-12 | F19: PREÇO UNITÁRIO TOTAL: | H19: =H18 -> 19.70231408 | I19: =H16 -> 16.00773
A21: CPU-13 | B21: CODEVASF | D21: AQUISIÇÃO DE CIMENTO ASFALTICO CAP 50/70 | E21: t | F21: COEF. | G21: PRECO UNITÁRIO (R$) | H21: TOTAL (R$)
D23: CIMENTO ASFALTICO 50/70 | E23: t | F23: 1 | G23: =RESUMO_Transp!$V$17 -> 4525.146243 | H23: =F23*G23 -> 4525.146243
E24: Sub total: | H24: =SUM(H23) -> 4525.146243
F25: BDI | G25: 0.15 | H25: =H24*G25 -> 678.7719365
G26: Total Serviços: | H26: =H24+H25 -> 5203.91818
E27: =A21 -> CPU-13 | F27: PREÇO UNITÁRIO TOTAL: | H27: =H26 -> 5203.91818 | I27: =H24 -> 4525.146243
A29: CPU-14 | B29: CODEVASF | D29: AQUISIÇÃO DE EAI | E29: t | F29: COEF. | G29: PRECO UNITÁRIO (R$) | H29: TOTAL (R$)
D31: EAI | E31: t | F31: 1 | G31: =RESUMO_Transp!$V$35 -> 2777.394487 | H31: =F31*G31 -> 2777.394487
E32: Sub total: | H32: =SUM(H31) -> 2777.394487
F33: BDI | G33: 0.15 | H33: =H32*G33 -> 416.609173
G34: Total Serviços: | H34: =H32+H33 -> 3194.00366
E35: =A29 -> CPU-14 | F35: PREÇO UNITÁRIO TOTAL: | H35: =H34 -> 3194.00366 | I35: =H32 -> 2777.394487
A37: CPU-15 | B37: CODEVASF | D37: AQUISIÇÃO DE EMULSÃO ASFÁLTICA RR-1C | E37: t | F37: COEF. | G37: PRECO UNITÁRIO (R$) | H37: TOTAL (R$)
D39: EMULSÃO ASFÁLTICA RR-1C | E39: t | F39: 1 | G39: =RESUMO_Transp!$V$42 -> 3431.517075 | H39: =F39*G39 -> 3431.517075
E40: Sub total: | H40: =SUM(H39) -> 3431.517075
F41: BDI | G41: 0.15 | H41: =ROUND(H40,2)*ROUND(G41,4) -> 514.728
G42: Total Serviços: | H42: =H40+H41 -> 3946.245075
E43: =A37 -> CPU-15 | F43: PREÇO UNITÁRIO TOTAL: | H43: =H42 -> 3946.245075 | I43: =H40 -> 3431.517075
A45: CPU-17 | B45: CODEVASF | D45: TRANSPORTE DE CIMENTO ASFALTICO CAP 50/70 | E45: t | F45: COEF. | G45: PRECO UNITÁRIO (R$) | H45: TOTAL (R$)
D47: TRANSPORTE DE CIMENTO ASFALTICO 50/70 | E47: t | F47: 1 | G47: =RESUMO_Transp!$U$17 -> 237.43 | H47: =F47*G47 -> 237.43
E48: Sub total: | H48: =SUM(H47) -> 237.43
F49: BDI | G49: 0.15 | H49: =H48*G49 -> 35.6145
G50: Total Serviços: | H50: =H48+H49 -> 273.0445
E51: =A45 -> CPU-17 | F51: PREÇO UNITÁRIO TOTAL: | H51: =H50 -> 273.0445 | I51: =H48 -> 237.43
A53: CPU-18 | B53: CODEVASF | D53: TRANSPORTE DE EAI | E53: t | F53: COEF. | G53: PRECO UNITÁRIO (R$) | H53: TOTAL (R$)
D55: TRANSPORTE DE EAI | E55: t | F55: 1 | G55: =RESUMO_Transp!$U$35 -> 1596.959468 | H55: =F55*G55 -> 1596.959468
E56: Sub total: | H56: =SUM(H55) -> 1596.959468
F57: BDI | G57: 0.15 | H57: =H56*G57 -> 239.5439202
G58: Total Serviços: | H58: =H56+H57 -> 1836.503388
E59: =A53 -> CPU-18 | F59: PREÇO UNITÁRIO TOTAL: | H59: =H58 -> 1836.503388 | I59: =H56 -> 1596.959468
A61: CPU-19 | B61: CODEVASF | D61: TRANSPORTE DE EMULSÃO ASFÁLTICA RR-1C | E61: t | F61: COEF. | G61: PRECO UNITÁRIO (R$) | H61: TOTAL (R$)
D63: TRANSPORTE DE EMULSÃO ASFÁLTICA RR-1C | E63: t | F63: 1 | G63: =RESUMO_Transp!$U$42 -> 1604.556705 | H63: =F63*G63 -> 1604.556705
E64: Sub total: | H64: =SUM(H63) -> 1604.556705
F65: BDI | G65: 0.15 | H65: =H64*G65 -> 240.6835058
G66: Total Serviços: | H66: =H64+H65 -> 1845.240211
E67: =A61 -> CPU-19 | F67: PREÇO UNITÁRIO TOTAL: | H67: =H66 -> 1845.240211 | I67: =H64 -> 1604.556705

Sheet Mob
A4: ='ORÇAMENTO '!B1 -> CONTRATAÇÃO DE SERVIÇOS DE PAVIMENTAÇÃO ASFÁLTICA COM CONCRETO BETUMINOSO USINADO A QUENTE (CBUQ), INCLUSIVE SINALIZAÇÃO VIÁRIA E DRENAGEM SUPERFICAL, NA ESTRADA DO MELÃO, LOCALIZADA NO MUNICÍPIO DE MOSSORÓ/RN.
A5: MOBILIZAÇÃO/DESMOBILIZAÇÃO (MOB) | F5: Frentes de serviços | H5: 1
F6: Distância da Capital ao Canteiro: | H6: 317 | I6: Fica a cargo de cada SR colocar a distancia adequada de acordo com o historico de mobilização
F7: Velocidade média de transporte (pavim.): | H7: 60
A9: Transporte dos equipamentos
A10: CODIGO | B10: EQUIPAMENTO | C10: VEÍCULO TRANSPORTADOR | D10: QTDE | E10: K | F10: FU | G10: CUSTO DO TRANSPORTE
G11: (R$/h) | H11: (R$)/km
A12: E9524 | B12: =VLOOKUP(A12,Equipamentos!$A:$K,2,FALSE) -> Motoniveladora - 93 kW | C12: =IFERROR(INDEX('Tabelas 2 e 3 mob'!A:K,MATCH(A12,'Tabelas 2 e 3 mob'!A:A,0),9),"ERRO") -> E9665 | D12: 1 | E12: 2 | F12: 1 | G12: =IF(C12="Veículo(s) da própria frota.",0,INDEX(Equipamentos!B:K,MATCH(C12,Equipamentos!A:A,0),10)) -> 123.9413 | H12: =((D12*E12*F12)/$H$7)*G12 -> 4.131376667
A13: E9526 | B13: =VLOOKUP(A13,Equipamentos!$A:$K,2,FALSE) -> Retroescavadeira de pneus - capacidade da caçamba da pá-carregadeira de 0,76 m³ e da retroescavadeira de 0,29 m³ - 58 kW | C13: =IFERROR(INDEX('Tabelas 2 e 3 mob'!A:K,MATCH(A13,'Tabelas 2 e 3 mob'!A:A,0),9),"ERRO") -> E9665 | D13: 1 | E13: 2 | F13: 1 | G13: =IF(C13="Veículo(s) da própria frota.",0,INDEX(Equipamentos!B:K,MATCH(C13,Equipamentos!A:A,0),10)) -> 123.9413 | H13: =((D13*E13*F13)/$H$7)*G13 -> 4.131376667
A14: E9577 | B14: =VLOOKUP(A14,Equipamentos!$A:$K,2,FALSE) -> Trator agrícola sobre pneus - 77 kW | C14: =IFERROR(INDEX('Tabelas 2 e 3 mob'!A:K,MATCH(A14,'Tabelas 2 e 3 mob'!A:A,0),9),"ERRO") -> E9665 | D14: 1 | E14: 2 | F14: 0.5 | G14: =IF(C14="Veículo(s) da própria frota.",0,INDEX(Equipamentos!B:K,MATCH(C14,Equipamentos!A:A,0),10)) -> 123.9413 | H14: 2.065688333
A15: E9518 | B15: =VLOOKUP(A15,Equipamentos!$A:$K,2,FALSE) -> Grade de 24 discos rebocável de D = 60 cm (24") | C15: =IFERROR(INDEX('Tabelas 2 e 3 mob'!A:K,MATCH(A15,'Tabelas 2 e 3 mob'!A:A,0),9),"ERRO") -> Veículo(s) da própria frota. | D15: 5 | E15: 2 | F15: 0 | G15: =IF(C15="Veículo(s) da própria frota.",0,INDEX(Equipamentos!B:K,MATCH(C15,Equipamentos!A:A,0),10)) -> 0 | H15: 0
A16: E9615 | B16: =VLOOKUP(A16,Equipamentos!$A:$K,2,FALSE) -> Usina misturadora de solos com capacidade de 300 t/h - 44 kW | C16: =IFERROR(INDEX('Tabelas 2 e 3 mob'!A:K,MATCH(A16,'Tabelas 2 e 3 mob'!A:A,0),9),"ERRO") -> E9018 | D16: 0 | E16: 2 | F16: 2 | G16: =IF(C16="Veículo(s) da própria frota.",0,INDEX(Equipamentos!B:K,MATCH(C16,Equipamentos!A:A,0),10)) -> 157.9864 | H16: 0
A17: E9689 | B17: =VLOOKUP(A17,Equipamentos!$A:$K,2,FALSE) -> Usina de asfalto a quente gravimétrica com capacidade de 100/140 t/h - 260 kW | C17: =IFERROR(INDEX('Tabelas 2 e 3 mob'!A:K,MATCH(A17,'Tabelas 2 e 3 mob'!A:A,0),9),"ERRO") -> E9666 | D17: 0 | E17: 2 | F17: 3 | G17: =IF(C17="Veículo(s) da própria frota.",0,INDEX(Equipamentos!B:K,MATCH(C17,Equipamentos!A:A,0),10)) -> 136.5485 | H17: 0
A18: E9530 | B18: =VLOOKUP(A18,Equipamentos!$A:$K,2,FALSE) -> Rolo compactador liso vibratório autopropelido por pneus de 11 t - 97 kW | C18: =IFERROR(INDEX('Tabelas 2 e 3 mob'!A:K,MATCH(A18,'Tabelas 2 e 3 mob'!A:A,0),9),"ERRO") -> E9666 | D18: 1 | E18: 2 | F18: 0.5 | G18: =IF(C18="Veículo(s) da própria frota.",0,INDEX(Equipamentos!B:K,MATCH(C18,Equipamentos!A:A,0),10)) -> 136.5485 | H18: 2.275808333
A19: E9558 | B19: =VLOOKUP(A19,Equipamentos!$A:$K,2,FALSE) -> Tanque de estocagem de asfalto com capacidade de 30.000 l | C19: =IFERROR(INDEX('Tabelas 2 e 3 mob'!A:K,MATCH(A19,'Tabelas 2 e 3 mob'!A:A,0),9),"ERRO") -> E9665 | D19: 0 | E19: 2 | F19: 1 | G19: =IF(C19="Veículo(s) da própria frota.",0,INDEX(Equipamentos!B:K,MATCH(C19,Equipamentos!A:A,0),10)) -> 123.9413 | H19: 0
A20: E9758 | B20: =VLOOKUP(A20,Equipamentos!$A:$K,2,FALSE) -> Vibroacabadora de asfalto sobre pneus - 97 kW | C20: =IFERROR(INDEX('Tabelas 2 e 3 mob'!A:K,MATCH(A20,'Tabelas 2 e 3 mob'!A:A,0),9),"ERRO") -> E9018 | D20: 1 | E20: 2 | F20: 0.5 | G20: =IF(C20="Veículo(s) da própria frota.",0,INDEX(Equipamentos!B:K,MATCH(C20,Equipamentos!A:A,0),10)) -> 157.9864 | H20: 2.633106667
A21: E9685 | B21: =VLOOKUP(A21,Equipamentos!$A:$K,2,FALSE) -> Rolo compactador pé de carneiro vibratório autopropelido por pneus de 11,6 t - 82 kW | C21: =IFERROR(INDEX('Tabelas 2 e 3 mob'!A:K,MATCH(A21,'Tabelas 2 e 3 mob'!A:A,0),9),"ERRO") -> E9666 | D21: 1 | E21: 2 | F21: 0.5 | G21: =IF(C21="Veículo(s) da própria frota.",0,INDEX(Equipamentos!B:K,MATCH(C21,Equipamentos!A:A,0),10)) -> 136.5485 | H21: 2.275808333
A22: E9605 | B22: =VLOOKUP(A22,Equipamentos!$A:$K,2,FALSE) -> Caminhão tanque com capacidade de 6.000 l - 136 kW | C22: =IFERROR(INDEX('Tabelas 2 e 3 mob'!A:K,MATCH(A22,'Tabelas 2 e 3 mob'!A:A,0),9),"ERRO") -> E9605 | D22: 1 | E22: 1 | F22: 1 | G22: =IF(C22="Veículo(s) da própria frota.",0,INDEX(Equipamentos!B:K,MATCH(C22,Equipamentos!A:A,0),10)) -> 73.5857 | H22: 1.226428333
A23: E9579 | B23: =VLOOKUP(A23,Equipamentos!$A:$K,2,FALSE) -> Caminhão basculante com capacidade de 10 m³ - 210 kW | C23: =IFERROR(INDEX('Tabelas 2 e 3 mob'!A:K,MATCH(A23,'Tabelas 2 e 3 mob'!A:A,0),9),"ERRO") -> E9579 | D23: 3 | E23: 1 | F23: 1 | G23: =IF(C23="Veículo(s) da própria frota.",0,INDEX(Equipamentos!B:K,MATCH(C23,Equipamentos!A:A,0),10)) -> 84.4025 | H23: 4.220125
A24: E9509 | B24: =VLOOKUP(A24,Equipamentos!$A:$K,2,FALSE) -> Caminhão tanque distribuidor de asfalto com capacidade de 6.000 l - 7 kW/136 kW | C24: =IFERROR(INDEX('Tabelas 2 e 3 mob'!A:K,MATCH(A24,'Tabelas 2 e 3 mob'!A:A,0),9),"ERRO") -> E9509 | D24: 1 | E24: 1 | F24: 1 | G24: =IF(C24="Veículo(s) da própria frota.",0,INDEX(Equipamentos!B:K,MATCH(C24,Equipamentos!A:A,0),10)) -> 77.6174 | H24: 1.293623333
A25: E9762 | B25: =VLOOKUP(A25,Equipamentos!$A:$K,2,FALSE) -> Rolo compactador de pneus autopropelido de 27 t - 85 kW | C25: =IFERROR(INDEX('Tabelas 2 e 3 mob'!A:K,MATCH(A25,'Tabelas 2 e 3 mob'!A:A,0),9),"ERRO") -> E9666 | D25: 1 | E25: 2 | F25: 0.5 | G25: =IF(C25="Veículo(s) da própria frota.",0,INDEX(Equipamentos!B:K,MATCH(C25,Equipamentos!A:A,0),10)) -> 136.5485 | H25: 2.275808333
A26: E9681 | B26: =VLOOKUP(A26,Equipamentos!$A:$K,2,FALSE) -> Rolo compactador liso tandem vibratório autopropelido de 10,4 t - 82 kW | C26: =IFERROR(INDEX('Tabelas 2 e 3 mob'!A:K,MATCH(A26,'Tabelas 2 e 3 mob'!A:A,0),9),"ERRO") -> E9666 | D26: 1 | E26: 2 | F26: 0.5 | G26: =IF(C26="Veículo(s) da própria frota.",0,INDEX(Equipamentos!B:K,MATCH(C26,Equipamentos!A:A,0),10)) -> 136.5485 | H26: 2.275808333
A27: E9545 | B27: =VLOOKUP(A27,Equipamentos!$A:$K,2,FALSE) -> Vibroacabadora de asfalto sobre esteiras - 97 kW | C27: =IFERROR(INDEX('Tabelas 2 e 3 mob'!A:K,MATCH(A27,'Tabelas 2 e 3 mob'!A:A,0),9),"ERRO") -> E9018 | D27: 1 | E27: 2 | F27: 0.5 | G27: =IF(C27="Veículo(s) da própria frota.",0,INDEX(Equipamentos!B:K,MATCH(C27,Equipamentos!A:A,0),10)) -> 157.9864 | H27: 2.633106667
A28: E9571 | B28: =VLOOKUP(A28,Equipamentos!$A:$K,2,FALSE) -> Caminhão tanque com capacidade de 10.000 l - 188 kW | C28: =IFERROR(INDEX('Tabelas 2 e 3 mob'!A:K,MATCH(A28,'Tabelas 2 e 3 mob'!A:A,0),9),"ERRO") -> E9571 | D28: 0 | E28: 1 | F28: 1 | G28: =IF(C28="Veículo(s) da própria frota.",0,INDEX(Equipamentos!B:K,MATCH(C28,Equipamentos!A:A,0),10)) -> 86.4875 | H28: 0
A29: E9514 | B29: =VLOOKUP(A29,Equipamentos!$A:$K,2,FALSE) -> Distribuidor de agregados sobre pneus autopropelido - 130 kW | C29: =IFERROR(INDEX('Tabelas 2 e 3 mob'!A:K,MATCH(A29,'Tabelas 2 e 3 mob'!A:A,0),9),"ERRO") -> E9665 | D29: 0 | E29: 2 | F29: 0.5 | G29: =IF(C29="Veículo(s) da própria frota.",0,INDEX(Equipamentos!B:K,MATCH(C29,Equipamentos!A:A,0),10)) -> 123.9413 | H29: 0
A30: E9511 | B30: =VLOOKUP(A30,Equipamentos!$A:$K,2,FALSE) -> Carregadeira de pneus com capacidade de 3,40 m³ - 195 kW | C30: =IFERROR(INDEX('Tabelas 2 e 3 mob'!A:K,MATCH(A30,'Tabelas 2 e 3 mob'!A:A,0),9),"ERRO") -> E9665 | D30: 1 | E30: 2 | F30: 1 | G30: =IF(C30="Veículo(s) da própria frota.",0,INDEX(Equipamentos!B:K,MATCH(C30,Equipamentos!A:A,0),10)) -> 123.9413 | H30: 4.131376667
A31: E9779 | B31: =VLOOKUP(A31,Equipamentos!$A:$K,2,FALSE) -> Grupo gerador - 113 kVA | C31: =IFERROR(INDEX('Tabelas 2 e 3 mob'!A:K,MATCH(A31,'Tabelas 2 e 3 mob'!A:A,0),9),"ERRO") -> Veículo(s) da própria frota. | D31: 5 | E31: 2 | F31: 0 | G31: =IF(C31="Veículo(s) da própria frota.",0,INDEX(Equipamentos!B:K,MATCH(C31,Equipamentos!A:A,0),10)) -> 0 | H31: 0
A32: E9559 | B32: =VLOOKUP(A32,Equipamentos!$A:$K,2,FALSE) -> Aquecedor de fluido térmico - 12 kW | C32: =IFERROR(INDEX('Tabelas 2 e 3 mob'!A:K,MATCH(A32,'Tabelas 2 e 3 mob'!A:A,0),9),"ERRO") -> Veículo(s) da própria frota. | D32: 5 | E32: 2 | F32: 0 | G32: =IF(C32="Veículo(s) da própria frota.",0,INDEX(Equipamentos!B:K,MATCH(C32,Equipamentos!A:A,0),10)) -> 0 | H32: 0
A33: E9584 | B33: =VLOOKUP(A33,Equipamentos!$A:$K,2,FALSE) -> Carregadeira de pneus com capacidade de 1,72 m³ - 113 kW | C33: =IFERROR(INDEX('Tabelas 2 e 3 mob'!A:K,MATCH(A33,'Tabelas 2 e 3 mob'!A:A,0),9),"ERRO") -> E9665 | D33: 0 | E33: 2 | F33: 1 | G33: =IF(C33="Veículo(s) da própria frota.",0,INDEX(Equipamentos!B:K,MATCH(C33,Equipamentos!A:A,0),10)) -> 123.9413 | H33: 0
A34: E9021 | B34: =VLOOKUP(A34,Equipamentos!$A:$K,2,FALSE) -> Grupo gerador - 456 kVA | C34: =IFERROR(INDEX('Tabelas 2 e 3 mob'!A:K,MATCH(A34,'Tabelas 2 e 3 mob'!A:A,0),9),"ERRO") -> E9508 | D34: 0 | E34: 2 | F34: 1 | G34: =IF(C34="Veículo(s) da própria frota.",0,INDEX(Equipamentos!B:K,MATCH(C34,Equipamentos!A:A,0),10)) -> 73.0381 | H34: 0
A35: E9687 | B35: =VLOOKUP(A35,Equipamentos!$A:$K,2,FALSE) -> Caminhão carroceria com capacidade de 5 t - 120 kW | C35: =IFERROR(INDEX('Tabelas 2 e 3 mob'!A:K,MATCH(A35,'Tabelas 2 e 3 mob'!A:A,0),9),"ERRO") -> E9687 | D35: 0 | E35: 1 | F35: 1 | G35: =IF(C35="Veículo(s) da própria frota.",0,INDEX(Equipamentos!B:K,MATCH(C35,Equipamentos!A:A,0),10)) -> 62.7829 | H35: 0
A36: E9667 | B36: =VLOOKUP(A36,Equipamentos!$A:$K,2,FALSE) -> Caminhão basculante com capacidade de 14 m³ - 210 kW | C36: =IFERROR(INDEX('Tabelas 2 e 3 mob'!A:K,MATCH(A36,'Tabelas 2 e 3 mob'!A:A,0),9),"ERRO") -> E9667 | D36: 0 | E36: 1 | F36: 1 | G36: =IF(C36="Veículo(s) da própria frota.",0,INDEX(Equipamentos!B:K,MATCH(C36,Equipamentos!A:A,0),10)) -> 94.3055 | H36: 0
A37: E9644 | B37: =VLOOKUP(A37,Equipamentos!$A:$K,2,FALSE) -> Caminhão demarcador de faixas com sistema de pintura a frio - 28 kW/129 kW | C37: =IFERROR(INDEX('Tabelas 2 e 3 mob'!A:K,MATCH(A37,'Tabelas 2 e 3 mob'!A:A,0),9),"ERRO") -> E9644 | D37: 0 | E37: 1 | F37: 1 | G37: =IF(C37="Veículo(s) da própria frota.",0,INDEX(Equipamentos!B:K,MATCH(C37,Equipamentos!A:A,0),10)) -> 163.9276 | H37: 0
A38: E9592 | B38: =VLOOKUP(A38,Equipamentos!$A:$K,2,FALSE) -> Caminhão carroceria com capacidade de 15 t - 188 kW | C38: =IFERROR(INDEX('Tabelas 2 e 3 mob'!A:K,MATCH(A38,'Tabelas 2 e 3 mob'!A:A,0),9),"ERRO") -> E9592 | D38: 0 | E38: 1 | F38: 1 | G38: =IF(C38="Veículo(s) da própria frota.",0,INDEX(Equipamentos!B:K,MATCH(C38,Equipamentos!A:A,0),10)) -> 81.5108 | H38: 0
A39: E9540 | B39: =VLOOKUP(A39,Equipamentos!$A:$K,2,FALSE) -> Trator sobre esteiras com lâmina - 127 kW | C39: =IFERROR(INDEX('Tabelas 2 e 3 mob'!A:K,MATCH(A39,'Tabelas 2 e 3 mob'!A:A,0),9),"ERRO") -> E9018 | D39: 0 | E39: 2 | F39: 0.5 | G39: =IF(C39="Veículo(s) da própria frota.",0,INDEX(Equipamentos!B:K,MATCH(C39,Equipamentos!A:A,0),10)) -> 157.9864 | H39: 0
A40: E9515 | B40: =VLOOKUP(A40,Equipamentos!$A:$K,2,FALSE) -> Escavadeira hidráulica sobre esteiras com caçamba com capacidade de 1,56 m³ - 118 kW | C40: =IFERROR(INDEX('Tabelas 2 e 3 mob'!A:K,MATCH(A40,'Tabelas 2 e 3 mob'!A:A,0),9),"ERRO") -> E9666 | D40: 0 | E40: 2 | F40: 1 | G40: =IF(C40="Veículo(s) da própria frota.",0,INDEX(Equipamentos!B:K,MATCH(C40,Equipamentos!A:A,0),10)) -> 136.5485 | H40: 0
A41: E9506 | B41: =VLOOKUP(A41,Equipamentos!$A:$K,2,FALSE) -> Caminhão basculante com capacidade de 6 m³ - 136 kW | C41: =IFERROR(INDEX('Tabelas 2 e 3 mob'!A:K,MATCH(A41,'Tabelas 2 e 3 mob'!A:A,0),9),"ERRO") -> E9506 | D41: 0 | E41: 1 | F41: 1 | G41: =IF(C41="Veículo(s) da própria frota.",0,INDEX(Equipamentos!B:K,MATCH(C41,Equipamentos!A:A,0),10)) -> 73.9874 | H41: 0
A42: E9256 | B42: =VLOOKUP(A42,Equipamentos!$A:$K,2,FALSE) -> Equipamento para pintura com cal rebocável com dois bicos aplicadores e capacidade de 2.200 l | C42: =IFERROR(INDEX('Tabelas 2 e 3 mob'!A:K,MATCH(A42,'Tabelas 2 e 3 mob'!A:A,0),9),"ERRO") -> Veículo(s) da própria frota. | D42: 5 | E42: 2 | F42: 0 | G42: =IF(C42="Veículo(s) da própria frota.",0,INDEX(Equipamentos!B:K,MATCH(C42,Equipamentos!A:A,0),10)) -> 0 | H42: 0
A43: E9156 | B43: =VLOOKUP(A43,Equipamentos!$A:$K,2,FALSE) -> Soprador de ar costal - 2,6 kW | C43: =IFERROR(INDEX('Tabelas 2 e 3 mob'!A:K,MATCH(A43,'Tabelas 2 e 3 mob'!A:A,0),9),"ERRO") -> Veículo(s) da própria frota. | D43: 5 | E43: 2 | F43: 0 | G43: =IF(C43="Veículo(s) da própria frota.",0,INDEX(Equipamentos!B:K,MATCH(C43,Equipamentos!A:A,0),10)) -> 0 | H43: 0
A44: E9146 | B44: =VLOOKUP(A44,Equipamentos!$A:$K,2,FALSE) -> Caminhão silo com capacidade de 30 m³ - 368 kW | C44: =IFERROR(INDEX('Tabelas 2 e 3 mob'!A:K,MATCH(A44,'Tabelas 2 e 3 mob'!A:A,0),9),"ERRO") -> E9146 | D44: 0 | E44: 1 | F44: 1 | G44: =IF(C44="Veículo(s) da própria frota.",0,INDEX(Equipamentos!B:K,MATCH(C44,Equipamentos!A:A,0),10)) -> 134.4088 | H44: 0
A45: E9010 | B45: =VLOOKUP(A45,Equipamentos!$A:$K,2,FALSE) -> Balança plataforma digital à bateria, com mesa de 75 x 75 cm e capacidade de 500 kg | C45: =IFERROR(INDEX('Tabelas 2 e 3 mob'!A:K,MATCH(A45,'Tabelas 2 e 3 mob'!A:A,0),9),"ERRO") -> Veículo(s) da própria frota. | D45: 5 | E45: 2 | F45: 0 | G45: =IF(C45="Veículo(s) da própria frota.",0,INDEX(Equipamentos!B:K,MATCH(C45,Equipamentos!A:A,0),10)) -> 0 | H45: 0
A46: E9519 | B46: =VLOOKUP(A46,Equipamentos!$A:$K,2,FALSE) -> Betoneira com motor a gasolina com capacidade de 600 l - 10 kW | C46: =IFERROR(INDEX('Tabelas 2 e 3 mob'!A:K,MATCH(A46,'Tabelas 2 e 3 mob'!A:A,0),9),"ERRO") -> Veículo(s) da própria frota. | D46: 5 | E46: 2 | F46: 0 | G46: =IF(C46="Veículo(s) da própria frota.",0,INDEX(Equipamentos!B:K,MATCH(C46,Equipamentos!A:A,0),10)) -> 0 | H46: 0
A47: E9071 | B47: =VLOOKUP(A47,Equipamentos!$A:$K,2,FALSE) -> Transportador manual carrinho de mão com capacidade de 80 l | C47: =IFERROR(INDEX('Tabelas 2 e 3 mob'!A:K,MATCH(A47,'Tabelas 2 e 3 mob'!A:A,0),9),"ERRO") -> Veículo(s) da própria frota. | D47: 5 | E47: 2 | F47: 0 | G47: =IF(C47="Veículo(s) da própria frota.",0,INDEX(Equipamentos!B:K,MATCH(C47,Equipamentos!A:A,0),10)) -> 0 | H47: 0
A48: E9064 | B48: =VLOOKUP(A48,Equipamentos!$A:$K,2,FALSE) -> Transportador manual gerica com capacidade de 180 l | C48: =IFERROR(INDEX('Tabelas 2 e 3 mob'!A:K,MATCH(A48,'Tabelas 2 e 3 mob'!A:A,0),9),"ERRO") -> Veículo(s) da própria frota. | D48: 5 | E48: 2 | F48: 0 | G48: =IF(C48="Veículo(s) da própria frota.",0,INDEX(Equipamentos!B:K,MATCH(C48,Equipamentos!A:A,0),10)) -> 0 | H48: 0
A49: E9066 | B49: =VLOOKUP(A49,Equipamentos!$A:$K,2,FALSE) -> Grupo gerador - 14 kVA | C49: =IFERROR(INDEX('Tabelas 2 e 3 mob'!A:K,MATCH(A49,'Tabelas 2 e 3 mob'!A:A,0),9),"ERRO") -> Veículo(s) da própria frota. | D49: 5 | E49: 2 | F49: 0 | G49: =IF(C49="Veículo(s) da própria frota.",0,INDEX(Equipamentos!B:K,MATCH(C49,Equipamentos!A:A,0),10)) -> 0 | H49: 0
A50: E9535 | B50: =VLOOKUP(A50,Equipamentos!$A:$K,2,FALSE) -> Serra circular com bancada - D = 30 cm - 4 kW | C50: =IFERROR(INDEX('Tabelas 2 e 3 mob'!A:K,MATCH(A50,'Tabelas 2 e 3 mob'!A:A,0),9),"ERRO") -> Veículo(s) da própria frota. | D50: 5 | E50: 2 | F50: 0 | G50: =IF(C50="Veículo(s) da própria frota.",0,INDEX(Equipamentos!B:K,MATCH(C50,Equipamentos!A:A,0),10)) -> 0 | H50: 0
A51: E9507 | B51: =VLOOKUP(A51,Equipamentos!$A:$K,2,FALSE) -> Plotadora de recorte com computador e programa computacional | C51: =IFERROR(INDEX('Tabelas 2 e 3 mob'!A:K,MATCH(A51,'Tabelas 2 e 3 mob'!A:A,0),9),"ERRO") -> Veículo(s) da própria frota. | D51: 5 | E51: 2 | F51: 0 | G51: =IF(C51="Veículo(s) da própria frota.",0,INDEX(Equipamentos!B:K,MATCH(C51,Equipamentos!A:A,0),10)) -> 0 | H51: 0
A52: E9568 | B52: =VLOOKUP(A52,Equipamentos!$A:$K,2,FALSE) -> Furadeira de impacto de 12,5 mm - 0,80 kW | C52: =IFERROR(INDEX('Tabelas 2 e 3 mob'!A:K,MATCH(A52,'Tabelas 2 e 3 mob'!A:A,0),9),"ERRO") -> Veículo(s) da própria frota. | D52: 5 | E52: 2 | F52: 0 | G52: =IF(C52="Veículo(s) da própria frota.",0,INDEX(Equipamentos!B:K,MATCH(C52,Equipamentos!A:A,0),10)) -> 0 | H52: 0
A53: E9753 | B53: =VLOOKUP(A53,Equipamentos!$A:$K,2,FALSE) -> Grupo gerador - 23 kVA | C53: =IFERROR(INDEX('Tabelas 2 e 3 mob'!A:K,MATCH(A53,'Tabelas 2 e 3 mob'!A:A,0),9),"ERRO") -> Veículo(s) da própria frota. | D53: 5 | E53: 2 | F53: 0 | G53: =IF(C53="Veículo(s) da própria frota.",0,INDEX(Equipamentos!B:K,MATCH(C53,Equipamentos!A:A,0),10)) -> 0 | H53: 0
A54: E9623 | B54: =VLOOKUP(A54,Equipamentos!$A:$K,2,FALSE) -> Máquina de bancada guilhotina - 4,00 kW | C54: =IFERROR(INDEX('Tabelas 2 e 3 mob'!A:K,MATCH(A54,'Tabelas 2 e 3 mob'!A:A,0),9),"ERRO") -> Veículo(s) da própria frota. | D54: 5 | E54: 2 | F54: 0 | G54: =IF(C54="Veículo(s) da própria frota.",0,INDEX(Equipamentos!B:K,MATCH(C54,Equipamentos!A:A,0),10)) -> 0 | H54: 0
A55: E9622 | B55: =VLOOKUP(A55,Equipamentos!$A:$K,2,FALSE) -> Máquina de bancada universal para corte de chapa - 1,50 kW | C55: =IFERROR(INDEX('Tabelas 2 e 3 mob'!A:K,MATCH(A55,'Tabelas 2 e 3 mob'!A:A,0),9),"ERRO") -> Veículo(s) da própria frota. | D55: 5 | E55: 2 | F55: 0 | G55: =IF(C55="Veículo(s) da própria frota.",0,INDEX(Equipamentos!B:K,MATCH(C55,Equipamentos!A:A,0),10)) -> 0 | H55: 0
A56: E9678 | B56: =VLOOKUP(A56,Equipamentos!$A:$K,2,FALSE) -> Fresadora a frio - 455 kW | C56: =IFERROR(INDEX('Tabelas 2 e 3 mob'!A:K,MATCH(A56,'Tabelas 2 e 3 mob'!A:A,0),9),"ERRO") -> E9666 | D56: 0 | E56: 2 | F56: 1 | G56: =IF(C56="Veículo(s) da própria frota.",0,INDEX(Equipamentos!B:K,MATCH(C56,Equipamentos!A:A,0),10)) -> 136.5485 | H56: 0
G57: TOTAL | H57: =SUM(H12:H56) -> 35.56944167
A60: CUSTO TOTAL MOBILIZAÇÃO E DESMOBILIZAÇÃO
A61: DESCRIÇÃO | B61: VALOR
A62: Custo Mobilização (km) | B62: =H57 -> 35.56944167
A63: BDI (%) | B63: =BDI!C17 -> 0.2308
A64: Custo Mobilização (R$/km) com BDI | B64: =B62+(B62*B63) -> 43.7788688
A65: Total de Frentes | B65: =H5 -> 1
A66: Custo Mobilização (frentes x distancia) | B66: =B64*H6*B65 -> 13877.90141

Sheet Canteiro
A4: CANTEIRO DE OBRAS PARA CONSTRUÇAO RODOVIÁRIA
A5: Descrição dos serviços | B5: Tipo de container | C5: Unidade | D5: Quantidade | E5: Preço unitário (R$) | F5: Total (R$)
A6: Escritório e seção técnica
A7: =VLOOKUP(B7,'INSUMOS SINAPI'!A:E,2,0) -> LOCACAO DE CONTAINER 2,30 X 6,00 M, ALT. 2,50 M, PARA ESCRITORIO, SEM DIVISORIAS INTERNAS E SEM SANITARIO (NAO INCLUI MOBILIZACAO/DESMOBILIZACAO) | B7: 10776 | C7: und | D7: 1 | E7: =VLOOKUP(B7,'INSUMOS SINAPI'!A:E,5,0) -> 705.85 | F7: =TRUNC(D7*E7,2) -> 705.85
A8: Banheiro e vestiário
A9: =VLOOKUP(B9,'INSUMOS SINAPI'!A:E,2,0) -> LOCACAO DE CONTAINER 2,30 X 4,30 M, ALT. 2,50 M, PARA SANITARIO, COM 3 BACIAS, 4 CHUVEIROS, 1 LAVATORIO E 1 MICTORIO (NAO INCLUI MOBILIZACAO/DESMOBILIZACAO) | B9: 10777 | C9: und | D9: 1 | E9: =VLOOKUP(B9,'INSUMOS SINAPI'!A:E,5,0) -> 1025.84 | F9: =TRUNC(D9*E9,2) -> 1025.84
D10: TOTAL DO CANTEIRO | F10: =SUM(F7:F9) -> 1731.69
D11: DURAÇÃO (MESES) | E11: 6 | F11: =F10*E11 -> 10390.14
D12: BDI | F12: =BDI!C17 -> 0.2308
D13: TOTAL DO CANTEIRO (com BDI) | F13: =F11+(F11*F12) -> 12788.18431

Sheet Adm Local
A1: parcela fixa da administração local (mão de obra)
A2: Código | B2: Discriminação | C2: Unidade | D2: Quantidade | F2: Custo Unitário (R$) | H2: Custo Total (R$)
B3: Mão de Obra
B4: Gerência Técnica
B5: Geral
A6: P9812 | B6: Engenheiro | C6: mês | D6: 0.5 | F6: =VLOOKUP(A6,'Pessoal Sicro'!$A$6:$G$118,6,0) -> 25583.6715 | H6: =F6*D6 -> 12791.83575
A7: P9840 | B7: Encarregado geral | C7: mês | D7: 0 | F7: =VLOOKUP(A7,'Pessoal Sicro'!$A$6:$G$118,6,0) -> 12771.8683 | H7: =F7*D7 -> 0
A8: P9897 | B8: Técnico de meio ambiente | C8: mês | D8: 0 | F8: =VLOOKUP(A8,'Pessoal Sicro'!$A$6:$G$118,6,0) -> 7977.7445 | H8: =F8*D8 -> 0
A9: P9948 | B9: Motorista | C9: mês | D9: 0 | F9: =VLOOKUP(A9,'Pessoal Sicro'!$A$6:$G$118,6,0) -> 5710.8312 | H9: =F9*D9 -> 0
A10: P9878 | B10: Secretária | C10: mês | D10: 0 | F10: =VLOOKUP(A10,'Pessoal Sicro'!$A$6:$G$118,6,0) -> 6814.4061 | H10: =F10*D10 -> 0
F11: Subtotal do Item 1.1 | H11: =SUM(H6:I10) -> 12791.83575
B12: Auxiliar
A13: P9946 | B13: Engenheiro auxiliar | C13: mês | D13: 0 | F13: =VLOOKUP(A13,'Pessoal Sicro'!$A$6:$G$118,6,0) -> 24007.2443 | H13: =D13*F13 -> 0
A14: P9903 | B14: Auxiliar técnico | C14: mês | D14: 0 | F14: =VLOOKUP(A14,'Pessoal Sicro'!$A$6:$G$118,6,0) -> 4780.6471 | H14: =D14*F14 -> 0
F15: Subtotal do Item 1.2 | H15: =SUM(H13:I14) -> 0
B16: Gerência Administrativa
B17: Geral
A18: P9883 | B18: Chefe do setor administrativo | C18: mês | D18: 0 | F18: =VLOOKUP(A18,'Pessoal Sicro'!$A$6:$G$118,6,0) -> 7671.8984 | H18: =F18*D18 -> 0
A19: P9809 | B19: Encarregado administrativo | C19: mês | D19: 0 | F19: =VLOOKUP(A19,'Pessoal Sicro'!$A$6:$G$118,6,0) -> 7671.6779 | H19: =F19*D19 -> 0
A20: P9896 | B20: Porteiro | C20: mês | D20: 0 | F20: =VLOOKUP(A20,'Pessoal Sicro'!$A$6:$G$118,6,0) -> 4122.1477 | H20: =F20*D20 -> 0
A21: P9827 | B21: Vigia | C21: mês | D21: 0 | F21: =VLOOKUP(A21,'Pessoal Sicro'!$A$6:$G$118,6,0) -> 5127.8685 | H21: =F21*D21 -> 0
A22: P9948 | B22: Motorista | C22: mês | D22: 0 | F22: =VLOOKUP(A22,'Pessoal Sicro'!$A$6:$G$118,6,0) -> 5710.8312 | H22: =F22*D22 -> 0
F23: Subtotal do Item 1.3 | H23: =SUM(H18:I22) -> 0
B24: Auxiliar
A25: P9806 | B25: Auxiliar administrativo | C25: mês | D25: 0.5 | F25: =VLOOKUP(A25,'Pessoal Sicro'!$A$6:$G$118,6,0) -> 4664.5228 | H25: =F25*D25 -> 2332.2614
A26: P9842 | B26: Faxineiro | C26: mês | D26: 0 | F26: =VLOOKUP(A26,'Pessoal Sicro'!$A$6:$G$118,6,0) -> 4129.4151 | H26: =F26*D26 -> 0
F27: Subtotal do Item 1.4 | H27: =SUM(H25:I26) -> 2332.2614
H28: Total da Mão de Obra da Parcela Fixa | I28: =H27+H23+H15+H11 -> 15124.09715
A30: parcela fixa da administração local (veículos)
A31: Código | B31: Discriminação | C31: Unidade | D31: Quantidade | E31: Utilização Produtiva | F31: Utilização Improdutiva | G31: Custo Horário Produtivo (R$) | H31: Custo Horário Improdutivo (R$) | I31: Custo Total (R$)
A32: 2 | B32: Veículos
B33: Gerência Técnica
A34: 2.1 | B34: Geral
A35: E9093 | B35: Veículo Leve 53 kw | C35: mês | D35: 0.5 | E35: 44 | F35: 176 | G35: =Equipamentos!J83 -> 38.1128 | H35: =Equipamentos!K83 -> 6.7043 | I35: =((E35*G35)+(F35*H35))*D35 -> 1428.46
A36: E9560 | B36: Ônibus coletivo - 175 kw | C36: mês | D36: 0 | E36: 44 | F36: 176 | G36: =Equipamentos!J193 -> 0.218 | H36: =Equipamentos!J193 -> 0.218 | I36: =((E36*G36)+(F36*H36))*D36 -> 0
H37: Subtotal do Item 2 | I37: =SUM(I35:I36) -> 1428.46
A38: 2.2 | B38: Auxiliar
A39: E9093 | B39: Veículo Leve 53 kw | C39: mês | D39: 0 | E39: 44 | F39: 176 | G39: =G35 -> 38.1128 | H39: =H35 -> 6.7043 | I39: =((E39*G39)+(F39*H39))*D39 -> 0
H40: Subtotal do Item 2 | I40: =SUM(I39) -> 0
A41: 2.3 | B41: Gerência Administrativa
A42: E9093 | B42: Veículo Leve 53 kw | C42: mês | D42: 0 | E42: 44 | F42: 176 | G42: =G35 -> 38.1128 | H42: =H35 -> 6.7043 | I42: =((E42*G42)+(F42*H42))*D42 -> 0
H43: Subtotal do Item 2 | I43: =I42 -> 0
H44: Total dos Veículos da Parcela Fixa | I44: =I43+I40+I37 -> 1428.46
A46: Composição de custo da equipe de produção de terraplenagem
A47: Código | B47: Discriminação | C47: Unidade | D47: Quantidade | F47: Custo Unitário (R$) | H47: Custo Total (R$)
B48: Equipe de Produção de Terraplenagem
A49: 3.1 | B49: Mão de Obra
A50: P9875 | B50: Encarregado | C50: mês | D50: 0 | F50: =VLOOKUP(A50,'Pessoal Sicro'!$A$6:$G$118,6,0) -> 5714.1183 | H50: =F50*D50 -> 0
F51: Subtotal do Item 3.1 | H51: =SUM(H50:H50) -> 0
A52: Código | B52: Discriminação | C52: Unidade | D52: Quantidade | E52: Utilização Produtiva | F52: Utilização Improdutiva | G52: Custo Horário Produtivo (R$) | H52: Custo Horário Improdutivo (R$) | I52: Custo Total (R$)
A53: 3.2 | B53: Veículos
B54: Veículo Leve 53 kw | C54: mês | D54: 0 | E54: 44 | F54: 176 | G54: =G35 -> 38.1128 | H54: =H35 -> 6.7043 | I54: =((E54*G54)+(F54*H54))*D54 -> 0
H55: Subtotal do Item 3.2 | I55: =SUM(I54:I54) -> 0
H56: Total da Equipe de Produção de Terraplenagem | I56: =I55+H51 -> 0
A58: Composição de custo da equipe de produção de pavimentação
A59: Código | B59: Discriminação | C59: Unidade | D59: Quantidade | F59: Custo Unitário (R$) | H59: Custo Total (R$)
B60: Equipe de Produção de Pavimentação
A61: 3.1 | B61: Mão de Obra
A62: P9875 | B62: Encarregado | C62: mês | D62: 1 | F62: =VLOOKUP(A62,'Pessoal Sicro'!$A$6:$G$118,6,0) -> 5714.1183 | H62: =F62*D62 -> 5714.1183
F63: Subtotal do Item 3.1 | H63: =SUM(H62:H62) -> 5714.1183
A64: Código | B64: Discriminação | C64: Unidade | D64: Quantidade | E64: Utilização Produtiva | F64: Utilização Improdutiva | G64: Custo Horário Produtivo (R$) | H64: Custo Horário Improdutivo (R$) | I64: Custo Total (R$)
A65: 3.2 | B65: Veículos
B66: Veículo Leve 53 kw | C66: mês | D66: 1 | E66: 44 | F66: 176 | G66: =$G$35 -> 38.1128 | H66: =$H$35 -> 6.7043 | I66: =((E66*G66)+(F66*H66))*D66 -> 2856.92
H67: Subtotal do Item 3.2 | I67: =SUM(I66:I66) -> 2856.92
H68: Total da Equipe de Produção de Pavimentação | I68: =I67+H63 -> 8571.0383
A70: Composição de custo da equipe de produção de drenagem
A71: Código | B71: Discriminação | C71: Unidade | D71: Quantidade | F71: Custo Unitário (R$) | H71: Custo Total (R$)
B72: Equipe de Produção de Pavimentação
A73: 3.1 | B73: Mão de Obra
A74: P9875 | B74: Encarregado | C74: mês | D74: 0.2 | F74: =VLOOKUP(A74,'Pessoal Sicro'!$A$6:$G$118,6,0) -> 5714.1183 | H74: =F74*D74 -> 1142.82366
F75: Subtotal do Item 3.1 | H75: =SUM(H74:H74) -> 1142.82366
A76: Código | B76: Discriminação | C76: Unidade | D76: Quantidade | E76: Utilização Produtiva | F76: Utilização Improdutiva | G76: Custo Horário Produtivo (R$) | H76: Custo Horário Improdutivo (R$) | I76: Custo Total (R$)
A77: 3.2 | B77: Veículos
B78: Veículo Leve 53 kw | C78: mês | D78: 1 | E78: 44 | F78: 176 | G78: =$G$35 -> 38.1128 | H78: =$H$35 -> 6.7043 | I78: =((E78*G78)+(F78*H78))*D78 -> 2856.92
H79: Subtotal do Item 3.2 | I79: =SUM(I78:I78) -> 2856.92
H80: Total da Equipe de Produção de Pavimentação | I80: =I79+H75 -> 3999.74366
A82: Composição de custo da equipe de produção de sinalização
A83: Código | B83: Discriminação | C83: Unidade | D83: Quantidade | F83: Custo Unitário (R$) | H83: Custo Total (R$)
B84: Equipe de Produção de Pavimentação
A85: 3.1 | B85: Mão de Obra
A86: P9893 | B86: Encarregado de produção | C86: mês | D86: 0.2 | F86: =VLOOKUP(A86,'Pessoal Sicro'!$A$6:$G$118,6,0) -> 8494.9785 | H86: =F86*D86 -> 1698.9957
F87: Subtotal do Item 3.1 | H87: =SUM(H86:H86) -> 1698.9957
A88: Código | B88: Discriminação | C88: Unidade | D88: Quantidade | E88: Utilização Produtiva | F88: Utilização Improdutiva | G88: Custo Horário Produtivo (R$) | H88: Custo Horário Improdutivo (R$) | I88: Custo Total (R$)
A89: 3.2 | B89: Veículos
B90: Veículo Leve 53 kw | C90: mês | D90: 0.2 | E90: 44 | F90: 176 | G90: =$G$35 -> 38.1128 | H90: =$H$35 -> 6.7043 | I90: =((E90*G90)+(F90*H90))*D90 -> 571.384
H91: Subtotal do Item 3.2 | I91: =SUM(I90:I90) -> 571.384
H92: Total da Equipe de Produção de Pavimentação | I92: =I91+H87 -> 2270.3797
A94: Composição de custo da equipe topografia
A95: Código | B95: Discriminação | C95: Unidade | D95: Quantidade | F95: Custo Unitário (R$) | H95: Custo Total (R$)
B96: Equipe de Topografia
A97: 3.1 | B97: Mão de Obra
A98: P9949 | B98: Topográfo | C98: mês | D98: 0.5 | F98: =VLOOKUP(A98,'Pessoal Sicro'!$A$6:$G$118,6,0) -> 8853.228 | H98: =F98*D98 -> 4426.614
A99: P9950 | B99: Auxiliar de topografia | C99: mês | D99: 0.5 | F99: =VLOOKUP(A99,'Pessoal Sicro'!$A$6:$G$118,6,0) -> 5763.0809 | H99: =F99*D99 -> 2881.54045
F100: Subtotal do Item 3.1 | H100: =SUM(H98:I99) -> 7308.15445
A101: Código | B101: Discriminação | C101: Unidade | D101: Quantidade | E101: Utilização Produtiva | F101: Utilização Improdutiva | G101: Custo Horário Produtivo (R$) | H101: Custo Horário Improdutivo (R$) | I101: Custo Total (R$)
A102: 3.2 | B102: Veículos
B103: Veículo Leve 53 kw | C103: mês | D103: 1 | E103: 44 | F103: 176 | G103: =G35 -> 38.1128 | H103: =H35 -> 6.7043 | I103: =((E103*G103)+(F103*H103))*D103 -> 2856.92
H104: Subtotal do Item 3.2 | I104: =SUM(I103:I103) -> 2856.92
H105: Total da Equipe de Produção de Topografia | I105: =I104+H100 -> 10165.07445
A107: Composição de custo do setor de medicina e segurança do trabalho
A108: Código | B108: Discriminação | C108: Unidade | D108: Quantidade | F108: Custo Unitário (R$) | H108: Custo Total (R$)
A109: 4 | B109: Setor de Medicina e Segurança do Trabalho
A110: P9876 | B110: Técnico de segurança do trabalho | C110: mês | D110: 0.5 | F110: =VLOOKUP(A110,'Pessoal Sicro'!$A$6:$G$118,6,0) -> 7394.4246 | H110: =F110*D110 -> 3697.2123
A111: P9864 | B111: Engenheiro de segurança do trabalho | C111: mês | D111: 0 | F111: =VLOOKUP(A111,'Pessoal Sicro'!$A$6:$G$118,6,0) -> 24835.1846 | H111: =F111*D111 -> 0
A112: P9851 | B112: Médico do trabalho | C112: mês | D112: 0 | F112: =VLOOKUP(A112,'Pessoal Sicro'!$A$6:$G$118,6,0) -> 18990.2022 | H112: =F112*D112 -> 0
A113: P9951 | B113: Médico de câmara hiperbárica | C113: mês | D113: 0 | F113: =VLOOKUP(A113,'Pessoal Sicro'!$A$6:$G$118,6,0) -> 21562.4373 | H113: =F113*D113 -> 0
F114: Subtotal do Item 4 | H114: =SUM(H110:I113) -> 3697.2123
A116: Parcela Variável - Composição de custo da equipe de frente de serviço
A117: Código | B117: Discriminação | C117: Unidade | D117: Quantidade | F117: Custo Unitário (R$) | H117: Custo Total (R$)
A118: 5 | B118: Equipe de Frente de Serviço | C118: equipexmês
A119: P9875 | B119: Encarregado de Turma | C119: mês | D119: 0 | F119: =VLOOKUP(A119,'Pessoal Sicro'!$A$6:$G$118,6,0) -> 5714.1183 | H119: =F119*D119 -> 0
A120: P9804 | B120: Apontador | C120: mês | D120: 0 | F120: =VLOOKUP(A120,'Pessoal Sicro'!$A$6:$G$118,6,0) -> 4938.4676 | H120: =F120*D120 -> 0
F121: Subtotal do Item 5 | H121: =SUM(H119:I120) -> 0
A123: Parcela Variável - Composição de custo da equipe de frente de serviço (Terraplenagem) - Somente Compactação
A124: Código | B124: Discriminação | C124: Unidade | D124: Quantidade | F124: Produção Horária (und/h) | H124: Efs
A125: 5.1 | B125: Equipe de Frente de Serviço | C125: equipexmês
C126: mês | H126: =(D126)/(F126*182.49) -> 
C127: mês | H127: =(D127)/(F127*182.49) -> 
C128: mês | H128: =(D128)/(F128*182.49) -> 
F129: Total de Equipes para Terraplenagem | H129: =SUM(H128:I128) -> 
A131: Parcela Variável - Composição de custo da acompanhamento das frentes de serviço de pavimentação
A132: Código | B132: Discriminação | C132: Unidade | D132: Quantidade | F132: Produção Horária (und/h) | H132: Efs
A133: 5.2 | B133: Equipe de Frente de Serviço | C133: equipe x mês
A134: 4011463 | B134: =VLOOKUP(A134,'SINTÉTICO SICRO'!$A$4:$D$6373,2,0) -> Concreto asfáltico - faixa C-12,5 - areia e brita comerciais | C134: m² | D134: ='ORÇAMENTO '!J21 -> 4284 | F134: 99.6 | H134: =(D134)/(F134*182.49) -> 0.2356953707
A135: 4011352 | B135: =VLOOKUP(A135,'SINTÉTICO SICRO'!$A$4:$D$1048576,2,0) -> Imprimação com emulsão asfáltica | C135: m² | D135: ='ORÇAMENTO '!J22 -> 38250 | F135: 1125 | H135: =(D135)/(F135*182.49) -> 0.1863115787
A136: 4011353 | B136: =VLOOKUP(A136,'SINTÉTICO SICRO'!$A$4:$D$6373,2,0) -> Pintura de ligação | C136: m² | D136: ='ORÇAMENTO '!J23 -> 38250 | F136: 1500 | H136: =(D136)/(F136*182.49) -> 0.139733684
A137: 4011342 | B137: =VLOOKUP(A137,'SINTÉTICO SICRO'!$A$4:$D$6373,2,0) -> Reestabilização de camada de base com adição de 30% de brita comercial - 100% Proctor modificado | C137: m³ | D137: ='ORÇAMENTO '!J19 -> 4845 | F137: 119.52 | H137: =(D137)/(F137*182.49) -> 0.2221335339
F138: Total de Equipes para Pavimentação | H138: =SUM(H134:I137) -> 0.7838741673
A140: Parcela Variável - Composição de custo da acompanhamento das frentes de serviço de drenagem
A141: Código | B141: Discriminação | C141: Unidade | D141: Quantidade | F141: Efsdu | H141: Efs
A142: 5.3 | B142: Frentes de Serviço para Drenagem | C142: equipe x mês
A143: ='ORÇAMENTO '!D32 -> 2003943 | B143: =VLOOKUP(A143,'SINTÉTICO SICRO'!$A$4:$D$6373,2,0) -> Meio-fio de concreto - MFC 03 moldado no local com extrusora e concreto usinado - areia e brita comerciais | C143: m | D143: ='ORÇAMENTO '!J32 -> 9843.01 | F143: 0.00021 | H143: =D143*F143 -> 2.0670321
F144: Total de Equipes para Drenagem | H144: =H143 -> 2.0670321
A146: Parcela Variável - Composição de custo da acompanhamento das frentes de serviço de sinalização
A147: Código | B147: Discriminação | C147: Unidade | D147: Quantidade | F147: Produção Horária (und/h) | H147: Efs
A148: 5.4 | B148: Frentes de Serviço para Sinalização | C148: equipe x mês
C149: Unidade | D149: 0 | F149: 3 | H149: =0.2*((D149)/(F149*182.49)) -> 0
C150: Unidade | D150: 0 | F150: 3 | H150: =0.2*((D150)/(F150*182.49)) -> 0
C151: Unidade | D151: 0 | F151: 4.1 | H151: =0.2*((D151)/(F151*182.49)) -> 0
F152: Total de Equipes para Sinalização | H152: =SUM(H149:I151) -> 0 | J152: =H152+H144 -> 2.0670321
A154: 3. PARCELA VARIÁVEL - EQUIPE DE CONTROLE TECNOLÓGICO
A155: LABORATÓRIO DE SOLOS
A156: Item | B156: Discriminação | F156: Unidade | G156: Quantidade | H156: Custo Unitário (R$) | I156: Custo Total (R$)
B157: Laboratório de Solos (equipe x mês)
B158: Mão de Obra
A159: P9858 | B159: Laboratorista | F159: func./mês | G159: 0.5 | H159: =VLOOKUP(A159,'Pessoal Sicro'!$A$6:$G$118,6,0) -> 7495.4913 | I159: =TRUNC(G159*H159,2) -> 3747.74
A160: P9833 | B160: Auxiliar de laboratório | F160: func./mês | G160: 0.5 | H160: =VLOOKUP(A160,'Pessoal Sicro'!$A$6:$G$118,6,0) -> 5742.8952 | I160: =TRUNC(G160*H160,2) -> 2871.44
H161: Subtotal do Item | I161: =SUM(I159:I160) -> 6619.18
A162: Item | B162: Discriminação | C162: Und | D162: Quant | E162: Utilização Produtiva | F162: Utilização Improdutiva | G162: Horário Produtivo (R$) | H162: Horário Improdutivo (R$) | I162: Total (R$)
B163: Equipe de Controle Tecnológico
B164: Veículos
A165: E9125 | B165: Van furgão a diesel - 93 kW | C165: veic./mês | D165: 0.5 | E165: 44 | F165: 176 | G165: =VLOOKUP(A165,Equipamentos!$A$4:$K$533,10,0) -> 87.887 | H165: =VLOOKUP(A165,Equipamentos!$A$4:$K$533,11,0) -> 48.3428 | I165: =D165*((E165*G165)+(F165*H165)) -> 6187.6804
H166: Subtotal do Item | I166: =SUM(I165:I165) -> 6187.6804
H167: Total da Equipe do Laboratório de Solos | I167: =I161+I166 -> 12806.8604
A169: 3. PARCELA VARIÁVEL - EQUIPE DE CONTROLE TECNOLÓGICO
A170: LABORATÓRIO DE ASFALTOS
A171: Item | B171: Discriminação | F171: Unidade | G171: Quantidade | H171: Custo Unitário (R$) | I171: Custo Total (R$)
B172: Laboratório de Solos (equipe x mês)
B173: Mão de Obra
A174: P9858 | B174: Laboratorista | F174: func./mês | G174: 1 | H174: =VLOOKUP(A174,'Pessoal Sicro'!$A$6:$G$118,6,0) -> 7495.4913 | I174: =TRUNC(G174*H174,2) -> 7495.49
A175: P9833 | B175: Auxiliar de laboratório | F175: func./mês | G175: 1 | H175: =VLOOKUP(A175,'Pessoal Sicro'!$A$6:$G$118,6,0) -> 5742.8952 | I175: =TRUNC(G175*H175,2) -> 5742.89
H176: Subtotal do Item | I176: =SUM(I174:I175) -> 13238.38
A177: Item | B177: Discriminação | C177: Und | D177: Quant | E177: Utilização Produtiva | F177: Utilização Improdutiva | G177: Horário Produtivo (R$) | H177: Horário Improdutivo (R$) | I177: Total (R$)
B178: Equipe de Controle Tecnológico
B179: Veículos
A180: E9125 | B180: Van furgão a diesel - 93 kW | C180: veic./mês | D180: 0.5 | E180: 44 | F180: 176 | G180: =VLOOKUP(A180,Equipamentos!$A$4:$K$533,10,0) -> 87.887 | H180: =VLOOKUP(A180,Equipamentos!$A$4:$K$533,11,0) -> 48.3428 | I180: =D180*((E180*G180)+(F180*H180)) -> 6187.6804
H181: Subtotal do Item | I181: =SUM(I180:I180) -> 6187.6804
H182: Total da Equipe do Laboratório de Asfaltos | I182: =I176+I181 -> 19426.0604
A184: Equipes de laboratório de solos para pavimentação
A185: Item | B185: Discriminação | F185: Und | G185: Quant | H185: QE | I185: Els
A186: ='ORÇAMENTO '!D19 -> 4011342 | B186: =VLOOKUP(A186,'SINTÉTICO SICRO'!A:D,2,0) -> Reestabilização de camada de base com adição de 30% de brita comercial - 100% Proctor modificado | F186: =VLOOKUP(A186,'SINTÉTICO SICRO'!A:D,3,0) -> m³ | G186: ='ORÇAMENTO '!J19 -> 4845 | H186: 8284 | I186: =G186/H186 -> 0.5848623853
H187: Total de equipes de Laboratório de Solos para Pavimentação | I187: =SUM(I186:I186) -> 0.5848623853
A189: Equipes de laboratório de Asfalto
A190: Item | B190: Discriminação | F190: Und | G190: Quant | H190: QE | I190: Ela
A191: ='ORÇAMENTO '!D21 -> 4011463 | B191: =VLOOKUP(A191,'SINTÉTICO SICRO'!A:D,2,0) -> Concreto asfáltico - faixa C-12,5 - areia e brita comerciais | F191: =VLOOKUP(A191,'SINTÉTICO SICRO'!A:D,3,0) -> t | G191: ='ORÇAMENTO '!J21 -> 4284 | H191: 9000 | I191: =G191/H191 -> 0.476
A192: ='ORÇAMENTO '!D22 -> 4011352 | B192: =VLOOKUP(A192,'SINTÉTICO SICRO'!A:D,2,0) -> Imprimação com emulsão asfáltica | F192: =VLOOKUP(A192,'SINTÉTICO SICRO'!A:D,3,0) -> m² | G192: ='ORÇAMENTO '!J22 -> 38250 | H192: 1610000 | I192: =G192/H192 -> 0.02375776398
A193: ='ORÇAMENTO '!D23 -> 4011353 | B193: =VLOOKUP(A193,'SINTÉTICO SICRO'!A:D,2,0) -> Pintura de ligação | F193: =VLOOKUP(A193,'SINTÉTICO SICRO'!A:D,3,0) -> m² | G193: ='ORÇAMENTO '!J23 -> 38250 | H193: 3610000 | I193: =G193/H193 -> 0.01059556787
H194: Total de equipes de Laboratório de Asfaltos | I194: =SUM(I191:I193) -> 0.5103533318
A196: manutenção do canteiro de obras e acampamentos
A197: Código | B197: Discriminação | C197: Unidade | D197: Quantidade | F197: Custo Unitário (R$) | H197: Custo Total (R$)
B198: Manutenção do Canteiro de Obras e Acampamentos
A199: 6.1 | B199: Mão de Obra
A200: P9952 | B200: Pedreiro | C200: mês | D200: 0 | F200: =VLOOKUP(A200,'Pessoal Sicro'!$A$6:$G$118,6,0) -> 4795.8523 | H200: =F200*D200 -> 0
A201: P9954 | B201: Servente | C201: mês | D201: 0 | F201: =VLOOKUP(A201,'Pessoal Sicro'!$A$6:$G$118,6,0) -> 4050.2835 | H201: =F201*D201 -> 0
A202: P9953 | B202: Eletricista | C202: mês | D202: 0 | F202: =VLOOKUP(A202,'Pessoal Sicro'!$A$6:$G$118,6,0) -> 5821.4669 | H202: =F202*D202 -> 0
F203: Subtotal do Item 6.1 | H203: =SUM(H200:I202) -> 0
A205: Código | B205: Discriminação | C205: Unidade | D205: Quantidade | F205: Custo Produtivo (R$) | H205: Custo Total (R$)
A206: 6.2 | B206: Equipamentos
B207: Caminhão guindauto de 6 toneladas | C207: h/mês | D207: 0 | H207: =F207*D207 -> 0
B208: Caminhão tanque de 8.000 litros | C208: h/mês | D208: 0 | H208: =F208*D208 -> 0
A209: E9524 | B209: Motoniveladora | C209: h/mês | D209: 0 | F209: =Equipamentos!J168 -> 296.156 | H209: =F209*D209 -> 0
F210: Subtotal do Item 6.2 | H210: =SUM(H207:I209) -> 0
G211: Total da Manutenção do Canteiro de Obras e Acampamentos | H211: =H210+H203 -> 0
A215: Resumo das parcelas de administração local
A216: Código | B216: Discriminação | C216: Unidade | D216: Quantidade | F216: Custo Unitário (R$) | H216: Custo Total (R$)
B217: Parcela Fixa
B218: Mão de Obra | C218: mês | D218: 5 | F218: =H11+H15+H23+H27 -> 15124.09715 | H218: =F218*D218 -> 75620.48575
B219: Veículos | C219: mês | D219: 5 | F219: =I44 -> 1428.46 | H219: =F219*D219 -> 7142.3
F220: Subtotal do Item 1 | H220: =SUM(H218:I219) -> 82762.78575
B221: Parcela Vinculada
... 24 more rows

Sheet Projeto Executivo (hidden)
A1: COMPOSIÇAO PREÇO PROJETO EXECUTIVO
A3: DISCRIMINAÇAO | F3: Pr. Unit. | G3: Pr. Total
A5: A· EOUIPE TECNICA | G5: =G6+G9 -> 15557.48426
B6: A. 1 - Pessoal de Nível Superior | C6: Unidade | D6: Quantitativo | E6: SICRO e Rel.Custos Gerais | G6: =G7+G8 -> 12446.7756
B7: Engenheiro | C7: mês | D7: 0.4 | E7: P9812 | F7: =VLOOKUP(E7,'Pessoal Sicro'!A:G,6,0) -> 25583.6715 | G7: =F7*D7 -> 10233.4686
B8: Topógrafo | C8: mês | D8: 0.25 | E8: P9949 | F8: =VLOOKUP(E8,'Pessoal Sicro'!A:G,6,0) -> 8853.228 | G8: =F8*D8 -> 2213.307
B9: A.2 - Pessoal de Nível Técnico e Aux. | G9: =G10+G11 -> 3110.708663
B10: Auxiliar de topógrafo | C10: mês | D10: 0.125 | E10: P9950 | F10: =VLOOKUP(E10,'Pessoal Sicro'!A:G,6,0) -> 5763.0809 | G10: =F10*D10 -> 720.3851125
B11: Auxiliar Técnico/Assistente de Engenharia | C11: mês | D11: 0.5 | E11: P9903 | F11: =VLOOKUP(E11,'Pessoal Sicro'!A:G,6,0) -> 4780.6471 | G11: =F11*D11 -> 2390.32355
A12: B - ENCARGOS SOCIAIS | G12: =G13 -> 0
B13: =CONCATENATE("Taxas ",'ENC. SOCIAIS'!E51,"%") -> Taxas 115,21% | C13: JÁ INCLUSAS EM "A"
A14: C - DESPESAS GERAIS | G14: =G15+G17+G16 -> 5352.247528
B15: C.1 - MATERIAIS DE CONSUMO | C15: Estimativa % como referência de equipe técnica com encargos sociais | D15: 0.03 | F15: =G5+G13 -> 15557.48426 | G15: =F15*D15 -> 466.7245279
B16: C.2 - VEÍCULOS (Veículo leve picape 4 x 4 com capacidade de 1,10 t - 147 kW) | C16: h | D16: 40 | E16: E9684 | F16: =VLOOKUP(E16,Equipamentos!A:K,10,0) -> 111.4139 | G16: =F16*D16 -> 4456.556
B17: C.3 - Estação total eletrônica com alcance máximo de 3.000 m | C17: h | D17: 55 | E17: E9553 | F17: =VLOOKUP(E17,Equipamentos!A:K,10,0) -> 7.7994 | G17: =F17*D17 -> 428.967
A18: D - ENSAIOS | G18: =SUM(G19:G22) -> 3762.897225
B19: Laboratorista | C19: mês | D19: =1/4 -> 0.25 | E19: P9858 | F19: =VLOOKUP(E19,'Pessoal Sicro'!A:G,6,0) -> 7495.4913 | G19: =F19*D19 -> 1873.872825
B20: Auxiliar de Laboratório | C20: mês | D20: =1/8 -> 0.125 | E20: P9833 | F20: =VLOOKUP(E20,'Pessoal Sicro'!A:G,6,0) -> 5742.8952 | G20: =F20*D20 -> 717.8619
B21: Laboratório de solos | C21: mês | D21: =1/8 -> 0.125 | E21: B8957 | F21: =VLOOKUP(E21,'Tabelas 1 e 2'!C14:G23,5,0) -> 3458.86 | G21: =F21*D21 -> 432.3575
B22: Laboratório de asfalto | C22: mês | D22: =1/8 -> 0.125 | E22: B8955 | F22: =VLOOKUP(E22,'Tabelas 1 e 2'!C15:G24,5,0) -> 5910.44 | G22: =F22*D22 -> 738.805
A23: I - SOMA (A+B+C+D) | G23: =G5+G12+G14+G18 -> 24672.62902
A24: II - CUSTOS ADMINISTRATIVOS | D24: =BDI!C17 -> 0.2308 | G24: =D24*G23 -> 5694.442777
A25: TOTAL | G25: =G23+G24 -> 30367.07179
F26: Por m²: | G26: =G25/('MEMÓRIA DE CÁLCULO'!C4*'MEMÓRIA DE CÁLCULO'!C5) -> 3.555863208

Sheet BDI
A2: OBRA:
A3: LOCAL:
A4: DATA BASE:
A5: DETALHAMENTO DO BDI - SEM DESONERAÇÃO
A6: ='ORÇAMENTO '!B1 -> CONTRATAÇÃO DE SERVIÇOS DE PAVIMENTAÇÃO ASFÁLTICA COM CONCRETO BETUMINOSO USINADO A QUENTE (CBUQ), INCLUSIVE SINALIZAÇÃO VIÁRIA E DRENAGEM SUPERFICAL, NA ESTRADA DO MELÃO, LOCALIZADA NO MUNICÍPIO DE MOSSORÓ/RN.
A7: DESCRIÇÃO DOS SERVIÇOS | B7: PREÇO DE VENDA (%) | C7: CUSTO DIRETO (%)
A8: ADMINISTRAÇÃO CENTRAL | C8: 0.06
A9: DESPESA FINANCEIRAS | B9: 0.0079
A10: SEGUROS E GARANTIAS CONTRATUAIS | B10: 0.0025
A11: RISCOS | B11: 0.005
A12: LUCRO OPERACIONAL | C12: 0.07
A13: PIS | B13: 0.0065
A14: COFINS | B14: 0.03
A15: ISSQN | B15: 0.03
A16: Contribuição Previdenciaria | B16: 0
B17: BDI | C17: =ROUND((1+(C8+C12))/(1-(B9+B10+B11+B13+B14+B15+B16))-1,4) -> 0.2308
A18: Observação: O percentual de ISSQN aqui utilizado consiste apenas em um referencial médio.
B19: O valor real do ISSQN a ser adotado deve ser aquele proveniente das alíquotas dos municípios situados na área de
B20: influência das obras.
A55: DETALHAMENTO DO BDI DIFERENCIADO - SEM DESONERAÇÃO
A56: ='ORÇAMENTO '!B1 -> CONTRATAÇÃO DE SERVIÇOS DE PAVIMENTAÇÃO ASFÁLTICA COM CONCRETO BETUMINOSO USINADO A QUENTE (CBUQ), INCLUSIVE SINALIZAÇÃO VIÁRIA E DRENAGEM SUPERFICAL, NA ESTRADA DO MELÃO, LOCALIZADA NO MUNICÍPIO DE MOSSORÓ/RN.
A58: DESCRIÇÃO DOS SERVIÇOS | B58: PREÇO DE VENDA (%) | C58: CUSTO DIRETO (%)
A59: ADMINISTRAÇÃO CENTRAL | C59: 0.0377
A60: DESPESA FINANCEIRAS | B60: 0.0102
A61: SEGUROS E GARANTIAS CONTRATUAIS | B61: 0.0025
A62: RISCOS | B62: 0.005
A63: LUCRO OPERACIONAL | C63: 0.05
A64: PIS | B64: 0.0065
A65: COFINS | B65: 0.03
A66: ISSQN | B66: 0
A67: Contribuição Previdenciaria | B67: 0
B68: BDI | C68: =ROUND((1+(C59+C63))/(1-(B60+B61+B62+B64+B65+B66+B67))-1,4) -> 0.15
A69: Fonte da composição, valores de referência e fórmula do BDI: Instrução Normativa N° 62/DNIT SEDE

Sheet ENC. SOCIAIS
A6: NOME DA CONCORRENTE:
A7: EDITAL:
A8: FOLHA:
A9: ='ORÇAMENTO '!B1 -> CONTRATAÇÃO DE SERVIÇOS DE PAVIMENTAÇÃO ASFÁLTICA COM CONCRETO BETUMINOSO USINADO A QUENTE (CBUQ), INCLUSIVE SINALIZAÇÃO VIÁRIA E DRENAGEM SUPERFICAL, NA ESTRADA DO MELÃO, LOCALIZADA NO MUNICÍPIO DE MOSSORÓ/RN.
A11: DETALHAMENTO DOS ENCARGOS SOCIAIS (%)
A12: DE 04/2024 | C12: COM DESONERAÇÃO | E12: SEM DESONERAÇÃO
C14: HORISTA | D14: MENSALISTA | E14: HORISTA | F14: MENSALISTA
A16: GRUPO A
A17: A1 | B17: INSS | C17: 0 | D17: 0 | E17: 20 | F17: 20
A18: A2 | B18: SESI | C18: 1.5 | D18: 1.5 | E18: 1.5 | F18: 1.5
A19: A3 | B19: SENAI | C19: 1 | D19: 1 | E19: 1 | F19: 1
A20: A4 | B20: INCRA | C20: 0.2 | D20: 0.2 | E20: 0.2 | F20: 0.2
A21: A5 | B21: SEBRAE | C21: 0.6 | D21: 0.6 | E21: 0.6 | F21: 0.6
A22: A6 | B22: Salário Educação | C22: 2.5 | D22: 2.5 | E22: 2.5 | F22: 2.5
A23: A7 | B23: Seguro Contra Acidentes de Trabalho | C23: 3 | D23: 3 | E23: 3 | F23: 3
A24: A8 | B24: FGTS | C24: 8 | D24: 8 | E24: 8 | F24: 8
A25: A9 | B25: SECONCI | C25: 1 | D25: 1 | E25: 0 | F25: 0
A26: A | B26: Total | C26: =SUM(C17:C25) -> 17.8 | D26: =SUM(D17:D25) -> 17.8 | E26: =SUM(E17:E25) -> 36.8 | F26: =SUM(F17:F25) -> 36.8
A27: GRUPO B
A28: B1 | B28: Repouso Semanal Remunerado | C28: 17.88 | D28: - | E28: 17.97 | F28: -
A29: B2 | B29: Feriados | C29: 3.94 | D29: - | E29: 4.28 | F29: -
A30: B3 | B30: Auxílio-enfermidade | C30: 0.91 | D30: 0.69 | E30: 0.87 | F30: 0.65
A31: B4 | B31: 13° salário | C31: 10.98 | D31: 8.33 | E31: 11.15 | F31: 8.33
A32: B5 | B32: Licença-paternidade | C32: 0.07 | D32: 0.06 | E32: 0.07 | F32: 0.05
A33: B6 | B33: Faltas Justificadas | C33: 0.73 | D33: 0.56 | E33: 0.74 | F33: 0.56
A34: B7 | B34: Dias de chuva | C34: 1.45 | D34: - | E34: 1.76 | F34: -
A35: B8 | B35: Auxílio Acidente de Trabalho | C35: 0.11 | D35: 0.09 | E35: 0.1 | F35: 0.07
A36: B9 | B36: Férias Gozadas | C36: 11.35 | D36: 8.62 | E36: 13.29 | F36: 9.93
A37: B10 | B37: Salário Maternidade | C37: 0.03 | D37: 0.03 | E37: 0.03 | F37: 0.03
A38: B | B38: Total | C38: =SUM(C28:C37) -> 47.45 | D38: =SUM(D28:D37) -> 18.38 | E38: =SUM(E28:E37) -> 50.26 | F38: =SUM(F28:F37) -> 19.62
A39: GRUPO C
A40: C1 | B40: Aviso Prévio Indenizado | C40: 6.76 | D40: 5.14 | E40: 5.23 | F40: 3.91
A41: C2 | B41: Aviso Prévio Trabalhado | C41: 0.16 | D41: 0.12 | E41: 0.12 | F41: 0.09
A42: C3 | B42: Férias Indenizadas | C42: 2.28 | D42: 1.73 | E42: 0.84 | F42: 0.63
A43: C4 | B43: Depósito Rescisão Sem Justa Causa | C43: 3.81 | D43: 2.89 | E43: 2.56 | F43: 1.91
A44: C5 | B44: Indenização Adicional | C44: 0.57 | D44: 0.43 | E44: 0.44 | F44: 0.33
A45: C | B45: Total | C45: =SUM(C40:C44) -> 13.58 | D45: =SUM(D40:D44) -> 10.31 | E45: =SUM(E40:E44) -> 9.19 | F45: =SUM(F40:F44) -> 6.87
A46: GRUPO D
A47: D1 | B47: Reincidência de A sobre B | C47: 8.45 | D47: 3.27 | E47: 18.5 | F47: 7.22
A48: D2 | B48: Reincidência de Grupo A sobre Aviso Prévio Trabalhado e Reincidência do FGTS sobre Aviso Prévio Indenizado | C48: 0.57 | D48: 0.43 | E48: 0.46 | F48: 0.35
A49: D | B49: Total | C49: =SUM(C47:C48) -> 9.02 | D49: =SUM(D47:D48) -> 3.7 | E49: =SUM(E47:E48) -> 18.96 | F49: =SUM(F47:F48) -> 7.57
A51: T O T A L (%) | C51: =C26+C38+C45+C49 -> 87.85 | D51: =D26+D38+D45+D49 -> 50.19 | E51: =E26+E38+E45+E49 -> 115.21 | F51: =F26+F38+F45+F49 -> 70.86

Sheet Transporte Cap 50-70
C2: MEMÓRIA DE CÁLCULO
C7: REAJUSTE | F7: TIPOLOGIA DO MATERIAL | I7: CIMENTOS ASFÁLTICOS CAP-50-70 | M7: IMPOSTOS | N7: COFINS | O7: 0.0065 | P7: 0.0065
G8: ÍNDICE DE PAVIMENTAÇÃO DNIT | H8: 2014-07-01 | I8: ÍNDICE INICIAL | J8: 270.237 | N8: PIS | O8: 0.03 | P8: 0.03 | T8: LEGENDA | AC8: As empresas tributadas pelo Lucro Presumido pagam 0,65% de PIS e 3% de COFINS
H9: 2025-07-01 | I9: ÍNDICE FINAL | J9: 587.477 | N9: ICMS | O9: 0.2 | P9: 0.2 | Q9: =1-(O9/1) -> 0.8 | R9: =1-(P9/1) -> 0.8 | S9: =1-(Q9/1) -> 0.2 | T9: ENTRADA DE DADOS | AC9: As empresas tributadas pelo Lucro Real pagam 1,65% de PIS e 7,60% de COFINS
G10: Data ANP | H10: 2025-07-01
C11: DATA-BASE | D11: PRODUTOS | E11: LOCALIDADES | J11: CUSTO ANP (R$/Kg) | L11: CUSTO ANP | M11: IMPOSTOS DO PRODUTO | N11: CUSTO DO PRODUTO COM IMPOSTOS | O11: DMT's | P11: DMT's FLUVIAL | Q11: CUSTO DO TRANSPORTE RODOVIA PAVIMENTADA | R11: CUSTO DO TRANSPORTE FLUVIAL | S11: CUSTO DO TRANSPORTE TOTAL | T11: ICMS | U11: ATUALIZAÇÃO DO CUSTO DE TRANSPORTE | V11: CUSTO DO TRANSPORTE RODOVIA PAVIMENTADA COM IMPOSTOS E ATUALIZAÇÃO MONETÁRIA | W11: PEDÁGIO | Y11: TOTAL TRANSPORTE | Z11: AQUISIÇÃO DO PRODUTO | AA11: TOTAL GERAL ( TRANSP + AQUISIÇÃO) | AC11: 1 | AD11: 2 | AE11: 3
C12: =H9 -> 2025-07-01 | E12: REFINARIAS | F12: ENDEREÇO | G12: ESTADO | H12: CIDADE | I12: DESTINO | J12: ESTADO | K12: REGIÃO | L12: R$/t | M12: R$/t | N12: R$/t | O12: KM | P12: KM | Q12: R$/t | R12: R$/t | S12: R$/t | T12: R$/t | U12: R$/t | V12: R$/t | W12: CUSTO | X12: R$/t | Y12: R$/t | Z12: R$/t | AA12: R$/t | AC12: TOTAL GERAL ( TRANSP + AQUISIÇÃO) | AD12: TOTAL TRANSPORTE | AE12: AQUISIÇÃO DO PRODUTO
B13: =AA13 -> 5067.74078 | C13: 1 | D13: =I7 -> CIMENTOS ASFÁLTICOS CAP-50-70 | E13: Refinaria Abreu e Lima | F13: Rodovia PE 60, Km 10 - Ipojuca - PE CEP:55590-000 | G13: Pernambuco | H13: IPOJUCA - PE | I13: Mossoró - RN | J13: =VLOOKUP('Transporte Cap 50-70'!G13,OFFSET('ANP ESTADO'!$A$1,MATCH('Transporte Cap 50-70'!$I$7,'ANP ESTADO'!B:B,0)+MATCH('Transporte Cap 50-70'!$H$10,OFFSET('ANP ESTADO'!$A$1,MATCH('Transporte Cap 50-70'!$I$7,'ANP ESTADO'!B:B,0),0,100000,1),0),2,100000,2),2,FALSE) -> - | K13: =VLOOKUP($H$10,OFFSET('ANP REGIÃO'!$A$9,MATCH('Transporte Cap 50-70'!$I$7,'ANP REGIÃO'!A:A,0),1,10000,10000),MATCH('Transporte Cap 50-70'!AH13,'ANP REGIÃO'!$B$8:$G$8,0),FALSE) -> 3.53904078 | L13: =IF(AND(J13="-",K13="-"),"",IF(AND(J13<>0,K13="-"),J13*1000,IF(AND(J13="-",K13<>0),K13*1000,IF(AND(J13<>0,K13<>0),J13*1000,"")))) -> 3539.04078 | M13: =ROUND(((L13/(1-$O$7-$O$8-$O$9+($O$8+$O$7)*$O$9)-L13)),2) -> 1052.35 | N13: =L13+M13 -> 4591.39078 | O13: 586.4 | Q13: =ROUND((26.939+0.253*O13),2) -> 175.3 | S13: =Q13+R13 -> 175.3 | T13: =TRUNC(S13*($O$9/(1-$O$9)),2) -> 43.82 | U13: =TRUNC(IF($J$8="","",(($J$9-$J$8)/$J$8)*(S13+T13)),2) -> 257.23 | V13: =S13+T13+U13 -> 476.35 | W13: 0 | X13: =EVEN(' CONSUMO DE MAT. B TOTAL'!$P$13*2/28)*W13/' CONSUMO DE MAT. B TOTAL'!$P$13 -> 0 | Y13: =IF(AND(Q13="",T13=""),"",V13+X13) -> 476.35 | Z13: =IF(OR(L13="",M13=""),"",L13+M13) -> 4591.39078 | AA13: =IF(OR(Y13="",Z13=""),"",Y13+Z13) -> 5067.74078 | AC13: =AA13 -> 5067.74078 | AD13: =Y13 -> 476.35 | AE13: =Z13 -> 4591.39078 | AH13: =IF(OR(G13=$D$52,G13=$D$53,G13=$D$55,G13=$D$61,G13=$D$45,G13=$D$41,G13=$D$37,G13=$D$50,G13=$D$40),"NORDESTE",IF(OR(G13=$D$36,G13=$D$38,G13=$D$39,G13=$D$49,G13=$D$57,G13=$D$58,G13=$D$62),"NORTE",IF(OR(G13=$D$42,G13=$D$44,G13=$D$46,G13=$D$47),"CENTRO-OESTE",IF(OR(G13=$D$60,G13=$D$54,G13=$D$48,G13=$D$43),"SUDESTE",IF(OR(G13=$D$59,G13=$D$51,G13=$D$56),"SUL",""))))) -> NORDESTE
B14: =AA14 -> 8406.359525 | C14: 2 | E14: ISAC SAABA | F14: Rua Rio Quixito, 1, Vila Buriti - Distrito Industrial - Manaus - AM CEP: 69072-070 | G14: Amazonas | H14: MANAUS-AM | I14: Mossoró - RN | J14: =VLOOKUP('Transporte Cap 50-70'!G14,OFFSET('ANP ESTADO'!$A$1,MATCH('Transporte Cap 50-70'!$I$7,'ANP ESTADO'!B:B,0)+MATCH('Transporte Cap 50-70'!$H$10,OFFSET('ANP ESTADO'!$A$1,MATCH('Transporte Cap 50-70'!$I$7,'ANP ESTADO'!B:B,0),0,100000,1),0),2,100000,2),2,FALSE) -> 4.687419525 | K14: =VLOOKUP($H$10,OFFSET('ANP REGIÃO'!$A$9,MATCH('Transporte Cap 50-70'!$I$7,'ANP REGIÃO'!A:A,0),1,10000,10000),MATCH('Transporte Cap 50-70'!AH14,'ANP REGIÃO'!$B$8:$G$8,0),FALSE) -> 3.962771034 | L14: =IF(AND(J14="-",K14=""),"",IF(AND(J14<>0,K14=""),J14*1000,IF(AND(J14="-",K14<>0),K14*1000,IF(AND(J14<>0,K14<>0),J14*1000,"")))) -> 4687.419525 | M14: =ROUND(((L14/(1-$O$7-$O$8-$O$9+($O$8+$O$7)*$O$9)-L14)),2) -> 1393.82 | N14: =L14+M14 -> 6081.239525 | O14: 3275.5 | Q14: =ROUND((26.939+0.253*O14),2) -> 855.64 | S14: =Q14+R14 -> 855.64 | T14: =TRUNC(S14*($O$9/(1-$O$9)),2) -> 213.91 | U14: =TRUNC(IF($J$8="","",(($J$9-$J$8)/$J$8)*(S14+T14)),2) -> 1255.57 | V14: =S14+T14+U14 -> 2325.12 | W14: 0 | X14: =EVEN(' CONSUMO DE MAT. B TOTAL'!$P$13*2/28)*W14/' CONSUMO DE MAT. B TOTAL'!$P$13 -> 0 | Y14: =IF(AND(Q14="",T14=""),"",V14+X14) -> 2325.12 | Z14: =IF(OR(L14="",M14=""),"",L14+M14) -> 6081.239525 | AA14: =IF(OR(Y14="",Z14=""),"",Y14+Z14) -> 8406.359525 | AC14: =AA14 -> 8406.359525 | AD14: =Y14 -> 2325.12 | AE14: =Z14 -> 6081.239525 | AH14: =IF(OR(G14=$D$52,G14=$D$53,G14=$D$55,G14=$D$61,G14=$D$45,G14=$D$41,G14=$D$37,G14=$D$50,G14=$D$40),"NORDESTE",IF(OR(G14=$D$36,G14=$D$38,G14=$D$39,G14=$D$49,G14=$D$57,G14=$D$58,G14=$D$62),"NORTE",IF(OR(G14=$D$42,G14=$D$44,G14=$D$46,G14=$D$47),"CENTRO-OESTE",IF(OR(G14=$D$60,G14=$D$54,G14=$D$48,G14=$D$43),"SUDESTE",IF(OR(G14=$D$59,G14=$D$51,G14=$D$56),"SUL",""))))) -> NORTE
B15: =AA15 -> 4775.97078 | C15: 3 | E15: Refinaria Potiguar Clara Camarão | F15: Rodovia RN 221, KM 25 - Guamaré - RN CEP:59598-000 | G15: Rio Grande do Norte | H15: GUAMARÉ - RN | I15: Mossoró - RN | J15: =VLOOKUP('Transporte Cap 50-70'!G15,OFFSET('ANP ESTADO'!$A$1,MATCH('Transporte Cap 50-70'!$I$7,'ANP ESTADO'!B:B,0)+MATCH('Transporte Cap 50-70'!$H$10,OFFSET('ANP ESTADO'!$A$1,MATCH('Transporte Cap 50-70'!$I$7,'ANP ESTADO'!B:B,0),0,100000,1),0),2,100000,2),2,FALSE) -> - | K15: =VLOOKUP($H$10,OFFSET('ANP REGIÃO'!$A$9,MATCH('Transporte Cap 50-70'!$I$7,'ANP REGIÃO'!A:A,0),1,10000,10000),MATCH('Transporte Cap 50-70'!AH15,'ANP REGIÃO'!$B$8:$G$8,0),FALSE) -> 3.53904078 | L15: =IF(AND(J15="-",K15=""),"",IF(AND(J15<>0,K15=""),J15*1000,IF(AND(J15="-",K15<>0),K15*1000,IF(AND(J15<>0,K15<>0),J15*1000,"")))) -> 3539.04078 | M15: 1052.35 | N15: =L15+M15 -> 4591.39078 | O15: 162 | Q15: =ROUND((26.939+0.253*O15),2) -> 67.93 | S15: 67.93 | T15: 16.98 | U15: 99.67 | V15: 184.58 | W15: 0 | X15: =EVEN(' CONSUMO DE MAT. B TOTAL'!$P$13*2/28)*W15/' CONSUMO DE MAT. B TOTAL'!$P$13 -> 0 | Y15: 184.58 | Z15: 4591.39078 | AA15: =IF(OR(Y15="",Z15=""),"",Y15+Z15) -> 4775.97078 | AC15: =AA15 -> 4775.97078 | AD15: =Y15 -> 184.58 | AE15: =Z15 -> 4591.39078 | AH15: =IF(OR(G15=$D$52,G15=$D$53,G15=$D$55,G15=$D$61,G15=$D$45,G15=$D$41,G15=$D$37,G15=$D$50,G15=$D$40),"NORDESTE",IF(OR(G15=$D$36,G15=$D$38,G15=$D$39,G15=$D$49,G15=$D$57,G15=$D$58,G15=$D$62),"NORTE",IF(OR(G15=$D$42,G15=$D$44,G15=$D$46,G15=$D$47),"CENTRO-OESTE",IF(OR(G15=$D$60,G15=$D$54,G15=$D$48,G15=$D$43),"SUDESTE",IF(OR(G15=$D$59,G15=$D$51,G15=$D$56),"SUL",""))))) -> NORDESTE
B16: 5408.024408 | C16: 4 | E16: Refinaria Landulpho Alves (RLAM) | F16: Rodovia BA 523, KM 4 – Mataripe São Francisco do Conde - BA CEP:43900-000 | G16: Bahia | H16: SÃO FRANCISCO DO CONDE - BA | I16: Mossoró - RN | J16: =VLOOKUP('Transporte Cap 50-70'!G16,OFFSET('ANP ESTADO'!$A$1,MATCH('Transporte Cap 50-70'!$I$7,'ANP ESTADO'!B:B,0)+MATCH('Transporte Cap 50-70'!$H$10,OFFSET('ANP ESTADO'!$A$1,MATCH('Transporte Cap 50-70'!$I$7,'ANP ESTADO'!B:B,0),0,100000,1),0),2,100000,2),2,FALSE) -> 3.580963906 | K16: =VLOOKUP($H$10,OFFSET('ANP REGIÃO'!$A$9,MATCH('Transporte Cap 50-70'!$I$7,'ANP REGIÃO'!A:A,0),1,10000,10000),MATCH('Transporte Cap 50-70'!AH16,'ANP REGIÃO'!$B$8:$G$8,0),FALSE) -> 3.53904078 | L16: 3580.963906 | M16: 1064.81 | N16: 4645.773906 | O16: 1000 | Q16: =ROUND((26.939+0.253*O16),2) -> 279.94 | S16: 279.94 | T16: 69.98 | U16: 410.78 | V16: 760.7 | W16: 21 | X16: =EVEN(' CONSUMO DE MAT. B TOTAL'!$P$13*2/28)*W16/' CONSUMO DE MAT. B TOTAL'!$P$13 -> 1.550502067 | Y16: 762.2505021 | Z16: 4645.773906 | AA16: 5408.024408 | AC16: 5408.024408 | AD16: 762.2505021 | AE16: 4645.773906 | AH16: NORDESTE
A17: 2403 | B17: 4762.576243 | C17: 5 | E17: Refinaria Lubrificantes e Derivados do Nordeste (Lubnor) | F17: Av. Leite Barbosa, s/nº - Mucuripe Fortaleza - Ceará CEP:60180-420 | G17: Ceará | H17: FORTALEZA - CE | I17: Mossoró - RN | J17: =VLOOKUP('Transporte Cap 50-70'!G17,OFFSET('ANP ESTADO'!$A$1,MATCH('Transporte Cap 50-70'!$I$7,'ANP ESTADO'!B:B,0)+MATCH('Transporte Cap 50-70'!$H$10,OFFSET('ANP ESTADO'!$A$1,MATCH('Transporte Cap 50-70'!$I$7,'ANP ESTADO'!B:B,0),0,100000,1),0),2,100000,2),2,FALSE) -> 3.487986243 | K17: =VLOOKUP($H$10,OFFSET('ANP REGIÃO'!$A$9,MATCH('Transporte Cap 50-70'!$I$7,'ANP REGIÃO'!A:A,0),1,10000,10000),MATCH('Transporte Cap 50-70'!AH17,'ANP REGIÃO'!$B$8:$G$8,0),FALSE) -> 3.53904078 | L17: =IF(AND(J17="-",K17=""),"",IF(AND(J17<>0,K17=""),J17*1000,IF(AND(J17="-",K17<>0),K17*1000,IF(AND(J17<>0,K17<>0),J17*1000,"")))) -> 3487.986243 | M17: 1037.16 | N17: 4525.146243 | O17: 238.9 | Q17: 87.38 | S17: 87.38 | T17: 21.84 | U17: 128.21 | V17: 237.43 | W17: 0 | X17: =EVEN(' CONSUMO DE MAT. B TOTAL'!$P$13*2/28)*W17/' CONSUMO DE MAT. B TOTAL'!$P$13 -> 0 | Y17: 237.43 | Z17: 4525.146243 | AA17: 4762.576243 | AC17: 4762.576243 | AD17: 237.43 | AE17: 4525.146243 | AH17: NORDESTE
B18: 6588.871935 | C18: 6 | E18: Refinaria Capuava (Recap) | F18: Av. Alberto Soares Sampaio, 2122-A Capuava – Mauá - SP | G18: São Paulo | H18: MAUÁ - SP | I18: Mossoró - RN | J18: =VLOOKUP('Transporte Cap 50-70'!G18,OFFSET('ANP ESTADO'!$A$1,MATCH('Transporte Cap 50-70'!$I$7,'ANP ESTADO'!B:B,0)+MATCH('Transporte Cap 50-70'!$H$10,OFFSET('ANP ESTADO'!$A$1,MATCH('Transporte Cap 50-70'!$I$7,'ANP ESTADO'!B:B,0),0,100000,1),0),2,100000,2),2,FALSE) -> 3.543552803 | K18: =VLOOKUP($H$10,OFFSET('ANP REGIÃO'!$A$9,MATCH('Transporte Cap 50-70'!$I$7,'ANP REGIÃO'!A:A,0),1,10000,10000),MATCH('Transporte Cap 50-70'!AH18,'ANP REGIÃO'!$B$8:$G$8,0),FALSE) -> 3.660438996 | L18: 3543.552803 | M18: 1053.69 | N18: 4597.242803 | O18: 2755.8 | Q18: 724.16 | S18: 724.16 | T18: 181.04 | U18: 1062.64 | V18: 1967.84 | W18: 322.2 | X18: =EVEN(' CONSUMO DE MAT. B TOTAL'!$P$13*2/28)*W18/' CONSUMO DE MAT. B TOTAL'!$P$13 -> 23.78913172 | Y18: 1991.629132 | Z18: 4597.242803 | AA18: 6588.871935 | AC18: 6588.871935 | AD18: 1991.629132 | AE18: 4597.242803 | AH18: SUDESTE
B19: 6359.185204 | C19: 7 | E19: Refinaria Duque de Caxias (Reduc) | F19: Rodovia Washington Luiz, km 113,7 Campos Elíseos – Duque de Caxias - RJ CEP:25213-005 | G19: Rio de Janeiro | H19: DUQUE DE CAXIAS - RJ | I19: Mossoró - RN | J19: =VLOOKUP('Transporte Cap 50-70'!G19,OFFSET('ANP ESTADO'!$A$1,MATCH('Transporte Cap 50-70'!$I$7,'ANP ESTADO'!B:B,0)+MATCH('Transporte Cap 50-70'!$H$10,OFFSET('ANP ESTADO'!$A$1,MATCH('Transporte Cap 50-70'!$I$7,'ANP ESTADO'!B:B,0),0,100000,1),0),2,100000,2),2,FALSE) -> 3.534843148 | K19: =VLOOKUP($H$10,OFFSET('ANP REGIÃO'!$A$9,MATCH('Transporte Cap 50-70'!$I$7,'ANP REGIÃO'!A:A,0),1,10000,10000),MATCH('Transporte Cap 50-70'!AH19,'ANP REGIÃO'!$B$8:$G$8,0),FALSE) -> 3.660438996 | L19: 3534.843148 | M19: 1051.1 | N19: 4585.943148 | O19: 2412.2 | Q19: 637.23 | S19: 637.23 | T19: 159.3 | U19: 935.07 | V19: 1731.6 | W19: 564 | X19: =EVEN(' CONSUMO DE MAT. B TOTAL'!$P$13*2/28)*W19/' CONSUMO DE MAT. B TOTAL'!$P$13 -> 41.64205552 | Y19: 1773.242056 | Z19: 4585.943148 | AA19: 6359.185204 | AC19: 6359.185204 | AD19: 1773.242056 | AE19: 4585.943148 | AH19: SUDESTE
B20: 7719.881508 | C20: 8 | E20: Refinaria Alberto Pasqualini (Refap) | F20: Avenida Getúlio Vargas, 11001 - Bairro Brigadeira Canoas - RS - Brasil CEP:92420-221 | G20: Rio Grande do Sul | H20: CANOAS - RS | I20: Mossoró - RN | J20: =VLOOKUP('Transporte Cap 50-70'!G20,OFFSET('ANP ESTADO'!$A$1,MATCH('Transporte Cap 50-70'!$I$7,'ANP ESTADO'!B:B,0)+MATCH('Transporte Cap 50-70'!$H$10,OFFSET('ANP ESTADO'!$A$1,MATCH('Transporte Cap 50-70'!$I$7,'ANP ESTADO'!B:B,0),0,100000,1),0),2,100000,2),2,FALSE) -> 3.801895702 | K20: =VLOOKUP($H$10,OFFSET('ANP REGIÃO'!$A$9,MATCH('Transporte Cap 50-70'!$I$7,'ANP REGIÃO'!A:A,0),1,10000,10000),MATCH('Transporte Cap 50-70'!AH20,'ANP REGIÃO'!$B$8:$G$8,0),FALSE) -> 3.75274843 | L20: 3801.895702 | M20: 1130.51 | N20: 4932.405702 | O20: 3832.1 | Q20: 996.46 | S20: 996.46 | T20: 249.11 | U20: 1462.21 | V20: 2707.78 | W20: 1079.4 | X20: =EVEN(' CONSUMO DE MAT. B TOTAL'!$P$13*2/28)*W20/' CONSUMO DE MAT. B TOTAL'!$P$13 -> 79.69580626 | Y20: 2787.475806 | Z20: 4932.405702 | AA20: 7719.881508 | AC20: 7719.881508 | AD20: 2787.475806 | AE20: 4932.405702 | AH20: SUL
B21: 7244.540714 | C21: 9 | E21: Unidade de Industrialização do Xisto (SIX) | F21: Rodovia do Xisto, BR 476, km 153 São Mateus do Sul – PR CEP 83900-000 | G21: Paraná | H21: SÃO MATEUS DO SUL - PR | I21: Mossoró - RN | J21: =VLOOKUP('Transporte Cap 50-70'!G21,OFFSET('ANP ESTADO'!$A$1,MATCH('Transporte Cap 50-70'!$I$7,'ANP ESTADO'!B:B,0)+MATCH('Transporte Cap 50-70'!$H$10,OFFSET('ANP ESTADO'!$A$1,MATCH('Transporte Cap 50-70'!$I$7,'ANP ESTADO'!B:B,0),0,100000,1),0),2,100000,2),2,FALSE) -> 3.738764648 | K21: =VLOOKUP($H$10,OFFSET('ANP REGIÃO'!$A$9,MATCH('Transporte Cap 50-70'!$I$7,'ANP REGIÃO'!A:A,0),1,10000,10000),MATCH('Transporte Cap 50-70'!AH21,'ANP REGIÃO'!$B$8:$G$8,0),FALSE) -> 3.75274843 | L21: 3738.764648 | M21: 1111.73 | N21: 4850.494648 | O21: 3303.6 | Q21: 862.75 | S21: 862.75 | T21: 215.68 | U21: 1266 | V21: 2344.43 | W21: 672 | X21: =EVEN(' CONSUMO DE MAT. B TOTAL'!$P$13*2/28)*W21/' CONSUMO DE MAT. B TOTAL'!$P$13 -> 49.61606615 | Y21: 2394.046066 | Z21: 4850.494648 | AA21: 7244.540714 | AC21: 7244.540714 | AD21: 2394.046066 | AE21: 4850.494648 | AH21: SUL
B22: 6501.590992 | C22: 10 | E22: Refinaria Gabriel Passos (Regap) | F22: Av. Refinaria Gabriel Passos, 690 Distrito Industrial Paulo Camilo Sul Betim - MG CEP:32669-205 | G22: Minas Gerais | H22: BETIM - MG | I22: Mossoró - RN | J22: =VLOOKUP('Transporte Cap 50-70'!G22,OFFSET('ANP ESTADO'!$A$1,MATCH('Transporte Cap 50-70'!$I$7,'ANP ESTADO'!B:B,0)+MATCH('Transporte Cap 50-70'!$H$10,OFFSET('ANP ESTADO'!$A$1,MATCH('Transporte Cap 50-70'!$I$7,'ANP ESTADO'!B:B,0),0,100000,1),0),2,100000,2),2,FALSE) -> 3.789559474 | K22: =VLOOKUP($H$10,OFFSET('ANP REGIÃO'!$A$9,MATCH('Transporte Cap 50-70'!$I$7,'ANP REGIÃO'!A:A,0),1,10000,10000),MATCH('Transporte Cap 50-70'!AH22,'ANP REGIÃO'!$B$8:$G$8,0),FALSE) -> 3.660438996 | L22: 3789.559474 | M22: 1126.84 | N22: 4916.399474 | O22: 2179.6 | Q22: 578.38 | S22: 578.38 | T22: 144.59 | U22: 848.71 | V22: 1571.68 | W22: 183 | X22: =EVEN(' CONSUMO DE MAT. B TOTAL'!$P$13*2/28)*W22/' CONSUMO DE MAT. B TOTAL'!$P$13 -> 13.51151802 | Y22: 1585.191518 | Z22: 4916.399474 | AA22: =IF(OR(Y22="",Z22=""),"",Y22+Z22) -> 6501.590992 | AC22: 6501.590992 | AD22: 1585.191518 | AE22: 4916.399474 | AH22: SUDESTE
B23: 7151.166207 | C23: 11 | E23: Refinaria Presidente Getúlio Vargas (Repar) | F23: Rodovia do Xisto, BR 476, km 16 Araucária - PR CEP:83707-440 | G23: Paraná | H23: ARAUCÁRIA - PR | I23: Mossoró - RN | J23: =VLOOKUP('Transporte Cap 50-70'!G23,OFFSET('ANP ESTADO'!$A$1,MATCH('Transporte Cap 50-70'!$I$7,'ANP ESTADO'!B:B,0)+MATCH('Transporte Cap 50-70'!$H$10,OFFSET('ANP ESTADO'!$A$1,MATCH('Transporte Cap 50-70'!$I$7,'ANP ESTADO'!B:B,0),0,100000,1),0),2,100000,2),2,FALSE) -> 3.738764648 | K23: =VLOOKUP($H$10,OFFSET('ANP REGIÃO'!$A$9,MATCH('Transporte Cap 50-70'!$I$7,'ANP REGIÃO'!A:A,0),1,10000,10000),MATCH('Transporte Cap 50-70'!AH23,'ANP REGIÃO'!$B$8:$G$8,0),FALSE) -> 3.75274843 | L23: 3738.764648 | M23: 1111.73 | N23: 4850.494648 | O23: 3175.2 | Q23: 830.26 | S23: 830.26 | T23: 207.56 | U23: 1218.33 | V23: 2256.15 | W23: 603 | X23: =EVEN(' CONSUMO DE MAT. B TOTAL'!$P$13*2/28)*W23/' CONSUMO DE MAT. B TOTAL'!$P$13 -> 44.52155936 | Y23: 2300.671559 | Z23: 4850.494648 | AA23: 7151.166207 | AC23: 7151.166207 | AD23: 2300.671559 | AE23: 4850.494648 | AH23: SUL
B24: 6616.501935 | C24: 12 | E24: Refinaria Presidente Bernardes (RPBC) | F24: Av. 9 de abril, 777 - Jardim das Indústrias Cubatão - SP CEP:11505-000 | G24: São Paulo | H24: CUBATÃO - SP | I24: Mossoró - RN | J24: =VLOOKUP('Transporte Cap 50-70'!G24,OFFSET('ANP ESTADO'!$A$1,MATCH('Transporte Cap 50-70'!$I$7,'ANP ESTADO'!B:B,0)+MATCH('Transporte Cap 50-70'!$H$10,OFFSET('ANP ESTADO'!$A$1,MATCH('Transporte Cap 50-70'!$I$7,'ANP ESTADO'!B:B,0),0,100000,1),0),2,100000,2),2,FALSE) -> 3.543552803 | K24: =VLOOKUP($H$10,OFFSET('ANP REGIÃO'!$A$9,MATCH('Transporte Cap 50-70'!$I$7,'ANP REGIÃO'!A:A,0),1,10000,10000),MATCH('Transporte Cap 50-70'!AH24,'ANP REGIÃO'!$B$8:$G$8,0),FALSE) -> 3.660438996 | L24: 3543.552803 | M24: 1053.69 | N24: 4597.242803 | O24: 2796 | Q24: 734.33 | S24: 734.33 | T24: 183.58 | U24: 1077.56 | V24: 1995.47 | W24: 322.2 | X24: =EVEN(' CONSUMO DE MAT. B TOTAL'!$P$13*2/28)*W24/' CONSUMO DE MAT. B TOTAL'!$P$13 -> 23.78913172 | Y24: 2019.259132 | Z24: 4597.242803 | AA24: 6616.501935 | AC24: 6616.501935 | AD24: 2019.259132 | AE24: 4597.242803 | AH24: SUDESTE
B25: 6614.497257 | C25: 13 | E25: Refinaria de Paulínia (Replan) | F25: Rodovia SP 332 - Km. 130 Bonfim - Paulínia – SP CEP:13140-000 | G25: São Paulo | H25: PAULÍNIA - SP | I25: Mossoró - RN | J25: =VLOOKUP('Transporte Cap 50-70'!G25,OFFSET('ANP ESTADO'!$A$1,MATCH('Transporte Cap 50-70'!$I$7,'ANP ESTADO'!B:B,0)+MATCH('Transporte Cap 50-70'!$H$10,OFFSET('ANP ESTADO'!$A$1,MATCH('Transporte Cap 50-70'!$I$7,'ANP ESTADO'!B:B,0),0,100000,1),0),2,100000,2),2,FALSE) -> 3.543552803 | K25: =VLOOKUP($H$10,OFFSET('ANP REGIÃO'!$A$9,MATCH('Transporte Cap 50-70'!$I$7,'ANP REGIÃO'!A:A,0),1,10000,10000),MATCH('Transporte Cap 50-70'!AH25,'ANP REGIÃO'!$B$8:$G$8,0),FALSE) -> 3.660438996 | L25: 3543.552803 | M25: 1053.69 | N25: 4597.242803 | O25: 2769.2 | Q25: 727.55 | S25: 727.55 | T25: 181.88 | U25: 1067.6 | V25: 1977.03 | W25: 544.8 | X25: =EVEN(' CONSUMO DE MAT. B TOTAL'!$P$13*2/28)*W25/' CONSUMO DE MAT. B TOTAL'!$P$13 -> 40.22445363 | Y25: 2017.254454 | Z25: 4597.242803 | AA25: 6614.497257 | AC25: 6614.497257 | AD25: 2017.254454 | AE25: 4597.242803 | AH25: SUDESTE
B26: 6541.206867 | C26: 14 | E26: Refinaria Henrique Lage (Revap) | F26: Rodovia Presidente Dutra, KM 143, S/N Bairro Jardim Diamante - São José dos Campos – SP CEP:12223-900 | G26: São Paulo | H26: SÃO JOSÉ DOS CAMPOS - SP | I26: Mossoró - RN | J26: =VLOOKUP('Transporte Cap 50-70'!G26,OFFSET('ANP ESTADO'!$A$1,MATCH('Transporte Cap 50-70'!$I$7,'ANP ESTADO'!B:B,0)+MATCH('Transporte Cap 50-70'!$H$10,OFFSET('ANP ESTADO'!$A$1,MATCH('Transporte Cap 50-70'!$I$7,'ANP ESTADO'!B:B,0),0,100000,1),0),2,100000,2),2,FALSE) -> 3.543552803 | K26: =VLOOKUP($H$10,OFFSET('ANP REGIÃO'!$A$9,MATCH('Transporte Cap 50-70'!$I$7,'ANP REGIÃO'!A:A,0),1,10000,10000),MATCH('Transporte Cap 50-70'!AH26,'ANP REGIÃO'!$B$8:$G$8,0),FALSE) -> 3.660438996 | L26: 3543.552803 | M26: 1053.69 | N26: 4597.242803 | O26: 2651.5 | Q26: 697.77 | S26: 697.77 | T26: 174.44 | U26: 1023.91 | V26: 1896.12 | W26: 648 | X26: =EVEN(' CONSUMO DE MAT. B TOTAL'!$P$13*2/28)*W26/' CONSUMO DE MAT. B TOTAL'!$P$13 -> 47.84406379 | Y26: 1943.964064 | Z26: 4597.242803 | AA26: 6541.206867 | AC26: 6541.206867 | AD26: 1943.964064 | AE26: 4597.242803 | AH26: SUDESTE
D36: Acre
D37: Alagoas
D38: Amapá
D39: Amazonas
D40: Bahia
D41: Ceará
D42: Distrito Federal
D43: Espírito Santo
D44: Goiás
D45: Maranhão
D46: Mato Grosso
D47: Mato Grosso do Sul
D48: Minas Gerais
D49: Pará
D50: Paraíba
D51: Paraná
D52: Pernambuco
D53: Piauí
D54: Rio de Janeiro
D55: Rio Grande do Norte
D56: Rio Grande do Sul
D57: Rondônia
D58: Roraima
D59: Santa Catarina
D60: São Paulo
D61: Sergipe
D62: Tocantins
D66: ASFALTOS DILUÍDOS CM-30
D67: ASFALTOS DILUÍDOS CM-70
D68: ASFALTOS DILUÍDOS CR-250
D69: ASFALTOS DILUÍDOS CR-70
D70: CAP MODIFICADO POR BORRACHA DE PNEU AB22
D71: CAP MODIFICADO POR BORRACHA DE PNEU AB8
D72: CAP MODIFICADO POR POLÍMERO 55-75-E
D73: CAP MODIFICADO POR POLÍMERO 60-85-E
D74: CAP MODIFICADO POR POLÍMERO 65-90-E
D75: CIMENTOS ASFÁLTICOS CAP-150-200
D76: CIMENTOS ASFÁLTICOS CAP-30-45
D77: CIMENTOS ASFÁLTICOS CAP-50-70
D78: CIMENTOS ASFÁLTICOS CAP-85-100
D79: EMULSÃO ASFÁLTICA CATIÔNICA DE RUPTURA CONTROLADA PARA SERVIÇO DE LAMA ASFÁLTICA
D80: EMULSÃO ASFÁLTICA DE RUPTURA LENTA CATIÔNICA PARA SERVIÇO DE LAMA ASFÁLTICA
D81: EMULSÃO ASFÁLTICA DE RUPTURA LENTA DE CARGA NEUTRA PARA SERVIÇO DE LAMA ASFÁLTICA
D82: EMULSÃO ASFÁLTICA PARA SERVIÇO DE IMPRIMAÇÃO
D83: EMULSÕES ASF. MOD. POR POLÍMEROS RC1C-E
D84: EMULSÕES ASF. MOD. POR POLÍMEROS RL1C-E
D85: EMULSÕES ASF. MOD. POR POLÍMEROS RM1C-E
D86: EMULSÕES ASF. MOD. POR POLÍMEROS RR1C-E
D87: EMULSÕES ASF. MOD. POR POLÍMEROS RR2C-E
D88: EMULSÕES ASFÁLTICAS RL-1C
D89: EMULSÕES ASFÁLTICAS RM-1C
D90: EMULSÕES ASFÁLTICAS RM-2C
D91: EMULSÕES ASFÁLTICAS RR-1C
D92: EMULSÕES ASFÁLTICAS RR-2C

Sheet Transporte EAI
C2: MEMÓRIA DE CÁLCULO
C7: REAJUSTE | F7: TIPOLOGIA DO MATERIAL | I7: EMULSÃO ASFÁLTICA PARA SERVIÇO DE IMPRIMAÇÃO | M7: IMPOSTOS | N7: COFINS | O7: 0.0065 | P7: 0.0065
G8: ÍNDICE DE PAVIMENTAÇÃO DNIT | H8: 2014-07-01 | I8: ÍNDICE INICIAL | J8: 270.237 | N8: PIS | O8: 0.03 | P8: 0.03 | T8: LEGENDA | AC8: As empresas tributadas pelo Lucro Presumido pagam 0,65% de PIS e 3% de COFINS
H9: ='Transporte Cap 50-70'!H9 -> 2025-07-01 | I9: ÍNDICE FINAL | J9: ='Transporte Cap 50-70'!J9 -> 587.477 | N9: ICMS | O9: 0.2 | P9: 0.2 | Q9: =1-(O9/1) -> 0.8 | R9: =1-(P9/1) -> 0.8 | S9: =1-(Q9/1) -> 0.2 | T9: ENTRADA DE DADOS | AC9: As empresas tributadas pelo Lucro Real pagam 1,65% de PIS e 7,60% de COFINS
G10: Data ANP | H10: 2025-07-01
C11: DATA-BASE | D11: PRODUTOS | E11: LOCALIDADES | J11: CUSTO ANP (R$/Kg) | L11: CUSTO ANP | M11: IMPOSTOS DO PRODUTO | N11: CUSTO DO PRODUTO COM IMPOSTOS | O11: DMT's | P11: DMT'S FLUVIAL | Q11: CUSTO DO TRANSPORTE RODOVIA PAVIMENTADA | R11: CUSTO DO TRANSPORTE FLUVIAL | S11: CUSTO DO TRANSPORTE TOTAL | T11: ICMS | U11: ATUALIZAÇÃO DO CUSTO DE TRANSPORTE | V11: CUSTO DO TRANSPORTE RODOVIA PAVIMENTADA COM IMPOSTOS E ATUALIZAÇÃO MONETÁRIA | W11: PEDÁGIO | Y11: TOTAL TRANSPORTE | Z11: AQUISIÇÃO DO PRODUTO | AA11: TOTAL GERAL ( TRANSP + AQUISIÇÃO) | AC11: 1 | AD11: 2 | AE11: 3
C12: =H9 -> 2025-07-01 | E12: REFINARIAS | F12: ENDEREÇO | G12: ESTADO | H12: CIDADE | I12: DESTINO | J12: ESTADO | K12: REGIÃO | L12: R$/t | M12: R$/t | N12: R$/t | O12: KM | P12: KM | Q12: R$/t | R12: R$/t | S12: R$/t | T12: R$/t | U12: R$/t | V12: R$/t | W12: CUSTO | X12: R$/t | Y12: R$/t | Z12: R$/t | AA12: R$/t | AC12: TOTAL GERAL ( TRANSP + AQUISIÇÃO) | AD12: TOTAL TRANSPORTE | AE12: AQUISIÇÃO DO PRODUTO
B13: =AA13 -> 5028.679693 | C13: 1 | D13: =I7 -> EMULSÃO ASFÁLTICA PARA SERVIÇO DE IMPRIMAÇÃO | E13: 'CENTRO OESTE ASFALTOS LTDA. | F13: SETOR DE INFLAMÁVEIS, S/N TRECHO 02 - LOTE 1.100 - GUARÁ - CEP:71225-000 | G13: Distrito Federal | H13: BRASÍLIA - DF | I13: Mossoró - RN | J13: =VLOOKUP(G13,OFFSET('ANP ESTADO'!$A$1,MATCH($I$7,'ANP ESTADO'!B:B,0)+MATCH($H$10,OFFSET('ANP ESTADO'!$A$1,MATCH($I$7,'ANP ESTADO'!B:B,0),0,100000,1),0),2,100000,2),2,FALSE) -> - | K13: =VLOOKUP($H$10,OFFSET('ANP REGIÃO'!$A$9,MATCH('Transporte EAI'!$I$7,'ANP REGIÃO'!A:A,0),1,10000,10000),MATCH('Transporte EAI'!AH13,'ANP REGIÃO'!$B$8:$G$8,0),FALSE) -> 2.623457098 | L13: =IF(AND(J13="-",K13="-"),"",IF(AND(J13<>0,K13="-"),J13*1000,IF(AND(J13="-",K13<>0),K13*1000,IF(AND(J13<>0,K13<>0),J13*1000,"")))) -> 2623.457098 | M13: =ROUND(((L13/(1-$O$7-$O$8-$O$9+($O$8+$O$7)*$O$9)-L13)),2) -> 780.09 | N13: =L13+M13 -> 3403.547098 | O13: 2254.7 | Q13: =ROUND((26.939+0.253*O13),2) -> 597.38 | S13: =Q13+R13 -> 597.38 | T13: =TRUNC(S13*($O$9/(1-$O$9)),2) -> 149.34 | U13: =TRUNC(IF($J$8="","",(($J$9-$J$8)/$J$8)*(S13+T13)),2) -> 876.59 | V13: =S13+T13+U13 -> 1623.31 | W13: 24.4 | X13: =EVEN('[203] CONSUMO DE MAT. B TOTAL'!$P$11*2/28)*W13/'[203] CONSUMO DE MAT. B TOTAL'!$P$11 -> 1.822595705 | Y13: =IF(AND(Q13="",T13=""),"",V13+X13) -> 1625.132596 | Z13: =IF(OR(L13="",M13=""),"",L13+M13) -> 3403.547098 | AA13: =IF(OR(Y13="",Z13=""),"",Y13+Z13) -> 5028.679693 | AC13: =AA13 -> 5028.679693 | AD13: =Y13 -> 1625.132596 | AE13: =Z13 -> 3403.547098 | AH13: =IF(OR(G13=$D$58,G13=$D$59,G13=$D$61,G13=$D$67,G13=$D$51,G13=$D$47,G13=$D$43,G13=$D$56,G13=$D$46),"NORDESTE",IF(OR(G13=$D$42,G13=$D$44,G13=$D$45,G13=$D$55,G13=$D$63,G13=$D$64,G13=$D$68),"NORTE",IF(OR(G13=$D$48,G13=$D$50,G13=$D$52,G13=$D$53),"CENTRO-OESTE",IF(OR(G13=$D$66,G13=$D$60,G13=$D$54,G13=$D$49),"SUDESTE",IF(OR(G13=$D$65,G13=$D$57,G13=$D$62),"SUL",""))))) -> CENTRO-OESTE
B14: =AA14 -> 4506.328895 | C14: 2 | E14: STRATURA ASFALTOS S/A | F14: AVENIDA PRESIDENTE WILSON, 08 - JUNDIAÍ - CEP:75115-100 | G14: Goiás | H14: ANÁPOLIS - GO | I14: Mossoró - RN | J14: =VLOOKUP(G14,OFFSET('ANP ESTADO'!$A$1,MATCH($I$7,'ANP ESTADO'!B:B,0)+MATCH($H$10,OFFSET('ANP ESTADO'!$A$1,MATCH($I$7,'ANP ESTADO'!B:B,0),0,100000,1),0),2,100000,2),2,FALSE) -> 2.167968083 | K14: =VLOOKUP($H$10,OFFSET('ANP REGIÃO'!$A$9,MATCH('Transporte EAI'!$I$7,'ANP REGIÃO'!A:A,0),1,10000,10000),MATCH('Transporte EAI'!AH14,'ANP REGIÃO'!$B$8:$G$8,0),FALSE) -> 2.623457098 | L14: =IF(AND(J14="-",K14="-"),"",IF(AND(J14<>0,K14="-"),J14*1000,IF(AND(J14="-",K14<>0),K14*1000,IF(AND(J14<>0,K14<>0),J14*1000,"")))) -> 2167.968083 | M14: =ROUND(((L14/(1-$O$7-$O$8-$O$9+($O$8+$O$7)*$O$9)-L14)),2) -> 644.65 | N14: =L14+M14 -> 2812.618083 | O14: 2355.6 | Q14: =ROUND((26.939+0.253*O14),2) -> 622.91 | S14: =Q14+R14 -> 622.91 | T14: =TRUNC(S14*($O$9/(1-$O$9)),2) -> 155.72 | U14: =TRUNC(IF($J$8="","",(($J$9-$J$8)/$J$8)*(S14+T14)),2) -> 914.05 | V14: =S14+T14+U14 -> 1692.68 | W14: 13.8 | X14: =EVEN('[203] CONSUMO DE MAT. B TOTAL'!$P$11*2/28)*W14/'[203] CONSUMO DE MAT. B TOTAL'!$P$11 -> 1.030812325 | Y14: 1693.710812 | Z14: 2812.618083 | AA14: =IF(OR(Y14="",Z14=""),"",Y14+Z14) -> 4506.328895 | AC14: =AA14 -> 4506.328895 | AD14: =Y14 -> 1693.710812 | AE14: 2812.618083 | AH14: =IF(OR(G14=$D$58,G14=$D$59,G14=$D$61,G14=$D$67,G14=$D$51,G14=$D$47,G14=$D$43,G14=$D$56,G14=$D$46),"NORDESTE",IF(OR(G14=$D$42,G14=$D$44,G14=$D$45,G14=$D$55,G14=$D$63,G14=$D$64,G14=$D$68),"NORTE",IF(OR(G14=$D$48,G14=$D$50,G14=$D$52,G14=$D$53),"CENTRO-OESTE",IF(OR(G14=$D$66,G14=$D$60,G14=$D$54,G14=$D$49),"SUDESTE",IF(OR(G14=$D$65,G14=$D$57,G14=$D$62),"SUL",""))))) -> CENTRO-OESTE
B15: 4558.116234 | C15: 3 | E15: DISTRIBUIDORA BRASILEIRA DE ASFALTO SA - DISBRAL | F15: VIA PRIMARIA 8, S/N QD-18, MODS. 24/47 - DAIAG - CEP:74980-970 | G15: Goiás | H15: APARECIDA DE GOIANIA - GO | I15: Mossoró - RN | J15: =VLOOKUP(G15,OFFSET('ANP ESTADO'!$A$1,MATCH($I$7,'ANP ESTADO'!B:B,0)+MATCH($H$10,OFFSET('ANP ESTADO'!$A$1,MATCH($I$7,'ANP ESTADO'!B:B,0),0,100000,1),0),2,100000,2),2,FALSE) -> 2.167968083 | K15: =VLOOKUP($H$10,OFFSET('ANP REGIÃO'!$A$9,MATCH('Transporte EAI'!$I$7,'ANP REGIÃO'!A:A,0),1,10000,10000),MATCH('Transporte EAI'!AH15,'ANP REGIÃO'!$B$8:$G$8,0),FALSE) -> 2.623457098 | L15: 2167.968083 | M15: 644.65 | N15: 2812.618083 | O15: 2424.6 | Q15: 640.36 | S15: 640.36 | T15: 160.09 | U15: 939.67 | V15: 1740.12 | W15: 72 | X15: =EVEN('[203] CONSUMO DE MAT. B TOTAL'!$P$11*2/28)*W15/'[203] CONSUMO DE MAT. B TOTAL'!$P$11 -> 5.378151261 | Y15: 1745.498151 | Z15: 2812.618083 | AA15: 4558.116234 | AC15: 4558.116234 | AD15: 1745.498151 | AE15: 2812.618083 | AH15: CENTRO-OESTE
A16: 2403 | B16: 4596.514021 | C16: 4 | E16: INDÚSTRIA NACIONAL DE ASFALTOS LTDA. | F16: VIA PRIMEIRA E SEGUNDA 3, S/N.º LOTES 01 A 10 - DISTRITO AGROINDUSTRIAL - CEP:75370-000 | G16: Goiás | H16: GOIANIRA - GO | I16: Mossoró - RN | J16: =VLOOKUP(G16,OFFSET('ANP ESTADO'!$A$1,MATCH($I$7,'ANP ESTADO'!B:B,0)+MATCH($H$10,OFFSET('ANP ESTADO'!$A$1,MATCH($I$7,'ANP ESTADO'!B:B,0),0,100000,1),0),2,100000,2),2,FALSE) -> 2.167968083 | K16: =VLOOKUP($H$10,OFFSET('ANP REGIÃO'!$A$9,MATCH('Transporte EAI'!$I$7,'ANP REGIÃO'!A:A,0),1,10000,10000),MATCH('Transporte EAI'!AH16,'ANP REGIÃO'!$B$8:$G$8,0),FALSE) -> 2.623457098 | L16: 2167.968083 | M16: 644.65 | N16: 2812.618083 | O16: 2472.5 | Q16: 652.48 | S16: 652.48 | T16: 163.12 | U16: 957.45 | V16: 1773.05 | W16: 145.2 | X16: =EVEN('[203] CONSUMO DE MAT. B TOTAL'!$P$11*2/28)*W16/'[203] CONSUMO DE MAT. B TOTAL'!$P$11 -> 10.84593838 | Y16: 1783.895938 | Z16: 2812.618083 | AA16: 4596.514021 | AC16: 4596.514021 | AD16: 1783.895938 | AE16: 2812.618083 | AH16: CENTRO-OESTE
B17: 4542.417708 | C17: 5 | E17: STRATURA ASFALTOS S/A | F17: RUA VICTOR RODRIGUES RESENDE, 333 - DISTRITO IND. DE UBERLÂNDIA - CEP:38405-440 | G17: Minas Gerais | H17: UBERLANDIA - MG | I17: Mossoró - RN | J17: =VLOOKUP(G17,OFFSET('ANP ESTADO'!$A$1,MATCH($I$7,'ANP ESTADO'!B:B,0)+MATCH($H$10,OFFSET('ANP ESTADO'!$A$1,MATCH($I$7,'ANP ESTADO'!B:B,0),0,100000,1),0),2,100000,2),2,FALSE) -> 2.140814487 | K17: =VLOOKUP($H$10,OFFSET('ANP REGIÃO'!$A$9,MATCH('Transporte EAI'!$I$7,'ANP REGIÃO'!A:A,0),1,10000,10000),MATCH('Transporte EAI'!AH17,'ANP REGIÃO'!$B$8:$G$8,0),FALSE) -> 2.308211963 | L17: 2140.814487 | M17: 636.58 | N17: 2777.394487 | O17: 2424.4 | Q17: 640.31 | S17: 640.31 | T17: 160.07 | U17: 939.59 | V17: 1739.97 | W17: 335.4 | X17: =EVEN('[203] CONSUMO DE MAT. B TOTAL'!$P$11*2/28)*W17/'[203] CONSUMO DE MAT. B TOTAL'!$P$11 -> 25.05322129 | Y17: 1765.023221 | Z17: 2777.394487 | AA17: 4542.417708 | AC17: 4542.417708 | AD17: 1765.023221 | AE17: 2777.394487 | AH17: SUDESTE
B18: 4542.417708 | C18: 6 | E18: BETUNEL INDÚSTRIA E COMÉRCIO LTDA. | F18: RUA VICTOR RODRIGUES DE REZENDE, 185 - DISTRITO INDUSTRIAL - CEP:38402-334 | G18: Minas Gerais | H18: UBERLANDIA - MG | I18: Mossoró - RN | J18: =VLOOKUP(G18,OFFSET('ANP ESTADO'!$A$1,MATCH($I$7,'ANP ESTADO'!B:B,0)+MATCH($H$10,OFFSET('ANP ESTADO'!$A$1,MATCH($I$7,'ANP ESTADO'!B:B,0),0,100000,1),0),2,100000,2),2,FALSE) -> 2.140814487 | K18: =VLOOKUP($H$10,OFFSET('ANP REGIÃO'!$A$9,MATCH('Transporte EAI'!$I$7,'ANP REGIÃO'!A:A,0),1,10000,10000),MATCH('Transporte EAI'!AH18,'ANP REGIÃO'!$B$8:$G$8,0),FALSE) -> 2.308211963 | L18: 2140.814487 | M18: 636.58 | N18: 2777.394487 | O18: 2424.4 | Q18: 640.31 | S18: 640.31 | T18: 160.07 | U18: 939.59 | V18: 1739.97 | W18: 335.4 | X18: =EVEN('[203] CONSUMO DE MAT. B TOTAL'!$P$11*2/28)*W18/'[203] CONSUMO DE MAT. B TOTAL'!$P$11 -> 25.05322129 | Y18: 1765.023221 | Z18: 2777.394487 | AA18: 4542.417708 | AC18: 4542.417708 | AD18: 1765.023221 | AE18: 2777.394487 | AH18: SUDESTE
B19: 5670.114067 | C19: 7 | E19: ARAPETRO DISTRIBUIDORA DE PETRÓLEO LTDA. | F19: BR 163 KM 844,2 | Sinop – MT | G19: Mato Grosso | H19: SINOP - MT | I19: Mossoró - RN | J19: =VLOOKUP(G19,OFFSET('ANP ESTADO'!$A$1,MATCH($I$7,'ANP ESTADO'!B:B,0)+MATCH($H$10,OFFSET('ANP ESTADO'!$A$1,MATCH($I$7,'ANP ESTADO'!B:B,0),0,100000,1),0),2,100000,2),2,FALSE) -> 2.78112191 | K19: =VLOOKUP($H$10,OFFSET('ANP REGIÃO'!$A$9,MATCH('Transporte EAI'!$I$7,'ANP REGIÃO'!A:A,0),1,10000,10000),MATCH('Transporte EAI'!AH19,'ANP REGIÃO'!$B$8:$G$8,0),FALSE) -> 2.623457098 | L19: =IF(AND(J19="-",K19="-"),"",IF(AND(J19<>0,K19="-"),J19*1000,IF(AND(J19="-",K19<>0),K19*1000,IF(AND(J19<>0,K19<>0),J19*1000,"")))) -> 2781.12191 | M19: 826.98 | N19: 3608.10191 | O19: 2886.4 | Q19: 757.2 | S19: 757.2 | T19: 189.3 | U19: 1111.12 | V19: 2057.62 | W19: 58.8 | X19: =EVEN('[203] CONSUMO DE MAT. B TOTAL'!$P$11*2/28)*W19/'[203] CONSUMO DE MAT. B TOTAL'!$P$11 -> 4.392156863 | Y19: 2062.012157 | Z19: 3608.10191 | AA19: 5670.114067 | AH19: CENTRO-OESTE
B20: 4374.353955 | C20: 8 | E20: DISTRIBUIDORA BRASILEIRA DE ASFALTO SA - DISBRAL | F20: SÃO JUDAS TADEU, 288 - DISTRITO INDUSTRIAL - CEP:32450-000 | G20: Minas Gerais | H20: SARZEDO - MG | I20: Mossoró - RN | J20: =VLOOKUP(G20,OFFSET('ANP ESTADO'!$A$1,MATCH($I$7,'ANP ESTADO'!B:B,0)+MATCH($H$10,OFFSET('ANP ESTADO'!$A$1,MATCH($I$7,'ANP ESTADO'!B:B,0),0,100000,1),0),2,100000,2),2,FALSE) -> 2.140814487 | K20: =VLOOKUP($H$10,OFFSET('ANP REGIÃO'!$A$9,MATCH('Transporte EAI'!$I$7,'ANP REGIÃO'!A:A,0),1,10000,10000),MATCH('Transporte EAI'!AH20,'ANP REGIÃO'!$B$8:$G$8,0),FALSE) -> 2.308211963 | L20: 2140.814487 | M20: 636.58 | N20: 2777.394487 | O20: 2196.5 | Q20: 582.65 | S20: 582.65 | T20: 145.66 | U20: 854.98 | V20: 1583.29 | W20: 183 | X20: =EVEN('[203] CONSUMO DE MAT. B TOTAL'!$P$11*2/28)*W20/'[203] CONSUMO DE MAT. B TOTAL'!$P$11 -> 13.66946779 | Y20: 1596.959468 | Z20: 2777.394487 | AA20: 4374.353955 | AH20: SUDESTE
B21: 5303.665163 | C21: 9 | E21: 'INDÚSTRIA NACIONAL DE ASFALTOS LTDA. | F21: INDÚSTRIA NACIONAL DE ASFALTOS LTDA - CEP:77053-080 | G21: Tocantins | H21: PALMAS - TO | I21: Mossoró - RN | J21: =VLOOKUP(G21,OFFSET('ANP ESTADO'!$A$1,MATCH($I$7,'ANP ESTADO'!B:B,0)+MATCH($H$10,OFFSET('ANP ESTADO'!$A$1,MATCH($I$7,'ANP ESTADO'!B:B,0),0,100000,1),0),2,100000,2),2,FALSE) -> - | K21: =VLOOKUP($H$10,OFFSET('ANP REGIÃO'!$A$9,MATCH('Transporte EAI'!$I$7,'ANP REGIÃO'!A:A,0),1,10000,10000),MATCH('Transporte EAI'!AH21,'ANP REGIÃO'!$B$8:$G$8,0),FALSE) -> 3.040675163 | L21: 3040.675163 | M21: 904.16 | N21: 3944.835163 | O21: 1870 | Q21: 500.05 | S21: 500.05 | T21: 125.01 | U21: 733.77 | V21: 1358.83 | W21: 0 | X21: =EVEN('[203] CONSUMO DE MAT. B TOTAL'!$P$11*2/28)*W21/'[203] CONSUMO DE MAT. B TOTAL'!$P$11 -> 0 | Y21: 1358.83 | Z21: 3944.835163 | AA21: 5303.665163 | AH21: NORTE
B22: 5224.024251 | C22: 10 | E22: 'NTA - NOVAS TÉCNICAS DE ASFALTOS S/A | F22: RUA SOFIA ATAURI FADIN, 150 SALA A - B. SANTA TEREZINHA - CEP:13140-000 | G22: São Paulo | H22: PAULINIA - SP | I22: Mossoró - RN | J22: =VLOOKUP(G22,OFFSET('ANP ESTADO'!$A$1,MATCH($I$7,'ANP ESTADO'!B:B,0)+MATCH($H$10,OFFSET('ANP ESTADO'!$A$1,MATCH($I$7,'ANP ESTADO'!B:B,0),0,100000,1),0),2,100000,2),2,FALSE) -> 2.475955624 | K22: =VLOOKUP($H$10,OFFSET('ANP REGIÃO'!$A$9,MATCH('Transporte EAI'!$I$7,'ANP REGIÃO'!A:A,0),1,10000,10000),MATCH('Transporte EAI'!AH22,'ANP REGIÃO'!$B$8:$G$8,0),FALSE) -> 2.308211963 | L22: 2475.955624 | M22: 736.23 | N22: 3212.185624 | O22: 2771 | Q22: 728 | S22: 728 | T22: 182 | U22: 1068.27 | V22: 1978.27 | W22: 449.4 | X22: =EVEN('[203] CONSUMO DE MAT. B TOTAL'!$P$11*2/28)*W22/'[203] CONSUMO DE MAT. B TOTAL'!$P$11 -> 33.56862745 | Y22: 2011.838627 | Z22: 3212.185624 | AA22: 5224.024251 | AC22: 5224.024251 | AD22: 2011.838627 | AE22: 3212.185624 | AH22: SUDESTE
B23: 5181.533131 | C23: 11 | E23: COMPANHIA BRASILEIRA DE ASFALTOS DA AMAZÔNIA - IMPORTAÇÃO E EXPORTAÇÃO | F23: Avenida Doutor Olindo Dártora 2451, Galpão 02, Morro Grande - CEP:07726-555 | G23: São Paulo | H23: CAIEIRAS - SP | I23: Mossoró - RN | J23: =VLOOKUP(G23,OFFSET('ANP ESTADO'!$A$1,MATCH($I$7,'ANP ESTADO'!B:B,0)+MATCH($H$10,OFFSET('ANP ESTADO'!$A$1,MATCH($I$7,'ANP ESTADO'!B:B,0),0,100000,1),0),2,100000,2),2,FALSE) -> 2.475955624 | K23: =VLOOKUP($H$10,OFFSET('ANP REGIÃO'!$A$9,MATCH('Transporte EAI'!$I$7,'ANP REGIÃO'!A:A,0),1,10000,10000),MATCH('Transporte EAI'!AH23,'ANP REGIÃO'!$B$8:$G$8,0),FALSE) -> 2.308211963 | L23: 2475.955624 | M23: 736.23 | N23: 3212.185624 | O23: 2724.9 | Q23: 716.34 | S23: 716.34 | T23: 179.08 | U23: 1051.16 | V23: 1946.58 | W23: 304.8 | X23: =EVEN('[203] CONSUMO DE MAT. B TOTAL'!$P$11*2/28)*W23/'[203] CONSUMO DE MAT. B TOTAL'!$P$11 -> 22.767507 | Y23: 1969.347507 | Z23: 3212.185624 | AA23: 5181.533131 | AH23: SUDESTE
B24: 5731.700319 | C24: 12 | E24: BETUNEL INDÚSTRIA E COMÉRCIO LTDA. | F24: Av. José Barbosa Rodrigues - Vila Popular, Campo Grande - MS, Brasil | G24: Mato Grosso do Sul | H24: CAMPO GRANDE - MS | I24: Mossoró - RN | J24: =VLOOKUP(G24,OFFSET('ANP ESTADO'!$A$1,MATCH($I$7,'ANP ESTADO'!B:B,0)+MATCH($H$10,OFFSET('ANP ESTADO'!$A$1,MATCH($I$7,'ANP ESTADO'!B:B,0),0,100000,1),0),2,100000,2),2,FALSE) -> - | K24: =VLOOKUP($H$10,OFFSET('ANP REGIÃO'!$A$9,MATCH('Transporte EAI'!$I$7,'ANP REGIÃO'!A:A,0),1,10000,10000),MATCH('Transporte EAI'!AH24,'ANP REGIÃO'!$B$8:$G$8,0),FALSE) -> 2.623457098 | L24: 2623.457098 | M24: 780.09 | N24: 3403.547098 | O24: 3243.5 | Q24: 847.54 | S24: 847.54 | T24: 211.88 | U24: 1243.68 | V24: 2303.1 | W24: 335.4 | X24: =EVEN('[203] CONSUMO DE MAT. B TOTAL'!$P$11*2/28)*W24/'[203] CONSUMO DE MAT. B TOTAL'!$P$11 -> 25.05322129 | Y24: 2328.153221 | Z24: 3403.547098 | AA24: 5731.700319 | AH24: CENTRO-OESTE
B25: 6018.453983 | C25: 13 | E25: CENTRO OESTE ASFALTOS LTDA. | F25: RUA N, S/N.º LOTES 39/43 E LOTES 129/133 - DISTRITO INDUSTRIAL - CEP:78098-400 | G25: Mato Grosso | H25: CUIABA - MT | I25: Mossoró - RN | J25: =VLOOKUP(G25,OFFSET('ANP ESTADO'!$A$1,MATCH($I$7,'ANP ESTADO'!B:B,0)+MATCH($H$10,OFFSET('ANP ESTADO'!$A$1,MATCH($I$7,'ANP ESTADO'!B:B,0),0,100000,1),0),2,100000,2),2,FALSE) -> 2.78112191 | K25: =VLOOKUP($H$10,OFFSET('ANP REGIÃO'!$A$9,MATCH('Transporte EAI'!$I$7,'ANP REGIÃO'!A:A,0),1,10000,10000),MATCH('Transporte EAI'!AH25,'ANP REGIÃO'!$B$8:$G$8,0),FALSE) -> 2.623457098 | L25: 2781.12191 | M25: 826.98 | N25: 3608.10191 | O25: 3371.6 | Q25: 879.95 | S25: 879.95 | T25: 219.98 | U25: 1291.24 | V25: 2391.17 | W25: 256.8 | X25: =EVEN('[203] CONSUMO DE MAT. B TOTAL'!$P$11*2/28)*W25/'[203] CONSUMO DE MAT. B TOTAL'!$P$11 -> 19.18207283 | Y25: 2410.352073 | Z25: 3608.10191 | AA25: 6018.453983 | AH25: CENTRO-OESTE
B26: 6018.753983 | C26: 14 | E26: BETUNEL INDÚSTRIA E COMÉRCIO LTDA. | F26: RUA N ESQUINA COM RUA X, S/N QD. IND. 7 L 01/08 - DIST. IND. - CEP:78015-285 | G26: Mato Grosso | H26: CUIABA - MT | I26: Mossoró - RN | J26: =VLOOKUP(G26,OFFSET('ANP ESTADO'!$A$1,MATCH($I$7,'ANP ESTADO'!B:B,0)+MATCH($H$10,OFFSET('ANP ESTADO'!$A$1,MATCH($I$7,'ANP ESTADO'!B:B,0),0,100000,1),0),2,100000,2),2,FALSE) -> 2.78112191 | K26: =VLOOKUP($H$10,OFFSET('ANP REGIÃO'!$A$9,MATCH('Transporte EAI'!$I$7,'ANP REGIÃO'!A:A,0),1,10000,10000),MATCH('Transporte EAI'!AH26,'ANP REGIÃO'!$B$8:$G$8,0),FALSE) -> 2.623457098 | L26: 2781.12191 | M26: 826.98 | N26: 3608.10191 | O26: 3372 | Q26: 880.06 | S26: 880.06 | T26: 220.01 | U26: 1291.4 | V26: 2391.47 | W26: 256.8 | X26: =EVEN('[203] CONSUMO DE MAT. B TOTAL'!$P$11*2/28)*W26/'[203] CONSUMO DE MAT. B TOTAL'!$P$11 -> 19.18207283 | Y26: 2410.652073 | Z26: 3608.10191 | AA26: 6018.753983 | AH26: CENTRO-OESTE
B27: 6032.433983 | C27: 15 | E27: EMAM - EMULSÕES E TRANSPORTES LTDA. | F27: RODOVIA DOS IMIGRANTES, S/Nº KM 8,6 - - CEP:60035-351 | G27: Mato Grosso | H27: VARZEA GRANDE - MT | I27: Mossoró - RN | J27: =VLOOKUP(G27,OFFSET('ANP ESTADO'!$A$1,MATCH($I$7,'ANP ESTADO'!B:B,0)+MATCH($H$10,OFFSET('ANP ESTADO'!$A$1,MATCH($I$7,'ANP ESTADO'!B:B,0),0,100000,1),0),2,100000,2),2,FALSE) -> 2.78112191 | K27: =VLOOKUP($H$10,OFFSET('ANP REGIÃO'!$A$9,MATCH('Transporte EAI'!$I$7,'ANP REGIÃO'!A:A,0),1,10000,10000),MATCH('Transporte EAI'!AH27,'ANP REGIÃO'!$B$8:$G$8,0),FALSE) -> 2.623457098 | L27: 2781.12191 | M27: 826.98 | N27: 3608.10191 | O27: 3391.9 | Q27: 885.09 | S27: 885.09 | T27: 221.27 | U27: 1298.79 | V27: 2405.15 | W27: 256.8 | X27: =EVEN('[203] CONSUMO DE MAT. B TOTAL'!$P$11*2/28)*W27/'[203] CONSUMO DE MAT. B TOTAL'!$P$11 -> 19.18207283 | Y27: 2424.332073 | Z27: 3608.10191 | AA27: 6032.433983 | AC27: 6032.433983 | AD27: 2424.332073 | AE27: 3608.10191 | AH27: CENTRO-OESTE
B28: 4956.578985 | C28: 16 | E28: VIAPOL LTDA. | F28: VITO ARDITO, 6401 KM 118,5 - JARDIM CAMPO GRANDE - CEP:12282-535 | G28: São Paulo | H28: CACAPAVA - SP | I28: Mossoró - RN | J28: =VLOOKUP(G28,OFFSET('ANP ESTADO'!$A$1,MATCH($I$7,'ANP ESTADO'!B:B,0)+MATCH($H$10,OFFSET('ANP ESTADO'!$A$1,MATCH($I$7,'ANP ESTADO'!B:B,0),0,100000,1),0),2,100000,2),2,FALSE) -> 2.475955624 | K28: =VLOOKUP($H$10,OFFSET('ANP REGIÃO'!$A$9,MATCH('Transporte EAI'!$I$7,'ANP REGIÃO'!A:A,0),1,10000,10000),MATCH('Transporte EAI'!AH28,'ANP REGIÃO'!$B$8:$G$8,0),FALSE) -> 2.308211963 | L28: 2475.955624 | M28: 736.23 | N28: 3212.185624 | O28: 2360.4 | Q28: 624.12 | S28: 624.12 | T28: 156.03 | U28: 915.84 | V28: 1695.99 | W28: 648 | X28: =EVEN('[203] CONSUMO DE MAT. B TOTAL'!$P$11*2/28)*W28/'[203] CONSUMO DE MAT. B TOTAL'!$P$11 -> 48.40336134 | Y28: 1744.393361 | Z28: 3212.185624 | AA28: 4956.578985 | AC28: 4956.578985 | AD28: 1744.393361 | AE28: 3212.185624 | AH28: SUDESTE
B29: 4766.160815 | C29: 17 | E29: STRATURA ASFALTOS S/A | F29: RUA LUIS DE CAMÕES, 26 - CAMPOS ELÍSEOS - CEP:25225-030 | G29: Rio de Janeiro | H29: DUQUE DE CAXIAS - RJ | I29: Mossoró - RN | J29: =VLOOKUP(G29,OFFSET('ANP ESTADO'!$A$1,MATCH($I$7,'ANP ESTADO'!B:B,0)+MATCH($H$10,OFFSET('ANP ESTADO'!$A$1,MATCH($I$7,'ANP ESTADO'!B:B,0),0,100000,1),0),2,100000,2),2,FALSE) -> - | K29: =VLOOKUP($H$10,OFFSET('ANP REGIÃO'!$A$9,MATCH('Transporte EAI'!$I$7,'ANP REGIÃO'!A:A,0),1,10000,10000),MATCH('Transporte EAI'!AH29,'ANP REGIÃO'!$B$8:$G$8,0),FALSE) -> 2.308211963 | L29: 2308.211963 | M29: 686.35 | N29: 2994.561963 | O29: 2409.1 | Q29: 636.44 | S29: 636.44 | T29: 159.11 | U29: 933.92 | V29: 1729.47 | W29: 564 | X29: =EVEN('[203] CONSUMO DE MAT. B TOTAL'!$P$11*2/28)*W29/'[203] CONSUMO DE MAT. B TOTAL'!$P$11 -> 42.12885154 | Y29: 1771.598852 | Z29: 2994.561963 | AA29: 4766.160815 | AC29: 4766.160815 | AD29: 1771.598852 | AE29: 2994.561963 | AH29: SUDESTE
B30: 4778.550815 | C30: 18 | E30: PROBITEC - PRODUTOS BETUMINOSOS E TECNOLOGIA DE APLICAÇÃO LTDA. | F30: AVENIDA CANAL DA PAVUNA, 620 - PAVUNA - CEP:21535-630 | G30: Rio de Janeiro | H30: RIO DE JANEIRO - RJ | I30: Mossoró - RN | J30: =VLOOKUP(G30,OFFSET('ANP ESTADO'!$A$1,MATCH($I$7,'ANP ESTADO'!B:B,0)+MATCH($H$10,OFFSET('ANP ESTADO'!$A$1,MATCH($I$7,'ANP ESTADO'!B:B,0),0,100000,1),0),2,100000,2),2,FALSE) -> - | K30: =VLOOKUP($H$10,OFFSET('ANP REGIÃO'!$A$9,MATCH('Transporte EAI'!$I$7,'ANP REGIÃO'!A:A,0),1,10000,10000),MATCH('Transporte EAI'!AH30,'ANP REGIÃO'!$B$8:$G$8,0),FALSE) -> 2.308211963 | L30: 2308.211963 | M30: 686.35 | N30: 2994.561963 | O30: 2427.1 | Q30: 641 | S30: 641 | T30: 160.25 | U30: 940.61 | V30: 1741.86 | W30: 564 | X30: =EVEN('[203] CONSUMO DE MAT. B TOTAL'!$P$11*2/28)*W30/'[203] CONSUMO DE MAT. B TOTAL'!$P$11 -> 42.12885154 | Y30: 1783.988852 | Z30: 2994.561963 | AA30: 4778.550815 | AC30: 4778.550815 | AD30: 1783.988852 | AE30: 2994.561963 | AH30: SUDESTE
B31: 5870.776075 | C31: 19 | E31: CASA DO ASFALTO DISTRIBUIDORA, INDÚSTRIA E COMÉRCIO DE ASFALTO LTDA. | F31: BR 376, PARQUE INDUSTRIAL, S/N LOTE 6/7/7-A-3-1 - GL.PATR.MARIALVA - CEP:86990-000 | G31: Paraná | H31: MARIALVA - PR | I31: Mossoró - RN | J31: =VLOOKUP(G31,OFFSET('ANP ESTADO'!$A$1,MATCH($I$7,'ANP ESTADO'!B:B,0)+MATCH($H$10,OFFSET('ANP ESTADO'!$A$1,MATCH($I$7,'ANP ESTADO'!B:B,0),0,100000,1),0),2,100000,2),2,FALSE) -> 2.65860347 | K31: =VLOOKUP($H$10,OFFSET('ANP REGIÃO'!$A$9,MATCH('Transporte EAI'!$I$7,'ANP REGIÃO'!A:A,0),1,10000,10000),MATCH('Transporte EAI'!AH31,'ANP REGIÃO'!$B$8:$G$8,0),FALSE) -> 2.684130785 | L31: 2658.60347 | M31: 790.54 | N31: 3449.14347 | O31: 3314.8 | Q31: 865.58 | S31: 865.58 | T31: 216.39 | U31: 1270.15 | V31: 2352.12 | W31: 930.6 | X31: =EVEN('[203] CONSUMO DE MAT. B TOTAL'!$P$11*2/28)*W31/'[203] CONSUMO DE MAT. B TOTAL'!$P$11 -> 69.51260504 | Y31: 2421.632605 | Z31: 3449.14347 | AA31: 5870.776075 | AC31: 5870.776075 | AD31: 2421.632605 | AE31: 3449.14347 | AH31: SUL
B32: 5817.795515 | C32: 20 | E32: PETROBRAS DISTRIBUIDORA S.A. | F32: RUA MAQUINISTA ELEODORO JACINTO, 100 - OFICINAS - CEP:84045-170 | G32: Paraná | H32: PONTA GROSSA - PR | I32: Mossoró - RN | J32: =VLOOKUP(G32,OFFSET('ANP ESTADO'!$A$1,MATCH($I$7,'ANP ESTADO'!B:B,0)+MATCH($H$10,OFFSET('ANP ESTADO'!$A$1,MATCH($I$7,'ANP ESTADO'!B:B,0),0,100000,1),0),2,100000,2),2,FALSE) -> 2.65860347 | K32: =VLOOKUP($H$10,OFFSET('ANP REGIÃO'!$A$9,MATCH('Transporte EAI'!$I$7,'ANP REGIÃO'!A:A,0),1,10000,10000),MATCH('Transporte EAI'!AH32,'ANP REGIÃO'!$B$8:$G$8,0),FALSE) -> 2.684130785 | L32: 2658.60347 | M32: 790.54 | N32: 3449.14347 | O32: 3233.9 | Q32: 845.12 | S32: 845.12 | T32: 211.28 | U32: 1240.14 | V32: 2296.54 | W32: 965.4 | X32: =EVEN('[203] CONSUMO DE MAT. B TOTAL'!$P$11*2/28)*W32/'[203] CONSUMO DE MAT. B TOTAL'!$P$11 -> 72.11204482 | Y32: 2368.652045 | Z32: 3449.14347 | AA32: 5817.795515 | AC32: 5817.795515 | AD32: 2368.652045 | AE32: 3449.14347 | AH32: SUL
D42: Acre
D43: Alagoas
D44: Amapá
D45: Amazonas
D46: Bahia
D47: Ceará
D48: Distrito Federal
D49: Espírito Santo
D50: Goiás
D51: Maranhão
D52: Mato Grosso
D53: Mato Grosso do Sul
D54: Minas Gerais
D55: Pará
D56: Paraíba
D57: Paraná
D58: Pernambuco
D59: Piauí
D60: Rio de Janeiro
D61: Rio Grande do Norte
D62: Rio Grande do Sul
D63: Rondônia
D64: Roraima
D65: Santa Catarina
D66: São Paulo
D67: Sergipe
D68: Tocantins
D72: ASFALTOS DILUÍDOS CM-30
D73: ASFALTOS DILUÍDOS CM-70
D74: ASFALTOS DILUÍDOS CR-250
D75: ASFALTOS DILUÍDOS CR-70
D76: CAP MODIFICADO POR BORRACHA DE PNEU AB22
D77: CAP MODIFICADO POR BORRACHA DE PNEU AB8
D78: CAP MODIFICADO POR POLÍMERO 55-75-E
D79: CAP MODIFICADO POR POLÍMERO 60-85-E
D80: CAP MODIFICADO POR POLÍMERO 65-90-E
D81: CIMENTOS ASFÁLTICOS CAP-150-200
D82: CIMENTOS ASFÁLTICOS CAP-30-45
D83: CIMENTOS ASFÁLTICOS CAP-50-70
D84: CIMENTOS ASFÁLTICOS CAP-85-100
D85: EMULSÃO ASFÁLTICA CATIÔNICA DE RUPTURA CONTROLADA PARA SERVIÇO DE LAMA ASFÁLTICA
D86: EMULSÃO ASFÁLTICA DE RUPTURA LENTA CATIÔNICA PARA SERVIÇO DE LAMA ASFÁLTICA
D87: EMULSÃO ASFÁLTICA DE RUPTURA LENTA DE CARGA NEUTRA PARA SERVIÇO DE LAMA ASFÁLTICA
D88: EMULSÃO ASFÁLTICA PARA SERVIÇO DE IMPRIMAÇÃO
D89: EMULSÕES ASF. MOD. POR POLÍMEROS RC1C-E
D90: EMULSÕES ASF. MOD. POR POLÍMEROS RL1C-E
D91: EMULSÕES ASF. MOD. POR POLÍMEROS RM1C-E
D92: EMULSÕES ASF. MOD. POR POLÍMEROS RR1C-E
D93: EMULSÕES ASF. MOD. POR POLÍMEROS RR2C-E
D94: EMULSÕES ASFÁLTICAS RL-1C
D95: EMULSÕES ASFÁLTICAS RM-1C
D96: EMULSÕES ASFÁLTICAS RM-2C
D97: EMULSÕES ASFÁLTICAS RR-1C
D98: EMULSÕES ASFÁLTICAS RR-2C

Sheet Transporte CM-30 (hidden)
C2: MEMÓRIA DE CÁLCULO
C7: REAJUSTE | F7: TIPOLOGIA DO MATERIAL | I7: ASFALTOS DILUÍDOS CM-30 | M7: IMPOSTOS | N7: COFINS | O7: 0.0065 | P7: 0.0065
G8: ÍNDICE DE PAVIMENTAÇÃO DNIT | H8: 2014-07-01 | I8: ÍNDICE INICIAL | J8: 270.237 | N8: PIS | O8: 0.03 | P8: 0.03 | T8: LEGENDA | AC8: As empresas tributadas pelo Lucro Presumido pagam 0,65% de PIS e 3% de COFINS
H9: 2024-04-01 | I9: ÍNDICE FINAL | J9: 567.092 | N9: ICMS | O9: 0.18 | P9: 0.18 | Q9: =1-(O9/1) -> 0.82 | R9: =1-(P9/1) -> 0.82 | S9: =1-(Q9/1) -> 0.18 | T9: ENTRADA DE DADOS | AC9: As empresas tributadas pelo Lucro Real pagam 1,65% de PIS e 7,60% de COFINS
G10: Data ANP | H10: 2024-04-01
C11: DATA-BASE | D11: PRODUTOS | E11: LOCALIDADES | J11: CUSTO ANP (R$/Kg) | L11: CUSTO ANP | M11: IMPOSTOS DO PRODUTO | N11: CUSTO DO PRODUTO COM IMPOSTOS | O11: DMT's | P11: DMT's FLUVIAL | Q11: CUSTO DO TRANSPORTE RODOVIA PAVIMENTADA | R11: CUSTO DO TRANSPORTE FLUVIAL | S11: CUSTO DO TRANSPORTE TOTAL | T11: ICMS | U11: ATUALIZAÇÃO DO CUSTO DE TRANSPORTE | V11: CUSTO DO TRANSPORTE RODOVIA PAVIMENTADA COM IMPOSTOS E ATUALIZAÇÃO MONETÁRIA | W11: PEDÁGIO | Y11: TOTAL TRANSPORTE | Z11: AQUISIÇÃO DO PRODUTO | AA11: TOTAL GERAL ( TRANSP + AQUISIÇÃO) | AC11: 1 | AD11: 2 | AE11: 3
C12: =H9 -> 2024-04-01 | E12: REFINARIAS | F12: ENDEREÇO | G12: ESTADO | H12: CIDADE | I12: DESTINO | J12: ESTADO | K12: REGIÃO | L12: R$/t | M12: R$/t | N12: R$/t | O12: KM | P12: KM | Q12: R$/t | R12: R$/t | S12: R$/t | T12: R$/t | U12: R$/t | V12: R$/t | W12: CUSTO | X12: R$/t | Y12: R$/t | Z12: R$/t | AA12: R$/t | AC12: TOTAL GERAL ( TRANSP + AQUISIÇÃO) | AD12: TOTAL TRANSPORTE | AE12: AQUISIÇÃO DO PRODUTO
B13: =AA13 ->  | C13: 1 | D13: =I7 -> ASFALTOS DILUÍDOS CM-30 | E13: Refinaria Abreu e Lima | F13: Rodovia PE 60, Km 10 - Ipojuca - PE CEP:55590-000 | G13: Pernambuco | H13: IPOJUCA - PE | I13: Mossoró - RN | J13: =VLOOKUP('Transporte CM-30'!G13,OFFSET('ANP ESTADO'!$A$1,MATCH('Transporte CM-30'!$I$7,'ANP ESTADO'!B:B,0)+MATCH('Transporte CM-30'!$H$10,OFFSET('ANP ESTADO'!$A$1,MATCH('Transporte CM-30'!$I$7,'ANP ESTADO'!B:B,0),0,100000,1),0),2,100000,2),2,FALSE) -> - | K13: =VLOOKUP($H$10,OFFSET('ANP REGIÃO'!$A$9,MATCH('Transporte CM-30'!$I$7,'ANP REGIÃO'!A:A,0),1,10000,10000),MATCH('Transporte CM-30'!AH13,'ANP REGIÃO'!$B$8:$G$8,0),FALSE) -> 5.333668875 | L13: =IF(AND(J13="-",K13="-"),"",IF(AND(J13<>0,K13="-"),J13*1000,IF(AND(J13="-",K13<>0),K13*1000,IF(AND(J13<>0,K13<>0),J13*1000,"")))) -> 5333.668875 | M13: =ROUND(((L13/(1-$O$7-$O$8-$O$9))-L13),2) -> 1473.82 | N13: =L13+M13 -> 6807.488875 | O13: 614 | Q13: =ROUND((26.939+0.253*O13),2) -> 182.28 | S13: =Q13+R13 -> 182.28 | T13: =TRUNC(S13*($O$9/(1-$O$9)),2) -> 40.01 | U13: =TRUNC(IF($J$8="","",(($J$9-$J$8)/$J$8)*(S13+T13)),2) -> 244.18 | V13: =S13+T13+U13 -> 466.47 | W13: 254.4 | X13: =EVEN(' CONSUMO DE MAT. B TOTAL'!$P$9*2/28)*W13/' CONSUMO DE MAT. B TOTAL'!$P$9 ->  | Y13: =IF(AND(S13="",T13=""),"",V13+X13) ->  | Z13: =IF(OR(L13="",M13=""),"",L13+M13) -> 6807.488875 | AA13: =IF(OR(Y13="",Z13=""),"",Y13+Z13) ->  | AC13: =AA13 ->  | AD13: =Y13 ->  | AE13: =Z13 -> 6807.488875 | AH13: =IF(OR(G13=$D$51,G13=$D$52,G13=$D$54,G13=$D$60,G13=$D$44,G13=$D$40,G13=$D$36,G13=$D$49,G13=$D$39),"NORDESTE",IF(OR(G13=$D$35,G13=$D$37,G13=$D$38,G13=$D$48,G13=$D$56,G13=$D$57,G13=$D$61),"NORTE",IF(OR(G13=$D$41,G13=$D$43,G13=$D$45,G13=$D$46),"CENTRO-OESTE",IF(OR(G13=$D$59,G13=$D$53,G13=$D$47,G13=$D$42),"SUDESTE",IF(OR(G13=$D$58,G13=$D$50,G13=$D$55),"SUL",""))))) -> NORDESTE
B14: =AA14 ->  | C14: 2 | E14: Refinaria Potiguar Clara Camarão | F14: Rodovia RN 221, KM 25 - Guamaré - RN CEP:59598-000 | G14: Rio Grande do Norte | H14: GUAMARÉ - RN | I14: Mossoró - RN | J14: =VLOOKUP('Transporte CM-30'!G14,OFFSET('ANP ESTADO'!$A$1,MATCH('Transporte CM-30'!$I$7,'ANP ESTADO'!B:B,0)+MATCH('Transporte CM-30'!$H$10,OFFSET('ANP ESTADO'!$A$1,MATCH('Transporte CM-30'!$I$7,'ANP ESTADO'!B:B,0),0,100000,1),0),2,100000,2),2,FALSE) -> - | K14: =VLOOKUP($H$10,OFFSET('ANP REGIÃO'!$A$9,MATCH('Transporte CM-30'!$I$7,'ANP REGIÃO'!A:A,0),1,10000,10000),MATCH('Transporte CM-30'!AH14,'ANP REGIÃO'!$B$8:$G$8,0),FALSE) -> 5.333668875 | L14: =IF(AND(J14="-",K14=""),"",IF(AND(J14<>0,K14=""),J14*1000,IF(AND(J14="-",K14<>0),K14*1000,IF(AND(J14<>0,K14<>0),J14*1000,"")))) -> 5333.668875 | M14: =ROUND(((L14/(1-$O$7-$O$8-$O$9))-L14),2) -> 1473.82 | N14: =L14+M14 -> 6807.488875 | O14: 193 | Q14: =ROUND((26.939+0.253*O14),2) -> 75.77 | S14: =Q14+R14 -> 75.77 | T14: =TRUNC(S14*($O$9/(1-$O$9)),2) -> 16.63 | U14: =TRUNC(IF($J$8="","",(($J$9-$J$8)/$J$8)*(S14+T14)),2) -> 101.5 | V14: =S14+T14+U14 -> 193.9 | W14: 254.4 | X14: =EVEN(' CONSUMO DE MAT. B TOTAL'!$P$9*2/28)*W14/' CONSUMO DE MAT. B TOTAL'!$P$9 ->  | Y14: =IF(AND(S14="",T14=""),"",V14+X14) ->  | Z14: 6807.488875 | AA14: =IF(OR(Y14="",Z14=""),"",Y14+Z14) ->  | AC14: =AA14 ->  | AD14: =Y14 ->  | AE14: 6807.488875 | AH14: =IF(OR(G14=$D$51,G14=$D$52,G14=$D$54,G14=$D$60,G14=$D$44,G14=$D$40,G14=$D$36,G14=$D$49,G14=$D$39),"NORDESTE",IF(OR(G14=$D$35,G14=$D$37,G14=$D$38,G14=$D$48,G14=$D$56,G14=$D$57,G14=$D$61),"NORTE",IF(OR(G14=$D$41,G14=$D$43,G14=$D$45,G14=$D$46),"CENTRO-OESTE",IF(OR(G14=$D$59,G14=$D$53,G14=$D$47,G14=$D$42),"SUDESTE",IF(OR(G14=$D$58,G14=$D$50,G14=$D$55),"SUL",""))))) -> NORDESTE
C15: 3 | E15: Refinaria Landulpho Alves (RLAM) | F15: Rodovia BA 523, KM 4 – Mataripe São Francisco do Conde - BA CEP:43900-000 | G15: Bahia | H15: SÃO FRANCISCO DO CONDE - BA | I15: Mossoró - RN | J15: =VLOOKUP('Transporte CM-30'!G15,OFFSET('ANP ESTADO'!$A$1,MATCH('Transporte CM-30'!$I$7,'ANP ESTADO'!B:B,0)+MATCH('Transporte CM-30'!$H$10,OFFSET('ANP ESTADO'!$A$1,MATCH('Transporte CM-30'!$I$7,'ANP ESTADO'!B:B,0),0,100000,1),0),2,100000,2),2,FALSE) -> - | K15: =VLOOKUP($H$10,OFFSET('ANP REGIÃO'!$A$9,MATCH('Transporte CM-30'!$I$7,'ANP REGIÃO'!A:A,0),1,10000,10000),MATCH('Transporte CM-30'!AH15,'ANP REGIÃO'!$B$8:$G$8,0),FALSE) -> 5.333668875 | L15: 5333.668875 | M15: =ROUND(((L15/(1-$O$7-$O$8-$O$9))-L15),2) -> 1473.82 | N15: 6807.488875 | O15: 1033 | Q15: =ROUND((26.939+0.253*O15),2) -> 288.29 | S15: 288.29 | T15: 63.28 | U15: 386.19 | V15: 737.76 | W15: 274.2 | X15: =EVEN(' CONSUMO DE MAT. B TOTAL'!$P$9*2/28)*W15/' CONSUMO DE MAT. B TOTAL'!$P$9 ->  | Z15: 6807.488875 | AE15: 6807.488875 | AH15: NORDESTE
A16: 2403 | C16: 4 | E16: Refinaria Lubrificantes e Derivados do Nordeste (Lubnor) | F16: Av. Leite Barbosa, s/nº - Mucuripe Fortaleza - Ceará CEP:60180-420 | G16: Ceará | H16: FORTALEZA - CE | I16: Mossoró - RN | J16: =VLOOKUP('Transporte CM-30'!G16,OFFSET('ANP ESTADO'!$A$1,MATCH('Transporte CM-30'!$I$7,'ANP ESTADO'!B:B,0)+MATCH('Transporte CM-30'!$H$10,OFFSET('ANP ESTADO'!$A$1,MATCH('Transporte CM-30'!$I$7,'ANP ESTADO'!B:B,0),0,100000,1),0),2,100000,2),2,FALSE) -> - | K16: =VLOOKUP($H$10,OFFSET('ANP REGIÃO'!$A$9,MATCH('Transporte CM-30'!$I$7,'ANP REGIÃO'!A:A,0),1,10000,10000),MATCH('Transporte CM-30'!AH16,'ANP REGIÃO'!$B$8:$G$8,0),FALSE) -> 5.333668875 | L16: =IF(AND(J16="-",K16=""),"",IF(AND(J16<>0,K16=""),J16*1000,IF(AND(J16="-",K16<>0),K16*1000,IF(AND(J16<>0,K16<>0),J16*1000,"")))) -> 5333.668875 | M16: =ROUND(((L16/(1-$O$7-$O$8-$O$9))-L16),2) -> 1473.82 | N16: 6807.488875 | O16: 206 | Q16: 79.06 | S16: 79.06 | T16: 17.35 | U16: 105.9 | V16: 202.31 | W16: 153 | X16: =EVEN(' CONSUMO DE MAT. B TOTAL'!$P$9*2/28)*W16/' CONSUMO DE MAT. B TOTAL'!$P$9 ->  | Z16: 6807.488875 | AE16: 6807.488875 | AH16: NORDESTE
C17: 5 | E17: Refinaria Capuava (Recap) | F17: Av. Alberto Soares Sampaio, 2122-A Capuava – Mauá - SP | G17: São Paulo | H17: MAUÁ - SP | I17: Mossoró - RN | J17: =VLOOKUP('Transporte CM-30'!G17,OFFSET('ANP ESTADO'!$A$1,MATCH('Transporte CM-30'!$I$7,'ANP ESTADO'!B:B,0)+MATCH('Transporte CM-30'!$H$10,OFFSET('ANP ESTADO'!$A$1,MATCH('Transporte CM-30'!$I$7,'ANP ESTADO'!B:B,0),0,100000,1),0),2,100000,2),2,FALSE) -> - | K17: =VLOOKUP($H$10,OFFSET('ANP REGIÃO'!$A$9,MATCH('Transporte CM-30'!$I$7,'ANP REGIÃO'!A:A,0),1,10000,10000),MATCH('Transporte CM-30'!AH17,'ANP REGIÃO'!$B$8:$G$8,0),FALSE) -> 3.991999626 | L17: 3991.999626 | M17: =ROUND(((L17/(1-$O$7-$O$8-$O$9))-L17),2) -> 1103.09 | N17: 5095.089626 | O17: 815 | Q17: 233.13 | S17: 233.13 | T17: 51.17 | U17: 312.3 | V17: 596.6 | W17: 1100.4 | X17: =EVEN(' CONSUMO DE MAT. B TOTAL'!$P$9*2/28)*W17/' CONSUMO DE MAT. B TOTAL'!$P$9 ->  | Z17: 5095.089626 | AE17: 5095.089626 | AH17: SUDESTE
C18: 6 | E18: Refinaria Duque de Caxias (Reduc) | F18: Rodovia Washington Luiz, km 113,7 Campos Elíseos – Duque de Caxias - RJ CEP:25213-005 | G18: Rio de Janeiro | H18: DUQUE DE CAXIAS - RJ | I18: Mossoró - RN | J18: =VLOOKUP('Transporte CM-30'!G18,OFFSET('ANP ESTADO'!$A$1,MATCH('Transporte CM-30'!$I$7,'ANP ESTADO'!B:B,0)+MATCH('Transporte CM-30'!$H$10,OFFSET('ANP ESTADO'!$A$1,MATCH('Transporte CM-30'!$I$7,'ANP ESTADO'!B:B,0),0,100000,1),0),2,100000,2),2,FALSE) -> - | K18: =VLOOKUP($H$10,OFFSET('ANP REGIÃO'!$A$9,MATCH('Transporte CM-30'!$I$7,'ANP REGIÃO'!A:A,0),1,10000,10000),MATCH('Transporte CM-30'!AH18,'ANP REGIÃO'!$B$8:$G$8,0),FALSE) -> 3.991999626 | L18: 3991.999626 | M18: 1103.09 | N18: 5095.089626 | O18: 2440 | Q18: 644.26 | S18: 644.26 | T18: 141.42 | U18: 863.06 | V18: 1648.74 | W18: 1440.6 | X18: =EVEN(' CONSUMO DE MAT. B TOTAL'!$P$9*2/28)*W18/' CONSUMO DE MAT. B TOTAL'!$P$9 ->  | Z18: 5095.089626 | AE18: 5095.089626 | AH18: SUDESTE
C19: 7 | E19: Refinaria Alberto Pasqualini (Refap) | F19: Avenida Getúlio Vargas, 11001 - Bairro Brigadeira Canoas - RS - Brasil CEP:92420-221 | G19: Rio Grande do Sul | H19: CANOAS - RS | I19: Mossoró - RN | J19: =VLOOKUP('Transporte CM-30'!G19,OFFSET('ANP ESTADO'!$A$1,MATCH('Transporte CM-30'!$I$7,'ANP ESTADO'!B:B,0)+MATCH('Transporte CM-30'!$H$10,OFFSET('ANP ESTADO'!$A$1,MATCH('Transporte CM-30'!$I$7,'ANP ESTADO'!B:B,0),0,100000,1),0),2,100000,2),2,FALSE) -> 4.078350025 | K19: =VLOOKUP($H$10,OFFSET('ANP REGIÃO'!$A$9,MATCH('Transporte CM-30'!$I$7,'ANP REGIÃO'!A:A,0),1,10000,10000),MATCH('Transporte CM-30'!AH19,'ANP REGIÃO'!$B$8:$G$8,0),FALSE) -> 4.15116124 | L19: 4078.350025 | M19: 1126.95 | N19: 5205.300025 | O19: 3942 | Q19: 1024.27 | S19: 1024.27 | T19: 224.83 | U19: 1372.13 | V19: 2621.23 | W19: 706.8 | X19: =EVEN(' CONSUMO DE MAT. B TOTAL'!$P$9*2/28)*W19/' CONSUMO DE MAT. B TOTAL'!$P$9 ->  | Z19: 5205.300025 | AE19: 5205.300025 | AH19: SUL
C20: 8 | E20: Unidade de Industrialização do Xisto (SIX) | F20: Rodovia do Xisto, BR 476, km 153 São Mateus do Sul – PR CEP 83900-000 | G20: Paraná | H20: SÃO MATEUS DO SUL - PR | I20: Mossoró - RN | J20: =VLOOKUP('Transporte CM-30'!G20,OFFSET('ANP ESTADO'!$A$1,MATCH('Transporte CM-30'!$I$7,'ANP ESTADO'!B:B,0)+MATCH('Transporte CM-30'!$H$10,OFFSET('ANP ESTADO'!$A$1,MATCH('Transporte CM-30'!$I$7,'ANP ESTADO'!B:B,0),0,100000,1),0),2,100000,2),2,FALSE) -> 4.465372442 | K20: =VLOOKUP($H$10,OFFSET('ANP REGIÃO'!$A$9,MATCH('Transporte CM-30'!$I$7,'ANP REGIÃO'!A:A,0),1,10000,10000),MATCH('Transporte CM-30'!AH20,'ANP REGIÃO'!$B$8:$G$8,0),FALSE) -> 4.15116124 | L20: 4465.372442 | M20: 1233.89 | N20: 5699.262442 | O20: 3378 | Q20: 881.57 | S20: 881.57 | T20: 193.51 | U20: 1180.97 | V20: 2256.05 | W20: 514.8 | X20: =EVEN(' CONSUMO DE MAT. B TOTAL'!$P$9*2/28)*W20/' CONSUMO DE MAT. B TOTAL'!$P$9 ->  | Z20: 5699.262442 | AE20: 5699.262442 | AH20: SUL
C21: 9 | E21: Refinaria Gabriel Passos (Regap) | F21: Av. Refinaria Gabriel Passos, 690 Distrito Industrial Paulo Camilo Sul Betim - MG CEP:32669-205 | G21: Minas Gerais | H21: BETIM - MG | I21: Mossoró - RN | J21: =VLOOKUP('Transporte CM-30'!G21,OFFSET('ANP ESTADO'!$A$1,MATCH('Transporte CM-30'!$I$7,'ANP ESTADO'!B:B,0)+MATCH('Transporte CM-30'!$H$10,OFFSET('ANP ESTADO'!$A$1,MATCH('Transporte CM-30'!$I$7,'ANP ESTADO'!B:B,0),0,100000,1),0),2,100000,2),2,FALSE) -> - | K21: =VLOOKUP($H$10,OFFSET('ANP REGIÃO'!$A$9,MATCH('Transporte CM-30'!$I$7,'ANP REGIÃO'!A:A,0),1,10000,10000),MATCH('Transporte CM-30'!AH21,'ANP REGIÃO'!$B$8:$G$8,0),FALSE) -> 3.991999626 | L21: 3991.999626 | M21: 1103.09 | N21: 5095.089626 | O21: 2241 | Q21: 593.91 | S21: 593.91 | T21: 130.37 | U21: 795.62 | V21: 1519.9 | W21: 297.6 | X21: =EVEN(' CONSUMO DE MAT. B TOTAL'!$P$9*2/28)*W21/' CONSUMO DE MAT. B TOTAL'!$P$9 ->  | Z21: 5095.089626 | AA21: =IF(OR(Y21="",Z21=""),"",Y21+Z21) ->  | AE21: 5095.089626 | AH21: SUDESTE
C22: 10 | E22: Refinaria Presidente Getúlio Vargas (Repar) | F22: Rodovia do Xisto, BR 476, km 16 Araucária - PR CEP:83707-440 | G22: Paraná | H22: ARAUCÁRIA - PR | I22: Mossoró - RN | J22: =VLOOKUP('Transporte CM-30'!G22,OFFSET('ANP ESTADO'!$A$1,MATCH('Transporte CM-30'!$I$7,'ANP ESTADO'!B:B,0)+MATCH('Transporte CM-30'!$H$10,OFFSET('ANP ESTADO'!$A$1,MATCH('Transporte CM-30'!$I$7,'ANP ESTADO'!B:B,0),0,100000,1),0),2,100000,2),2,FALSE) -> 4.465372442 | K22: =VLOOKUP($H$10,OFFSET('ANP REGIÃO'!$A$9,MATCH('Transporte CM-30'!$I$7,'ANP REGIÃO'!A:A,0),1,10000,10000),MATCH('Transporte CM-30'!AH22,'ANP REGIÃO'!$B$8:$G$8,0),FALSE) -> 4.15116124 | L22: 4465.372442 | M22: 1233.89 | N22: 5699.262442 | O22: 3254 | Q22: 850.2 | S22: 850.2 | T22: 186.62 | U22: 1138.94 | V22: 2175.76 | W22: 514.8 | X22: =EVEN(' CONSUMO DE MAT. B TOTAL'!$P$9*2/28)*W22/' CONSUMO DE MAT. B TOTAL'!$P$9 ->  | Z22: 5699.262442 | AE22: 5699.262442 | AH22: SUL
C23: 11 | E23: Refinaria Presidente Bernardes (RPBC) | F23: Av. 9 de abril, 777 - Jardim das Indústrias Cubatão - SP CEP:11505-000 | G23: São Paulo | H23: CUBATÃO - SP | I23: Mossoró - RN | J23: =VLOOKUP('Transporte CM-30'!G23,OFFSET('ANP ESTADO'!$A$1,MATCH('Transporte CM-30'!$I$7,'ANP ESTADO'!B:B,0)+MATCH('Transporte CM-30'!$H$10,OFFSET('ANP ESTADO'!$A$1,MATCH('Transporte CM-30'!$I$7,'ANP ESTADO'!B:B,0),0,100000,1),0),2,100000,2),2,FALSE) -> - | K23: =VLOOKUP($H$10,OFFSET('ANP REGIÃO'!$A$9,MATCH('Transporte CM-30'!$I$7,'ANP REGIÃO'!A:A,0),1,10000,10000),MATCH('Transporte CM-30'!AH23,'ANP REGIÃO'!$B$8:$G$8,0),FALSE) -> 3.991999626 | L23: 3991.999626 | M23: 1103.09 | N23: 5095.089626 | O23: 2885 | Q23: 756.84 | S23: 756.84 | T23: 166.13 | U23: 1013.88 | V23: 1936.85 | W23: 1100.4 | X23: =EVEN(' CONSUMO DE MAT. B TOTAL'!$P$9*2/28)*W23/' CONSUMO DE MAT. B TOTAL'!$P$9 ->  | Z23: 5095.089626 | AE23: 5095.089626 | AH23: SUDESTE
C24: 12 | E24: Refinaria de Paulínia (Replan) | F24: Rodovia SP 332 - Km. 130 Bonfim - Paulínia – SP CEP:13140-000 | G24: São Paulo | H24: PAULÍNIA - SP | I24: Mossoró - RN | J24: =VLOOKUP('Transporte CM-30'!G24,OFFSET('ANP ESTADO'!$A$1,MATCH('Transporte CM-30'!$I$7,'ANP ESTADO'!B:B,0)+MATCH('Transporte CM-30'!$H$10,OFFSET('ANP ESTADO'!$A$1,MATCH('Transporte CM-30'!$I$7,'ANP ESTADO'!B:B,0),0,100000,1),0),2,100000,2),2,FALSE) -> - | K24: =VLOOKUP($H$10,OFFSET('ANP REGIÃO'!$A$9,MATCH('Transporte CM-30'!$I$7,'ANP REGIÃO'!A:A,0),1,10000,10000),MATCH('Transporte CM-30'!AH24,'ANP REGIÃO'!$B$8:$G$8,0),FALSE) -> 3.991999626 | L24: 3991.999626 | M24: 1103.09 | N24: 5095.089626 | O24: 2819 | Q24: 740.15 | S24: 740.15 | T24: 162.47 | U24: 991.52 | V24: 1894.14 | W24: 952.8 | X24: =EVEN(' CONSUMO DE MAT. B TOTAL'!$P$9*2/28)*W24/' CONSUMO DE MAT. B TOTAL'!$P$9 ->  | Z24: 5095.089626 | AE24: 5095.089626 | AH24: SUDESTE
C25: 13 | E25: Refinaria Henrique Lage (Revap) | F25: Rodovia Presidente Dutra, KM 143, S/N Bairro Jardim Diamante - São José dos Campos – SP CEP:12223-900 | G25: São Paulo | H25: SÃO JOSÉ DOS CAMPOS - SP | I25: Mossoró - RN | J25: =VLOOKUP('Transporte CM-30'!G25,OFFSET('ANP ESTADO'!$A$1,MATCH('Transporte CM-30'!$I$7,'ANP ESTADO'!B:B,0)+MATCH('Transporte CM-30'!$H$10,OFFSET('ANP ESTADO'!$A$1,MATCH('Transporte CM-30'!$I$7,'ANP ESTADO'!B:B,0),0,100000,1),0),2,100000,2),2,FALSE) -> - | K25: =VLOOKUP($H$10,OFFSET('ANP REGIÃO'!$A$9,MATCH('Transporte CM-30'!$I$7,'ANP REGIÃO'!A:A,0),1,10000,10000),MATCH('Transporte CM-30'!AH25,'ANP REGIÃO'!$B$8:$G$8,0),FALSE) -> 3.991999626 | L25: 3991.999626 | M25: 1103.09 | N25: 5095.089626 | O25: 2614 | Q25: 688.28 | S25: 688.28 | T25: 151.08 | U25: 922.03 | V25: 1761.39 | W25: 1205.4 | X25: =EVEN(' CONSUMO DE MAT. B TOTAL'!$P$9*2/28)*W25/' CONSUMO DE MAT. B TOTAL'!$P$9 ->  | Z25: 5095.089626 | AE25: 5095.089626 | AH25: SUDESTE
D35: Acre
D36: Alagoas
D37: Amapá
D38: Amazonas
D39: Bahia
D40: Ceará
D41: Distrito Federal
D42: Espírito Santo
D43: Goiás
D44: Maranhão
D45: Mato Grosso
D46: Mato Grosso do Sul
D47: Minas Gerais
D48: Pará
D49: Paraíba
D50: Paraná
D51: Pernambuco
D52: Piauí
D53: Rio de Janeiro
D54: Rio Grande do Norte
D55: Rio Grande do Sul
D56: Rondônia
D57: Roraima
D58: Santa Catarina
D59: São Paulo
D60: Sergipe
D61: Tocantins
D65: ASFALTOS DILUÍDOS CM-30
D66: ASFALTOS DILUÍDOS CM-70
D67: ASFALTOS DILUÍDOS CR-250
D68: ASFALTOS DILUÍDOS CR-70
D69: CAP MODIFICADO POR BORRACHA DE PNEU AB22
D70: CAP MODIFICADO POR BORRACHA DE PNEU AB8
D71: CAP MODIFICADO POR POLÍMERO 55-75-E
D72: CAP MODIFICADO POR POLÍMERO 60-85-E
D73: CAP MODIFICADO POR POLÍMERO 65-90-E
D74: CIMENTOS ASFÁLTICOS CAP-150-200
D75: CIMENTOS ASFÁLTICOS CAP-30-45
D76: CIMENTOS ASFÁLTICOS CAP-50-70
D77: CIMENTOS ASFÁLTICOS CAP-85-100
D78: EMULSÃO ASFÁLTICA CATIÔNICA DE RUPTURA CONTROLADA PARA SERVIÇO DE LAMA ASFÁLTICA
D79: EMULSÃO ASFÁLTICA DE RUPTURA LENTA CATIÔNICA PARA SERVIÇO DE LAMA ASFÁLTICA
D80: EMULSÃO ASFÁLTICA DE RUPTURA LENTA DE CARGA NEUTRA PARA SERVIÇO DE LAMA ASFÁLTICA
D81: EMULSÃO ASFÁLTICA PARA SERVIÇO DE IMPRIMAÇÃO
D82: EMULSÕES ASF. MOD. POR POLÍMEROS RC1C-E
D83: EMULSÕES ASF. MOD. POR POLÍMEROS RL1C-E
D84: EMULSÕES ASF. MOD. POR POLÍMEROS RM1C-E
D85: EMULSÕES ASF. MOD. POR POLÍMEROS RR1C-E
D86: EMULSÕES ASF. MOD. POR POLÍMEROS RR2C-E
D87: EMULSÕES ASFÁLTICAS RL-1C
D88: EMULSÕES ASFÁLTICAS RM-1C
D89: EMULSÕES ASFÁLTICAS RM-2C
D90: EMULSÕES ASFÁLTICAS RR-1C
D91: EMULSÕES ASFÁLTICAS RR-2C

Sheet Transporte RR-1C
C2: MEMÓRIA DE CÁLCULO
C7: REAJUSTE | F7: TIPOLOGIA DO MATERIAL | I7: EMULSÕES ASFÁLTICAS RR-1C | M7: IMPOSTOS | N7: COFINS | O7: 0.0065 | P7: 0.0065
G8: ÍNDICE DE PAVIMENTAÇÃO DNIT | H8: 2014-07-01 | I8: ÍNDICE INICIAL | J8: 270.237 | N8: PIS | O8: 0.03 | P8: 0.03 | T8: LEGENDA | AC8: As empresas tributadas pelo Lucro Presumido pagam 0,65% de PIS e 3% de COFINS
H9: ='Transporte Cap 50-70'!H9 -> 2025-07-01 | I9: ÍNDICE FINAL | J9: ='Transporte Cap 50-70'!J9 -> 587.477 | N9: ICMS | O9: 0.2 | P9: 0.2 | Q9: =1-(O9/1) -> 0.8 | R9: =1-(P9/1) -> 0.8 | S9: =1-(Q9/1) -> 0.2 | T9: ENTRADA DE DADOS | AC9: As empresas tributadas pelo Lucro Real pagam 1,65% de PIS e 7,60% de COFINS
G10: Data ANP | H10: ='Transporte Cap 50-70'!H10 -> 2025-07-01
C11: DATA-BASE | D11: PRODUTOS | E11: LOCALIDADES | J11: CUSTO ANP (R$/Kg) | L11: CUSTO ANP | M11: IMPOSTOS DO PRODUTO | N11: CUSTO DO PRODUTO COM IMPOSTOS | O11: DMT's | P11: DMT'S FLUVIAL | Q11: CUSTO DO TRANSPORTE RODOVIA PAVIMENTADA | R11: CUSTO DO TRANSPORTE FLUVIAL | S11: CUSTO DO TRANSPORTE TOTAL | T11: ICMS | U11: ATUALIZAÇÃO DO CUSTO DE TRANSPORTE | V11: CUSTO DO TRANSPORTE RODOVIA PAVIMENTADA COM IMPOSTOS E ATUALIZAÇÃO MONETÁRIA | W11: PEDÁGIO | Y11: TOTAL TRANSPORTE | Z11: AQUISIÇÃO DO PRODUTO | AA11: TOTAL GERAL ( TRANSP + AQUISIÇÃO) | AC11: 1 | AD11: 2 | AE11: 3
C12: =H9 -> 2025-07-01 | E12: REFINARIAS | F12: ENDEREÇO | G12: ESTADO | H12: CIDADE | I12: DESTINO | J12: ESTADO | K12: REGIÃO | L12: R$/t | M12: R$/t | N12: R$/t | O12: KM | P12: KM | Q12: R$/t | R12: R$/t | S12: R$/t | T12: R$/t | U12: R$/t | V12: R$/t | W12: CUSTO | X12: R$/t | Y12: R$/t | Z12: R$/t | AA12: R$/t | AC12: TOTAL GERAL ( TRANSP + AQUISIÇÃO) | AD12: TOTAL TRANSPORTE | AE12: AQUISIÇÃO DO PRODUTO
B13: =AA13 -> 5318.983168 | C13: 1 | D13: =I7 -> EMULSÕES ASFÁLTICAS RR-1C | E13: CENTRO OESTE ASFALTOS LTDA. | F13: SETOR DE INFLAMÁVEIS, S/N TRECHO 02 - LOTE 1.100 - GUARÁ - CEP:71225-000 | G13: Distrito Federal | H13: BRASÍLIA - DF | I13: Mossoró - RN | J13: =VLOOKUP(G13,OFFSET('ANP ESTADO'!$A$1,MATCH($I$7,'ANP ESTADO'!B:B,0)+MATCH($H$10,OFFSET('ANP ESTADO'!$A$1,MATCH($I$7,'ANP ESTADO'!B:B,0),0,100000,1),0),2,100000,2),2,FALSE) -> - | K13: =VLOOKUP($H$10,OFFSET('ANP REGIÃO'!$A$9,MATCH('Transporte RR-1C'!$I$7,'ANP REGIÃO'!A:A,0),1,10000,10000),MATCH('Transporte RR-1C'!AH13,'ANP REGIÃO'!$B$8:$G$8,0),FALSE) -> 2.846437607 | L13: =IF(AND(J13="-",K13="-"),"",IF(AND(J13<>0,K13="-"),J13*1000,IF(AND(J13="-",K13<>0),K13*1000,IF(AND(J13<>0,K13<>0),J13*1000,"")))) -> 2846.437607 | M13: =ROUND(((L13/(1-$O$7-$O$8-$O$9+($O$8+$O$7)*$O$9)-L13)),2) -> 846.4 | N13: =L13+M13 -> 3692.837607 | O13: ='Transporte EAI'!O13 -> 2254.7 | Q13: =ROUND((26.939+0.253*O13),2) -> 597.38 | S13: =Q13+R13 -> 597.38 | T13: =TRUNC(S13*($O$9/(1-$O$9)),2) -> 149.34 | U13: =TRUNC(IF($J$8="","",(($J$9-$J$8)/$J$8)*(S13+T13)),2) -> 876.59 | V13: =S13+T13+U13 -> 1623.31 | W13: ='Transporte EAI'!W13 -> 24.4 | X13: =EVEN(' CONSUMO DE MAT. B TOTAL'!$P$11*2/28)*W13/' CONSUMO DE MAT. B TOTAL'!$P$11 -> 2.835560721 | Y13: =IF(AND(Q13="",T13=""),"",V13+X13) -> 1626.145561 | Z13: =IF(OR(L13="",M13=""),"",L13+M13) -> 3692.837607 | AA13: =IF(OR(Y13="",Z13=""),"",Y13+Z13) -> 5318.983168 | AC13: =AA13 -> 5318.983168 | AD13: =Y13 -> 1626.145561 | AE13: =Z13 -> 3692.837607 | AH13: =IF(OR(G13=$D$58,G13=$D$59,G13=$D$61,G13=$D$67,G13=$D$51,G13=$D$47,G13=$D$43,G13=$D$56,G13=$D$46),"NORDESTE",IF(OR(G13=$D$42,G13=$D$44,G13=$D$45,G13=$D$55,G13=$D$63,G13=$D$64,G13=$D$68),"NORTE",IF(OR(G13=$D$48,G13=$D$50,G13=$D$52,G13=$D$53),"CENTRO-OESTE",IF(OR(G13=$D$66,G13=$D$60,G13=$D$54,G13=$D$49),"SUDESTE",IF(OR(G13=$D$65,G13=$D$57,G13=$D$62),"SUL",""))))) -> CENTRO-OESTE
B14: =AA14 -> 5231.164781 | C14: 2 | E14: STRATURA ASFALTOS S/A | F14: AVENIDA PRESIDENTE WILSON, 08 - JUNDIAÍ - CEP:75115-100 | G14: Goiás | H14: ANÁPOLIS - GO | I14: Mossoró - RN | J14: =VLOOKUP(G14,OFFSET('ANP ESTADO'!$A$1,MATCH($I$7,'ANP ESTADO'!B:B,0)+MATCH($H$10,OFFSET('ANP ESTADO'!$A$1,MATCH($I$7,'ANP ESTADO'!B:B,0),0,100000,1),0),2,100000,2),2,FALSE) -> 2.726231063 | K14: =VLOOKUP($H$10,OFFSET('ANP REGIÃO'!$A$9,MATCH('Transporte RR-1C'!$I$7,'ANP REGIÃO'!A:A,0),1,10000,10000),MATCH('Transporte RR-1C'!AH14,'ANP REGIÃO'!$B$8:$G$8,0),FALSE) -> 2.846437607 | L14: =IF(AND(J14="-",K14="-"),"",IF(AND(J14<>0,K14="-"),J14*1000,IF(AND(J14="-",K14<>0),K14*1000,IF(AND(J14<>0,K14<>0),J14*1000,"")))) -> 2726.231063 | M14: =ROUND(((L14/(1-$O$7-$O$8-$O$9+($O$8+$O$7)*$O$9)-L14)),2) -> 810.65 | N14: =L14+M14 -> 3536.881063 | O14: ='Transporte EAI'!O14 -> 2355.6 | Q14: =ROUND((26.939+0.253*O14),2) -> 622.91 | S14: =Q14+R14 -> 622.91 | T14: =TRUNC(S14*($O$9/(1-$O$9)),2) -> 155.72 | U14: =TRUNC(IF($J$8="","",(($J$9-$J$8)/$J$8)*(S14+T14)),2) -> 914.05 | V14: =S14+T14+U14 -> 1692.68 | W14: ='Transporte EAI'!W14 -> 13.8 | X14: =EVEN(' CONSUMO DE MAT. B TOTAL'!$P$11*2/28)*W14/' CONSUMO DE MAT. B TOTAL'!$P$11 -> 1.603718768 | Y14: 1694.283719 | Z14: 3536.881063 | AA14: =IF(OR(Y14="",Z14=""),"",Y14+Z14) -> 5231.164781 | AC14: =AA14 -> 5231.164781 | AD14: =Y14 -> 1694.283719 | AE14: 3536.881063 | AH14: =IF(OR(G14=$D$58,G14=$D$59,G14=$D$61,G14=$D$67,G14=$D$51,G14=$D$47,G14=$D$43,G14=$D$56,G14=$D$46),"NORDESTE",IF(OR(G14=$D$42,G14=$D$44,G14=$D$45,G14=$D$55,G14=$D$63,G14=$D$64,G14=$D$68),"NORTE",IF(OR(G14=$D$48,G14=$D$50,G14=$D$52,G14=$D$53),"CENTRO-OESTE",IF(OR(G14=$D$66,G14=$D$60,G14=$D$54,G14=$D$49),"SUDESTE",IF(OR(G14=$D$65,G14=$D$57,G14=$D$62),"SUL",""))))) -> CENTRO-OESTE
B15: 5285.368291 | C15: 3 | E15: DISTRIBUIDORA BRASILEIRA DE ASFALTO SA - DISBRAL | F15: VIA PRIMARIA 8, S/N QD-18, MODS. 24/47 - DAIAG - CEP:74980-970 | G15: Goiás | H15: APARECIDA DE GOIANIA - GO | I15: Mossoró - RN | J15: =VLOOKUP(G15,OFFSET('ANP ESTADO'!$A$1,MATCH($I$7,'ANP ESTADO'!B:B,0)+MATCH($H$10,OFFSET('ANP ESTADO'!$A$1,MATCH($I$7,'ANP ESTADO'!B:B,0),0,100000,1),0),2,100000,2),2,FALSE) -> 2.726231063 | K15: =VLOOKUP($H$10,OFFSET('ANP REGIÃO'!$A$9,MATCH('Transporte RR-1C'!$I$7,'ANP REGIÃO'!A:A,0),1,10000,10000),MATCH('Transporte RR-1C'!AH15,'ANP REGIÃO'!$B$8:$G$8,0),FALSE) -> 2.846437607 | L15: 2726.231063 | M15: 810.65 | N15: 3536.881063 | O15: ='Transporte EAI'!O15 -> 2424.6 | Q15: 640.36 | S15: 640.36 | T15: 160.09 | U15: 939.67 | V15: 1740.12 | W15: ='Transporte EAI'!W15 -> 72 | X15: =EVEN(' CONSUMO DE MAT. B TOTAL'!$P$11*2/28)*W15/' CONSUMO DE MAT. B TOTAL'!$P$11 -> 8.367228356 | Y15: 1748.487228 | Z15: 3536.881063 | AA15: 5285.368291 | AC15: 5285.368291 | AD15: 1748.487228 | AE15: 3536.881063 | AH15: CENTRO-OESTE
A16: 2403 | B16: 5326.804973 | C16: 4 | E16: INDÚSTRIA NACIONAL DE ASFALTOS LTDA. | F16: VIA PRIMEIRA E SEGUNDA 3, S/N.º LOTES 01 A 10 - DISTRITO AGROINDUSTRIAL - CEP:75370-000 | G16: Goiás | H16: GOIANIRA - GO | I16: Mossoró - RN | J16: =VLOOKUP(G16,OFFSET('ANP ESTADO'!$A$1,MATCH($I$7,'ANP ESTADO'!B:B,0)+MATCH($H$10,OFFSET('ANP ESTADO'!$A$1,MATCH($I$7,'ANP ESTADO'!B:B,0),0,100000,1),0),2,100000,2),2,FALSE) -> 2.726231063 | K16: =VLOOKUP($H$10,OFFSET('ANP REGIÃO'!$A$9,MATCH('Transporte RR-1C'!$I$7,'ANP REGIÃO'!A:A,0),1,10000,10000),MATCH('Transporte RR-1C'!AH16,'ANP REGIÃO'!$B$8:$G$8,0),FALSE) -> 2.846437607 | L16: 2726.231063 | M16: 810.65 | N16: 3536.881063 | O16: ='Transporte EAI'!O16 -> 2472.5 | Q16: 652.48 | S16: 652.48 | T16: 163.12 | U16: 957.45 | V16: 1773.05 | W16: ='Transporte EAI'!W16 -> 145.2 | X16: =EVEN(' CONSUMO DE MAT. B TOTAL'!$P$11*2/28)*W16/' CONSUMO DE MAT. B TOTAL'!$P$11 -> 16.87391052 | Y16: 1789.923911 | Z16: 3536.881063 | AA16: 5326.804973 | AC16: 5326.804973 | AD16: 1789.923911 | AE16: 3536.881063 | AH16: CENTRO-OESTE
B17: 5210.464414 | C17: 5 | E17: STRATURA ASFALTOS S/A | F17: RUA VICTOR RODRIGUES RESENDE, 333 - DISTRITO IND. DE UBERLÂNDIA - CEP:38405-440 | G17: Minas Gerais | H17: UBERLANDIA - MG | I17: Mossoró - RN | J17: =VLOOKUP(G17,OFFSET('ANP ESTADO'!$A$1,MATCH($I$7,'ANP ESTADO'!B:B,0)+MATCH($H$10,OFFSET('ANP ESTADO'!$A$1,MATCH($I$7,'ANP ESTADO'!B:B,0),0,100000,1),0),2,100000,2),2,FALSE) -> 2.645017075 | K17: =VLOOKUP($H$10,OFFSET('ANP REGIÃO'!$A$9,MATCH('Transporte RR-1C'!$I$7,'ANP REGIÃO'!A:A,0),1,10000,10000),MATCH('Transporte RR-1C'!AH17,'ANP REGIÃO'!$B$8:$G$8,0),FALSE) -> 2.89412797 | L17: 2645.017075 | M17: 786.5 | N17: 3431.517075 | O17: ='Transporte EAI'!O17 -> 2424.4 | Q17: 640.31 | S17: 640.31 | T17: 160.07 | U17: 939.59 | V17: 1739.97 | W17: ='Transporte EAI'!W17 -> 335.4 | X17: =EVEN(' CONSUMO DE MAT. B TOTAL'!$P$11*2/28)*W17/' CONSUMO DE MAT. B TOTAL'!$P$11 -> 38.97733876 | Y17: 1778.947339 | Z17: 3431.517075 | AA17: 5210.464414 | AC17: 5210.464414 | AD17: 1778.947339 | AE17: 3431.517075 | AH17: SUDESTE
B18: 5210.464414 | C18: 6 | E18: BETUNEL INDÚSTRIA E COMÉRCIO LTDA. | F18: RUA VICTOR RODRIGUES DE REZENDE, 185 - DISTRITO INDUSTRIAL - CEP:38402-334 | G18: Minas Gerais | H18: UBERLANDIA - MG | I18: Mossoró - RN | J18: =VLOOKUP(G18,OFFSET('ANP ESTADO'!$A$1,MATCH($I$7,'ANP ESTADO'!B:B,0)+MATCH($H$10,OFFSET('ANP ESTADO'!$A$1,MATCH($I$7,'ANP ESTADO'!B:B,0),0,100000,1),0),2,100000,2),2,FALSE) -> 2.645017075 | K18: =VLOOKUP($H$10,OFFSET('ANP REGIÃO'!$A$9,MATCH('Transporte RR-1C'!$I$7,'ANP REGIÃO'!A:A,0),1,10000,10000),MATCH('Transporte RR-1C'!AH18,'ANP REGIÃO'!$B$8:$G$8,0),FALSE) -> 2.89412797 | L18: 2645.017075 | M18: 786.5 | N18: 3431.517075 | O18: ='Transporte EAI'!O18 -> 2424.4 | Q18: 640.31 | S18: 640.31 | T18: 160.07 | U18: 939.59 | V18: 1739.97 | W18: ='Transporte EAI'!W18 -> 335.4 | X18: =EVEN(' CONSUMO DE MAT. B TOTAL'!$P$11*2/28)*W18/' CONSUMO DE MAT. B TOTAL'!$P$11 -> 38.97733876 | Y18: 1778.947339 | Z18: 3431.517075 | AA18: 5210.464414 | AC18: 5210.464414 | AD18: 1778.947339 | AE18: 3431.517075 | AH18: SUDESTE
B19: 7146.798988 | C19: 7 | E19: ARAPETRO DISTRIBUIDORA DE PETRÓLEO LTDA. | F19: RUA 04, S/N° LOTES 17 A 20. - DISTRITO INDUSTRIAL 1/8 - CEP:78600-000 | G19: Mato Grosso | H19: BARRA DO GARCAS - MT | I19: Mossoró - RN | J19: =VLOOKUP(G19,OFFSET('ANP ESTADO'!$A$1,MATCH($I$7,'ANP ESTADO'!B:B,0)+MATCH($H$10,OFFSET('ANP ESTADO'!$A$1,MATCH($I$7,'ANP ESTADO'!B:B,0),0,100000,1),0),2,100000,2),2,FALSE) -> 3.917475751 | K19: =VLOOKUP($H$10,OFFSET('ANP REGIÃO'!$A$9,MATCH('Transporte RR-1C'!$I$7,'ANP REGIÃO'!A:A,0),1,10000,10000),MATCH('Transporte RR-1C'!AH19,'ANP REGIÃO'!$B$8:$G$8,0),FALSE) -> 2.846437607 | L19: =IF(AND(J19="-",K19="-"),"",IF(AND(J19<>0,K19="-"),J19*1000,IF(AND(J19="-",K19<>0),K19*1000,IF(AND(J19<>0,K19<>0),J19*1000,"")))) -> 3917.475751 | M19: 1164.87 | N19: 5082.345751 | O19: ='Transporte EAI'!O19 -> 2886.4 | Q19: 757.2 | S19: 757.2 | T19: 189.3 | U19: 1111.12 | V19: 2057.62 | W19: ='Transporte EAI'!W19 -> 58.8 | X19: =EVEN(' CONSUMO DE MAT. B TOTAL'!$P$11*2/28)*W19/' CONSUMO DE MAT. B TOTAL'!$P$11 -> 6.83323649 | Y19: 2064.453236 | Z19: 5082.345751 | AA19: 7146.798988 | AH19: CENTRO-OESTE
B20: 5036.07378 | C20: 8 | E20: DISTRIBUIDORA BRASILEIRA DE ASFALTO SA - DISBRAL | F20: SÃO JUDAS TADEU, 288 - DISTRITO INDUSTRIAL - CEP:32450-000 | G20: Minas Gerais | H20: SARZEDO - MG | I20: Mossoró - RN | J20: =VLOOKUP(G20,OFFSET('ANP ESTADO'!$A$1,MATCH($I$7,'ANP ESTADO'!B:B,0)+MATCH($H$10,OFFSET('ANP ESTADO'!$A$1,MATCH($I$7,'ANP ESTADO'!B:B,0),0,100000,1),0),2,100000,2),2,FALSE) -> 2.645017075 | K20: =VLOOKUP($H$10,OFFSET('ANP REGIÃO'!$A$9,MATCH('Transporte RR-1C'!$I$7,'ANP REGIÃO'!A:A,0),1,10000,10000),MATCH('Transporte RR-1C'!AH20,'ANP REGIÃO'!$B$8:$G$8,0),FALSE) -> 2.89412797 | L20: 2645.017075 | M20: 786.5 | N20: 3431.517075 | O20: ='Transporte EAI'!O20 -> 2196.5 | Q20: 582.65 | S20: 582.65 | T20: 145.66 | U20: 854.98 | V20: 1583.29 | W20: ='Transporte EAI'!W20 -> 183 | X20: =EVEN(' CONSUMO DE MAT. B TOTAL'!$P$11*2/28)*W20/' CONSUMO DE MAT. B TOTAL'!$P$11 -> 21.2667054 | Y20: 1604.556705 | Z20: 3431.517075 | AA20: 5036.07378 | AH20: SUDESTE
B21: 5566.467047 | C21: 9 | E21: INDÚSTRIA NACIONAL DE ASFALTOS LTDA. | F21: INDÚSTRIA NACIONAL DE ASFALTOS LTDA - CEP:77053-080 | G21: Tocantins | H21: PALMAS - TO | I21: Mossoró - RN | J21: =VLOOKUP(G21,OFFSET('ANP ESTADO'!$A$1,MATCH($I$7,'ANP ESTADO'!B:B,0)+MATCH($H$10,OFFSET('ANP ESTADO'!$A$1,MATCH($I$7,'ANP ESTADO'!B:B,0),0,100000,1),0),2,100000,2),2,FALSE) -> 3.243247047 | K21: =VLOOKUP($H$10,OFFSET('ANP REGIÃO'!$A$9,MATCH('Transporte RR-1C'!$I$7,'ANP REGIÃO'!A:A,0),1,10000,10000),MATCH('Transporte RR-1C'!AH21,'ANP REGIÃO'!$B$8:$G$8,0),FALSE) -> 3.739354755 | L21: 3243.247047 | M21: 964.39 | N21: 4207.637047 | O21: ='Transporte EAI'!O21 -> 1870 | Q21: 500.05 | S21: 500.05 | T21: 125.01 | U21: 733.77 | V21: 1358.83 | W21: ='Transporte EAI'!W21 -> 0 | X21: =EVEN(' CONSUMO DE MAT. B TOTAL'!$P$11*2/28)*W21/' CONSUMO DE MAT. B TOTAL'!$P$11 -> 0 | Y21: 1358.83 | Z21: 4207.637047 | AA21: 5566.467047 | AH21: NORTE
B22: 5859.624927 | C22: 10 | E22: 'NTA - NOVAS TÉCNICAS DE ASFALTOS S/A | F22: RUA SOFIA ATAURI FADIN, 150 SALA A - B. SANTA TEREZINHA - CEP:13140-000 | G22: São Paulo | H22: PAULINIA - SP | I22: Mossoró - RN | J22: =VLOOKUP(G22,OFFSET('ANP ESTADO'!$A$1,MATCH($I$7,'ANP ESTADO'!B:B,0)+MATCH($H$10,OFFSET('ANP ESTADO'!$A$1,MATCH($I$7,'ANP ESTADO'!B:B,0),0,100000,1),0),2,100000,2),2,FALSE) -> 2.951489477 | K22: =VLOOKUP($H$10,OFFSET('ANP REGIÃO'!$A$9,MATCH('Transporte RR-1C'!$I$7,'ANP REGIÃO'!A:A,0),1,10000,10000),MATCH('Transporte RR-1C'!AH22,'ANP REGIÃO'!$B$8:$G$8,0),FALSE) -> 2.89412797 | L22: 2951.489477 | M22: 877.64 | N22: 3829.129477 | O22: ='Transporte EAI'!O22 -> 2771 | Q22: 728 | S22: 728 | T22: 182 | U22: 1068.27 | V22: 1978.27 | W22: ='Transporte EAI'!W22 -> 449.4 | X22: =EVEN(' CONSUMO DE MAT. B TOTAL'!$P$11*2/28)*W22/' CONSUMO DE MAT. B TOTAL'!$P$11 -> 52.22545032 | Y22: 2030.49545 | Z22: 3829.129477 | AA22: 5859.624927 | AC22: 5859.624927 | AD22: 2030.49545 | AE22: 3829.129477 | AH22: SUDESTE
B23: 5811.130743 | C23: 11 | E23: COMPANHIA BRASILEIRA DE ASFALTOS DA AMAZÔNIA - IMPORTAÇÃO E EXPORTAÇÃO | F23: Avenida Doutor Olindo Dártora 2451, Galpão 02, Morro Grande - CEP:07726-555 | G23: São Paulo | H23: CAIEIRAS - SP | I23: Mossoró - RN | J23: =VLOOKUP(G23,OFFSET('ANP ESTADO'!$A$1,MATCH($I$7,'ANP ESTADO'!B:B,0)+MATCH($H$10,OFFSET('ANP ESTADO'!$A$1,MATCH($I$7,'ANP ESTADO'!B:B,0),0,100000,1),0),2,100000,2),2,FALSE) -> 2.951489477 | K23: =VLOOKUP($H$10,OFFSET('ANP REGIÃO'!$A$9,MATCH('Transporte RR-1C'!$I$7,'ANP REGIÃO'!A:A,0),1,10000,10000),MATCH('Transporte RR-1C'!AH23,'ANP REGIÃO'!$B$8:$G$8,0),FALSE) -> 2.89412797 | L23: 2951.489477 | M23: 877.64 | N23: 3829.129477 | O23: ='Transporte EAI'!O23 -> 2724.9 | Q23: 716.34 | S23: 716.34 | T23: 179.08 | U23: 1051.16 | V23: 1946.58 | W23: ='Transporte EAI'!W23 -> 304.8 | X23: =EVEN(' CONSUMO DE MAT. B TOTAL'!$P$11*2/28)*W23/' CONSUMO DE MAT. B TOTAL'!$P$11 -> 35.42126671 | Y23: 1982.001267 | Z23: 3829.129477 | AA23: 5811.130743 | AH23: SUDESTE
B24: 6034.914946 | C24: 12 | E24: BETUNEL INDÚSTRIA E COMÉRCIO LTDA. | F24: R 16 , 82, Vila Nova Campo Grande - CEP:79.103-834 | G24: Mato Grosso do Sul | H24: CAMPO GRANDE - MS | I24: Mossoró - RN | J24: =VLOOKUP(G24,OFFSET('ANP ESTADO'!$A$1,MATCH($I$7,'ANP ESTADO'!B:B,0)+MATCH($H$10,OFFSET('ANP ESTADO'!$A$1,MATCH($I$7,'ANP ESTADO'!B:B,0),0,100000,1),0),2,100000,2),2,FALSE) -> - | K24: =VLOOKUP($H$10,OFFSET('ANP REGIÃO'!$A$9,MATCH('Transporte RR-1C'!$I$7,'ANP REGIÃO'!A:A,0),1,10000,10000),MATCH('Transporte RR-1C'!AH24,'ANP REGIÃO'!$B$8:$G$8,0),FALSE) -> 2.846437607 | L24: 2846.437607 | M24: 846.4 | N24: 3692.837607 | O24: ='Transporte EAI'!O24 -> 3243.5 | Q24: 847.54 | S24: 847.54 | T24: 211.88 | U24: 1243.68 | V24: 2303.1 | W24: ='Transporte EAI'!W24 -> 335.4 | X24: =EVEN(' CONSUMO DE MAT. B TOTAL'!$P$11*2/28)*W24/' CONSUMO DE MAT. B TOTAL'!$P$11 -> 38.97733876 | Y24: 2342.077339 | Z24: 3692.837607 | AA24: 6034.914946 | AH24: CENTRO-OESTE
B25: 7503.358866 | C25: 13 | E25: CENTRO OESTE ASFALTOS LTDA. | F25: RUA N, S/N.º LOTES 39/43 E LOTES 129/133 - DISTRITO INDUSTRIAL - CEP:78098-400 | G25: Mato Grosso | H25: CUIABA - MT | I25: Mossoró - RN | J25: =VLOOKUP(G25,OFFSET('ANP ESTADO'!$A$1,MATCH($I$7,'ANP ESTADO'!B:B,0)+MATCH($H$10,OFFSET('ANP ESTADO'!$A$1,MATCH($I$7,'ANP ESTADO'!B:B,0),0,100000,1),0),2,100000,2),2,FALSE) -> 3.917475751 | K25: =VLOOKUP($H$10,OFFSET('ANP REGIÃO'!$A$9,MATCH('Transporte RR-1C'!$I$7,'ANP REGIÃO'!A:A,0),1,10000,10000),MATCH('Transporte RR-1C'!AH25,'ANP REGIÃO'!$B$8:$G$8,0),FALSE) -> 2.846437607 | L25: 3917.475751 | M25: 1164.87 | N25: 5082.345751 | O25: ='Transporte EAI'!O25 -> 3371.6 | Q25: 879.95 | S25: 879.95 | T25: 219.98 | U25: 1291.24 | V25: 2391.17 | W25: ='Transporte EAI'!W25 -> 256.8 | X25: =EVEN(' CONSUMO DE MAT. B TOTAL'!$P$11*2/28)*W25/' CONSUMO DE MAT. B TOTAL'!$P$11 -> 29.84311447 | Y25: 2421.013114 | Z25: 5082.345751 | AA25: 7503.358866 | AH25: CENTRO-OESTE
B26: 7503.658866 | C26: 14 | E26: BETUNEL INDÚSTRIA E COMÉRCIO LTDA. | F26: RUA N ESQUINA COM RUA X, S/N QD. IND. 7 L 01/08 - DIST. IND. - CEP:78015-285 | G26: Mato Grosso | H26: CUIABA - MT | I26: Mossoró - RN | J26: =VLOOKUP(G26,OFFSET('ANP ESTADO'!$A$1,MATCH($I$7,'ANP ESTADO'!B:B,0)+MATCH($H$10,OFFSET('ANP ESTADO'!$A$1,MATCH($I$7,'ANP ESTADO'!B:B,0),0,100000,1),0),2,100000,2),2,FALSE) -> 3.917475751 | K26: =VLOOKUP($H$10,OFFSET('ANP REGIÃO'!$A$9,MATCH('Transporte RR-1C'!$I$7,'ANP REGIÃO'!A:A,0),1,10000,10000),MATCH('Transporte RR-1C'!AH26,'ANP REGIÃO'!$B$8:$G$8,0),FALSE) -> 2.846437607 | L26: 3917.475751 | M26: 1164.87 | N26: 5082.345751 | O26: ='Transporte EAI'!O26 -> 3372 | Q26: 880.06 | S26: 880.06 | T26: 220.01 | U26: 1291.4 | V26: 2391.47 | W26: ='Transporte EAI'!W26 -> 256.8 | X26: =EVEN(' CONSUMO DE MAT. B TOTAL'!$P$11*2/28)*W26/' CONSUMO DE MAT. B TOTAL'!$P$11 -> 29.84311447 | Y26: 2421.313114 | Z26: 5082.345751 | AA26: 7503.658866 | AH26: CENTRO-OESTE
B27: 7517.338866 | C27: 15 | E27: EMAM - EMULSÕES E TRANSPORTES LTDA. | F27: RODOVIA DOS IMIGRANTES, S/Nº KM 8,6 - - CEP:60035-351 | G27: Mato Grosso | H27: VARZEA GRANDE - MT | I27: Mossoró - RN | J27: =VLOOKUP(G27,OFFSET('ANP ESTADO'!$A$1,MATCH($I$7,'ANP ESTADO'!B:B,0)+MATCH($H$10,OFFSET('ANP ESTADO'!$A$1,MATCH($I$7,'ANP ESTADO'!B:B,0),0,100000,1),0),2,100000,2),2,FALSE) -> 3.917475751 | K27: =VLOOKUP($H$10,OFFSET('ANP REGIÃO'!$A$9,MATCH('Transporte RR-1C'!$I$7,'ANP REGIÃO'!A:A,0),1,10000,10000),MATCH('Transporte RR-1C'!AH27,'ANP REGIÃO'!$B$8:$G$8,0),FALSE) -> 2.846437607 | L27: 3917.475751 | M27: 1164.87 | N27: 5082.345751 | O27: ='Transporte EAI'!O27 -> 3391.9 | Q27: 885.09 | S27: 885.09 | T27: 221.27 | U27: 1298.79 | V27: 2405.15 | W27: ='Transporte EAI'!W27 -> 256.8 | X27: =EVEN(' CONSUMO DE MAT. B TOTAL'!$P$11*2/28)*W27/' CONSUMO DE MAT. B TOTAL'!$P$11 -> 29.84311447 | Y27: 2434.993114 | Z27: 5082.345751 | AA27: 7517.338866 | AC27: 7517.338866 | AD27: 2434.993114 | AE27: 5082.345751 | AH27: CENTRO-OESTE
B28: 5600.424532 | C28: 16 | E28: VIAPOL LTDA. | F28: VITO ARDITO, 6401 KM 118,5 - JARDIM CAMPO GRANDE - CEP:12282-535 | G28: São Paulo | H28: CACAPAVA - SP | I28: Mossoró - RN | J28: =VLOOKUP(G28,OFFSET('ANP ESTADO'!$A$1,MATCH($I$7,'ANP ESTADO'!B:B,0)+MATCH($H$10,OFFSET('ANP ESTADO'!$A$1,MATCH($I$7,'ANP ESTADO'!B:B,0),0,100000,1),0),2,100000,2),2,FALSE) -> 2.951489477 | K28: =VLOOKUP($H$10,OFFSET('ANP REGIÃO'!$A$9,MATCH('Transporte RR-1C'!$I$7,'ANP REGIÃO'!A:A,0),1,10000,10000),MATCH('Transporte RR-1C'!AH28,'ANP REGIÃO'!$B$8:$G$8,0),FALSE) -> 2.89412797 | L28: 2951.489477 | M28: 877.64 | N28: 3829.129477 | O28: ='Transporte EAI'!O28 -> 2360.4 | Q28: 624.12 | S28: 624.12 | T28: 156.03 | U28: 915.84 | V28: 1695.99 | W28: ='Transporte EAI'!W28 -> 648 | X28: =EVEN(' CONSUMO DE MAT. B TOTAL'!$P$11*2/28)*W28/' CONSUMO DE MAT. B TOTAL'!$P$11 -> 75.3050552 | Y28: 1771.295055 | Z28: 3829.129477 | AA28: 5600.424532 | AC28: 5600.424532 | AD28: 1771.295055 | AE28: 3829.129477 | AH28: SUDESTE
B29: 5549.721259 | C29: 17 | E29: STRATURA ASFALTOS S/A | F29: RUA LUIS DE CAMÕES, 26 - CAMPOS ELÍSEOS - CEP:25225-030 | G29: Rio de Janeiro | H29: DUQUE DE CAXIAS - RJ | I29: Mossoró - RN | J29: =VLOOKUP(G29,OFFSET('ANP ESTADO'!$A$1,MATCH($I$7,'ANP ESTADO'!B:B,0)+MATCH($H$10,OFFSET('ANP ESTADO'!$A$1,MATCH($I$7,'ANP ESTADO'!B:B,0),0,100000,1),0),2,100000,2),2,FALSE) -> - | K29: =VLOOKUP($H$10,OFFSET('ANP REGIÃO'!$A$9,MATCH('Transporte RR-1C'!$I$7,'ANP REGIÃO'!A:A,0),1,10000,10000),MATCH('Transporte RR-1C'!AH29,'ANP REGIÃO'!$B$8:$G$8,0),FALSE) -> 2.89412797 | L29: 2894.12797 | M29: 860.58 | N29: 3754.70797 | O29: ='Transporte EAI'!O29 -> 2409.1 | Q29: 636.44 | S29: 636.44 | T29: 159.11 | U29: 933.92 | V29: 1729.47 | W29: ='Transporte EAI'!W29 -> 564 | X29: =EVEN(' CONSUMO DE MAT. B TOTAL'!$P$11*2/28)*W29/' CONSUMO DE MAT. B TOTAL'!$P$11 -> 65.54328879 | Y29: 1795.013289 | Z29: 3754.70797 | AA29: 5549.721259 | AC29: 5549.721259 | AD29: 1795.013289 | AE29: 3754.70797 | AH29: SUDESTE
B30: 5562.111259 | C30: 18 | E30: PROBITEC - PRODUTOS BETUMINOSOS E TECNOLOGIA DE APLICAÇÃO LTDA. | F30: AVENIDA CANAL DA PAVUNA, 620 - PAVUNA - CEP:21535-630 | G30: Rio de Janeiro | H30: RIO DE JANEIRO - RJ | I30: Mossoró - RN | J30: =VLOOKUP(G30,OFFSET('ANP ESTADO'!$A$1,MATCH($I$7,'ANP ESTADO'!B:B,0)+MATCH($H$10,OFFSET('ANP ESTADO'!$A$1,MATCH($I$7,'ANP ESTADO'!B:B,0),0,100000,1),0),2,100000,2),2,FALSE) -> - | K30: =VLOOKUP($H$10,OFFSET('ANP REGIÃO'!$A$9,MATCH('Transporte RR-1C'!$I$7,'ANP REGIÃO'!A:A,0),1,10000,10000),MATCH('Transporte RR-1C'!AH30,'ANP REGIÃO'!$B$8:$G$8,0),FALSE) -> 2.89412797 | L30: 2894.12797 | M30: 860.58 | N30: 3754.70797 | O30: ='Transporte EAI'!O30 -> 2427.1 | Q30: 641 | S30: 641 | T30: 160.25 | U30: 940.61 | V30: 1741.86 | W30: ='Transporte EAI'!W30 -> 564 | X30: =EVEN(' CONSUMO DE MAT. B TOTAL'!$P$11*2/28)*W30/' CONSUMO DE MAT. B TOTAL'!$P$11 -> 65.54328879 | Y30: 1807.403289 | Z30: 3754.70797 | AA30: 5562.111259 | AC30: 5562.111259 | AD30: 1807.403289 | AE30: 3754.70797 | AH30: SUDESTE
B31: 5988.146214 | C31: 19 | E31: CASA DO ASFALTO DISTRIBUIDORA, INDÚSTRIA E COMÉRCIO DE ASFALTO LTDA. | F31: BR 376, PARQUE INDUSTRIAL, S/N LOTE 6/7/7-A-3-1 - GL.PATR.MARIALVA - CEP:86990-000 | G31: Paraná | H31: MARIALVA - PR | I31: Mossoró - RN | J31: =VLOOKUP(G31,OFFSET('ANP ESTADO'!$A$1,MATCH($I$7,'ANP ESTADO'!B:B,0)+MATCH($H$10,OFFSET('ANP ESTADO'!$A$1,MATCH($I$7,'ANP ESTADO'!B:B,0),0,100000,1),0),2,100000,2),2,FALSE) -> 2.719289787 | K31: =VLOOKUP($H$10,OFFSET('ANP REGIÃO'!$A$9,MATCH('Transporte RR-1C'!$I$7,'ANP REGIÃO'!A:A,0),1,10000,10000),MATCH('Transporte RR-1C'!AH31,'ANP REGIÃO'!$B$8:$G$8,0),FALSE) -> 2.740695116 | L31: 2719.289787 | M31: 808.59 | N31: 3527.879787 | O31: ='Transporte EAI'!O31 -> 3314.8 | Q31: 865.58 | S31: 865.58 | T31: 216.39 | U31: 1270.15 | V31: 2352.12 | W31: ='Transporte EAI'!W31 -> 930.6 | X31: =EVEN(' CONSUMO DE MAT. B TOTAL'!$P$11*2/28)*W31/' CONSUMO DE MAT. B TOTAL'!$P$11 -> 108.1464265 | Y31: 2460.266426 | Z31: 3527.879787 | AA31: 5988.146214 | AC31: 5988.146214 | AD31: 2460.266426 | AE31: 3527.879787 | AH31: SUL
B32: 5936.610374 | C32: 20 | E32: PETROBRAS DISTRIBUIDORA S.A. | F32: RUA MAQUINISTA ELEODORO JACINTO, 100 - OFICINAS - CEP:84045-170 | G32: Paraná | H32: PONTA GROSSA - PR | I32: Mossoró - RN | J32: =VLOOKUP(G32,OFFSET('ANP ESTADO'!$A$1,MATCH($I$7,'ANP ESTADO'!B:B,0)+MATCH($H$10,OFFSET('ANP ESTADO'!$A$1,MATCH($I$7,'ANP ESTADO'!B:B,0),0,100000,1),0),2,100000,2),2,FALSE) -> 2.719289787 | K32: =VLOOKUP($H$10,OFFSET('ANP REGIÃO'!$A$9,MATCH('Transporte RR-1C'!$I$7,'ANP REGIÃO'!A:A,0),1,10000,10000),MATCH('Transporte RR-1C'!AH32,'ANP REGIÃO'!$B$8:$G$8,0),FALSE) -> 2.740695116 | L32: 2719.289787 | M32: 808.59 | N32: 3527.879787 | O32: ='Transporte EAI'!O32 -> 3233.9 | Q32: 845.12 | S32: 845.12 | T32: 211.28 | U32: 1240.14 | V32: 2296.54 | W32: ='Transporte EAI'!W32 -> 965.4 | X32: =EVEN(' CONSUMO DE MAT. B TOTAL'!$P$11*2/28)*W32/' CONSUMO DE MAT. B TOTAL'!$P$11 -> 112.1905869 | Y32: 2408.730587 | Z32: 3527.879787 | AA32: 5936.610374 | AC32: 5936.610374 | AD32: 2408.730587 | AE32: 3527.879787 | AH32: SUL
D42: Acre
D43: Alagoas
D44: Amapá
D45: Amazonas
D46: Bahia
D47: Ceará
D48: Distrito Federal
D49: Espírito Santo
D50: Goiás
D51: Maranhão
D52: Mato Grosso
D53: Mato Grosso do Sul
D54: Minas Gerais
D55: Pará
D56: Paraíba
D57: Paraná
D58: Pernambuco
D59: Piauí
D60: Rio de Janeiro
D61: Rio Grande do Norte
D62: Rio Grande do Sul
D63: Rondônia
D64: Roraima
D65: Santa Catarina
D66: São Paulo
D67: Sergipe
D68: Tocantins
D72: ASFALTOS DILUÍDOS CM-30
D73: ASFALTOS DILUÍDOS CM-70
D74: ASFALTOS DILUÍDOS CR-250
D75: ASFALTOS DILUÍDOS CR-70
D76: CAP MODIFICADO POR BORRACHA DE PNEU AB22
D77: CAP MODIFICADO POR BORRACHA DE PNEU AB8
D78: CAP MODIFICADO POR POLÍMERO 55-75-E
D79: CAP MODIFICADO POR POLÍMERO 60-85-E
D80: CAP MODIFICADO POR POLÍMERO 65-90-E
D81: CIMENTOS ASFÁLTICOS CAP-150-200
D82: CIMENTOS ASFÁLTICOS CAP-30-45
D83: CIMENTOS ASFÁLTICOS CAP-50-70
D84: CIMENTOS ASFÁLTICOS CAP-85-100
D85: EMULSÃO ASFÁLTICA CATIÔNICA DE RUPTURA CONTROLADA PARA SERVIÇO DE LAMA ASFÁLTICA
D86: EMULSÃO ASFÁLTICA DE RUPTURA LENTA CATIÔNICA PARA SERVIÇO DE LAMA ASFÁLTICA
D87: EMULSÃO ASFÁLTICA DE RUPTURA LENTA DE CARGA NEUTRA PARA SERVIÇO DE LAMA ASFÁLTICA
D88: EMULSÃO ASFÁLTICA PARA SERVIÇO DE IMPRIMAÇÃO
D89: EMULSÕES ASF. MOD. POR POLÍMEROS RC1C-E
D90: EMULSÕES ASF. MOD. POR POLÍMEROS RL1C-E
D91: EMULSÕES ASF. MOD. POR POLÍMEROS RM1C-E
D92: EMULSÕES ASF. MOD. POR POLÍMEROS RR1C-E
D93: EMULSÕES ASF. MOD. POR POLÍMEROS RR2C-E
D94: EMULSÕES ASFÁLTICAS RL-1C
D95: EMULSÕES ASFÁLTICAS RM-1C
D96: EMULSÕES ASFÁLTICAS RM-2C
D97: EMULSÕES ASFÁLTICAS RR-1C
D98: EMULSÕES ASFÁLTICAS RR-2C

Sheet RESUMO_Transp
B11: ÍNDICE DE PAVIMENTAÇÃO DNIT | E11: TIPOLOGIA DO MATERIAL | G11: LIGANTE BETUMINOSO | K11: IMPOSTOS | L11: COFINS | M11: ='Transporte Cap 50-70'!O7 -> 0.0065 | N11: ='Transporte Cap 50-70'!P7 -> 0.0065
C12: DATA INICIAL | F12: 2025-05-01 | G12: ÍNDICE INICIAL | H12: ='Transporte Cap 50-70'!J8 -> 270.237 | L12: PIS | M12: ='Transporte Cap 50-70'!O8 -> 0.03 | N12: ='Transporte Cap 50-70'!P8 -> 0.03 | P12: LEGENDA
C13: DATA FINAL | F13: ='Transporte Cap 50-70'!H9 -> 2025-07-01 | G13: ÍNDICE FINAL | H13: ='Transporte Cap 50-70'!J9 -> 587.477 | L13: ICMS | M13: ='Transporte Cap 50-70'!O9 -> 0.2 | N13: ='Transporte Cap 50-70'!P9 -> 0.2 | P13: ENTRADA DE DADOS
B15: DATA-BASE | C15: PRODUTOS | D15: LOCALIDADES | H15: CUSTO ANP (R$/Kg) | J15: CUSTO ANP | K15: IMPOSTOS DO PRODUTO | L15: CUSTO DO PRODUTO COM IMPOSTOS | M15: DMT's | N15: DMT's | O15: CUSTO DO TRANSPORTE TOTAL | P15: ICMS | Q15: ATUALIZAÇÃO DO CUSTO DE TRANSPORTE | R15: CUSTO DO TRANSPORTE RODOVIA PAVIMENTADA COM IMPOSTOS E ATUALIZAÇÃO MONETÁRIA | S15: PEDÁGIO | U15: TOTAL TRANSPORTE | V15: TOTAL PRODUTO | W15: TOTAL GERAL
B16: =F13 -> 2025-07-01 | D16: REFINARIAS | E16: ENDEREÇO | F16: ORIGEM REFINARIAS / DISTRIBUIDORAS | G16: DESTINO | H16: ESTADO | I16: REGIÃO | J16: R$/t | K16: R$/t | L16: R$/t | M16: KM | N16: KM | O16: R$/t | P16: R$/t | Q16: R$/t | R16: R$/t | S16: CUSTO POR EIXO | T16: R$/t | U16: R$/t | V16: R$/t | W16: R$/t
B17: 1 | C17: CAP 50/70 | D17: Refinaria Abreu e Lima | E17: Rodovia PE 60, Km 10 - Ipojuca - PE CEP:55590-000 | F17: =VLOOKUP($W17,'Transporte Cap 50-70'!$B:$AA,7,FALSE) -> FORTALEZA - CE | G17: =VLOOKUP($W17,'Transporte Cap 50-70'!$B:$AA,8,FALSE) -> Mossoró - RN | H17: =VLOOKUP($W17,'Transporte Cap 50-70'!$B:$AA,9,FALSE) -> 3.487986243 | I17: =VLOOKUP($W17,'Transporte Cap 50-70'!$B:$AA,10,FALSE) -> 3.53904078 | J17: =VLOOKUP($W17,'Transporte Cap 50-70'!$B:$AA,11,FALSE) -> 3487.986243 | K17: =VLOOKUP($W17,'Transporte Cap 50-70'!$B:$AA,12,FALSE) -> 1037.16 | L17: =VLOOKUP($W17,'Transporte Cap 50-70'!$B:$AA,13,FALSE) -> 4525.146243 | M17: =VLOOKUP($W17,'Transporte Cap 50-70'!$B$13:$AA$26,14,FALSE) -> 238.9 | N17: =VLOOKUP($W17,'Transporte Cap 50-70'!$B:$AA,15,FALSE) -> 0 | O17: =VLOOKUP($W17,'Transporte Cap 50-70'!$B:$AA,18,FALSE) -> 87.38 | P17: =VLOOKUP($W17,'Transporte Cap 50-70'!$B:$AA,19,FALSE) -> 21.84 | Q17: =VLOOKUP($W17,'Transporte Cap 50-70'!$B:$AA,20,FALSE) -> 128.21 | R17: =VLOOKUP($W17,'Transporte Cap 50-70'!$B:$AA,21,FALSE) -> 237.43 | S17: =VLOOKUP($W17,'Transporte Cap 50-70'!$B:$AA,22,FALSE) -> 0 | T17: =VLOOKUP($W17,'Transporte Cap 50-70'!$B:$AA,23,FALSE) -> 0 | U17: =VLOOKUP($W17,'Transporte Cap 50-70'!$B:$AA,24,FALSE) -> 237.43 | V17: =VLOOKUP($W17,'Transporte Cap 50-70'!$B:$AA,25,FALSE) -> 4525.146243 | W17: =SMALL('Transporte Cap 50-70'!$AA$13:$AA$26,1) -> 4762.576243
B18: 2 | D18: Refinaria Potiguar Clara Camarão | E18: Rodovia RN 221, KM 25 - Guamaré - RN CEP:59598-000 | F18: =VLOOKUP($W18,'Transporte Cap 50-70'!$B:$AA,7,FALSE) -> GUAMARÉ - RN | G18: =VLOOKUP($W18,'Transporte Cap 50-70'!$B:$AA,8,FALSE) -> Mossoró - RN | H18: =VLOOKUP($W18,'Transporte Cap 50-70'!$B:$AA,9,FALSE) -> - | I18: =VLOOKUP($W18,'Transporte Cap 50-70'!$B:$AA,10,FALSE) -> 3.53904078 | J18: =VLOOKUP($W18,'Transporte Cap 50-70'!$B:$AA,11,FALSE) -> 3539.04078 | K18: =VLOOKUP($W18,'Transporte Cap 50-70'!$B:$AA,12,FALSE) -> 1052.35 | L18: =VLOOKUP($W18,'Transporte Cap 50-70'!$B:$AA,13,FALSE) -> 4591.39078 | M18: =VLOOKUP($W18,'Transporte Cap 50-70'!$B$13:$AA$26,14,FALSE) -> 162 | N18: =VLOOKUP($W18,'Transporte Cap 50-70'!$B:$AA,15,FALSE) -> 0 | O18: =VLOOKUP($W18,'Transporte Cap 50-70'!$B:$AA,18,FALSE) -> 67.93 | P18: =VLOOKUP($W18,'Transporte Cap 50-70'!$B:$AA,19,FALSE) -> 16.98 | Q18: =VLOOKUP($W18,'Transporte Cap 50-70'!$B:$AA,20,FALSE) -> 99.67 | R18: =VLOOKUP($W18,'Transporte Cap 50-70'!$B:$AA,21,FALSE) -> 184.58 | S18: =VLOOKUP($W18,'Transporte Cap 50-70'!$B:$AA,22,FALSE) -> 0 | T18: =VLOOKUP($W18,'Transporte Cap 50-70'!$B:$AA,23,FALSE) -> 0 | U18: =VLOOKUP($W18,'Transporte Cap 50-70'!$B:$AA,24,FALSE) -> 184.58 | V18: =VLOOKUP($W18,'Transporte Cap 50-70'!$B:$AA,25,FALSE) -> 4591.39078 | W18: =SMALL('Transporte Cap 50-70'!$AA$13:$AA$26,2) -> 4775.97078
B19: 3 | D19: Complexo Petroquímico do Rio de Janeiro (Comperj) | E19: Rodovia Estadual RJ-116 - Km 5,2 - Acesso A-1, s/n, Complemento Sambaetiba - Zona Urbana do 4º Distrito de Itaboraí - RJ CEP:24841-203 | F19: =VLOOKUP($W19,'Transporte Cap 50-70'!$B:$AA,7,FALSE) -> IPOJUCA - PE | G19: =VLOOKUP($W19,'Transporte Cap 50-70'!$B:$AA,8,FALSE) -> Mossoró - RN | H19: =VLOOKUP($W19,'Transporte Cap 50-70'!$B:$AA,9,FALSE) -> - | I19: =VLOOKUP($W19,'Transporte Cap 50-70'!$B:$AA,10,FALSE) -> 3.53904078 | J19: =VLOOKUP($W19,'Transporte Cap 50-70'!$B:$AA,11,FALSE) -> 3539.04078 | K19: =VLOOKUP($W19,'Transporte Cap 50-70'!$B:$AA,12,FALSE) -> 1052.35 | L19: =VLOOKUP($W19,'Transporte Cap 50-70'!$B:$AA,13,FALSE) -> 4591.39078 | M19: =VLOOKUP($W19,'Transporte Cap 50-70'!$B$13:$AA$26,14,FALSE) -> 586.4 | N19: =VLOOKUP($W19,'Transporte Cap 50-70'!$B:$AA,15,FALSE) -> 0 | O19: =VLOOKUP($W19,'Transporte Cap 50-70'!$B:$AA,18,FALSE) -> 175.3 | P19: =VLOOKUP($W19,'Transporte Cap 50-70'!$B:$AA,19,FALSE) -> 43.82 | Q19: =VLOOKUP($W19,'Transporte Cap 50-70'!$B:$AA,20,FALSE) -> 257.23 | R19: =VLOOKUP($W19,'Transporte Cap 50-70'!$B:$AA,21,FALSE) -> 476.35 | S19: =VLOOKUP($W19,'Transporte Cap 50-70'!$B:$AA,22,FALSE) -> 0 | T19: =VLOOKUP($W19,'Transporte Cap 50-70'!$B:$AA,23,FALSE) -> 0 | U19: =VLOOKUP($W19,'Transporte Cap 50-70'!$B:$AA,24,FALSE) -> 476.35 | V19: =VLOOKUP($W19,'Transporte Cap 50-70'!$B:$AA,25,FALSE) -> 4591.39078 | W19: =SMALL('Transporte Cap 50-70'!$AA$13:$AA$26,3) -> 5067.74078
B20: 4 | F20: =VLOOKUP($W20,'Transporte Cap 50-70'!$B:$AA,7,FALSE) -> SÃO FRANCISCO DO CONDE - BA | G20: =VLOOKUP($W20,'Transporte Cap 50-70'!$B:$AA,8,FALSE) -> Mossoró - RN | H20: =VLOOKUP($W20,'Transporte Cap 50-70'!$B:$AA,9,FALSE) -> 3.580963906 | I20: =VLOOKUP($W20,'Transporte Cap 50-70'!$B:$AA,10,FALSE) -> 3.53904078 | J20: =VLOOKUP($W20,'Transporte Cap 50-70'!$B:$AA,11,FALSE) -> 3580.963906 | K20: =VLOOKUP($W20,'Transporte Cap 50-70'!$B:$AA,12,FALSE) -> 1064.81 | L20: =VLOOKUP($W20,'Transporte Cap 50-70'!$B:$AA,13,FALSE) -> 4645.773906 | M20: =VLOOKUP($W20,'Transporte Cap 50-70'!$B$13:$AA$26,14,FALSE) -> 1000 | N20: =VLOOKUP($W20,'Transporte Cap 50-70'!$B:$AA,15,FALSE) -> 0 | O20: =VLOOKUP($W20,'Transporte Cap 50-70'!$B:$AA,18,FALSE) -> 279.94 | P20: =VLOOKUP($W20,'Transporte Cap 50-70'!$B:$AA,19,FALSE) -> 69.98 | Q20: =VLOOKUP($W20,'Transporte Cap 50-70'!$B:$AA,20,FALSE) -> 410.78 | R20: =VLOOKUP($W20,'Transporte Cap 50-70'!$B:$AA,21,FALSE) -> 760.7 | S20: =VLOOKUP($W20,'Transporte Cap 50-70'!$B:$AA,22,FALSE) -> 21 | T20: =VLOOKUP($W20,'Transporte Cap 50-70'!$B:$AA,23,FALSE) -> 1.550502067 | U20: =VLOOKUP($W20,'Transporte Cap 50-70'!$B:$AA,24,FALSE) -> 762.2505021 | V20: =VLOOKUP($W20,'Transporte Cap 50-70'!$B:$AA,25,FALSE) -> 4645.773906 | W20: =SMALL('Transporte Cap 50-70'!$AA$13:$AA$26,4) -> 5408.024408
B21: 5 | F21: =VLOOKUP($W21,'Transporte Cap 50-70'!$B:$AA,7,FALSE) -> DUQUE DE CAXIAS - RJ | G21: =VLOOKUP($W21,'Transporte Cap 50-70'!$B:$AA,8,FALSE) -> Mossoró - RN | H21: =VLOOKUP($W21,'Transporte Cap 50-70'!$B:$AA,9,FALSE) -> 3.534843148 | I21: =VLOOKUP($W21,'Transporte Cap 50-70'!$B:$AA,10,FALSE) -> 3.660438996 | J21: =VLOOKUP($W21,'Transporte Cap 50-70'!$B:$AA,11,FALSE) -> 3534.843148 | K21: =VLOOKUP($W21,'Transporte Cap 50-70'!$B:$AA,12,FALSE) -> 1051.1 | L21: =VLOOKUP($W21,'Transporte Cap 50-70'!$B:$AA,13,FALSE) -> 4585.943148 | M21: =VLOOKUP($W21,'Transporte Cap 50-70'!$B$13:$AA$26,14,FALSE) -> 2412.2 | N21: =VLOOKUP($W21,'Transporte Cap 50-70'!$B:$AA,15,FALSE) -> 0 | O21: =VLOOKUP($W21,'Transporte Cap 50-70'!$B:$AA,18,FALSE) -> 637.23 | P21: =VLOOKUP($W21,'Transporte Cap 50-70'!$B:$AA,19,FALSE) -> 159.3 | Q21: =VLOOKUP($W21,'Transporte Cap 50-70'!$B:$AA,20,FALSE) -> 935.07 | R21: =VLOOKUP($W21,'Transporte Cap 50-70'!$B:$AA,21,FALSE) -> 1731.6 | S21: =VLOOKUP($W21,'Transporte Cap 50-70'!$B:$AA,22,FALSE) -> 564 | T21: =VLOOKUP($W21,'Transporte Cap 50-70'!$B:$AA,23,FALSE) -> 41.64205552 | U21: =VLOOKUP($W21,'Transporte Cap 50-70'!$B:$AA,24,FALSE) -> 1773.242056 | V21: =VLOOKUP($W21,'Transporte Cap 50-70'!$B:$AA,25,FALSE) -> 4585.943148 | W21: =SMALL('Transporte Cap 50-70'!$AA$13:$AA$26,5) -> 6359.185204
B22: 6 | F22: =VLOOKUP($W22,'Transporte Cap 50-70'!$B:$AA,7,FALSE) -> BETIM - MG | G22: =VLOOKUP($W22,'Transporte Cap 50-70'!$B:$AA,8,FALSE) -> Mossoró - RN | H22: =VLOOKUP($W22,'Transporte Cap 50-70'!$B:$AA,9,FALSE) -> 3.789559474 | I22: =VLOOKUP($W22,'Transporte Cap 50-70'!$B:$AA,10,FALSE) -> 3.660438996 | J22: =VLOOKUP($W22,'Transporte Cap 50-70'!$B:$AA,11,FALSE) -> 3789.559474 | K22: =VLOOKUP($W22,'Transporte Cap 50-70'!$B:$AA,12,FALSE) -> 1126.84 | L22: =VLOOKUP($W22,'Transporte Cap 50-70'!$B:$AA,13,FALSE) -> 4916.399474 | M22: =VLOOKUP($W22,'Transporte Cap 50-70'!$B$13:$AA$26,14,FALSE) -> 2179.6 | N22: =VLOOKUP($W22,'Transporte Cap 50-70'!$B:$AA,15,FALSE) -> 0 | O22: =VLOOKUP($W22,'Transporte Cap 50-70'!$B:$AA,18,FALSE) -> 578.38 | P22: =VLOOKUP($W22,'Transporte Cap 50-70'!$B:$AA,19,FALSE) -> 144.59 | Q22: =VLOOKUP($W22,'Transporte Cap 50-70'!$B:$AA,20,FALSE) -> 848.71 | R22: =VLOOKUP($W22,'Transporte Cap 50-70'!$B:$AA,21,FALSE) -> 1571.68 | S22: =VLOOKUP($W22,'Transporte Cap 50-70'!$B:$AA,22,FALSE) -> 183 | T22: =VLOOKUP($W22,'Transporte Cap 50-70'!$B:$AA,23,FALSE) -> 13.51151802 | U22: =VLOOKUP($W22,'Transporte Cap 50-70'!$B:$AA,24,FALSE) -> 1585.191518 | V22: =VLOOKUP($W22,'Transporte Cap 50-70'!$B:$AA,25,FALSE) -> 4916.399474 | W22: =SMALL('Transporte Cap 50-70'!$AA$13:$AA$26,6) -> 6501.590992
O23: =VLOOKUP($W23,'Transporte Cap 50-70'!$B:$AA,18,FALSE) ->  | R23: =VLOOKUP($W23,'Transporte Cap 50-70'!$B:$AA,21,FALSE) -> 
O24: =VLOOKUP($W24,'Transporte Cap 50-70'!$B:$AA,18,FALSE) ->  | R24: =VLOOKUP($W24,'Transporte Cap 50-70'!$B:$AA,21,FALSE) -> 
O25: =VLOOKUP($W25,'Transporte Cap 50-70'!$B:$AA,18,FALSE) ->  | R25: =VLOOKUP($W25,'Transporte Cap 50-70'!$B:$AA,21,FALSE) -> 
O26: =VLOOKUP($W26,'Transporte Cap 50-70'!$B:$AA,18,FALSE) ->  | R26: =VLOOKUP($W26,'Transporte Cap 50-70'!$B:$AA,21,FALSE) -> 
O27: =VLOOKUP($W27,'Transporte Cap 50-70'!$B:$AA,18,FALSE) ->  | R27: =VLOOKUP($W27,'Transporte Cap 50-70'!$B:$AA,21,FALSE) -> 
B28: 1 | C28: CAP MODIF. C/ POLÍMERO 60/85 | D28: Refinaria Abreu e Lima | E28: Rodovia PE 60, Km 10 - Ipojuca - PE CEP:55590-000 | G28: Palmas - TO | H28: 2.261894948 | I28: 2.353413905 | J28: 2261.894948 | K28: 393.19 | L28: 2655.084948 | M28: 1181 | N28: 1181 | O28: =VLOOKUP($W28,'Transporte Cap 50-70'!$B:$AA,18,FALSE) ->  | P28: 44.41 | Q28: 202.55 | R28: =VLOOKUP($W28,'Transporte Cap 50-70'!$B:$AA,21,FALSE) ->  | S28: 102 | T28: 102 | U28: 674.69 | V28: 2655.084948 | W28: 3329.774948
B29: 2 | D29: Refinaria Potiguar Clara Camarão | E29: Rodovia RN 221, KM 25 - Guamaré - RN CEP:59598-000 | F29: UBERLANDIA - MG | G29: Palmas - TO | H29: 2.261894948 | I29: 2.353413905 | J29: 2261.894948 | K29: 393.19 | L29: 2655.084948 | M29: 1182 | N29: 1182 | O29: =VLOOKUP($W29,'Transporte Cap 50-70'!$B:$AA,18,FALSE) ->  | P29: 44.45 | Q29: 202.71 | R29: =VLOOKUP($W29,'Transporte Cap 50-70'!$B:$AA,21,FALSE) ->  | S29: 102 | T29: 102 | U29: 675.14 | V29: 2655.084948 | W29: 3330.224948
B30: 3 | D30: Complexo Petroquímico do Rio de Janeiro (Comperj) | E30: Rodovia Estadual RJ-116 - Km 5,2 - Acesso A-1, s/n, Complemento Sambaetiba - Zona Urbana do 4º Distrito de Itaboraí - RJ CEP:24841-203 | F30: GOIANIRA - GO | G30: Palmas - TO | I30: 2.555206955 | J30: 2555.206955 | K30: 444.18 | L30: 2999.386955 | M30: 814 | N30: 814 | O30: =VLOOKUP($W30,'Transporte Cap 50-70'!$B:$AA,18,FALSE) ->  | P30: 31.75 | Q30: 144.81 | R30: =VLOOKUP($W30,'Transporte Cap 50-70'!$B:$AA,21,FALSE) ->  | S30: 0 | T30: 0 | U30: 409.44 | V30: 2999.386955 | W30: 3408.826955
B31: 4 | F31: BRASÍLIA - DF | G31: Palmas - TO | I31: 2.555206955 | J31: 2555.206955 | K31: 444.18 | L31: 2999.386955 | M31: 822 | N31: 822 | O31: =VLOOKUP($W31,'Transporte Cap 50-70'!$B:$AA,18,FALSE) ->  | P31: 32.03 | Q31: 146.07 | R31: =VLOOKUP($W31,'Transporte Cap 50-70'!$B:$AA,21,FALSE) ->  | S31: 0 | T31: 0 | U31: 413 | V31: 2999.386955 | W31: 3412.386955
B32: 5 | F32: APARECIDA DE GOIANIA - GO | G32: Palmas - TO | I32: 2.555206955 | J32: 2555.206955 | K32: 444.18 | L32: 2999.386955 | M32: 842 | N32: 842 | O32: =VLOOKUP($W32,'Transporte Cap 50-70'!$B:$AA,18,FALSE) ->  | P32: 32.72 | Q32: 149.22 | R32: =VLOOKUP($W32,'Transporte Cap 50-70'!$B:$AA,21,FALSE) ->  | S32: 0 | T32: 0 | U32: 421.9 | V32: 2999.386955 | W32: 3421.286955
B33: 6 | F33: ANÁPOLIS - GO | G33: Palmas - TO | I33: 2.555206955 | J33: 2555.206955 | K33: 444.18 | L33: 2999.386955 | M33: 950 | N33: 950 | O33: =VLOOKUP($W33,'Transporte Cap 50-70'!$B:$AA,18,FALSE) ->  | P33: 36.44 | Q33: 166.21 | R33: =VLOOKUP($W33,'Transporte Cap 50-70'!$B:$AA,21,FALSE) ->  | S33: 0 | T33: 0 | U33: 469.93 | V33: 2999.386955 | W33: 3469.316955
B35: 1 | C35: EAI | D35: Refinaria Abreu e Lima | E35: Rodovia PE 60, Km 10 - Ipojuca - PE CEP:55590-000 | F35: =VLOOKUP($W35,'Transporte EAI'!$B$13:$AA$32,7,FALSE) -> SARZEDO - MG | G35: =VLOOKUP($W35,'Transporte EAI'!$B:$AA,8,FALSE) -> Mossoró - RN | H35: =VLOOKUP($W35,'Transporte EAI'!$B$13:$AA$32,9,FALSE) -> 2.140814487 | I35: =VLOOKUP($W35,'Transporte EAI'!$B$13:$AA$32,10,FALSE) -> 2.308211963 | J35: =VLOOKUP($W35,'Transporte EAI'!$B$13:$AA$32,11,FALSE) -> 2140.814487 | K35: =VLOOKUP($W35,'Transporte EAI'!$B$13:$AA$32,12,FALSE) -> 636.58 | L35: =VLOOKUP($W35,'Transporte EAI'!$B$13:$AA$32,13,FALSE) -> 2777.394487 | M35: =VLOOKUP($W35,'Transporte EAI'!$B$13:$AA$32,14,FALSE) -> 2196.5 | N35: =VLOOKUP($W35,'[203]Transporte EAI'!$B$13:$AA$32,15,FALSE) ->  | O35: =VLOOKUP($W35,'Transporte EAI'!$B$13:$AA$32,18,FALSE) -> 582.65 | P35: =VLOOKUP($W35,'Transporte EAI'!$B$13:$AA$32,19,FALSE) -> 145.66 | Q35: =VLOOKUP($W35,'Transporte EAI'!$B$13:$AA$32,20,FALSE) -> 854.98 | R35: =VLOOKUP($W35,'Transporte EAI'!$B$13:$AA$32,21,FALSE) -> 1583.29 | S35: =VLOOKUP($W35,'Transporte EAI'!$B$13:$AA$32,22,FALSE) -> 183 | T35: =VLOOKUP($W35,'Transporte EAI'!$B$13:$AA$32,23,FALSE) -> 13.66946779 | U35: =VLOOKUP($W35,'Transporte EAI'!$B$13:$AA$32,24,FALSE) -> 1596.959468 | V35: =VLOOKUP($W35,'Transporte EAI'!$B$13:$AA$32,25,FALSE) -> 2777.394487 | W35: =SMALL('Transporte EAI'!$AA$13:$AA$32,1) -> 4374.353955
B36: 2 | D36: Refinaria Potiguar Clara Camarão | E36: Rodovia RN 221, KM 25 - Guamaré - RN CEP:59598-000 | F36: =VLOOKUP($W36,'Transporte EAI'!$B$13:$AA$32,7,FALSE) -> ANÁPOLIS - GO | G36: =VLOOKUP($W36,'Transporte EAI'!$B$13:$AA$32,8,FALSE) -> Mossoró - RN | H36: =VLOOKUP($W36,'Transporte EAI'!$B$13:$AA$32,9,FALSE) -> 2.167968083 | I36: =VLOOKUP($W36,'Transporte EAI'!$B$13:$AA$32,10,FALSE) -> 2.623457098 | J36: =VLOOKUP($W36,'Transporte EAI'!$B$13:$AA$32,11,FALSE) -> 2167.968083 | K36: =VLOOKUP($W36,'Transporte EAI'!$B$13:$AA$32,12,FALSE) -> 644.65 | L36: =VLOOKUP($W36,'Transporte EAI'!$B$13:$AA$32,13,FALSE) -> 2812.618083 | M36: =VLOOKUP($W36,'Transporte EAI'!$B$13:$AA$32,14,FALSE) -> 2355.6 | N36: =VLOOKUP($W36,'[203]Transporte EAI'!$B$13:$AA$32,15,FALSE) ->  | O36: =VLOOKUP($W36,'Transporte EAI'!$B$13:$AA$32,18,FALSE) -> 622.91 | P36: =VLOOKUP($W36,'Transporte EAI'!$B$13:$AA$32,19,FALSE) -> 155.72 | Q36: =VLOOKUP($W36,'Transporte EAI'!$B$13:$AA$32,20,FALSE) -> 914.05 | R36: =VLOOKUP($W36,'Transporte EAI'!$B$13:$AA$32,21,FALSE) -> 1692.68 | S36: =VLOOKUP($W36,'Transporte EAI'!$B$13:$AA$32,22,FALSE) -> 13.8 | T36: =VLOOKUP($W36,'Transporte EAI'!$B$13:$AA$32,23,FALSE) -> 1.030812325 | U36: =VLOOKUP($W36,'Transporte EAI'!$B$13:$AA$32,24,FALSE) -> 1693.710812 | V36: =VLOOKUP($W36,'Transporte EAI'!$B$13:$AA$32,25,FALSE) -> 2812.618083 | W36: =SMALL('Transporte EAI'!$AA$13:$AA$32,2) -> 4506.328895
B37: 3 | D37: Complexo Petroquímico do Rio de Janeiro (Comperj) | E37: Rodovia Estadual RJ-116 - Km 5,2 - Acesso A-1, s/n, Complemento Sambaetiba - Zona Urbana do 4º Distrito de Itaboraí - RJ CEP:24841-203 | F37: =VLOOKUP($W37,'Transporte EAI'!$B$13:$AA$32,7,FALSE) -> UBERLANDIA - MG | G37: =VLOOKUP($W37,'Transporte EAI'!$B$13:$AA$32,8,FALSE) -> Mossoró - RN | H37: =VLOOKUP($W37,'Transporte EAI'!$B$13:$AA$32,9,FALSE) -> 2.140814487 | I37: =VLOOKUP($W37,'Transporte EAI'!$B$13:$AA$32,10,FALSE) -> 2.308211963 | J37: =VLOOKUP($W37,'Transporte EAI'!$B$13:$AA$32,11,FALSE) -> 2140.814487 | K37: =VLOOKUP($W37,'Transporte EAI'!$B$13:$AA$32,12,FALSE) -> 636.58 | L37: =VLOOKUP($W37,'Transporte EAI'!$B$13:$AA$32,13,FALSE) -> 2777.394487 | M37: =VLOOKUP($W37,'Transporte EAI'!$B$13:$AA$32,14,FALSE) -> 2424.4 | N37: =VLOOKUP($W37,'[203]Transporte EAI'!$B$13:$AA$32,15,FALSE) ->  | O37: =VLOOKUP($W37,'Transporte EAI'!$B$13:$AA$32,18,FALSE) -> 640.31 | P37: =VLOOKUP($W37,'Transporte EAI'!$B$13:$AA$32,19,FALSE) -> 160.07 | Q37: =VLOOKUP($W37,'Transporte EAI'!$B$13:$AA$32,20,FALSE) -> 939.59 | R37: =VLOOKUP($W37,'Transporte EAI'!$B$13:$AA$32,21,FALSE) -> 1739.97 | S37: =VLOOKUP($W37,'Transporte EAI'!$B$13:$AA$32,22,FALSE) -> 335.4 | T37: =VLOOKUP($W37,'Transporte EAI'!$B$13:$AA$32,23,FALSE) -> 25.05322129 | U37: =VLOOKUP($W37,'Transporte EAI'!$B$13:$AA$32,24,FALSE) -> 1765.023221 | V37: =VLOOKUP($W37,'Transporte EAI'!$B$13:$AA$32,25,FALSE) -> 2777.394487 | W37: =SMALL('Transporte EAI'!$AA$13:$AA$32,3) -> 4542.417708
B38: 4 | F38: =VLOOKUP($W38,'Transporte EAI'!$B$13:$AA$32,7,FALSE) -> UBERLANDIA - MG | G38: =VLOOKUP($W38,'Transporte EAI'!$B$13:$AA$32,8,FALSE) -> Mossoró - RN | H38: =VLOOKUP($W38,'Transporte EAI'!$B$13:$AA$32,9,FALSE) -> 2.140814487 | I38: =VLOOKUP($W38,'Transporte EAI'!$B$13:$AA$32,10,FALSE) -> 2.308211963 | J38: =VLOOKUP($W38,'Transporte EAI'!$B$13:$AA$32,11,FALSE) -> 2140.814487 | K38: =VLOOKUP($W38,'Transporte EAI'!$B$13:$AA$32,12,FALSE) -> 636.58 | L38: =VLOOKUP($W38,'Transporte EAI'!$B$13:$AA$32,13,FALSE) -> 2777.394487 | M38: =VLOOKUP($W38,'Transporte EAI'!$B$13:$AA$32,14,FALSE) -> 2424.4 | N38: =VLOOKUP($W38,'[203]Transporte EAI'!$B$13:$AA$32,15,FALSE) ->  | O38: =VLOOKUP($W38,'Transporte EAI'!$B$13:$AA$32,18,FALSE) -> 640.31 | P38: =VLOOKUP($W38,'Transporte EAI'!$B$13:$AA$32,19,FALSE) -> 160.07 | Q38: =VLOOKUP($W38,'Transporte EAI'!$B$13:$AA$32,20,FALSE) -> 939.59 | R38: =VLOOKUP($W38,'Transporte EAI'!$B$13:$AA$32,21,FALSE) -> 1739.97 | S38: =VLOOKUP($W38,'Transporte EAI'!$B$13:$AA$32,22,FALSE) -> 335.4 | T38: =VLOOKUP($W38,'Transporte EAI'!$B$13:$AA$32,23,FALSE) -> 25.05322129 | U38: =VLOOKUP($W38,'Transporte EAI'!$B$13:$AA$32,24,FALSE) -> 1765.023221 | V38: =VLOOKUP($W38,'Transporte EAI'!$B$13:$AA$32,25,FALSE) -> 2777.394487 | W38: =SMALL('Transporte EAI'!$AA$13:$AA$32,4) -> 4542.417708
B39: 5 | F39: =VLOOKUP($W39,'Transporte EAI'!$B$13:$AA$32,7,FALSE) -> APARECIDA DE GOIANIA - GO | G39: =VLOOKUP($W39,'Transporte EAI'!$B$13:$AA$32,8,FALSE) -> Mossoró - RN | H39: =VLOOKUP($W39,'Transporte EAI'!$B$13:$AA$32,9,FALSE) -> 2.167968083 | I39: =VLOOKUP($W39,'Transporte EAI'!$B$13:$AA$32,10,FALSE) -> 2.623457098 | J39: =VLOOKUP($W39,'Transporte EAI'!$B$13:$AA$32,11,FALSE) -> 2167.968083 | K39: =VLOOKUP($W39,'Transporte EAI'!$B$13:$AA$32,12,FALSE) -> 644.65 | L39: =VLOOKUP($W39,'Transporte EAI'!$B$13:$AA$32,13,FALSE) -> 2812.618083 | M39: =VLOOKUP($W39,'Transporte EAI'!$B$13:$AA$32,14,FALSE) -> 2424.6 | N39: =VLOOKUP($W39,'[203]Transporte EAI'!$B$13:$AA$32,15,FALSE) ->  | O39: =VLOOKUP($W39,'Transporte EAI'!$B$13:$AA$32,18,FALSE) -> 640.36 | P39: =VLOOKUP($W39,'Transporte EAI'!$B$13:$AA$32,19,FALSE) -> 160.09 | Q39: =VLOOKUP($W39,'Transporte EAI'!$B$13:$AA$32,20,FALSE) -> 939.67 | R39: =VLOOKUP($W39,'Transporte EAI'!$B$13:$AA$32,21,FALSE) -> 1740.12 | S39: =VLOOKUP($W39,'Transporte EAI'!$B$13:$AA$32,22,FALSE) -> 72 | T39: =VLOOKUP($W39,'Transporte EAI'!$B$13:$AA$32,23,FALSE) -> 5.378151261 | U39: =VLOOKUP($W39,'Transporte EAI'!$B$13:$AA$32,24,FALSE) -> 1745.498151 | V39: =VLOOKUP($W39,'Transporte EAI'!$B$13:$AA$32,25,FALSE) -> 2812.618083 | W39: =SMALL('Transporte EAI'!$AA$13:$AA$32,5) -> 4558.116234
B40: 6 | F40: =VLOOKUP($W40,'Transporte EAI'!$B$13:$AA$32,7,FALSE) -> GOIANIRA - GO | G40: =VLOOKUP($W40,'Transporte EAI'!$B$13:$AA$32,8,FALSE) -> Mossoró - RN | H40: =VLOOKUP($W40,'Transporte EAI'!$B$13:$AA$32,9,FALSE) -> 2.167968083 | I40: =VLOOKUP($W40,'Transporte EAI'!$B$13:$AA$32,10,FALSE) -> 2.623457098 | J40: =VLOOKUP($W40,'Transporte EAI'!$B$13:$AA$32,11,FALSE) -> 2167.968083 | K40: =VLOOKUP($W40,'Transporte EAI'!$B$13:$AA$32,12,FALSE) -> 644.65 | L40: =VLOOKUP($W40,'Transporte EAI'!$B$13:$AA$32,13,FALSE) -> 2812.618083 | M40: =VLOOKUP($W40,'Transporte EAI'!$B$13:$AA$32,14,FALSE) -> 2472.5 | N40: =VLOOKUP($W40,'[203]Transporte EAI'!$B$13:$AA$32,15,FALSE) ->  | O40: =VLOOKUP($W40,'Transporte EAI'!$B$13:$AA$32,18,FALSE) -> 652.48 | P40: =VLOOKUP($W40,'Transporte EAI'!$B$13:$AA$32,19,FALSE) -> 163.12 | Q40: =VLOOKUP($W40,'Transporte EAI'!$B$13:$AA$32,20,FALSE) -> 957.45 | R40: =VLOOKUP($W40,'Transporte EAI'!$B$13:$AA$32,21,FALSE) -> 1773.05 | S40: =VLOOKUP($W40,'Transporte EAI'!$B$13:$AA$32,22,FALSE) -> 145.2 | T40: =VLOOKUP($W40,'Transporte EAI'!$B$13:$AA$32,23,FALSE) -> 10.84593838 | U40: =VLOOKUP($W40,'Transporte EAI'!$B$13:$AA$32,24,FALSE) -> 1783.895938 | V40: =VLOOKUP($W40,'Transporte EAI'!$B$13:$AA$32,25,FALSE) -> 2812.618083 | W40: =SMALL('Transporte EAI'!$AA$13:$AA$32,6) -> 4596.514021
B42: 1 | C42: RR1-C | D42: Refinaria Abreu e Lima | E42: Rodovia PE 60, Km 10 - Ipojuca - PE CEP:55590-000 | F42: =VLOOKUP($W42,'Transporte RR-1C'!$B:$AA,7,FALSE) -> SARZEDO - MG | G42: =VLOOKUP($W42,'Transporte RR-1C'!$B:$AA,8,FALSE) -> Mossoró - RN | H42: =VLOOKUP($W42,'Transporte RR-1C'!$B:$AA,9,FALSE) -> 2.645017075 | I42: =VLOOKUP($W42,'Transporte RR-1C'!$B:$AA,10,FALSE) -> 2.89412797 | J42: =VLOOKUP($W42,'Transporte RR-1C'!$B:$AA,11,FALSE) -> 2645.017075 | K42: =VLOOKUP($W42,'Transporte RR-1C'!$B:$AA,12,FALSE) -> 786.5 | L42: =VLOOKUP($W42,'Transporte RR-1C'!$B:$AA,13,FALSE) -> 3431.517075 | M42: =VLOOKUP($W42,'Transporte RR-1C'!$B:$AA,14,FALSE) -> 2196.5 | N42: =VLOOKUP($W42,'Transporte RR-1C'!$B:$AA,15,FALSE) -> 0 | O42: =VLOOKUP($W42,'Transporte RR-1C'!$B:$AA,18,FALSE) -> 582.65 | P42: =VLOOKUP($W42,'Transporte RR-1C'!$B:$AA,19,FALSE) -> 145.66 | Q42: =VLOOKUP($W42,'Transporte RR-1C'!$B:$AA,20,FALSE) -> 854.98 | R42: =VLOOKUP($W42,'Transporte RR-1C'!$B:$AA,21,FALSE) -> 1583.29 | S42: =VLOOKUP($W42,'Transporte RR-1C'!$B:$AA,22,FALSE) -> 183 | T42: =VLOOKUP($W42,'Transporte RR-1C'!$B:$AA,23,FALSE) -> 21.2667054 | U42: =VLOOKUP($W42,'Transporte RR-1C'!$B:$AA,24,FALSE) -> 1604.556705 | V42: =VLOOKUP($W42,'Transporte RR-1C'!$B:$AA,25,FALSE) -> 3431.517075 | W42: =SMALL('Transporte RR-1C'!$AA$13:$AA$32,1) -> 5036.07378
B43: 2 | D43: Refinaria Potiguar Clara Camarão | E43: Rodovia RN 221, KM 25 - Guamaré - RN CEP:59598-000 | F43: =VLOOKUP($W43,'Transporte RR-1C'!$B:$AA,7,FALSE) -> UBERLANDIA - MG | G43: =VLOOKUP($W43,'Transporte RR-1C'!$B:$AA,8,FALSE) -> Mossoró - RN | H43: =VLOOKUP($W43,'Transporte RR-1C'!$B:$AA,9,FALSE) -> 2.645017075 | I43: =VLOOKUP($W43,'Transporte RR-1C'!$B:$AA,10,FALSE) -> 2.89412797 | J43: =VLOOKUP($W43,'Transporte RR-1C'!$B:$AA,11,FALSE) -> 2645.017075 | K43: =VLOOKUP($W43,'Transporte RR-1C'!$B:$AA,12,FALSE) -> 786.5 | L43: =VLOOKUP($W43,'Transporte RR-1C'!$B:$AA,13,FALSE) -> 3431.517075 | M43: =VLOOKUP($W43,'Transporte RR-1C'!$B:$AA,14,FALSE) -> 2424.4 | N43: =VLOOKUP($W43,'Transporte RR-1C'!$B:$AA,15,FALSE) -> 0 | O43: =VLOOKUP($W43,'Transporte RR-1C'!$B:$AA,18,FALSE) -> 640.31 | P43: =VLOOKUP($W43,'Transporte RR-1C'!$B:$AA,19,FALSE) -> 160.07 | Q43: =VLOOKUP($W43,'Transporte RR-1C'!$B:$AA,20,FALSE) -> 939.59 | R43: =VLOOKUP($W43,'Transporte RR-1C'!$B:$AA,21,FALSE) -> 1739.97 | S43: =VLOOKUP($W43,'Transporte RR-1C'!$B:$AA,22,FALSE) -> 335.4 | T43: =VLOOKUP($W43,'Transporte RR-1C'!$B:$AA,23,FALSE) -> 38.97733876 | U43: =VLOOKUP($W43,'Transporte RR-1C'!$B:$AA,24,FALSE) -> 1778.947339 | V43: =VLOOKUP($W43,'Transporte RR-1C'!$B:$AA,25,FALSE) -> 3431.517075 | W43: =SMALL('Transporte RR-1C'!$AA$13:$AA$32,2) -> 5210.464414
B44: 3 | D44: Complexo Petroquímico do Rio de Janeiro (Comperj) | E44: Rodovia Estadual RJ-116 - Km 5,2 - Acesso A-1, s/n, Complemento Sambaetiba - Zona Urbana do 4º Distrito de Itaboraí - RJ CEP:24841-203 | F44: =VLOOKUP($W44,'Transporte RR-1C'!$B:$AA,7,FALSE) -> UBERLANDIA - MG | G44: =VLOOKUP($W44,'Transporte RR-1C'!$B:$AA,8,FALSE) -> Mossoró - RN | H44: =VLOOKUP($W44,'Transporte RR-1C'!$B:$AA,9,FALSE) -> 2.645017075 | I44: =VLOOKUP($W44,'Transporte RR-1C'!$B:$AA,10,FALSE) -> 2.89412797 | J44: =VLOOKUP($W44,'Transporte RR-1C'!$B:$AA,11,FALSE) -> 2645.017075 | K44: =VLOOKUP($W44,'Transporte RR-1C'!$B:$AA,12,FALSE) -> 786.5 | L44: =VLOOKUP($W44,'Transporte RR-1C'!$B:$AA,13,FALSE) -> 3431.517075 | M44: =VLOOKUP($W44,'Transporte RR-1C'!$B:$AA,14,FALSE) -> 2424.4 | N44: =VLOOKUP($W44,'Transporte RR-1C'!$B:$AA,15,FALSE) -> 0 | O44: =VLOOKUP($W44,'Transporte RR-1C'!$B:$AA,18,FALSE) -> 640.31 | P44: =VLOOKUP($W44,'Transporte RR-1C'!$B:$AA,19,FALSE) -> 160.07 | Q44: =VLOOKUP($W44,'Transporte RR-1C'!$B:$AA,20,FALSE) -> 939.59 | R44: =VLOOKUP($W44,'Transporte RR-1C'!$B:$AA,21,FALSE) -> 1739.97 | S44: =VLOOKUP($W44,'Transporte RR-1C'!$B:$AA,22,FALSE) -> 335.4 | T44: =VLOOKUP($W44,'Transporte RR-1C'!$B:$AA,23,FALSE) -> 38.97733876 | U44: =VLOOKUP($W44,'Transporte RR-1C'!$B:$AA,24,FALSE) -> 1778.947339 | V44: =VLOOKUP($W44,'Transporte RR-1C'!$B:$AA,25,FALSE) -> 3431.517075 | W44: =SMALL('Transporte RR-1C'!$AA$13:$AA$32,3) -> 5210.464414
B45: 4 | D45: Refinaria Abreu e Lima | E45: Rodovia PE 60, Km 10 - Ipojuca - PE CEP:55590-000 | F45: =VLOOKUP($W45,'Transporte RR-1C'!$B:$AA,7,FALSE) -> ANÁPOLIS - GO | G45: =VLOOKUP($W45,'Transporte RR-1C'!$B:$AA,8,FALSE) -> Mossoró - RN | H45: =VLOOKUP($W45,'Transporte RR-1C'!$B:$AA,9,FALSE) -> 2.726231063 | I45: =VLOOKUP($W45,'Transporte RR-1C'!$B:$AA,10,FALSE) -> 2.846437607 | J45: =VLOOKUP($W45,'Transporte RR-1C'!$B:$AA,11,FALSE) -> 2726.231063 | K45: =VLOOKUP($W45,'Transporte RR-1C'!$B:$AA,12,FALSE) -> 810.65 | L45: =VLOOKUP($W45,'Transporte RR-1C'!$B:$AA,13,FALSE) -> 3536.881063 | M45: =VLOOKUP($W45,'Transporte RR-1C'!$B:$AA,14,FALSE) -> 2355.6 | N45: =VLOOKUP($W45,'Transporte RR-1C'!$B:$AA,15,FALSE) -> 0 | O45: =VLOOKUP($W45,'Transporte RR-1C'!$B:$AA,18,FALSE) -> 622.91 | P45: =VLOOKUP($W45,'Transporte RR-1C'!$B:$AA,19,FALSE) -> 155.72 | Q45: =VLOOKUP($W45,'Transporte RR-1C'!$B:$AA,20,FALSE) -> 914.05 | R45: =VLOOKUP($W45,'Transporte RR-1C'!$B:$AA,21,FALSE) -> 1692.68 | S45: =VLOOKUP($W45,'Transporte RR-1C'!$B:$AA,22,FALSE) -> 13.8 | T45: =VLOOKUP($W45,'Transporte RR-1C'!$B:$AA,23,FALSE) -> 1.603718768 | U45: =VLOOKUP($W45,'Transporte RR-1C'!$B:$AA,24,FALSE) -> 1694.283719 | V45: =VLOOKUP($W45,'Transporte RR-1C'!$B:$AA,25,FALSE) -> 3536.881063 | W45: =SMALL('Transporte RR-1C'!$AA$13:$AA$32,4) -> 5231.164781
B46: 5 | D46: Refinaria Potiguar Clara Camarão | E46: Rodovia RN 221, KM 25 - Guamaré - RN CEP:59598-000 | F46: =VLOOKUP($W46,'Transporte RR-1C'!$B:$AA,7,FALSE) -> APARECIDA DE GOIANIA - GO | G46: =VLOOKUP($W46,'Transporte RR-1C'!$B:$AA,8,FALSE) -> Mossoró - RN | H46: =VLOOKUP($W46,'Transporte RR-1C'!$B:$AA,9,FALSE) -> 2.726231063 | I46: =VLOOKUP($W46,'Transporte RR-1C'!$B:$AA,10,FALSE) -> 2.846437607 | J46: =VLOOKUP($W46,'Transporte RR-1C'!$B:$AA,11,FALSE) -> 2726.231063 | K46: =VLOOKUP($W46,'Transporte RR-1C'!$B:$AA,12,FALSE) -> 810.65 | L46: =VLOOKUP($W46,'Transporte RR-1C'!$B:$AA,13,FALSE) -> 3536.881063 | M46: =VLOOKUP($W46,'Transporte RR-1C'!$B:$AA,14,FALSE) -> 2424.6 | N46: =VLOOKUP($W46,'Transporte RR-1C'!$B:$AA,15,FALSE) -> 0 | O46: =VLOOKUP($W46,'Transporte RR-1C'!$B:$AA,18,FALSE) -> 640.36 | P46: =VLOOKUP($W46,'Transporte RR-1C'!$B:$AA,19,FALSE) -> 160.09 | Q46: =VLOOKUP($W46,'Transporte RR-1C'!$B:$AA,20,FALSE) -> 939.67 | R46: =VLOOKUP($W46,'Transporte RR-1C'!$B:$AA,21,FALSE) -> 1740.12 | S46: =VLOOKUP($W46,'Transporte RR-1C'!$B:$AA,22,FALSE) -> 72 | T46: =VLOOKUP($W46,'Transporte RR-1C'!$B:$AA,23,FALSE) -> 8.367228356 | U46: =VLOOKUP($W46,'Transporte RR-1C'!$B:$AA,24,FALSE) -> 1748.487228 | V46: =VLOOKUP($W46,'Transporte RR-1C'!$B:$AA,25,FALSE) -> 3536.881063 | W46: =SMALL('Transporte RR-1C'!$AA$13:$AA$32,5) -> 5285.368291
B47: 6 | D47: Complexo Petroquímico do Rio de Janeiro (Comperj) | E47: Rodovia Estadual RJ-116 - Km 5,2 - Acesso A-1, s/n, Complemento Sambaetiba - Zona Urbana do 4º Distrito de Itaboraí - RJ CEP:24841-203 | F47: =VLOOKUP($W47,'Transporte RR-1C'!$B:$AA,7,FALSE) -> BRASÍLIA - DF | G47: =VLOOKUP($W47,'Transporte RR-1C'!$B:$AA,8,FALSE) -> Mossoró - RN | H47: =VLOOKUP($W47,'Transporte RR-1C'!$B:$AA,9,FALSE) -> - | I47: =VLOOKUP($W47,'Transporte RR-1C'!$B:$AA,10,FALSE) -> 2.846437607 | J47: =VLOOKUP($W47,'Transporte RR-1C'!$B:$AA,11,FALSE) -> 2846.437607 | K47: =VLOOKUP($W47,'Transporte RR-1C'!$B:$AA,12,FALSE) -> 846.4 | L47: =VLOOKUP($W47,'Transporte RR-1C'!$B:$AA,13,FALSE) -> 3692.837607 | M47: =VLOOKUP($W47,'Transporte RR-1C'!$B:$AA,14,FALSE) -> 2254.7 | N47: =VLOOKUP($W47,'Transporte RR-1C'!$B:$AA,15,FALSE) -> 0 | O47: =VLOOKUP($W47,'Transporte RR-1C'!$B:$AA,18,FALSE) -> 597.38 | P47: =VLOOKUP($W47,'Transporte RR-1C'!$B:$AA,19,FALSE) -> 149.34 | Q47: =VLOOKUP($W47,'Transporte RR-1C'!$B:$AA,20,FALSE) -> 876.59 | R47: =VLOOKUP($W47,'Transporte RR-1C'!$B:$AA,21,FALSE) -> 1623.31 | S47: =VLOOKUP($W47,'Transporte RR-1C'!$B:$AA,22,FALSE) -> 24.4 | T47: =VLOOKUP($W47,'Transporte RR-1C'!$B:$AA,23,FALSE) -> 2.835560721 | U47: =VLOOKUP($W47,'Transporte RR-1C'!$B:$AA,24,FALSE) -> 1626.145561 | V47: =VLOOKUP($W47,'Transporte RR-1C'!$B:$AA,25,FALSE) -> 3692.837607 | W47: =SMALL('Transporte RR-1C'!$AA$13:$AA$32,6) -> 5318.983168

Sheet MOMENTO DE TRANSPORTE - PRINC
B5: ='ORÇAMENTO '!B1 -> CONTRATAÇÃO DE SERVIÇOS DE PAVIMENTAÇÃO ASFÁLTICA COM CONCRETO BETUMINOSO USINADO A QUENTE (CBUQ), INCLUSIVE SINALIZAÇÃO VIÁRIA E DRENAGEM SUPERFICAL, NA ESTRADA DO MELÃO, LOCALIZADA NO MUNICÍPIO DE MOSSORÓ/RN.
B6: DATA BASE: | C6: ='ORÇAMENTO '!N2 -> Rio Grande do Norte - Abril/2025
C8: RESUMO DO TRANSPORTE PRINCIPAL
B9: CODIGO | C9: DESCRIÇÃO | D9: TKM
B10: 5914359 | C10: =VLOOKUP(B10,'SINTÉTICO SICRO'!$A:$D,2,0) -> Transporte com caminhão basculante de 10 m³ - rodovia em leito natural | D10: =ROUND(SUMIF('MOMENTO DE TRANSPORTE - PRINC'!A:A,B10,'MOMENTO DE TRANSPORTE - PRINC'!K:K),2) -> 0
B11: 5914374 | C11: =VLOOKUP(B11,'SINTÉTICO SICRO'!$A:$D,2,0) -> Transporte com caminhão basculante de 10 m³ - rodovia em revestimento primário | D11: =ROUND(SUMIF('MOMENTO DE TRANSPORTE - PRINC'!A:A,B11,'MOMENTO DE TRANSPORTE - PRINC'!K:K),2) -> 23988.56
B12: 5914389 | C12: =VLOOKUP(B12,'SINTÉTICO SICRO'!$A:$D,2,0) -> Transporte com caminhão basculante de 10 m³ - rodovia pavimentada | D12: =ROUND(SUMIF('MOMENTO DE TRANSPORTE - PRINC'!A:A,B12,'MOMENTO DE TRANSPORTE - PRINC'!K:K),2) -> 289481.82
B13: 5914449 | C13: =VLOOKUP(B13,'SINTÉTICO SICRO'!$A:$D,2,0) -> Transporte com caminhão carroceria de 15 t - rodovia em leito natural | D13: =ROUND(SUMIF('MOMENTO DE TRANSPORTE - PRINC'!A:A,B13,'MOMENTO DE TRANSPORTE - PRINC'!K:K),2) -> 0
B14: 5914464 | C14: =VLOOKUP(B14,'SINTÉTICO SICRO'!$A:$D,2,0) -> Transporte com caminhão carroceria de 15 t - rodovia em revestimento primário | D14: =ROUND(SUMIF('MOMENTO DE TRANSPORTE - PRINC'!A:A,B14,'MOMENTO DE TRANSPORTE - PRINC'!K:K),2) -> 0
B15: 5914479 | C15: =VLOOKUP(B15,'SINTÉTICO SICRO'!$A:$D,2,0) -> Transporte com caminhão carroceria de 15 t - rodovia pavimentada | D15: =ROUND(SUMIF('MOMENTO DE TRANSPORTE - PRINC'!A:A,B15,'MOMENTO DE TRANSPORTE - PRINC'!K:K),2) -> 0
B16: 5914364 | C16: =VLOOKUP(B16,'SINTÉTICO SICRO'!$A:$D,2,0) -> Transporte de cimento ou cal hidratada a granel com caminhão silo de 30 m³ - rodovia em leito natural | D16: =ROUND(SUMIF('MOMENTO DE TRANSPORTE - PRINC'!A:A,B16,'MOMENTO DE TRANSPORTE - PRINC'!K:K),2) -> 0
B17: 5914365 | C17: =VLOOKUP(B17,'SINTÉTICO SICRO'!$A:$D,2,0) -> Transporte de cimento ou cal hidratada a granel com caminhão silo de 30 m³ - rodovia em revestimento primário | D17: =ROUND(SUMIF('MOMENTO DE TRANSPORTE - PRINC'!A:A,B17,'MOMENTO DE TRANSPORTE - PRINC'!K:K),2) -> 0
B18: 5914366 | C18: =VLOOKUP(B18,'SINTÉTICO SICRO'!$A:$D,2,0) -> Transporte de cimento ou cal hidratada a granel com caminhão silo de 30 m³ - rodovia pavimentada | D18: =ROUND(SUMIF('MOMENTO DE TRANSPORTE - PRINC'!A:A,B18,'MOMENTO DE TRANSPORTE - PRINC'!K:K),2) -> 0
B19: 5914569 | C19: =VLOOKUP(B19,'SINTÉTICO SICRO'!$A:$D,2,0) -> Transporte com caminhão betoneira - rodovia pavimentada | D19: =ROUND(SUMIF('MOMENTO DE TRANSPORTE - PRINC'!A:A,B19,'MOMENTO DE TRANSPORTE - PRINC'!K:K),2) -> 41274.5
B21: TIPO (P, RP ou LN) | C21: DMT ESTIMADA (DISTRIBUIÇÃO DO ITEM NA PISTA)
B22: P | C22: 38.2 | D22: Usina para obra
B23: P | C23: 40.5 | D23: Pedreira e Areal a Obra = 98,5 Km - 50Km = 48,5 Km, sendo 40,5 em rodovia pavimentada e 8,00 km em revestimento primário
B24: P | C24: 41.6 | D24: Concreteira a Obra
B26: SISTEMA DE CUSTOS REFERENCIAIS DE OBRAS - SICRO
B27: Custo Unitário de Referência | I27: Quantitativo | K27: t
B28: 4011463 | C28: Concreto asfáltico - faixa C - areia e brita comerciais | I28: =SUMIF('ORÇAMENTO '!D:D,B28,'ORÇAMENTO '!J:J) -> 4284
B29: D - ATIVIDADES AUXILIARES | D29: Quantidade | E29: Unidade
B30: 6416078 | C30: Usinagem de concreto asfáltico - faixa C - areia e brita comerciais | D30: 1.02 | E30: t
B32: F - MOMENTO DE TRANSPORTE | D32: Quantidade | E32: Unidade | F32: CÓDIGO TRANSPORTE
F33: LN | G33: RP | H33: P | I33: TIPO (P, RP ou LN) | J33: DMT ESTIMADA (km) | K33: QUANTITATIVO TOTAL DE TRANSPORTE (tkm)
A34: =IF(I34="P",H34,IF(I34="RP",G34,IF(I34="LN",F34,""))) -> 5914389 | B34: 6416078 | C34: Usinagem de concreto asfáltico - faixa C - areia e brita comerciais - Caminhão basculante 10 m³ | D34: 1.02 | E34: tkm | F34: 5914359 | G34: 5914374 | H34: 5914389 | I34: =$B$23 -> P | J34: =C22 -> 38.2 | K34: =IF(ISBLANK(J34),"",J34*D34)*I28 -> 166921.776
B36: Obs.
B39: SISTEMA DE CUSTOS REFERENCIAIS DE OBRAS - SICRO
B40: Custo Unitário de Referência | I40: Quantitativo | K40: m³
B41: 4011342 | C41: Reestabilização de camada de base com adição de 30% de brita comercial | I41: =SUMIF('ORÇAMENTO '!D:D,B41,'ORÇAMENTO '!J:J) -> 4845
B42: D - ATIVIDADES AUXILIARES | D42: Quantidade | E42: Unidade
B44: F - MOMENTO DE TRANSPORTE | D44: Quantidade | E44: Unidade | F44: CÓDIGO TRANSPORTE
F45: LN | G45: RP | H45: P | I45: TIPO (P, RP ou LN) | J45: DMT ESTIMADA (km) | K45: QUANTITATIVO TOTAL DE TRANSPORTE (tkm)
A46: =IF(I46="P",H46,IF(I46="RP",G46,IF(I46="LN",F46,""))) -> 5914389 | B46: M0191 | C46: Brita 1 - Caminhão basculante 10 m³ | D46: 0.6189 | E46: tkm | F46: 5914359 | G46: 5914374 | H46: 5914389 | I46: =$B$23 -> P | J46: =C23 -> 40.5 | K46: =IF(ISBLANK(J46),"",J46*D46)*I41 -> 121442.1052
B48: Obs.
B50: SISTEMA DE CUSTOS REFERENCIAIS DE OBRAS - SICRO
B51: Custo Unitário de Referência | I51: Quantitativo | K51: m
B52: 2003943 | C52: Meio-fio de concreto - MFC 03 moldado no local com extrusora e concreto usinado - areia e brita comerciais | I52: =SUMIF('ORÇAMENTO '!D:D,B52,'ORÇAMENTO '!J:J) -> 9843.01
B53: D - ATIVIDADES AUXILIARES | D53: Quantidade | E53: Unidade
B54: 1107928 | C54: Concreto fck = 20 MPa - confecção em central dosadora de 30 m³/h - areia e brita comerciais | D54: 0.042 | E54: m³
B55: 2003842 | C55: Enchimento de junta de concreto com argamassa asfáltica de densidade 1.700 kg/m³ - espessura de 1 cm | D55: 0.0595 | E55: kg
B56: 4805750 | C56: Escavação manual em material de 1ª categoria na profundidade de até 1 m | D56: 0.03 | E56: m³
B58: F - MOMENTO DE TRANSPORTE | D58: Quantidade | E58: Unidade | F58: CÓDIGO TRANSPORTE
F59: LN | G59: RP | H59: P | I59: TIPO (P, RP ou LN) | J59: DMT ESTIMADA (km) | K59: QUANTITATIVO TOTAL DE TRANSPORTE (tkm)
A60: =IF(I60="P",H60,IF(I60="RP",G60,IF(I60="LN",F60,""))) -> 5914569 | B60: 1107928 | C60: Concreto fck = 20 MPa - confecção em central dosadora de 30 m³/h - areia e brita comerciais - Caminhão betoneira 8 m³ | D60: 0.1008 | E60: tkm | F60: 59914539 | G60: 5914554 | H60: 5914569 | I60: =$B$23 -> P | J60: =C24 -> 41.6 | K60: =IF(ISBLANK(J60),"",J60*D60)*I52 -> 41274.49697
A62: =IF(I62="P",H62,IF(I62="RP",G62,IF(I62="LN",F62,""))) -> 
B64: SISTEMA DE CUSTOS REFERENCIAIS DE OBRAS - SICRO
B65: Custo Unitário de Referência | I65: Quantitativo | K65: und
B66: 2003453 | C66: Dissipador de energia - DEB 180-263 - areia, brita e pedra de mão comerciais | I66: =SUMIF('ORÇAMENTO '!D:D,B66,'ORÇAMENTO '!J:J) -> 41
B67: D - ATIVIDADES AUXILIARES | D67: Quantidade | E67: Unidade
B68: 4805756 | C68: Apiloamento manual de superfície com espessura de 15 cm | E68: 5,43700 | F68: m²
B69: 1107892 | C69: Concreto fck = 20 MPa - confecção em betoneira e lançamento manual - areia e brita comerciais | E69: 0,99890 | F69: m³
B70: 4805750 | C70: Escavação manual em material de 1ª categoria na profundidade de até 1 m | E70: 1,08740 | F70: m³
B71: 3103302 | C71: Fôrmas de tábuas de pinho para dispositivos de drenagem - utilização de 3 vezes - confecção, instalação e retirada | E71: 4,36800 | F71: m²
B72: F - MOMENTO DE TRANSPORTE | D72: Quantidade | E72: Unidade | F72: CÓDIGO TRANSPORTE
F73: LN | G73: RP | H73: P | I73: TIPO (P, RP ou LN) | J73: DMT ESTIMADA (km) | K73: QUANTITATIVO TOTAL DE TRANSPORTE (tkm)
A74: =IF(I74="P",H74,IF(I74="RP",G74,IF(I74="LN",F74,""))) -> 5914389 | B74: M1097 | C74: Pedra de mão ou rachão - Caminhão basculante com capacidade de 10 m³ - 210 kW | D74: 0.5622 | E74: tkm | F74: 5914359 | G74: 5914374 | H74: 5914389 | I74: =$B$23 -> P | J74: =C23 -> 40.5 | K74: =IF(ISBLANK(J74),"",J74*D74)*I66 -> 933.5331
A76: =IF(I76="P",H76,IF(I76="RP",G76,IF(I76="LN",F76,""))) -> 
B78: TIPO (P, RP ou LN) | C78: DMT ESTIMADA (DISTRIBUIÇÃO DO ITEM NA PISTA)
B79: LN | C79: 0 | D79: Usina para obra
B80: LN | C80: 0 | D80: Pedreira e Areal a Obra
B81: LN | C81: 0 | D81: Concreteira a Obra
B83: SISTEMA DE CUSTOS REFERENCIAIS DE OBRAS - SICRO
B84: Custo Unitário de Referência | I84: Quantitativo | K84: t
B85: 4011463 | C85: Concreto asfáltico - faixa C - areia e brita comerciais | I85: =SUMIF('ORÇAMENTO '!D:D,B85,'ORÇAMENTO '!J:J) -> 4284
B86: D - ATIVIDADES AUXILIARES | D86: Quantidade | E86: Unidade
B87: 6416078 | C87: Usinagem de concreto asfáltico - faixa C - areia e brita comerciais | D87: 1.02 | E87: t
B89: F - MOMENTO DE TRANSPORTE | D89: Quantidade | E89: Unidade | F89: CÓDIGO TRANSPORTE
F90: LN | G90: RP | H90: P | I90: TIPO (P, RP ou LN) | J90: DMT ESTIMADA (km) | K90: QUANTITATIVO TOTAL DE TRANSPORTE (tkm)
A91: =IF(I91="P",H91,IF(I91="RP",G91,IF(I91="LN",F91,""))) -> 5914359 | B91: 6416078 | C91: Usinagem de concreto asfáltico - faixa C - areia e brita comerciais - Caminhão basculante 10 m³ | D91: 1.02 | E91: tkm | F91: 5914359 | G91: 5914374 | H91: 5914389 | I91: =$B$79 -> LN | J91: =C79 -> 0 | K91: =IF(ISBLANK(J91),"",J91*D91)*I85 -> 0
B93: Obs.
B96: SISTEMA DE CUSTOS REFERENCIAIS DE OBRAS - SICRO
B97: Custo Unitário de Referência | I97: Quantitativo | K97: m³
B98: 4011342 | C98: Reestabilização de camada de base com adição de 30% de brita comercial | I98: =SUMIF('ORÇAMENTO '!D:D,B98,'ORÇAMENTO '!J:J) -> 4845
B99: D - ATIVIDADES AUXILIARES | D99: Quantidade | E99: Unidade
B101: F - MOMENTO DE TRANSPORTE | D101: Quantidade | E101: Unidade | F101: CÓDIGO TRANSPORTE
F102: LN | G102: RP | H102: P | I102: TIPO (P, RP ou LN) | J102: DMT ESTIMADA (km) | K102: QUANTITATIVO TOTAL DE TRANSPORTE (tkm)
A103: =IF(I103="P",H103,IF(I103="RP",G103,IF(I103="LN",F103,""))) -> 5914359 | B103: M0191 | C103: Brita 1 - Caminhão basculante 10 m³ | D103: 0.6189 | E103: tkm | F103: 5914359 | G103: 5914374 | H103: 5914389 | I103: =$B$79 -> LN | J103: =C80 -> 0 | K103: =IF(ISBLANK(J103),"",J103*D103)*I98 -> 0
B105: Obs.
B107: SISTEMA DE CUSTOS REFERENCIAIS DE OBRAS - SICRO
B108: Custo Unitário de Referência | I108: Quantitativo | K108: m
B109: 2003943 | C109: Meio-fio de concreto - MFC 03 moldado no local com extrusora e concreto usinado - areia e brita comerciais | I109: =SUMIF('ORÇAMENTO '!D:D,B109,'ORÇAMENTO '!J:J) -> 9843.01
B110: D - ATIVIDADES AUXILIARES | D110: Quantidade | E110: Unidade
B111: 1107928 | C111: Concreto fck = 20 MPa - confecção em central dosadora de 30 m³/h - areia e brita comerciais | D111: 0.042 | E111: m³
B112: 2003842 | C112: Enchimento de junta de concreto com argamassa asfáltica de densidade 1.700 kg/m³ - espessura de 1 cm | D112: 0.0595 | E112: kg
B113: 4805750 | C113: Escavação manual em material de 1ª categoria na profundidade de até 1 m | D113: 0.03 | E113: m³
B115: F - MOMENTO DE TRANSPORTE | D115: Quantidade | E115: Unidade | F115: CÓDIGO TRANSPORTE
F116: LN | G116: RP | H116: P | I116: TIPO (P, RP ou LN) | J116: DMT ESTIMADA (km) | K116: QUANTITATIVO TOTAL DE TRANSPORTE (tkm)
A117: =IF(I117="P",H117,IF(I117="RP",G117,IF(I117="LN",F117,""))) -> 59914539 | B117: 1107928 | C117: Concreto fck = 20 MPa - confecção em central dosadora de 30 m³/h - areia e brita comerciais - Caminhão betoneira 8 m³ | D117: 0.1008 | E117: tkm | F117: 59914539 | G117: 5914554 | H117: 5914569 | I117: =$B$79 -> LN | J117: =C81 -> 0 | K117: =IF(ISBLANK(J117),"",J117*D117)*I109 -> 0
B121: TIPO (P, RP ou LN) | C121: DMT ESTIMADA (DISTRIBUIÇÃO DO ITEM NA PISTA
B122: RP | C122: 0 | D122: Usina para obra
B123: RP | C123: 8 | D123: Pedreira e Areal a Obra = 98,5 Km - 50Km = 48,5 Km, sendo 40,5 em rodovia pavimentada e 8,00 km em revestimento primário
B124: RP | C124: 0 | D124: Concreteira a Obra
B126: SISTEMA DE CUSTOS REFERENCIAIS DE OBRAS - SICRO
B127: Custo Unitário de Referência | I127: Quantitativo | K127: t
B128: 4011463 | C128: Concreto asfáltico - faixa C - areia e brita comerciais | I128: =SUMIF('ORÇAMENTO '!D:D,B128,'ORÇAMENTO '!J:J) -> 4284
B129: D - ATIVIDADES AUXILIARES | D129: Quantidade | E129: Unidade
B130: 6416078 | C130: Usinagem de concreto asfáltico - faixa C - areia e brita comerciais | D130: 1.02 | E130: t
B132: F - MOMENTO DE TRANSPORTE | D132: Quantidade | E132: Unidade | F132: CÓDIGO TRANSPORTE
F133: LN | G133: RP | H133: P | I133: TIPO (P, RP ou LN) | J133: DMT ESTIMADA (km) | K133: QUANTITATIVO TOTAL DE TRANSPORTE (tkm)
A134: =IF(I134="P",H134,IF(I134="RP",G134,IF(I134="LN",F134,""))) -> 5914374 | B134: 6416078 | C134: Usinagem de concreto asfáltico - faixa C - areia e brita comerciais - Caminhão basculante 10 m³ | D134: 1.02 | E134: tkm | F134: 5914359 | G134: 5914374 | H134: 5914389 | I134: =$B$122 -> RP | J134: =C122 -> 0 | K134: =IF(ISBLANK(J134),"",J134*D134)*I128 -> 0
B136: Obs.
B139: SISTEMA DE CUSTOS REFERENCIAIS DE OBRAS - SICRO
B140: Custo Unitário de Referência | I140: Quantitativo | K140: m³
B141: 4011342 | C141: Reestabilização de camada de base com adição de 30% de brita comercial | I141: =SUMIF('ORÇAMENTO '!D:D,B141,'ORÇAMENTO '!J:J) -> 4845
B142: D - ATIVIDADES AUXILIARES | D142: Quantidade | E142: Unidade
B144: F - MOMENTO DE TRANSPORTE | D144: Quantidade | E144: Unidade | F144: CÓDIGO TRANSPORTE
F145: LN | G145: RP | H145: P | I145: TIPO (P, RP ou LN) | J145: DMT ESTIMADA (km) | K145: QUANTITATIVO TOTAL DE TRANSPORTE (tkm)
A146: =IF(I146="P",H146,IF(I146="RP",G146,IF(I146="LN",F146,""))) -> 5914374 | B146: M0191 | C146: Brita 1 - Caminhão basculante 10 m³ | D146: 0.6189 | E146: tkm | F146: 5914359 | G146: 5914374 | H146: 5914389 | I146: =$B$122 -> RP | J146: =C123 -> 8 | K146: =IF(ISBLANK(J146),"",J146*D146)*I141 -> 23988.564
B148: Obs.
B150: SISTEMA DE CUSTOS REFERENCIAIS DE OBRAS - SICRO
B151: Custo Unitário de Referência | I151: Quantitativo | K151: m
B152: 2003943 | C152: Meio-fio de concreto - MFC 03 moldado no local com extrusora e concreto usinado - areia e brita comerciais | I152: =SUMIF('ORÇAMENTO '!D:D,B152,'ORÇAMENTO '!J:J) -> 9843.01
B153: D - ATIVIDADES AUXILIARES | D153: Quantidade | E153: Unidade
B154: 1107928 | C154: Concreto fck = 20 MPa - confecção em central dosadora de 30 m³/h - areia e brita comerciais | D154: 0.042 | E154: m³
B155: 2003842 | C155: Enchimento de junta de concreto com argamassa asfáltica de densidade 1.700 kg/m³ - espessura de 1 cm | D155: 0.0595 | E155: kg
B156: 4805750 | C156: Escavação manual em material de 1ª categoria na profundidade de até 1 m | D156: 0.03 | E156: m³
B158: F - MOMENTO DE TRANSPORTE | D158: Quantidade | E158: Unidade | F158: CÓDIGO TRANSPORTE
F159: LN | G159: RP | H159: P | I159: TIPO (P, RP ou LN) | J159: DMT ESTIMADA (km) | K159: QUANTITATIVO TOTAL DE TRANSPORTE (tkm)
A160: =IF(I160="P",H160,IF(I160="RP",G160,IF(I160="LN",F160,""))) -> 5914554 | B160: 1107928 | C160: Concreto fck = 20 MPa - confecção em central dosadora de 30 m³/h - areia e brita comerciais - Caminhão betoneira 8 m³ | D160: 0.1008 | E160: tkm | F160: 59914539 | G160: 5914554 | H160: 5914569 | I160: =$B$122 -> RP | J160: =C124 -> 0 | K160: =IF(ISBLANK(J160),"",J160*D160)*I152 -> 0
B164: SISTEMA DE CUSTOS REFERENCIAIS DE OBRAS - SICRO
B165: Custo Unitário de Referência | I165: Quantitativo | K165: und
B166: 2003453 | C166: Dissipador de energia - DEB 180-263 - areia, brita e pedra de mão comerciais | I166: =SUMIF('ORÇAMENTO '!D:D,B166,'ORÇAMENTO '!J:J) -> 41
B167: D - ATIVIDADES AUXILIARES | D167: Quantidade | E167: Unidade
B168: 4805756 | C168: Apiloamento manual de superfície com espessura de 15 cm | E168: 5,43700 | F168: m²
B169: 1107892 | C169: Concreto fck = 20 MPa - confecção em betoneira e lançamento manual - areia e brita comerciais | E169: 0,99890 | F169: m³
B170: 4805750 | C170: Escavação manual em material de 1ª categoria na profundidade de até 1 m | E170: 1,08740 | F170: m³
B171: 3103302 | C171: Fôrmas de tábuas de pinho para dispositivos de drenagem - utilização de 3 vezes - confecção, instalação e retirada | E171: 4,36800 | F171: m²
B172: F - MOMENTO DE TRANSPORTE | D172: Quantidade | E172: Unidade | F172: CÓDIGO TRANSPORTE
F173: LN | G173: RP | H173: P | I173: TIPO (P, RP ou LN) | J173: DMT ESTIMADA (km) | K173: QUANTITATIVO TOTAL DE TRANSPORTE (tkm)
A174: =IF(I174="P",H174,IF(I174="RP",G174,IF(I174="LN",F174,""))) -> 5914389 | B174: M1097 | C174: Pedra de mão ou rachão - Caminhão basculante com capacidade de 10 m³ - 210 kW | D174: 0.5622 | E174: tkm | F174: 5914359 | G174: 5914374 | H174: 5914389 | I174: =$B$23 -> P | J174: =C123 -> 8 | K174: =IF(ISBLANK(J174),"",J174*D174)*I166 -> 184.4016
A176: =IF(I176="P",H176,IF(I176="RP",G176,IF(I176="LN",F176,""))) -> 

Sheet MOMENTO DE TRANSPORTE - AUX
B5: ='ORÇAMENTO '!B1 -> CONTRATAÇÃO DE SERVIÇOS DE PAVIMENTAÇÃO ASFÁLTICA COM CONCRETO BETUMINOSO USINADO A QUENTE (CBUQ), INCLUSIVE SINALIZAÇÃO VIÁRIA E DRENAGEM SUPERFICAL, NA ESTRADA DO MELÃO, LOCALIZADA NO MUNICÍPIO DE MOSSORÓ/RN.
B6: DATA BASE: | C6: ='ORÇAMENTO '!N2 -> Rio Grande do Norte - Abril/2025
C8: RESUMO DO TRANSPORTE AUXILIAR
B9: CODIGO | C9: DESCRIÇÃO | D9: TKM
B10: 5914359 | C10: =VLOOKUP(B10,'SINTÉTICO SICRO'!$A:$D,2,0) -> Transporte com caminhão basculante de 10 m³ - rodovia em leito natural | D10: =ROUND(SUMIF($A:$A,B10,$K:$K),2) -> 0
B11: 5914374 | C11: =VLOOKUP(B11,'SINTÉTICO SICRO'!$A:$D,2,0) -> Transporte com caminhão basculante de 10 m³ - rodovia em revestimento primário | D11: 31088.51
B12: 5914389 | C12: =VLOOKUP(B12,'SINTÉTICO SICRO'!$A:$D,2,0) -> Transporte com caminhão basculante de 10 m³ - rodovia pavimentada | D12: 40845.54
B13: 5914449 | C13: =VLOOKUP(B13,'SINTÉTICO SICRO'!$A:$D,2,0) -> Transporte com caminhão carroceria de 15 t - rodovia em leito natural | D13: 0
B14: 5914464 | C14: =VLOOKUP(B14,'SINTÉTICO SICRO'!$A:$D,2,0) -> Transporte com caminhão carroceria de 15 t - rodovia em revestimento primário | D14: 4.81
B15: 5914479 | C15: =VLOOKUP(B15,'SINTÉTICO SICRO'!$A:$D,2,0) -> Transporte com caminhão carroceria de 15 t - rodovia pavimentada | D15: 12232.89
B16: 5914364 | C16: =VLOOKUP(B16,'SINTÉTICO SICRO'!$A:$D,2,0) -> Transporte de cimento ou cal hidratada a granel com caminhão silo de 30 m³ - rodovia em leito natural | D16: 0
B17: 5914365 | C17: =VLOOKUP(B17,'SINTÉTICO SICRO'!$A:$D,2,0) -> Transporte de cimento ou cal hidratada a granel com caminhão silo de 30 m³ - rodovia em revestimento primário | D17: 1964.61
B18: 5914366 | C18: =VLOOKUP(B18,'SINTÉTICO SICRO'!$A:$D,2,0) -> Transporte de cimento ou cal hidratada a granel com caminhão silo de 30 m³ - rodovia pavimentada | D18: 1694.47
B19: 5914569 | C19: =VLOOKUP(B19,'SINTÉTICO SICRO'!$A:$D,2,0) -> Transporte com caminhão betoneira - rodovia pavimentada | D19: =ROUND(SUMIF('MOMENTO DE TRANSPORTE - AUX'!A:A,B19,'MOMENTO DE TRANSPORTE - AUX'!K:K),2) -> 0
B21: TIPO (P, RP ou LN) | C21: DMT ATÉ 50 KM NÃO DEVE SER PAGA | D21: DMT ACIMA DE 50 KM
B22: P | D22: 6.9 | E22: Distância real: 64,9 km (total) - 50 km (total) = 14,9 km, sendo 6,9 km em rodovia pavimentada (excedente dos 50km) e 8,00 km em revestimento primário. (usinagem concreto asfáltico)
D23: 17.1 | E23: Distância real: 75,1 km (total) - 50 km (total) = 25,1 km, sendo 17,1 km em rodovia pavimentada (excedente dos 50km) e 8,00 km em revestimento primário. (pedreira - usina concretagem) concreto asfáltico)
D24: 40.5 | E24: Distância real: 98,5km (total) - 50 km (total) = 48,5 km, sendo 40,5 km em rodovia pavimentada (excedente dos 50km) e 8,00 km em revestimento primário. (pedreira - obra)
B25: SISTEMA DE CUSTOS REFERENCIAIS DE OBRAS - SICRO | I25: Quantitivo
B26: Custo Unitário de Referência | E26: =$C$6 -> Rio Grande do Norte - Abril/2025 | I26: (Coeficiente na composição principal) x (quantidade da principal no orçamento) | K26: t
B27: 6416078 | C27: Usinagem de concreto asfáltico - faixa C - areia e brita comerciais | I27: ='MOMENTO DE TRANSPORTE - PRINC'!D30*(VLOOKUP(C36,'ORÇAMENTO '!D:O,7,FALSE)) -> 4369.68
B28: F - MOMENTO DE TRANSPORTE | D28: Quantidade | E28: Unidade | F28: DMT
F29: LN | G29: RP | H29: P | I29: TIPO (P, RP ou LN) | J29: DMT ESTIMADA (km) | K29: QUANTITATIVO TOTAL DE TRANSPORTE DE MATERIAL (tkm)
A30: =IF(I30="P",H30,IF(I30="RP",G30,IF(I30="LN",F30,""))) -> 5914389 | B30: M0028 | C30: Areia média - Caminhão basculante 10 m³ | D30: 0.48713 | E30: tkm | F30: 5914359 | G30: 5914374 | H30: 5914389 | I30: =$B$22 -> P | J30: =$D$22 -> 6.9 | K30: =IF(ISBLANK(J30),"",J30*(D30*$I$27)) -> 14687.35531
A31: 5914389 | B31: M0005 | C31: Brita 0 - Caminhão basculante 10 m³ | D31: 0.09368 | E31: tkm | F31: 5914359 | G31: 5914374 | H31: 5914389 | I31: =$B$22 -> P | J31: =$D$22 -> 6.9 | K31: =IF(ISBLANK(J31),"",J31*(D31*$I$27)) -> 2824.526195
A32: 5914389 | B32: M0191 | C32: Brita 1 - Caminhão basculante 10 m³ | D32: 0.09368 | E32: tkm | F32: 5914359 | G32: 5914374 | H32: 5914389 | I32: =$B$22 -> P | J32: =$D$22 -> 6.9 | K32: =IF(ISBLANK(J32),"",J32*(D32*$I$27)) -> 2824.526195
A33: 5914366 | B33: M0344 | C33: Cal hidratada - a granel - Caminhão silo 30 m³ | D33: 0.0562 | E33: tkm | F33: 5914364 | G33: 5914365 | H33: 5914366 | I33: =$B$22 -> P | J33: =$D$22 -> 6.9 | K33: =IF(ISBLANK(J33),"",J33*(D33*$I$27)) -> 1694.47451
A34: 5914389 | B34: M1103 | C34: Pedrisco - Caminhão basculante 10 m³ | D34: 0.20609 | E34: tkm | F34: 5914359 | G34: 5914374 | H34: 5914389 | I34: =$B$22 -> P | J34: =$D$22 -> 6.9 | K34: =IF(ISBLANK(J34),"",J34*(D34*$I$27)) -> 6213.776723
B36: PRINCIPAL: | C36: 4011463
B39: SISTEMA DE CUSTOS REFERENCIAIS DE OBRAS - SICRO | I39: Quantitivo
B40: Custo Unitário de Referência | E40: =$C$6 -> Rio Grande do Norte - Abril/2025 | I40: (Coeficiente na composição principal) x (quantidade da principal no orçamento) | K40: m³
B41: 1107928 | C41: Concreto fck = 20 MPa - confecção em central dosadora de 30 m³/h - areia e brita comerciais | I41: ='MOMENTO DE TRANSPORTE - PRINC'!D54*(VLOOKUP(C49,'ORÇAMENTO '!D:O,7,FALSE)) -> 413.40642
B42: F - MOMENTO DE TRANSPORTE | D42: Quantidade | E42: Unidade | F42: DMT
F43: LN | G43: RP | H43: P | I43: TIPO (P, RP ou LN) | J43: DMT ESTIMADA (km) | K43: QUANTITATIVO TOTAL DE TRANSPORTE DE MATERIAL (tkm)
A44: =IF(I44="P",H44,IF(I44="RP",G44,IF(I44="LN",F44,""))) -> 5914479 | B44: M0030 | C44: Aditivo plastificante e retardador de pega para concreto e argamassa (Caminhão carroceria com capacidade de 15 t - 188 kW) | D44: 0.00085 | E44: tkm | F44: 5914449 | G44: 5914464 | H44: 5914479 | I44: =$B$22 -> P | J44: =D23 -> 17.1 | K44: =IF(ISBLANK(J44),"",J44*(D44*$I$41)) -> 6.008862315
A45: 5914389 | B45: M0082 | C45: Cimento Portland CP II - 32 - saco (Caminhão carroceria com capacidade de 15 t - 188 kW) | D45: 0.28215 | E45: tkm | F45: 5914359 | G45: 5914374 | H45: 5914389 | I45: =$B$22 -> P | J45: =D23 -> 17.1 | K45: =IF(ISBLANK(J45),"",J45*(D45*$I$41)) -> 1994.588826
A46: 5914389 | B46: M0191 | C46: Areia extraída com draga de sucção tipo bomba (Caminhão basculante com capacidade de 10 m³ - 188 kW) | D46: 0.95001 | E46: tkm | F46: 5914359 | G46: 5914374 | H46: 5914389 | I46: =$B$22 -> P | J46: =D23 -> 17.1 | K46: 6715.857985
A47: 5914479 | B47: M0424 | C47: Brita produzida em central de britagem de 80 m³/h (Caminhão basculante com capacidade de 10 m³ - 188 kW) | D47: 1.10262 | E47: tkm | F47: 5914449 | G47: 5914464 | H47: 5914479 | I47: =$B$22 -> P | J47: =D23 -> 17.1 | K47: 7794.696195
B49: PRINCIPAL: | C49: 2003943
B51: SISTEMA DE CUSTOS REFERENCIAIS DE OBRAS - SICRO | I51: Quantitivo
B52: Custo Unitário de Referência | E52: =$C$6 -> Rio Grande do Norte - Abril/2025 | I52: (Coeficiente na composição principal) x (quantidade da principal no orçamento) | K52: kg
B53: 2003842 | C53: Enchimento de junta de concreto com argamassa asfáltica de densidade 1.700 kg/m³ - espessura de 1 cm | I53: ='MOMENTO DE TRANSPORTE - PRINC'!D55*(VLOOKUP(C58,'ORÇAMENTO '!D:O,7,FALSE)) -> 585.659095
B54: F - MOMENTO DE TRANSPORTE | D54: Quantidade | E54: Unidade | F54: DMT
F55: LN | G55: RP | H55: P | I55: TIPO (P, RP ou LN) | J55: DMT ESTIMADA (km) | K55: QUANTITATIVO TOTAL DE TRANSPORTE DE MATERIAL (tkm)
A56: =IF(I56="P",H56,IF(I56="RP",G56,IF(I56="LN",F56,""))) -> 5914479 | B56: M2158 | C56: Argamassa asfáltica - Caminhão carroceria com capacidade de 15 t - 188 Kw | D56: 0.001 | E56: tkm | F56: 5914449 | G56: 5914464 | H56: 5914479 | I56: =$B$22 -> P | J56: =D23 -> 17.1 | K56: =IF(ISBLANK(J56),"",J56*(D56*$I$53)) -> 10.01477052
B58: PRINCIPAL: | C58: 2003943
B60: SISTEMA DE CUSTOS REFERENCIAIS DE OBRAS - SICRO | I60: Quantitivo
B61: Custo Unitário de Referência | E61: =$C$6 -> Rio Grande do Norte - Abril/2025 | I61: (Coeficiente na composição principal) x (quantidade da principal no orçamento) | K61: m³
B62: 1109669 | C62: Argamassa de cimento e areia 1:3 - confecção em betoneira e lançamento manual - areia comercial | I62: ='ORÇAMENTO '!J33*0.0004 -> 0.053496
B63: F - MOMENTO DE TRANSPORTE | D63: Quantidade | E63: Unidade | F63: DMT
F64: LN | G64: RP | H64: P | I64: TIPO (P, RP ou LN) | J64: DMT ESTIMADA (km) | K64: QUANTITATIVO TOTAL DE TRANSPORTE DE MATERIAL (tkm)
A65: =IF(I65="P",H65,IF(I65="RP",G65,IF(I65="LN",F65,""))) -> 5914389 | B65: M0082 | C65: Areia média lavada | D65: 1.50653 | E65: tkm | F65: 5914359 | G65: 5914374 | H65: 5914389 | I65: =$B$22 -> P | J65: 40.5 | K65: =IF(ISBLANK(J65),"",J65*(D65*$I$62)) -> 3.26402982
B67: PRINCIPAL: | C67: 2003389
A68: =IF(I68="P",H68,IF(I68="RP",G68,IF(I68="LN",F68,""))) -> 
B69: SISTEMA DE CUSTOS REFERENCIAIS DE OBRAS - SICRO | I69: Quantitivo
B70: Custo Unitário de Referência | E70: =$C$6 -> Rio Grande do Norte - Abril/2025 | I70: (Coeficiente na composição principal) x (quantidade da principal no orçamento) | K70: m³
B71: 1107892 | C71: Concreto fck = 20 MPa - confecção em betoneira e lançamento manual - areia e brita comerciais | I71: ='ORÇAMENTO '!J33*0.1389 -> 18.576486
B72: F - MOMENTO DE TRANSPORTE | D72: Quantidade | E72: Unidade | F72: DMT
F73: LN | G73: RP | H73: P | I73: TIPO (P, RP ou LN) | J73: DMT ESTIMADA (km) | K73: QUANTITATIVO TOTAL DE TRANSPORTE DE MATERIAL (tkm)
A74: =IF(I74="P",H74,IF(I74="RP",G74,IF(I74="LN",F74,""))) -> 5914389 | B74: M0082 | C74: Areia média lavada - Caminhão basculante com capacidade de 10 m³ - 210 Kw | D74: 0.95001 | E74: tkm | F74: 5914359 | G74: 5914374 | H74: 5914389 | I74: =$B$22 -> P | J74: =$D$24 -> 40.5 | K74: =IF(ISBLANK(J74),"",J74*(D74*$I$71)) -> 714.7378223
A75: 5914389 | B75: M0191 | C75: Brita 1 - Caminhão basculante com capacidade de 10 m³ - 210 kW | D75: 0.55131 | E75: tkm | F75: 5914359 | G75: 5914374 | H75: 5914389 | I75: =$B$22 -> P | J75: =$D$24 -> 40.5 | K75: =IF(ISBLANK(J75),"",J75*(D75*$I$71)) -> 414.7768011
A76: 5914389 | B76: M0192 | C76: Brita 2 - Caminhão basculante com capacidade de 10 m³ - 210 kW | D76: 0.55131 | E76: tkm | F76: 5914359 | G76: 5914374 | H76: 5914389 | I76: =$B$22 -> P | J76: 40.5 | K76: 414.7768011
A77: 5914479 | B77: M0424 | C77: Cimento Portland CP II - 32 - saco - Carga, manobra e descarga de materiais diversos em caminhão carroceria de 15 t - carga e descarga manuais | D77: 0.28215 | E77: tkm | F77: 5914449 | G77: 5914464 | H77: 5914479 | I77: =$B$22 -> P | J77: 40.5 | K77: 212.2748988
A78: 5914479 | B78: M0030 | C78: Aditivo plastificante e retardador de pega para concreto e argamassa - Carga, manobra e descarga de materiais diversos em caminhão carroceria de 15 t - carga e descarga manuais | D78: 0.00085 | E78: tkm | F78: 5914449 | G78: 5914464 | H78: 5914479 | I78: P | J78: 40.5 | K78: 0.6394955305
B79: PRINCIPAL: | C79: 2003389
B81: SISTEMA DE CUSTOS REFERENCIAIS DE OBRAS - SICRO | I81: Quantitivo
B82: Custo Unitário de Referência | E82: =$C$6 -> Rio Grande do Norte - Abril/2025 | I82: (Coeficiente na composição principal) x (quantidade da principal no orçamento) | K82: m³
B83: 1107892 | C83: Concreto fck = 20 MPa - confecção em betoneira e lançamento manual - areia e brita comerciais | I83: ='MOMENTO DE TRANSPORTE - PRINC'!E169*'ORÇAMENTO '!J34 -> 40.9549
B84: F - MOMENTO DE TRANSPORTE | D84: Quantidade | E84: Unidade | F84: DMT
F85: LN | G85: RP | H85: P | I85: TIPO (P, RP ou LN) | J85: DMT ESTIMADA (km) | K85: QUANTITATIVO TOTAL DE TRANSPORTE DE MATERIAL (tkm)
A86: =IF(I86="P",H86,IF(I86="RP",G86,IF(I86="LN",F86,""))) -> 5914389 | B86: M0082 | C86: Areia média lavada - Caminhão basculante com capacidade de 10 m³ - 210 Kw | D86: 0.95001 | E86: tkm | F86: 5914359 | G86: 5914374 | H86: 5914389 | I86: =$B$22 -> P | J86: =$D$24 -> 40.5 | K86: =IF(ISBLANK(J86),"",J86*(D86*$I$83)) -> 1575.756364
A87: 5914389 | B87: M0191 | C87: Brita 1 - Caminhão basculante com capacidade de 10 m³ - 210 kW | D87: 0.55131 | E87: tkm | F87: 5914359 | G87: 5914374 | H87: 5914389 | I87: =$B$22 -> P | J87: =$D$24 -> 40.5 | K87: =IF(ISBLANK(J87),"",J87*(D87*$I$83)) -> 914.4432597
A88: 5914389 | B88: M0192 | C88: Brita 2 - Caminhão basculante com capacidade de 10 m³ - 210 kW | D88: 0.55131 | E88: tkm | F88: 5914359 | G88: 5914374 | H88: 5914389 | I88: =$B$22 -> P | J88: 40.5 | K88: =IF(ISBLANK(J88),"",J88*(D88*$I$83)) -> 914.4432597
A89: 5914479 | B89: M0424 | C89: Cimento Portland CP II - 32 - saco - Carga, manobra e descarga de materiais diversos em caminhão carroceria de 15 t - carga e descarga manuais | D89: 0.28215 | E89: tkm | F89: 5914449 | G89: 5914464 | H89: 5914479 | I89: =$B$22 -> P | J89: 40.5 | K89: =IF(ISBLANK(J89),"",J89*(D89*$I$83)) -> 467.9947139
A90: 5914479 | B90: M0030 | C90: Aditivo plastificante e retardador de pega para concreto e argamassa - Carga, manobra e descarga de materiais diversos em caminhão carroceria de 15 t - carga e descarga manuais | D90: 0.00085 | E90: tkm | F90: 5914449 | G90: 5914464 | H90: 5914479 | I90: P | J90: 40.5 | K90: =IF(ISBLANK(J90),"",J90*(D90*$I$83)) -> 1.409872433
B91: PRINCIPAL: | C91: 2003453
B93: TIPO (P, RP ou LN) | C93: DMT ATÉ 50 KM NÃO DEVE SER PAGA | D93: DMT ACIMA DE 50 KM
B94: LN | D94: 0
B96: SISTEMA DE CUSTOS REFERENCIAIS DE OBRAS - SICRO | I96: Quantitivo
B97: Custo Unitário de Referência | E97: =$C$6 -> Rio Grande do Norte - Abril/2025 | I97: (Coeficiente na composição principal) x (quantidade da principal no orçamento) | K97: t
B98: 6416078 | C98: Usinagem de concreto asfáltico - faixa C - areia e brita comerciais | I98: ='MOMENTO DE TRANSPORTE - PRINC'!D30*(VLOOKUP(C107,'ORÇAMENTO '!D:O,7,FALSE)) -> 4369.68
B99: F - MOMENTO DE TRANSPORTE | D99: Quantidade | E99: Unidade | F99: DMT
F100: LN | G100: RP | H100: P | I100: TIPO (P, RP ou LN) | J100: DMT ESTIMADA (km) | K100: QUANTITATIVO TOTAL DE TRANSPORTE DE MATERIAL (tkm)
A101: =IF(I101="P",H101,IF(I101="RP",G101,IF(I101="LN",F101,""))) -> 5914359 | B101: M0028 | C101: Areia média - Caminhão basculante 10 m³ | D101: 0.48713 | E101: tkm | F101: 5914359 | G101: 5914374 | H101: 5914389 | I101: =$B$94 -> LN | J101: =$D$94 -> 0 | K101: =IF(ISBLANK(J101),"",J101*(D101*$I$27)) -> 0
A102: 5914359 | B102: M0005 | C102: Brita 0 - Caminhão basculante 10 m³ | D102: 0.09368 | E102: tkm | F102: 5914359 | G102: 5914374 | H102: 5914389 | I102: =$B$94 -> LN | J102: =$D$94 -> 0 | K102: =IF(ISBLANK(J102),"",J102*(D102*$I$27)) -> 0
A103: 5914359 | B103: M0191 | C103: Brita 1 - Caminhão basculante 10 m³ | D103: 0.09368 | E103: tkm | F103: 5914359 | G103: 5914374 | H103: 5914389 | I103: =$B$94 -> LN | J103: 0 | K103: =IF(ISBLANK(J103),"",J103*(D103*$I$27)) -> 0
A104: 5914364 | B104: M0344 | C104: Cal hidratada - a granel - Caminhão silo 30 m³ | D104: 0.0562 | E104: tkm | F104: 5914364 | G104: 5914365 | H104: 5914366 | I104: =$B$94 -> LN | J104: 0 | K104: =IF(ISBLANK(J104),"",J104*(D104*$I$27)) -> 0
A105: 5914359 | B105: M1103 | C105: Pedrisco - Caminhão basculante 10 m³ | D105: 0.20609 | E105: tkm | F105: 5914359 | G105: 5914374 | H105: 5914389 | I105: =$B$94 -> LN | J105: 0 | K105: =IF(ISBLANK(J105),"",J105*(D105*$I$27)) -> 0
B107: PRINCIPAL: | C107: 4011463
B110: SISTEMA DE CUSTOS REFERENCIAIS DE OBRAS - SICRO | I110: Quantitivo
B111: Custo Unitário de Referência | E111: =$C$6 -> Rio Grande do Norte - Abril/2025 | I111: (Coeficiente na composição principal) x (quantidade da principal no orçamento) | K111: m³
B112: 1107892 | C112: Concreto fck = 20 MPa - confecção em betoneira e lançamento manual - areia e brita comerciais | I112: ='MOMENTO DE TRANSPORTE - PRINC'!D54*(VLOOKUP(C120,'ORÇAMENTO '!D:O,7,FALSE)) -> 413.40642
B113: F - MOMENTO DE TRANSPORTE | D113: Quantidade | E113: Unidade | F113: DMT
F114: LN | G114: RP | H114: P | I114: TIPO (P, RP ou LN) | J114: DMT ESTIMADA (km) | K114: QUANTITATIVO TOTAL DE TRANSPORTE DE MATERIAL (tkm)
A115: =IF(I115="P",H115,IF(I115="RP",G115,IF(I115="LN",F115,""))) -> 5914449 | B115: M0030 | C115: Aditivo plastificante e retardador de pega para concreto e argamassa (Caminhão carroceria com capacidade de 15 t - 188 kW) | D115: 0.00085 | E115: tkm | F115: 5914449 | G115: 5914464 | H115: 5914479 | I115: LN | J115: 0 | K115: =IF(ISBLANK(J115),"",J115*(D115*$I$112)) -> 0
A116: 5914359 | B116: M0082 | C116: Cimento Portland CP II - 32 - saco (Caminhão carroceria com capacidade de 15 t - 188 kW) | D116: 0.28215 | E116: tkm | F116: 5914359 | G116: 5914374 | H116: 5914389 | I116: LN | J116: 0 | K116: =IF(ISBLANK(J116),"",J116*(D116*$I$112)) -> 0
A117: 5914359 | B117: M0191 | C117: Areia extraída com draga de sucção tipo bomba (Caminhão basculante com capacidade de 10 m³ - 188 kW) | D117: 0.95001 | E117: tkm | F117: 5914359 | G117: 5914374 | H117: 5914389 | I117: LN | J117: 0 | K117: 0
A118: 5914449 | B118: M0424 | C118: Brita produzida em central de britagem de 80 m³/h (Caminhão basculante com capacidade de 10 m³ - 188 kW) | D118: 1.10262 | E118: tkm | F118: 5914449 | G118: 5914464 | H118: 5914479 | I118: LN | J118: 0 | K118: 0
B120: PRINCIPAL: | C120: 2003943
B122: SISTEMA DE CUSTOS REFERENCIAIS DE OBRAS - SICRO | I122: Quantitivo
B123: Custo Unitário de Referência | E123: =$C$6 -> Rio Grande do Norte - Abril/2025 | I123: (Coeficiente na composição principal) x (quantidade da principal no orçamento) | K123: kg
B124: 2003842 | C124: Enchimento de junta de concreto com argamassa asfáltica de densidade 1.700 kg/m³ - espessura de 1 cm | I124: ='MOMENTO DE TRANSPORTE - PRINC'!D55*(VLOOKUP(C129,'ORÇAMENTO '!D:O,7,FALSE)) -> 585.659095
B125: F - MOMENTO DE TRANSPORTE | D125: Quantidade | E125: Unidade | F125: DMT
F126: LN | G126: RP | H126: P | I126: TIPO (P, RP ou LN) | J126: DMT ESTIMADA (km) | K126: QUANTITATIVO TOTAL DE TRANSPORTE DE MATERIAL (tkm)
A127: =IF(I127="P",H127,IF(I127="RP",G127,IF(I127="LN",F127,""))) -> 5914449 | B127: M2158 | C127: Argamassa asfáltica - Caminhão carroceria com capacidade de 15 t - 188 Kw | D127: 0.001 | E127: tkm | F127: 5914449 | G127: 5914464 | H127: 5914479 | I127: =$B$94 -> LN | J127: =$D$94 -> 0 | K127: =IF(ISBLANK(J127),"",J127*(D127*$I$53)) -> 0
B129: PRINCIPAL: | C129: 2003943
B133: TIPO (P, RP ou LN) | C133: DMT ATÉ 50 KM NÃO DEVE SER PAGA | D133: DMT ACIMA DE 50 KM
B134: RP | D134: 8 | E134: Distância real: 64,9 km (total) - 50 km (total) = 14,9 km, sendo 6,9 km em rodovia pavimentada (excedente dos 50km) e 8,00 km em revestimento primário.
E135: Distância real: 75,1 km (total) - 50 km (total) = 25,1 km, sendo 17,1 km em rodovia pavimentada (excedente dos 50km) e 8,00 km em revestimento primário. (pedreira - usina concretagem) concreto asfáltico)
E136: Distância real: 98,5km (total) - 50 km (total) = 48,5 km, sendo 40,5 km em rodovia pavimentada (excedente dos 50km) e 8,00 km em revestimento primário. (pedreira - obra)
B137: SISTEMA DE CUSTOS REFERENCIAIS DE OBRAS - SICRO | I137: Quantitivo
B138: Custo Unitário de Referência | E138: =$C$6 -> Rio Grande do Norte - Abril/2025 | I138: (Coeficiente na composição principal) x (quantidade da principal no orçamento) | K138: t
B139: 6416078 | C139: Usinagem de concreto asfáltico - faixa C - areia e brita comerciais | I139: ='MOMENTO DE TRANSPORTE - PRINC'!D30*(VLOOKUP(C148,'ORÇAMENTO '!D:O,7,FALSE)) -> 4369.68
B140: F - MOMENTO DE TRANSPORTE | D140: Quantidade | E140: Unidade | F140: DMT
F141: LN | G141: RP | H141: P | I141: TIPO (P, RP ou LN) | J141: DMT ESTIMADA (km) | K141: QUANTITATIVO TOTAL DE TRANSPORTE DE MATERIAL (tkm)
A142: =IF(I142="P",H142,IF(I142="RP",G142,IF(I142="LN",F142,""))) -> 5914374 | B142: M0028 | C142: Areia média - Caminhão basculante 10 m³ | D142: 0.48713 | E142: tkm | F142: 5914359 | G142: 5914374 | H142: 5914389 | I142: =$B$134 -> RP | J142: =$D$134 -> 8 | K142: =IF(ISBLANK(J142),"",J142*(D142*$I$27)) -> 17028.81775
A143: 5914374 | B143: M0005 | C143: Brita 0 - Caminhão basculante 10 m³ | D143: 0.09368 | E143: tkm | F143: 5914359 | G143: 5914374 | H143: 5914389 | I143: =$B$134 -> RP | J143: =$D$134 -> 8 | K143: =IF(ISBLANK(J143),"",J143*(D143*$I$27)) -> 3274.812979
A144: 5914374 | B144: M0191 | C144: Brita 1 - Caminhão basculante 10 m³ | D144: 0.09368 | E144: tkm | F144: 5914359 | G144: 5914374 | H144: 5914389 | I144: =$B$134 -> RP | J144: 8 | K144: =IF(ISBLANK(J144),"",J144*(D144*$I$27)) -> 3274.812979
A145: 5914365 | B145: M0344 | C145: Cal hidratada - a granel - Caminhão silo 30 m³ | D145: 0.0562 | E145: tkm | F145: 5914364 | G145: 5914365 | H145: 5914366 | I145: =$B$134 -> RP | J145: 8 | K145: =IF(ISBLANK(J145),"",J145*(D145*$I$27)) -> 1964.608128
A146: 5914374 | B146: M1103 | C146: Pedrisco - Caminhão basculante 10 m³ | D146: 0.20609 | E146: tkm | F146: 5914359 | G146: 5914374 | H146: 5914389 | I146: =$B$134 -> RP | J146: 8 | K146: =IF(ISBLANK(J146),"",J146*(D146*$I$27)) -> 7204.37881
B148: PRINCIPAL: | C148: 4011463
B151: SISTEMA DE CUSTOS REFERENCIAIS DE OBRAS - SICRO | I151: Quantitivo
B152: Custo Unitário de Referência | E152: =$C$6 -> Rio Grande do Norte - Abril/2025 | I152: (Coeficiente na composição principal) x (quantidade da principal no orçamento) | K152: m³
B153: 1107892 | C153: Concreto fck = 20 MPa - confecção em betoneira e lançamento manual - areia e brita comerciais | I153: ='MOMENTO DE TRANSPORTE - PRINC'!D54*(VLOOKUP(C161,'ORÇAMENTO '!D:O,7,FALSE)) -> 413.40642
B154: F - MOMENTO DE TRANSPORTE | D154: Quantidade | E154: Unidade | F154: DMT
F155: LN | G155: RP | H155: P | I155: TIPO (P, RP ou LN) | J155: DMT ESTIMADA (km) | K155: QUANTITATIVO TOTAL DE TRANSPORTE DE MATERIAL (tkm)
A156: =IF(I156="P",H156,IF(I156="RP",G156,IF(I156="LN",F156,""))) -> 5914479 | B156: M0030 | C156: Aditivo plastificante e retardador de pega para concreto e argamassa (Caminhão carroceria com capacidade de 15 t - 188 kW) | D156: 0.00085 | E156: tkm | F156: 5914449 | G156: 5914464 | H156: 5914479 | I156: P | J156: =D134 -> 8 | K156: =IF(ISBLANK(J156),"",J156*(D156*$I$153)) -> 2.811163656
A157: 5914389 | B157: M0082 | C157: Cimento Portland CP II - 32 - saco (Caminhão carroceria com capacidade de 15 t - 188 kW) | D157: 0.28215 | E157: tkm | F157: 5914359 | G157: 5914374 | H157: 5914389 | I157: P | J157: =D134 -> 8 | K157: =IF(ISBLANK(J157),"",J157*(D157*$I$153)) -> 933.1409712
A158: 5914389 | B158: M0191 | C158: Areia extraída com draga de sucção tipo bomba (Caminhão basculante com capacidade de 10 m³ - 188 kW) | D158: 0.95001 | E158: tkm | F158: 5914359 | G158: 5914374 | H158: 5914389 | I158: P | J158: =$D$134 -> 8 | K158: 3141.921865
A159: 5914479 | B159: M0424 | C159: Brita produzida em central de britagem de 80 m³/h (Caminhão basculante com capacidade de 10 m³ - 188 kW) | D159: 1.10262 | E159: tkm | F159: 5914449 | G159: 5914464 | H159: 5914479 | I159: P | J159: =$D$134 -> 8 | K159: 3646.641495
B161: PRINCIPAL: | C161: 2003943
B163: SISTEMA DE CUSTOS REFERENCIAIS DE OBRAS - SICRO | I163: Quantitivo
B164: Custo Unitário de Referência | E164: =$C$6 -> Rio Grande do Norte - Abril/2025 | I164: (Coeficiente na composição principal) x (quantidade da principal no orçamento) | K164: kg
B165: 2003842 | C165: Enchimento de junta de concreto com argamassa asfáltica de densidade 1.700 kg/m³ - espessura de 1 cm | I165: ='MOMENTO DE TRANSPORTE - PRINC'!D55*(VLOOKUP(C170,'ORÇAMENTO '!D:O,7,FALSE)) -> 585.659095
B166: F - MOMENTO DE TRANSPORTE | D166: Quantidade | E166: Unidade | F166: DMT
F167: LN | G167: RP | H167: P | I167: TIPO (P, RP ou LN) | J167: DMT ESTIMADA (km) | K167: QUANTITATIVO TOTAL DE TRANSPORTE DE MATERIAL (tkm)
A168: =IF(I168="P",H168,IF(I168="RP",G168,IF(I168="LN",F168,""))) -> 5914464 | B168: M2158 | C168: Argamassa asfáltica - Caminhão carroceria com capacidade de 15 t - 188 Kw | D168: 0.001 | E168: tkm | F168: 5914449 | G168: 5914464 | H168: 5914479 | I168: =$B$134 -> RP | J168: =$D$134 -> 8 | K168: =IF(ISBLANK(J168),"",J168*(D168*$I$53)) -> 4.68527276
B170: PRINCIPAL: | C170: 2003943
B172: SISTEMA DE CUSTOS REFERENCIAIS DE OBRAS - SICRO | I172: Quantitivo
B173: Custo Unitário de Referência | E173: =$C$6 -> Rio Grande do Norte - Abril/2025 | I173: (Coeficiente na composição principal) x (quantidade da principal no orçamento) | K173: m³
B174: 1109669 | C174: Argamassa de cimento e areia 1:3 - confecção em betoneira e lançamento manual - areia comercial | I174: =I62 -> 0.053496
B175: F - MOMENTO DE TRANSPORTE | D175: Quantidade | E175: Unidade | F175: DMT
F176: LN | G176: RP | H176: P | I176: TIPO (P, RP ou LN) | J176: DMT ESTIMADA (km) | K176: QUANTITATIVO TOTAL DE TRANSPORTE DE MATERIAL (tkm)
A177: =IF(I177="P",H177,IF(I177="RP",G177,IF(I177="LN",F177,""))) -> 5914374 | B177: M0082 | C177: Areia média lavada | D177: 1.50653 | E177: tkm | F177: 5914359 | G177: 5914374 | H177: 5914389 | I177: RP | J177: 8 | K177: =IF(ISBLANK(J177),"",J177*(D177*$I$174)) -> 0.644746631
B179: PRINCIPAL: | C179: 2003389
B181: SISTEMA DE CUSTOS REFERENCIAIS DE OBRAS - SICRO | I181: Quantitivo
B182: Custo Unitário de Referência | E182: =$C$6 -> Rio Grande do Norte - Abril/2025 | I182: (Coeficiente na composição principal) x (quantidade da principal no orçamento) | K182: m³
B183: 1107892 | C183: Concreto fck = 20 MPa - confecção em betoneira e lançamento manual - areia e brita comerciais | I183: =I71 -> 18.576486
B184: F - MOMENTO DE TRANSPORTE | D184: Quantidade | E184: Unidade | F184: DMT
F185: LN | G185: RP | H185: P | I185: TIPO (P, RP ou LN) | J185: DMT ESTIMADA (km) | K185: QUANTITATIVO TOTAL DE TRANSPORTE DE MATERIAL (tkm)
A186: =IF(I186="P",H186,IF(I186="RP",G186,IF(I186="LN",F186,""))) -> 5914374 | B186: M0082 | C186: Areia média lavada - Caminhão basculante com capacidade de 10 m³ - 210 Kw | D186: 0.95001 | E186: tkm | F186: 5914359 | G186: 5914374 | H186: 5914389 | I186: RP | J186: =$D$134 -> 8 | K186: =IF(ISBLANK(J186),"",J186*(D186*$I$183)) -> 141.1827797
A187: 5914374 | B187: M0191 | C187: Brita 1 - Caminhão basculante com capacidade de 10 m³ - 210 kW | D187: 0.55131 | E187: tkm | F187: 5914359 | G187: 5914374 | H187: 5914389 | I187: RP | J187: =$D$134 -> 8 | K187: =IF(ISBLANK(J187),"",J187*(D187*$I$183)) -> 81.93121997
A188: 5914374 | B188: M0192 | C188: Brita 2 - Caminhão basculante com capacidade de 10 m³ - 210 kW | D188: 0.55131 | E188: tkm | F188: 5914359 | G188: 5914374 | H188: 5914389 | I188: RP | J188: 8 | K188: 81.93121997
A189: 5914464 | B189: M0424 | C189: Cimento Portland CP II - 32 - saco - Carga, manobra e descarga de materiais diversos em caminhão carroceria de 15 t - carga e descarga manuais | D189: 0.28215 | E189: tkm | F189: 5914449 | G189: 5914464 | H189: 5914479 | I189: RP | J189: 8 | K189: 41.9308442
A190: 5914464 | B190: M0030 | C190: Aditivo plastificante e retardador de pega para concreto e argamassa - Carga, manobra e descarga de materiais diversos em caminhão carroceria de 15 t - carga e descarga manuais | D190: 0.00085 | E190: tkm | F190: 5914449 | G190: 5914464 | H190: 5914479 | I190: RP | J190: 8 | K190: 0.1263201048
B191: PRINCIPAL: | C191: 2003389
B193: SISTEMA DE CUSTOS REFERENCIAIS DE OBRAS - SICRO | I193: Quantitivo
B194: Custo Unitário de Referência | E194: =$C$6 -> Rio Grande do Norte - Abril/2025 | I194: (Coeficiente na composição principal) x (quantidade da principal no orçamento) | K194: m³
B195: 1107892 | C195: Concreto fck = 20 MPa - confecção em betoneira e lançamento manual - areia e brita comerciais | I195: ='MOMENTO DE TRANSPORTE - PRINC'!E169*'ORÇAMENTO '!J34 -> 40.9549
B196: F - MOMENTO DE TRANSPORTE | D196: Quantidade | E196: Unidade | F196: DMT
F197: LN | G197: RP | H197: P | I197: TIPO (P, RP ou LN) | J197: DMT ESTIMADA (km) | K197: QUANTITATIVO TOTAL DE TRANSPORTE DE MATERIAL (tkm)
A198: =IF(I198="P",H198,IF(I198="RP",G198,IF(I198="LN",F198,""))) -> 5914389 | B198: M0082 | C198: Areia média lavada - Caminhão basculante com capacidade de 10 m³ - 210 Kw | D198: 0.95001 | E198: tkm | F198: 5914359 | G198: 5914374 | H198: 5914389 | I198: =$B$22 -> P | J198: =$D$134 -> 8 | K198: =IF(ISBLANK(J198),"",J198*(D198*$I$195)) -> 311.2605164
A199: 5914389 | B199: M0191 | C199: Brita 1 - Caminhão basculante com capacidade de 10 m³ - 210 kW | D199: 0.55131 | E199: tkm | F199: 5914359 | G199: 5914374 | H199: 5914389 | I199: =$B$22 -> P | J199: =$D$134 -> 8 | K199: =IF(ISBLANK(J199),"",J199*(D199*$I$195)) -> 180.6307674
A200: 5914389 | B200: M0192 | C200: Brita 2 - Caminhão basculante com capacidade de 10 m³ - 210 kW | D200: 0.55131 | E200: tkm | F200: 5914359 | G200: 5914374 | H200: 5914389 | I200: =$B$22 -> P | J200: 8 | K200: =IF(ISBLANK(J200),"",J200*(D200*$I$195)) -> 180.6307674
A201: 5914479 | B201: M0424 | C201: Cimento Portland CP II - 32 - saco - Carga, manobra e descarga de materiais diversos em caminhão carroceria de 15 t - carga e descarga manuais | D201: 0.28215 | E201: tkm | F201: 5914449 | G201: 5914464 | H201: 5914479 | I201: =$B$22 -> P | J201: 8 | K201: 92.44340028
A202: 5914479 | B202: M0030 | C202: Aditivo plastificante e retardador de pega para concreto e argamassa - Carga, manobra e descarga de materiais diversos em caminhão carroceria de 15 t - carga e descarga manuais | D202: 0.00085 | E202: tkm | F202: 5914449 | G202: 5914464 | H202: 5914479 | I202: P | J202: 8 | K202: 0.27849332
B203: PRINCIPAL: | C203: 2003453

Sheet ANP ESTADO
A1: Agência Nacional do Petróleo, Gás Natural e Biocombustíveis
A2: Superintendência de Defesa da Concorrência
A5: PREÇO MÉDIO MENSAL PONDERADO PRATICADO PELOS DISTRIBUIDORES DE PRODUTOS ASFÁLTICOS (R$/KG)
A7: Importante: | B7: Quando não houver declaração de venda do produto selecionado, ou quando a declaração de venda do produto ocorrer por menos de 03 (três) distribuidoras, a tabela indicará campo vazio.
A8: Mês | B8: Produto | C8: Estado | D8: Preço
A9: 2013-01-01 | B9: ASFALTOS DILUÍDOS CM-30 | C9: Acre | D9: -
A10: 2013-01-01 | B10: ASFALTOS DILUÍDOS CM-30 | C10: Alagoas | D10: -
A11: 2013-01-01 | B11: ASFALTOS DILUÍDOS CM-30 | C11: Amapá | D11: -
A12: 2013-01-01 | B12: ASFALTOS DILUÍDOS CM-30 | C12: Amazonas | D12: 1.453527021
A13: 2013-01-01 | B13: ASFALTOS DILUÍDOS CM-30 | C13: Bahia | D13: 1.464044142
A14: 2013-01-01 | B14: ASFALTOS DILUÍDOS CM-30 | C14: Ceará | D14: 1.447997934
A15: 2013-01-01 | B15: ASFALTOS DILUÍDOS CM-30 | C15: Distrito Federal | D15: -
A16: 2013-01-01 | B16: ASFALTOS DILUÍDOS CM-30 | C16: Espírito Santo | D16: -
A17: 2013-01-01 | B17: ASFALTOS DILUÍDOS CM-30 | C17: Goiás | D17: 1.686383065
A18: 2013-01-01 | B18: ASFALTOS DILUÍDOS CM-30 | C18: Maranhão | D18: -
A19: 2013-01-01 | B19: ASFALTOS DILUÍDOS CM-30 | C19: Mato Grosso | D19: -
A20: 2013-01-01 | B20: ASFALTOS DILUÍDOS CM-30 | C20: Mato Grosso do Sul | D20: -
A21: 2013-01-01 | B21: ASFALTOS DILUÍDOS CM-30 | C21: Minas Gerais | D21: 1.451106114
A22: 2013-01-01 | B22: ASFALTOS DILUÍDOS CM-30 | C22: Pará | D22: -
A23: 2013-01-01 | B23: ASFALTOS DILUÍDOS CM-30 | C23: Paraíba | D23: -
A24: 2013-01-01 | B24: ASFALTOS DILUÍDOS CM-30 | C24: Paraná | D24: 1.520125031
A25: 2013-01-01 | B25: ASFALTOS DILUÍDOS CM-30 | C25: Pernambuco | D25: -
A26: 2013-01-01 | B26: ASFALTOS DILUÍDOS CM-30 | C26: Piauí | D26: -
A27: 2013-01-01 | B27: ASFALTOS DILUÍDOS CM-30 | C27: Rio de Janeiro | D27: 1.330475106
A28: 2013-01-01 | B28: ASFALTOS DILUÍDOS CM-30 | C28: Rio Grande do Norte | D28: -
A29: 2013-01-01 | B29: ASFALTOS DILUÍDOS CM-30 | C29: Rio Grande do Sul | D29: 1.598611074
A30: 2013-01-01 | B30: ASFALTOS DILUÍDOS CM-30 | C30: Rondônia | D30: -
A31: 2013-01-01 | B31: ASFALTOS DILUÍDOS CM-30 | C31: Roraima | D31: -
A32: 2013-01-01 | B32: ASFALTOS DILUÍDOS CM-30 | C32: Santa Catarina | D32: -
A33: 2013-01-01 | B33: ASFALTOS DILUÍDOS CM-30 | C33: São Paulo | D33: 1.471008423
A34: 2013-01-01 | B34: ASFALTOS DILUÍDOS CM-30 | C34: Sergipe | D34: -
A35: 2013-01-01 | B35: ASFALTOS DILUÍDOS CM-30 | C35: Tocantins | D35: -
A36: 2013-02-01 | B36: ASFALTOS DILUÍDOS CM-30 | C36: Acre | D36: -
A37: 2013-02-01 | B37: ASFALTOS DILUÍDOS CM-30 | C37: Alagoas | D37: -
A38: 2013-02-01 | B38: ASFALTOS DILUÍDOS CM-30 | C38: Amapá | D38: -
A39: 2013-02-01 | B39: ASFALTOS DILUÍDOS CM-30 | C39: Amazonas | D39: 1.485578179
A40: 2013-02-01 | B40: ASFALTOS DILUÍDOS CM-30 | C40: Bahia | D40: 1.457014101
A41: 2013-02-01 | B41: ASFALTOS DILUÍDOS CM-30 | C41: Ceará | D41: 1.413192336
A42: 2013-02-01 | B42: ASFALTOS DILUÍDOS CM-30 | C42: Distrito Federal | D42: -
A43: 2013-02-01 | B43: ASFALTOS DILUÍDOS CM-30 | C43: Espírito Santo | D43: -
A44: 2013-02-01 | B44: ASFALTOS DILUÍDOS CM-30 | C44: Goiás | D44: 1.667459711
A45: 2013-02-01 | B45: ASFALTOS DILUÍDOS CM-30 | C45: Maranhão | D45: -
A46: 2013-02-01 | B46: ASFALTOS DILUÍDOS CM-30 | C46: Mato Grosso | D46: -
A47: 2013-02-01 | B47: ASFALTOS DILUÍDOS CM-30 | C47: Mato Grosso do Sul | D47: -
A48: 2013-02-01 | B48: ASFALTOS DILUÍDOS CM-30 | C48: Minas Gerais | D48: 1.452121117
A49: 2013-02-01 | B49: ASFALTOS DILUÍDOS CM-30 | C49: Pará | D49: -
A50: 2013-02-01 | B50: ASFALTOS DILUÍDOS CM-30 | C50: Paraíba | D50: -
A51: 2013-02-01 | B51: ASFALTOS DILUÍDOS CM-30 | C51: Paraná | D51: 1.493783173
A52: 2013-02-01 | B52: ASFALTOS DILUÍDOS CM-30 | C52: Pernambuco | D52: -
A53: 2013-02-01 | B53: ASFALTOS DILUÍDOS CM-30 | C53: Piauí | D53: -
A54: 2013-02-01 | B54: ASFALTOS DILUÍDOS CM-30 | C54: Rio de Janeiro | D54: 1.418234901
A55: 2013-02-01 | B55: ASFALTOS DILUÍDOS CM-30 | C55: Rio Grande do Norte | D55: -
A56: 2013-02-01 | B56: ASFALTOS DILUÍDOS CM-30 | C56: Rio Grande do Sul | D56: 1.435861782
A57: 2013-02-01 | B57: ASFALTOS DILUÍDOS CM-30 | C57: Rondônia | D57: -
A58: 2013-02-01 | B58: ASFALTOS DILUÍDOS CM-30 | C58: Roraima | D58: -
A59: 2013-02-01 | B59: ASFALTOS DILUÍDOS CM-30 | C59: Santa Catarina | D59: -
A60: 2013-02-01 | B60: ASFALTOS DILUÍDOS CM-30 | C60: São Paulo | D60: 1.434190204
A61: 2013-02-01 | B61: ASFALTOS DILUÍDOS CM-30 | C61: Sergipe | D61: -
A62: 2013-02-01 | B62: ASFALTOS DILUÍDOS CM-30 | C62: Tocantins | D62: -
A63: 2013-03-01 | B63: ASFALTOS DILUÍDOS CM-30 | C63: Acre | D63: -
A64: 2013-03-01 | B64: ASFALTOS DILUÍDOS CM-30 | C64: Alagoas | D64: -
A65: 2013-03-01 | B65: ASFALTOS DILUÍDOS CM-30 | C65: Amapá | D65: -
A66: 2013-03-01 | B66: ASFALTOS DILUÍDOS CM-30 | C66: Amazonas | D66: 1.507923921
A67: 2013-03-01 | B67: ASFALTOS DILUÍDOS CM-30 | C67: Bahia | D67: 1.449440325
A68: 2013-03-01 | B68: ASFALTOS DILUÍDOS CM-30 | C68: Ceará | D68: 1.401607485
A69: 2013-03-01 | B69: ASFALTOS DILUÍDOS CM-30 | C69: Distrito Federal | D69: -
A70: 2013-03-01 | B70: ASFALTOS DILUÍDOS CM-30 | C70: Espírito Santo | D70: -
A71: 2013-03-01 | B71: ASFALTOS DILUÍDOS CM-30 | C71: Goiás | D71: 1.661758701
A72: 2013-03-01 | B72: ASFALTOS DILUÍDOS CM-30 | C72: Maranhão | D72: -
A73: 2013-03-01 | B73: ASFALTOS DILUÍDOS CM-30 | C73: Mato Grosso | D73: -
A74: 2013-03-01 | B74: ASFALTOS DILUÍDOS CM-30 | C74: Mato Grosso do Sul | D74: -
A75: 2013-03-01 | B75: ASFALTOS DILUÍDOS CM-30 | C75: Minas Gerais | D75: 1.44324333
A76: 2013-03-01 | B76: ASFALTOS DILUÍDOS CM-30 | C76: Pará | D76: -
A77: 2013-03-01 | B77: ASFALTOS DILUÍDOS CM-30 | C77: Paraíba | D77: -
A78: 2013-03-01 | B78: ASFALTOS DILUÍDOS CM-30 | C78: Paraná | D78: 1.468995996
A79: 2013-03-01 | B79: ASFALTOS DILUÍDOS CM-30 | C79: Pernambuco | D79: -
A80: 2013-03-01 | B80: ASFALTOS DILUÍDOS CM-30 | C80: Piauí | D80: -
A81: 2013-03-01 | B81: ASFALTOS DILUÍDOS CM-30 | C81: Rio de Janeiro | D81: 1.438055574
A82: 2013-03-01 | B82: ASFALTOS DILUÍDOS CM-30 | C82: Rio Grande do Norte | D82: -
A83: 2013-03-01 | B83: ASFALTOS DILUÍDOS CM-30 | C83: Rio Grande do Sul | D83: 1.581425878
A84: 2013-03-01 | B84: ASFALTOS DILUÍDOS CM-30 | C84: Rondônia | D84: -
A85: 2013-03-01 | B85: ASFALTOS DILUÍDOS CM-30 | C85: Roraima | D85: -
A86: 2013-03-01 | B86: ASFALTOS DILUÍDOS CM-30 | C86: Santa Catarina | D86: -
A87: 2013-03-01 | B87: ASFALTOS DILUÍDOS CM-30 | C87: São Paulo | D87: 1.466061702
A88: 2013-03-01 | B88: ASFALTOS DILUÍDOS CM-30 | C88: Sergipe | D88: -
A89: 2013-03-01 | B89: ASFALTOS DILUÍDOS CM-30 | C89: Tocantins | D89: -
A90: 2013-04-01 | B90: ASFALTOS DILUÍDOS CM-30 | C90: Acre | D90: -
A91: 2013-04-01 | B91: ASFALTOS DILUÍDOS CM-30 | C91: Alagoas | D91: -
A92: 2013-04-01 | B92: ASFALTOS DILUÍDOS CM-30 | C92: Amapá | D92: -
A93: 2013-04-01 | B93: ASFALTOS DILUÍDOS CM-30 | C93: Amazonas | D93: 1.484796656
A94: 2013-04-01 | B94: ASFALTOS DILUÍDOS CM-30 | C94: Bahia | D94: 1.454836546
A95: 2013-04-01 | B95: ASFALTOS DILUÍDOS CM-30 | C95: Ceará | D95: 1.387073962
A96: 2013-04-01 | B96: ASFALTOS DILUÍDOS CM-30 | C96: Distrito Federal | D96: -
A97: 2013-04-01 | B97: ASFALTOS DILUÍDOS CM-30 | C97: Espírito Santo | D97: -
A98: 2013-04-01 | B98: ASFALTOS DILUÍDOS CM-30 | C98: Goiás | D98: 1.673481836
A99: 2013-04-01 | B99: ASFALTOS DILUÍDOS CM-30 | C99: Maranhão | D99: -
A100: 2013-04-01 | B100: ASFALTOS DILUÍDOS CM-30 | C100: Mato Grosso | D100: 1.921938422
A101: 2013-04-01 | B101: ASFALTOS DILUÍDOS CM-30 | C101: Mato Grosso do Sul | D101: -
A102: 2013-04-01 | B102: ASFALTOS DILUÍDOS CM-30 | C102: Minas Gerais | D102: 1.456556683
A103: 2013-04-01 | B103: ASFALTOS DILUÍDOS CM-30 | C103: Pará | D103: -
A104: 2013-04-01 | B104: ASFALTOS DILUÍDOS CM-30 | C104: Paraíba | D104: -
A105: 2013-04-01 | B105: ASFALTOS DILUÍDOS CM-30 | C105: Paraná | D105: 1.534419498
A106: 2013-04-01 | B106: ASFALTOS DILUÍDOS CM-30 | C106: Pernambuco | D106: -
A107: 2013-04-01 | B107: ASFALTOS DILUÍDOS CM-30 | C107: Piauí | D107: -
A108: 2013-04-01 | B108: ASFALTOS DILUÍDOS CM-30 | C108: Rio de Janeiro | D108: 1.418419516
A109: 2013-04-01 | B109: ASFALTOS DILUÍDOS CM-30 | C109: Rio Grande do Norte | D109: -
A110: 2013-04-01 | B110: ASFALTOS DILUÍDOS CM-30 | C110: Rio Grande do Sul | D110: 1.572582456
A111: 2013-04-01 | B111: ASFALTOS DILUÍDOS CM-30 | C111: Rondônia | D111: -
A112: 2013-04-01 | B112: ASFALTOS DILUÍDOS CM-30 | C112: Roraima | D112: -
A113: 2013-04-01 | B113: ASFALTOS DILUÍDOS CM-30 | C113: Santa Catarina | D113: -
A114: 2013-04-01 | B114: ASFALTOS DILUÍDOS CM-30 | C114: São Paulo | D114: 1.475764348
A115: 2013-04-01 | B115: ASFALTOS DILUÍDOS CM-30 | C115: Sergipe | D115: -
A116: 2013-04-01 | B116: ASFALTOS DILUÍDOS CM-30 | C116: Tocantins | D116: -
A117: 2013-05-01 | B117: ASFALTOS DILUÍDOS CM-30 | C117: Acre | D117: -
A118: 2013-05-01 | B118: ASFALTOS DILUÍDOS CM-30 | C118: Alagoas | D118: -
A119: 2013-05-01 | B119: ASFALTOS DILUÍDOS CM-30 | C119: Amapá | D119: -
A120: 2013-05-01 | B120: ASFALTOS DILUÍDOS CM-30 | C120: Amazonas | D120: -
A121: 2013-05-01 | B121: ASFALTOS DILUÍDOS CM-30 | C121: Bahia | D121: 1.492587424
A122: 2013-05-01 | B122: ASFALTOS DILUÍDOS CM-30 | C122: Ceará | D122: 1.376263021
A123: 2013-05-01 | B123: ASFALTOS DILUÍDOS CM-30 | C123: Distrito Federal | D123: -
A124: 2013-05-01 | B124: ASFALTOS DILUÍDOS CM-30 | C124: Espírito Santo | D124: -
A125: 2013-05-01 | B125: ASFALTOS DILUÍDOS CM-30 | C125: Goiás | D125: 1.668214819
A126: 2013-05-01 | B126: ASFALTOS DILUÍDOS CM-30 | C126: Maranhão | D126: -
A127: 2013-05-01 | B127: ASFALTOS DILUÍDOS CM-30 | C127: Mato Grosso | D127: 1.903098159
A128: 2013-05-01 | B128: ASFALTOS DILUÍDOS CM-30 | C128: Mato Grosso do Sul | D128: -
A129: 2013-05-01 | B129: ASFALTOS DILUÍDOS CM-30 | C129: Minas Gerais | D129: 1.464709716
A130: 2013-05-01 | B130: ASFALTOS DILUÍDOS CM-30 | C130: Pará | D130: -
A131: 2013-05-01 | B131: ASFALTOS DILUÍDOS CM-30 | C131: Paraíba | D131: -
A132: 2013-05-01 | B132: ASFALTOS DILUÍDOS CM-30 | C132: Paraná | D132: 1.489027849
A133: 2013-05-01 | B133: ASFALTOS DILUÍDOS CM-30 | C133: Pernambuco | D133: -
A134: 2013-05-01 | B134: ASFALTOS DILUÍDOS CM-30 | C134: Piauí | D134: -
A135: 2013-05-01 | B135: ASFALTOS DILUÍDOS CM-30 | C135: Rio de Janeiro | D135: 1.399256048
A136: 2013-05-01 | B136: ASFALTOS DILUÍDOS CM-30 | C136: Rio Grande do Norte | D136: -
A137: 2013-05-01 | B137: ASFALTOS DILUÍDOS CM-30 | C137: Rio Grande do Sul | D137: 1.539636961
A138: 2013-05-01 | B138: ASFALTOS DILUÍDOS CM-30 | C138: Rondônia | D138: -
A139: 2013-05-01 | B139: ASFALTOS DILUÍDOS CM-30 | C139: Roraima | D139: -
A140: 2013-05-01 | B140: ASFALTOS DILUÍDOS CM-30 | C140: Santa Catarina | D140: -
A141: 2013-05-01 | B141: ASFALTOS DILUÍDOS CM-30 | C141: São Paulo | D141: 1.451215936
A142: 2013-05-01 | B142: ASFALTOS DILUÍDOS CM-30 | C142: Sergipe | D142: -
A143: 2013-05-01 | B143: ASFALTOS DILUÍDOS CM-30 | C143: Tocantins | D143: -
A144: 2013-06-01 | B144: ASFALTOS DILUÍDOS CM-30 | C144: Acre | D144: -
A145: 2013-06-01 | B145: ASFALTOS DILUÍDOS CM-30 | C145: Alagoas | D145: -
A146: 2013-06-01 | B146: ASFALTOS DILUÍDOS CM-30 | C146: Amapá | D146: -
A147: 2013-06-01 | B147: ASFALTOS DILUÍDOS CM-30 | C147: Amazonas | D147: 1.586325818
A148: 2013-06-01 | B148: ASFALTOS DILUÍDOS CM-30 | C148: Bahia | D148: 1.44812907
A149: 2013-06-01 | B149: ASFALTOS DILUÍDOS CM-30 | C149: Ceará | D149: 1.382700989
A150: 2013-06-01 | B150: ASFALTOS DILUÍDOS CM-30 | C150: Distrito Federal | D150: -
A151: 2013-06-01 | B151: ASFALTOS DILUÍDOS CM-30 | C151: Espírito Santo | D151: -
A152: 2013-06-01 | B152: ASFALTOS DILUÍDOS CM-30 | C152: Goiás | D152: 1.699613867
A153: 2013-06-01 | B153: ASFALTOS DILUÍDOS CM-30 | C153: Maranhão | D153: -
A154: 2013-06-01 | B154: ASFALTOS DILUÍDOS CM-30 | C154: Mato Grosso | D154: 1.915975658
A155: 2013-06-01 | B155: ASFALTOS DILUÍDOS CM-30 | C155: Mato Grosso do Sul | D155: -
A156: 2013-06-01 | B156: ASFALTOS DILUÍDOS CM-30 | C156: Minas Gerais | D156: 1.475366896
A157: 2013-06-01 | B157: ASFALTOS DILUÍDOS CM-30 | C157: Pará | D157: -
A158: 2013-06-01 | B158: ASFALTOS DILUÍDOS CM-30 | C158: Paraíba | D158: -
A159: 2013-06-01 | B159: ASFALTOS DILUÍDOS CM-30 | C159: Paraná | D159: 1.432166974
A160: 2013-06-01 | B160: ASFALTOS DILUÍDOS CM-30 | C160: Pernambuco | D160: -
A161: 2013-06-01 | B161: ASFALTOS DILUÍDOS CM-30 | C161: Piauí | D161: -
A162: 2013-06-01 | B162: ASFALTOS DILUÍDOS CM-30 | C162: Rio de Janeiro | D162: 1.527420226
A163: 2013-06-01 | B163: ASFALTOS DILUÍDOS CM-30 | C163: Rio Grande do Norte | D163: -
A164: 2013-06-01 | B164: ASFALTOS DILUÍDOS CM-30 | C164: Rio Grande do Sul | D164: 1.59868349
A165: 2013-06-01 | B165: ASFALTOS DILUÍDOS CM-30 | C165: Rondônia | D165: -
A166: 2013-06-01 | B166: ASFALTOS DILUÍDOS CM-30 | C166: Roraima | D166: -
A167: 2013-06-01 | B167: ASFALTOS DILUÍDOS CM-30 | C167: Santa Catarina | D167: -
A168: 2013-06-01 | B168: ASFALTOS DILUÍDOS CM-30 | C168: São Paulo | D168: 1.432748187
A169: 2013-06-01 | B169: ASFALTOS DILUÍDOS CM-30 | C169: Sergipe | D169: -
A170: 2013-06-01 | B170: ASFALTOS DILUÍDOS CM-30 | C170: Tocantins | D170: -
A171: 2013-07-01 | B171: ASFALTOS DILUÍDOS CM-30 | C171: Acre | D171: -
A172: 2013-07-01 | B172: ASFALTOS DILUÍDOS CM-30 | C172: Alagoas | D172: -
A173: 2013-07-01 | B173: ASFALTOS DILUÍDOS CM-30 | C173: Amapá | D173: -
A174: 2013-07-01 | B174: ASFALTOS DILUÍDOS CM-30 | C174: Amazonas | D174: 1.509890931
A175: 2013-07-01 | B175: ASFALTOS DILUÍDOS CM-30 | C175: Bahia | D175: 1.436150016
A176: 2013-07-01 | B176: ASFALTOS DILUÍDOS CM-30 | C176: Ceará | D176: 1.424835845
A177: 2013-07-01 | B177: ASFALTOS DILUÍDOS CM-30 | C177: Distrito Federal | D177: -
A178: 2013-07-01 | B178: ASFALTOS DILUÍDOS CM-30 | C178: Espírito Santo | D178: -
A179: 2013-07-01 | B179: ASFALTOS DILUÍDOS CM-30 | C179: Goiás | D179: 1.663778454
A180: 2013-07-01 | B180: ASFALTOS DILUÍDOS CM-30 | C180: Maranhão | D180: -
A181: 2013-07-01 | B181: ASFALTOS DILUÍDOS CM-30 | C181: Mato Grosso | D181: 1.930589551
A182: 2013-07-01 | B182: ASFALTOS DILUÍDOS CM-30 | C182: Mato Grosso do Sul | D182: -
A183: 2013-07-01 | B183: ASFALTOS DILUÍDOS CM-30 | C183: Minas Gerais | D183: 1.476572352
A184: 2013-07-01 | B184: ASFALTOS DILUÍDOS CM-30 | C184: Pará | D184: -
A185: 2013-07-01 | B185: ASFALTOS DILUÍDOS CM-30 | C185: Paraíba | D185: -
A186: 2013-07-01 | B186: ASFALTOS DILUÍDOS CM-30 | C186: Paraná | D186: 1.477167274
A187: 2013-07-01 | B187: ASFALTOS DILUÍDOS CM-30 | C187: Pernambuco | D187: -
A188: 2013-07-01 | B188: ASFALTOS DILUÍDOS CM-30 | C188: Piauí | D188: -
A189: 2013-07-01 | B189: ASFALTOS DILUÍDOS CM-30 | C189: Rio de Janeiro | D189: 1.584464713
A190: 2013-07-01 | B190: ASFALTOS DILUÍDOS CM-30 | C190: Rio Grande do Norte | D190: -
A191: 2013-07-01 | B191: ASFALTOS DILUÍDOS CM-30 | C191: Rio Grande do Sul | D191: 1.612487925
A192: 2013-07-01 | B192: ASFALTOS DILUÍDOS CM-30 | C192: Rondônia | D192: -
A193: 2013-07-01 | B193: ASFALTOS DILUÍDOS CM-30 | C193: Roraima | D193: -
A194: 2013-07-01 | B194: ASFALTOS DILUÍDOS CM-30 | C194: Santa Catarina | D194: -
A195: 2013-07-01 | B195: ASFALTOS DILUÍDOS CM-30 | C195: São Paulo | D195: 1.507844909
A196: 2013-07-01 | B196: ASFALTOS DILUÍDOS CM-30 | C196: Sergipe | D196: -
A197: 2013-07-01 | B197: ASFALTOS DILUÍDOS CM-30 | C197: Tocantins | D197: -
A198: 2013-08-01 | B198: ASFALTOS DILUÍDOS CM-30 | C198: Acre | D198: -
A199: 2013-08-01 | B199: ASFALTOS DILUÍDOS CM-30 | C199: Alagoas | D199: -
A200: 2013-08-01 | B200: ASFALTOS DILUÍDOS CM-30 | C200: Amapá | D200: -
A201: 2013-08-01 | B201: ASFALTOS DILUÍDOS CM-30 | C201: Amazonas | D201: 1.509275641
A202: 2013-08-01 | B202: ASFALTOS DILUÍDOS CM-30 | C202: Bahia | D202: 1.416699323
A203: 2013-08-01 | B203: ASFALTOS DILUÍDOS CM-30 | C203: Ceará | D203: 1.447403364
... 4297 more rows

Sheet ANP REGIÃO
A1: Agência Nacional do Petróleo, Gás Natural e Biocombustíveis
A2: Superintendência de Defesa da Concorrência
A6: PREÇO MÉDIO MENSAL PONDERADO PRATICADO PELOS DISTRIBUIDORES DE PRODUTOS ASFÁLTICOS (R$/KG)
A8: Produto | B8: Mês | C8: Norte | D8: Nordeste | E8: Centro-Oeste | F8: Sudeste | G8: Sul | H8: Brasil
A9: ASFALTOS DILUÍDOS CM-30 | B9: 2008-11-01 | C9: 1.775468292 | D9: 1.55087853 | E9: 2.022143291 | F9: 1.55449367 | G9: 1.584532899 | H9: 1.64286837
A10: ASFALTOS DILUÍDOS CM-30 | B10: 2008-12-01 | C10: 1.806837667 | D10: 1.509118192 | E10: 2.013020124 | F10: 1.610902223 | G10: 1.607187591 | H10: 1.637581471
A11: ASFALTOS DILUÍDOS CM-30 | B11: 2009-01-01 | C11: 1.497052858 | D11: 1.504296346 | E11: 1.963097671 | F11: 1.524672247 | G11: 1.585137209 | H11: 1.564945876
A12: ASFALTOS DILUÍDOS CM-30 | B12: 2009-02-01 | C12: 1.42787112 | D12: 1.497693283 | E12: 1.981065098 | F12: 1.583490231 | G12: 1.595924062 | H12: 1.565451036
A13: ASFALTOS DILUÍDOS CM-30 | B13: 2009-03-01 | C13: 1.404941405 | D13: 1.497647987 | E13: 1.893430263 | F13: 1.52754782 | G13: 1.588720029 | H13: 1.532713147
A14: ASFALTOS DILUÍDOS CM-30 | B14: 2009-04-01 | C14: 1.410510748 | D14: 1.484826261 | E14: 1.909226429 | F14: 1.464149371 | G14: 1.553831928 | H14: 1.516717648
A15: ASFALTOS DILUÍDOS CM-30 | B15: 2009-05-01 | C15: 1.480355678 | D15: 1.466898928 | E15: 1.891590435 | F15: 1.435443718 | G15: 1.54161118 | H15: 1.537574371
A16: ASFALTOS DILUÍDOS CM-30 | B16: 2009-06-01 | C16: 1.580751039 | D16: 1.444888837 | E16: 1.842074119 | F16: 1.424264315 | G16: 1.501526696 | H16: 1.541315575
A17: ASFALTOS DILUÍDOS CM-30 | B17: 2009-07-01 | C17: 1.905432476 | D17: 1.482618211 | E17: 1.949046345 | F17: 1.584435299 | G17: 1.610310436 | H17: 1.651032523
A18: ASFALTOS DILUÍDOS CM-30 | B18: 2009-08-01 | C18: 1.716995184 | D18: 1.423854915 | E18: 1.712385478 | F18: 1.418000805 | G18: 1.520643497 | H18: 1.504911469
A19: ASFALTOS DILUÍDOS CM-30 | B19: 2009-09-01 | C19: 1.64329494 | D19: 1.445317761 | E19: 1.731518803 | F19: 1.419374251 | G19: 1.500735895 | H19: 1.50552312
A20: ASFALTOS DILUÍDOS CM-30 | B20: 2009-10-01 | C20: 1.588031924 | D20: 1.458932649 | E20: 1.762015056 | F20: 1.429024419 | G20: 1.513753831 | H20: 1.511681904
A21: ASFALTOS DILUÍDOS CM-30 | B21: 2009-11-01 | C21: 1.639348604 | D21: 1.449059777 | E21: 1.772650817 | F21: 1.434122677 | G21: 1.526043188 | H21: 1.499657392
A22: ASFALTOS DILUÍDOS CM-30 | B22: 2009-12-01 | C22: 1.664266853 | D22: 1.441966636 | E22: 1.890574802 | F22: 1.429077727 | G22: 1.520539334 | H22: 1.508864598
A23: ASFALTOS DILUÍDOS CM-30 | B23: 2010-01-01 | C23: 1.842506144 | D23: 1.454977129 | E23: 1.865022447 | F23: 1.414817608 | G23: 1.474450765 | H23: 1.497735227
A24: ASFALTOS DILUÍDOS CM-30 | B24: 2010-02-01 | C24: 1.709886915 | D24: 1.442956487 | E24: 1.919844741 | F24: 1.433146251 | G24: 1.500882448 | H24: 1.496542251
A25: ASFALTOS DILUÍDOS CM-30 | B25: 2010-03-01 | C25: 1.535743416 | D25: 1.448880499 | E25: 1.935062728 | F25: 1.435026116 | G25: 1.480618635 | H25: 1.486789802
A26: ASFALTOS DILUÍDOS CM-30 | B26: 2010-04-01 | C26: 1.710046479 | D26: 1.440300254 | E26: 1.911935961 | F26: 1.421102153 | G26: 1.481270937 | H26: 1.511086431
A27: ASFALTOS DILUÍDOS CM-30 | B27: 2010-05-01 | C27: 1.755610465 | D27: 1.435277221 | E27: 1.873293889 | F27: 1.406944432 | G27: 1.48177605 | H27: 1.537170565
A28: ASFALTOS DILUÍDOS CM-30 | B28: 2010-06-01 | C28: 1.602224314 | D28: 1.396004336 | E28: 1.731734721 | F28: 1.399996227 | G28: 1.49193962 | H28: 1.498073418
A29: ASFALTOS DILUÍDOS CM-30 | B29: 2010-07-01 | C29: 1.559901627 | D29: 1.381016708 | E29: 1.732688214 | F29: 1.402904856 | G29: 1.473854427 | H29: 1.490075269
A30: ASFALTOS DILUÍDOS CM-30 | B30: 2010-08-01 | C30: 1.526639389 | D30: 1.38817836 | E30: 1.738946087 | F30: 1.398751236 | G30: 1.455749849 | H30: 1.495828516
A31: ASFALTOS DILUÍDOS CM-30 | B31: 2010-09-01 | C31: 1.565378829 | D31: 1.408204664 | E31: 1.757027378 | F31: 1.411642875 | G31: 1.487257745 | H31: 1.512257128
A32: ASFALTOS DILUÍDOS CM-30 | B32: 2010-10-01 | C32: 1.481711294 | D32: 1.404357715 | E32: 1.751159947 | F32: 1.403489437 | G32: 1.469340847 | H32: 1.49988826
A33: ASFALTOS DILUÍDOS CM-30 | B33: 2010-11-01 | C33: 1.519267672 | D33: 1.410130904 | E33: 1.779405625 | F33: 1.421283822 | G33: 1.458559112 | H33: 1.481658635
A34: ASFALTOS DILUÍDOS CM-30 | B34: 2010-12-01 | C34: 1.559287556 | D34: 1.40982051 | E34: 1.825185618 | F34: 1.417673572 | G34: 1.473243884 | H34: 1.469113031
A35: ASFALTOS DILUÍDOS CM-30 | B35: 2011-01-01 | C35: 1.525923305 | D35: 1.445794092 | E35: 1.774600924 | F35: 1.403274235 | G35: 1.466002814 | H35: 1.457256066
A36: ASFALTOS DILUÍDOS CM-30 | B36: 2011-02-01 | C36: 1.552825112 | D36: 1.392094259 | E36: 1.763836123 | F36: 1.385194937 | G36: 1.44955884 | H36: 1.426250478
A37: ASFALTOS DILUÍDOS CM-30 | B37: 2011-03-01 | C37: 1.469219693 | D37: 1.369442916 | E37: 1.696017922 | F37: 1.353812804 | G37: 1.435170694 | H37: 1.400130249
A38: ASFALTOS DILUÍDOS CM-30 | B38: 2011-04-01 | C38: 1.470570262 | D38: 1.373220492 | E38: 1.650829394 | F38: 1.345928103 | G38: 1.42199894 | H38: 1.400493522
A39: ASFALTOS DILUÍDOS CM-30 | B39: 2011-05-01 | C39: 1.428528955 | D39: 1.322646267 | E39: 1.700380913 | F39: 1.345068163 | G39: 1.439361431 | H39: 1.428058019
A40: ASFALTOS DILUÍDOS CM-30 | B40: 2011-06-01 | C40: 1.407622163 | D40: 1.305708657 | E40: 1.741843669 | F40: 1.354620495 | G40: 1.399501693 | H40: 1.44029982
A41: ASFALTOS DILUÍDOS CM-30 | B41: 2011-07-01 | C41: 1.259234065 | D41: 1.312033305 | E41: 1.737489696 | F41: 1.33656388 | G41: 1.422474887 | H41: 1.420839252
A42: ASFALTOS DILUÍDOS CM-30 | B42: 2011-08-01 | C42: 1.470680061 | D42: 1.299778765 | E42: 1.727443485 | F42: 1.341477821 | G42: 1.353018352 | H42: 1.425675534
A43: ASFALTOS DILUÍDOS CM-30 | B43: 2011-09-01 | C43: 1.56132872 | D43: 1.321196084 | E43: 1.729821548 | F43: 1.357451483 | G43: 1.395684798 | H43: 1.455202413
A44: ASFALTOS DILUÍDOS CM-30 | B44: 2011-10-01 | C44: 1.520569722 | D44: 1.326218736 | E44: 1.71738046 | F44: 1.332691392 | G44: 1.3577774 | H44: 1.442295871
A45: ASFALTOS DILUÍDOS CM-30 | B45: 2011-11-01 | C45: 1.465886334 | D45: 1.337041154 | E45: 1.741004886 | F45: 1.345486103 | G45: 1.447580565 | H45: 1.445354137
A46: ASFALTOS DILUÍDOS CM-30 | B46: 2011-12-01 | C46: 1.470883899 | D46: 1.335587636 | E46: 1.778724141 | F46: 1.408293068 | G46: 1.428112306 | H46: 1.422418604
A47: ASFALTOS DILUÍDOS CM-30 | B47: 2012-01-01 | C47: 1.384955015 | D47: 1.350130156 | E47: 1.780783883 | F47: 1.421354107 | G47: 1.430352474 | H47: 1.394658167
A48: ASFALTOS DILUÍDOS CM-30 | B48: 2012-02-01 | C48: 1.332181678 | D48: 1.368143891 | E48: 1.741020394 | F48: 1.400200985 | G48: 1.425400986 | H48: 1.410605707
A49: ASFALTOS DILUÍDOS CM-30 | B49: 2012-03-01 | C49: 1.411621867 | D49: 1.349122214 | E49: 1.620096006 | F49: 1.393295764 | G49: 1.406130569 | H49: 1.409768786
A50: ASFALTOS DILUÍDOS CM-30 | B50: 2012-04-01 | C50: 1.549007912 | D50: 1.383976456 | E50: 1.640712752 | F50: 1.404716397 | G50: 1.440617793 | H50: 1.45608482
A51: ASFALTOS DILUÍDOS CM-30 | B51: 2012-05-01 | C51: 1.596178941 | D51: 1.386362272 | E51: 1.712061183 | F51: 1.39923955 | G51: 1.448350887 | H51: 1.498461969
A52: ASFALTOS DILUÍDOS CM-30 | B52: 2012-06-01 | C52: 1.701432576 | D52: 1.388053518 | E52: 1.740352007 | F52: 1.422118749 | G52: 1.449196072 | H52: 1.527722717
A53: ASFALTOS DILUÍDOS CM-30 | B53: 2012-07-01 | C53: 1.652026742 | D53: 1.39436857 | E53: 1.718644846 | F53: 1.439670261 | G53: 1.46187567 | H53: 1.523069159
A54: ASFALTOS DILUÍDOS CM-30 | B54: 2012-08-01 | C54: 1.689998835 | D54: 1.40333785 | E54: 1.741895041 | F54: 1.421723369 | G54: 1.445685799 | H54: 1.536533078
A55: ASFALTOS DILUÍDOS CM-30 | B55: 2012-09-01 | C55: 1.690177972 | D55: 1.421500003 | E55: 1.780920724 | F55: 1.445180432 | G55: 1.483645866 | H55: 1.549410653
A56: ASFALTOS DILUÍDOS CM-30 | B56: 2012-10-01 | C56: 1.574840342 | D56: 1.417066109 | E56: 1.794832036 | F56: 1.451304526 | G56: 1.482037109 | H56: 1.550631802
A57: ASFALTOS DILUÍDOS CM-30 | B57: 2012-11-01 | C57: 1.655163526 | D57: 1.455878748 | E57: 1.840129766 | F57: 1.461204615 | G57: 1.483499722 | H57: 1.552500776
A58: ASFALTOS DILUÍDOS CM-30 | B58: 2012-12-01 | C58: 1.714876125 | D58: 1.435854741 | E58: 1.804066573 | F58: 1.45222765 | G58: 1.509417648 | H58: 1.523411999
A59: ASFALTOS DILUÍDOS CM-30 | B59: 2013-01-01 | C59: 1.495776335 | D59: 1.449494588 | E59: 1.854050525 | F59: 1.44638752 | G59: 1.563753675 | H59: 1.502137259
A60: ASFALTOS DILUÍDOS CM-30 | B60: 2013-02-01 | C60: 1.635067666 | D60: 1.420609638 | E60: 1.731071498 | F60: 1.442746356 | G60: 1.461828405 | H60: 1.4739561
A61: ASFALTOS DILUÍDOS CM-30 | B61: 2013-03-01 | C61: 1.646229098 | D61: 1.413299983 | E61: 1.83828087 | F61: 1.450015152 | G61: 1.525760413 | H61: 1.506542904
A62: ASFALTOS DILUÍDOS CM-30 | B62: 2013-04-01 | C62: 1.581864474 | D62: 1.399189564 | E62: 1.793825113 | F62: 1.458704755 | G62: 1.551913702 | H62: 1.523623636
A63: ASFALTOS DILUÍDOS CM-30 | B63: 2013-05-01 | C63: 1.815646773 | D63: 1.390143517 | E63: 1.812783313 | F63: 1.44951052 | G63: 1.504233457 | H63: 1.549918592
A64: ASFALTOS DILUÍDOS CM-30 | B64: 2013-06-01 | C64: 1.631101583 | D64: 1.383186536 | E64: 1.816642105 | F64: 1.474232641 | G64: 1.503043689 | H64: 1.581049429
A65: ASFALTOS DILUÍDOS CM-30 | B65: 2013-07-01 | C65: 1.86596563 | D65: 1.422051117 | E65: 1.793072753 | F65: 1.498018808 | G65: 1.533391901 | H65: 1.59880513
A66: ASFALTOS DILUÍDOS CM-30 | B66: 2013-08-01 | C66: 1.700325546 | D66: 1.435094415 | E66: 1.821452614 | F66: 1.511722868 | G66: 1.530793596 | H66: 1.606176585
A67: ASFALTOS DILUÍDOS CM-30 | B67: 2013-09-01 | C67: 1.562873733 | D67: 1.472197748 | E67: 1.879842712 | F67: 1.542652867 | G67: 1.490667543 | H67: 1.627945893
A68: ASFALTOS DILUÍDOS CM-30 | B68: 2013-10-01 | C68: 1.648504013 | D68: 1.472152345 | E68: 1.825494997 | F68: 1.501177682 | G68: 1.48378912 | H68: 1.597538775
A69: ASFALTOS DILUÍDOS CM-30 | B69: 2013-11-01 | C69: 1.619179062 | D69: 1.486413317 | E69: 1.844012679 | F69: 1.496326809 | G69: 1.506096878 | H69: 1.581665844
A70: ASFALTOS DILUÍDOS CM-30 | B70: 2013-12-01 | C70: 1.633358293 | D70: 1.494818097 | E70: 1.897197176 | F70: 1.502864538 | G70: 1.517074296 | H70: 1.572475244
A71: ASFALTOS DILUÍDOS CM-30 | B71: 2014-01-01 | C71: 1.688311265 | D71: 1.494181305 | E71: 1.798355903 | F71: 1.484202293 | G71: 1.533353813 | H71: 1.542909737
A72: ASFALTOS DILUÍDOS CM-30 | B72: 2014-02-01 | C72: 1.598304434 | D72: 1.479706587 | E72: 1.814390215 | F72: 1.514829392 | G72: 1.522800588 | H72: 1.528970287
A73: ASFALTOS DILUÍDOS CM-30 | B73: 2014-03-01 | C73: 1.648287687 | D73: 1.472852501 | E73: 1.76657319 | F73: 1.513020673 | G73: 1.506185248 | H73: 1.530181178
A74: ASFALTOS DILUÍDOS CM-30 | B74: 2014-04-01 | C74: 1.534459987 | D74: 1.493898767 | E74: 1.757271278 | F74: 1.533021309 | G74: 1.524275274 | H74: 1.550566305
A75: ASFALTOS DILUÍDOS CM-30 | B75: 2014-05-01 | C75: 1.58658327 | D75: 1.490834685 | E75: 1.804339251 | F75: 1.501138131 | G75: 1.567043824 | H75: 1.586452272
A76: ASFALTOS DILUÍDOS CM-30 | B76: 2014-06-01 | C76: 1.658277164 | D76: 1.505801121 | E76: 1.839593445 | F76: 1.5068632 | G76: 1.523776953 | H76: 1.636070702
A77: ASFALTOS DILUÍDOS CM-30 | B77: 2014-07-01 | C77: 1.890299542 | D77: 1.500730514 | E77: 1.708277865 | F77: 1.487293964 | G77: 1.505956069 | H77: 1.587065158
A78: ASFALTOS DILUÍDOS CM-30 | B78: 2014-08-01 | C78: 1.632741832 | D78: 1.501945324 | E78: 1.671203189 | F78: 1.482359341 | G78: 1.506327366 | H78: 1.557910377
A79: ASFALTOS DILUÍDOS CM-30 | B79: 2014-09-01 | C79: 1.66956717 | D79: 1.546830427 | E79: 1.864797016 | F79: 1.496764585 | G79: 1.570533242 | H79: 1.639281057
A80: ASFALTOS DILUÍDOS CM-30 | B80: 2014-10-01 | C80: 1.742876916 | D80: 1.508978569 | E80: 1.746650466 | F80: 1.470773645 | G80: 1.454273462 | H80: 1.57912022
A81: ASFALTOS DILUÍDOS CM-30 | B81: 2014-11-01 | C81: 1.864723419 | D81: 1.57943059 | E81: 1.749156218 | F81: 1.465084479 | G81: 1.529147988 | H81: 1.601359821
A82: ASFALTOS DILUÍDOS CM-30 | B82: 2014-12-01 | C82: 1.812671914 | D82: 1.704844348 | E82: 1.963310066 | F82: 1.623676702 | G82: 1.649644659 | H82: 1.718826981
A83: ASFALTOS DILUÍDOS CM-30 | B83: 2015-01-01 | C83: 2.154807062 | D83: 2.023760447 | E83: 2.318863736 | F83: 1.866588967 | G83: 1.898380434 | H83: 2.007792032
A84: ASFALTOS DILUÍDOS CM-30 | B84: 2015-02-01 | C84: 2.260238625 | D84: 2.005673765 | E84: 2.393875762 | F84: 1.854519766 | G84: 1.927395107 | H84: 2.007653781
A85: ASFALTOS DILUÍDOS CM-30 | B85: 2015-03-01 | C85: 2.124176462 | D85: 1.968822849 | E85: 2.279643254 | F85: 1.887760911 | G85: 1.930217145 | H85: 1.984816916
A86: ASFALTOS DILUÍDOS CM-30 | B86: 2015-04-01 | C86: 2.030049505 | D86: 2.001506448 | E86: 2.379118903 | F86: 1.85245167 | G86: 1.949025254 | H86: 1.98064321
A87: ASFALTOS DILUÍDOS CM-30 | B87: 2015-05-01 | C87: 2.507271651 | D87: 1.946869908 | E87: 2.254758192 | F87: 1.807470001 | G87: 2.016929536 | H87: 2.005474234
A88: ASFALTOS DILUÍDOS CM-30 | B88: 2015-06-01 | C88: 2.248320042 | D88: 1.944259736 | E88: 2.314331796 | F88: 1.846998595 | G88: 1.968565125 | H88: 2.042581344
A89: ASFALTOS DILUÍDOS CM-30 | B89: 2015-07-01 | C89: 1.992222758 | D89: 1.992791635 | E89: 2.046769953 | F89: 1.782648603 | G89: 1.931671385 | H89: 1.942627362
A90: ASFALTOS DILUÍDOS CM-30 | B90: 2015-08-01 | C90: 2.307605931 | D90: 2.038089127 | E90: 2.252748105 | F90: 1.828097705 | G90: 1.939824481 | H90: 2.08193616
A91: ASFALTOS DILUÍDOS CM-30 | B91: 2015-09-01 | C91: 2.314289704 | D91: 2.095307531 | E91: 2.344561987 | F91: 1.942551091 | G91: 2.005352614 | H91: 2.168175541
A92: ASFALTOS DILUÍDOS CM-30 | B92: 2015-10-01 | C92: 2.329456663 | D92: 2.170570012 | E92: 2.43273012 | F92: 2.035624751 | G92: 2.110261148 | H92: 2.237533782
A93: ASFALTOS DILUÍDOS CM-30 | B93: 2015-11-01 | C93: 2.606056566 | D93: 2.437098304 | E93: 2.711612141 | F93: 2.280113896 | G93: 2.326446297 | H93: 2.474998781
A94: ASFALTOS DILUÍDOS CM-30 | B94: 2015-12-01 | C94: 2.635374006 | D94: 2.395920309 | E94: 2.693528386 | F94: 2.272528129 | G94: 2.330740659 | H94: 2.452848156
A95: ASFALTOS DILUÍDOS CM-30 | B95: 2016-01-01 | C95: 2.715863993 | D95: 2.373861647 | E95: 2.844670602 | F95: 2.263650658 | G95: 2.232631691 | H95: 2.400563394
A96: ASFALTOS DILUÍDOS CM-30 | B96: 2016-02-01 | C96: 2.80468316 | D96: 2.466846816 | E96: 2.791787007 | F96: 2.295637115 | G96: 2.346556173 | H96: 2.464348548
A97: ASFALTOS DILUÍDOS CM-30 | B97: 2016-03-01 | C97: 2.5805021 | D97: 2.470678753 | E97: 2.707688025 | F97: 2.235301999 | G97: 2.383115972 | H97: 2.423563924
A98: ASFALTOS DILUÍDOS CM-30 | B98: 2016-04-01 | C98: 2.942006312 | D98: 2.740742032 | E98: 2.759071855 | F98: 2.544439178 | G98: 2.710751632 | H98: 2.680274833
A99: ASFALTOS DILUÍDOS CM-30 | B99: 2016-05-01 | C99: 3.010579472 | D99: 2.650277047 | E99: 2.857121361 | F99: 2.575583152 | G99: 2.770413362 | H99: 2.70973327
A100: ASFALTOS DILUÍDOS CM-30 | B100: 2016-06-01 | C100: 2.909179844 | D100: 2.621385041 | E100: 2.943487281 | F100: 2.659109515 | G100: 2.684759555 | H100: 2.743619517
A101: ASFALTOS DILUÍDOS CM-30 | B101: 2016-07-01 | C101: 2.985740381 | D101: 2.591644045 | E101: 2.98927803 | F101: 2.604396599 | G101: 2.660884423 | H101: 2.745135539
A102: ASFALTOS DILUÍDOS CM-30 | B102: 2016-08-01 | C102: 2.935243919 | D102: 2.623917329 | E102: 2.970490854 | F102: 2.679486504 | G102: 2.727025649 | H102: 2.781385962
A103: ASFALTOS DILUÍDOS CM-30 | B103: 2016-09-01 | C103: 2.649136821 | D103: 2.521054851 | E103: 2.781583925 | F103: 2.51393313 | G103: 2.371271501 | H103: 2.595617128
A104: ASFALTOS DILUÍDOS CM-30 | B104: 2016-10-01 | C104: 2.626109257 | D104: 2.444469093 | E104: 2.781617873 | F104: 2.507383127 | G104: 2.38325399 | H104: 2.566999037
A105: ASFALTOS DILUÍDOS CM-30 | B105: 2016-11-01 | C105: 2.535087408 | D105: 2.374145527 | E105: 2.952768674 | F105: 2.481263765 | G105: 2.382206771 | H105: 2.542842366
A106: ASFALTOS DILUÍDOS CM-30 | B106: 2016-12-01 | C106: 2.50039107 | D106: 2.253413483 | E106: 3.038519458 | F106: 2.589438892 | G106: 2.395593424 | H106: 2.476439295
A107: ASFALTOS DILUÍDOS CM-30 | B107: 2017-01-01 | C107: 2.392875504 | D107: 2.232695674 | E107: 3.089080971 | F107: 2.535744039 | G107: 2.378694833 | H107: 2.374216192
A108: ASFALTOS DILUÍDOS CM-30 | B108: 2017-02-01 | C108: 2.68039414 | D108: 2.271897225 | E108: 2.764408032 | F108: 2.573933685 | G108: 2.384644398 | H108: 2.470721466
A109: ASFALTOS DILUÍDOS CM-30 | B109: 2017-03-01 | C109: 2.23884121 | D109: 2.386958079 | E109: 2.667220252 | F109: 2.372165947 | G109: 2.30121887 | H109: 2.378796986
A110: ASFALTOS DILUÍDOS CM-30 | B110: 2017-04-01 | C110: 2.420191398 | D110: 2.307969596 | E110: 2.794093014 | F110: 2.258409912 | G110: 2.256434297 | H110: 2.380268484
A111: ASFALTOS DILUÍDOS CM-30 | B111: 2017-05-01 | C111: 2.432106692 | D111: 2.167919128 | E111: 2.699836936 | F111: 2.255387192 | G111: 2.204026958 | H111: 2.361515909
A112: ASFALTOS DILUÍDOS CM-30 | B112: 2017-06-01 | C112: 2.428301776 | D112: 2.181938689 | E112: 2.756672055 | F112: 2.234549022 | G112: 2.305778546 | H112: 2.44553453
A113: ASFALTOS DILUÍDOS CM-30 | B113: 2017-07-01 | C113: 2.453752061 | D113: 2.218075334 | E113: 2.694625022 | F113: 2.414329247 | G113: 2.269601102 | H113: 2.473436106
A114: ASFALTOS DILUÍDOS CM-30 | B114: 2017-08-01 | C114: 2.447930976 | D114: 2.153112031 | E114: 2.595349952 | F114: 2.302919065 | G114: 2.170148667 | H114: 2.380876423
A115: ASFALTOS DILUÍDOS CM-30 | B115: 2017-09-01 | C115: 2.494551504 | D115: 2.14243989 | E115: 2.623166503 | F115: 2.371308095 | G115: 2.303698507 | H115: 2.393542204
A116: ASFALTOS DILUÍDOS CM-30 | B116: 2017-10-01 | C116: 2.349953944 | D116: 2.18056004 | E116: 2.614160957 | F116: 2.415254962 | G116: 2.20079573 | H116: 2.367947121
A117: ASFALTOS DILUÍDOS CM-30 | B117: 2017-11-01 | C117: 2.670126991 | D117: 2.433169195 | E117: 2.908627464 | F117: 2.58469482 | G117: 2.415192709 | H117: 2.602101348
A118: ASFALTOS DILUÍDOS CM-30 | B118: 2017-12-01 | C118: 2.587352645 | D118: 2.425358882 | E118: 2.906633765 | F118: 2.602890298 | G118: 2.42288976 | H118: 2.531764464
A119: ASFALTOS DILUÍDOS CM-30 | B119: 2018-01-01 | C119: 2.950360755 | D119: 2.662862923 | E119: 2.875953993 | F119: 2.620738484 | G119: 2.646955252 | H119: 2.735956369
A120: ASFALTOS DILUÍDOS CM-30 | B120: 2018-02-01 | C120: 2.677899567 | D120: 2.672498164 | E120: 2.942595474 | F120: 2.62043113 | G120: 2.567885662 | H120: 2.668369933
A121: ASFALTOS DILUÍDOS CM-30 | B121: 2018-03-01 | C121: 2.733363025 | D121: 2.589050022 | E121: 2.809172556 | F121: 2.561928393 | G121: 2.575946067 | H121: 2.634876584
A122: ASFALTOS DILUÍDOS CM-30 | B122: 2018-04-01 | C122: 2.75780112 | D122: 2.669553602 | E122: 2.773908242 | F122: 2.59547006 | G122: 2.556042394 | H122: 2.6643302
A123: ASFALTOS DILUÍDOS CM-30 | B123: 2018-05-01 | C123: 2.841213362 | D123: 2.672025877 | E123: 2.884501482 | F123: 2.686718021 | G123: 2.736485103 | H123: 2.77737896
A124: ASFALTOS DILUÍDOS CM-30 | B124: 2018-06-01 | C124: 3.008444789 | D124: 2.919605178 | E124: 3.158454886 | F124: 2.84673108 | G124: 2.953523993 | H124: 2.982291635
A125: ASFALTOS DILUÍDOS CM-30 | B125: 2018-07-01 | C125: 3.268237549 | D125: 3.036524094 | E125: 3.399360399 | F125: 3.026467598 | G125: 3.19779631 | H125: 3.164126546
A126: ASFALTOS DILUÍDOS CM-30 | B126: 2018-08-01 | C126: 3.56441315 | D126: 3.415193769 | E126: 3.707706206 | F126: 3.425079349 | G126: 3.356722461 | H126: 3.515558112
A127: ASFALTOS DILUÍDOS CM-30 | B127: 2018-09-01 | C127: 3.173913778 | D127: 3.445064118 | E127: 3.73526324 | F127: 3.385816186 | G127: 3.607309454 | H127: 3.483238429
A128: ASFALTOS DILUÍDOS CM-30 | B128: 2018-10-01 | C128: 3.487778119 | D128: 3.460508804 | E128: 3.721444057 | F128: 3.432525565 | G128: 3.60602088 | H128: 3.545390344
A129: ASFALTOS DILUÍDOS CM-30 | B129: 2018-11-01 | C129: 4.047272484 | D129: 3.814893312 | E129: 4.280131586 | F129: 4.178126777 | G129: 3.967681367 | H129: 3.990147183
A130: ASFALTOS DILUÍDOS CM-30 | B130: 2018-12-01 | C130: 3.951491146 | D130: 3.967113195 | E130: 4.341144202 | F130: 3.916766066 | G130: 3.911993357 | H130: 3.999742654
A131: ASFALTOS DILUÍDOS CM-30 | B131: 2019-01-01 | C131: 3.796855325 | D131: 3.870018889 | E131: 4.201901762 | F131: 3.954196997 | G131: 3.976786028 | H131: 3.933951911
A132: ASFALTOS DILUÍDOS CM-30 | B132: 2019-02-01 | C132: 3.516584073 | D132: 4.090361178 | E132: 4.498422953 | F132: 4.469942475 | G132: 4.254590254 | H132: 4.188544679
A133: ASFALTOS DILUÍDOS CM-30 | B133: 2019-03-01 | C133: 4.216758117 | D133: 4.361910728 | E133: 4.907194889 | F133: 4.398717729 | G133: 4.290823922 | H133: 4.360295279
A134: ASFALTOS DILUÍDOS CM-30 | B134: 2019-04-01 | C134: 4.281648205 | D134: 4.234661428 | E134: 4.531627215 | F134: 4.43722653 | G134: 4.466881471 | H134: 4.38082044
A135: ASFALTOS DILUÍDOS CM-30 | B135: 2019-05-01 | C135: 4.287644659 | D135: 4.190699738 | E135: 4.857910872 | F135: 4.267461963 | G135: 4.633806379 | H135: 4.366402151
A136: ASFALTOS DILUÍDOS CM-30 | B136: 2019-06-01 | C136: 4.475609892 | D136: 3.965052934 | E136: 4.66272934 | F136: 4.350600604 | G136: 4.211229921 | H136: 4.319323669
A137: ASFALTOS DILUÍDOS CM-30 | B137: 2019-07-01 | C137: 4.394498989 | D137: 4.058039305 | E137: 4.834221945 | F137: 4.094659414 | G137: 4.233003281 | H137: 4.346977757
A138: ASFALTOS DILUÍDOS CM-30 | B138: 2019-08-01 | C138: 4.48173504 | D138: 3.910662496 | E138: 4.576329081 | F138: 4.11161654 | G138: 4.255419985 | H138: 4.258345083
A139: ASFALTOS DILUÍDOS CM-30 | B139: 2019-09-01 | C139: 4.439578796 | D139: 3.859904896 | E139: 4.495256968 | F139: 4.111321475 | G139: 4.117359152 | H139: 4.251607085
A140: ASFALTOS DILUÍDOS CM-30 | B140: 2019-10-01 | C140: 4.335888631 | D140: 3.772324962 | E140: 4.459242357 | F140: 4.056084115 | G140: 3.942458011 | H140: 4.07740702
A141: ASFALTOS DILUÍDOS CM-30 | B141: 2019-11-01 | C141: 4.316238692 | D141: 3.910245509 | E141: 4.581841077 | F141: 4.07902404 | G141: 4.106621274 | H141: 4.094561212
A142: ASFALTOS DILUÍDOS CM-30 | B142: 2019-12-01 | C142: 4.199435972 | D142: 3.980119663 | E142: 4.673774805 | F142: 4.434268142 | G142: 3.986410312 | H142: 4.164691616
A143: ASFALTOS DILUÍDOS CM-30 | B143: 2020-01-01 | C143: 3.59298003 | D143: 3.895320617 | E143: 4.685420623 | F143: 4.387074674 | G143: 4.124467668 | H143: 4.053338937
A144: ASFALTOS DILUÍDOS CM-30 | B144: 2020-02-01 | C144: 3.642667016 | D144: 3.877395187 | E144: 4.438194543 | F144: 3.699944607 | G144: 3.778164011 | H144: 3.839010438
A145: ASFALTOS DILUÍDOS CM-30 | B145: 2020-03-01 | C145: 4.676668339 | D145: 3.791138977 | E145: 4.289222343 | F145: 3.718402734 | G145: 3.60908619 | H145: 3.93117068
A146: ASFALTOS DILUÍDOS CM-30 | B146: 2020-04-01 | C146: 4.313362837 | D146: 3.6957655 | E146: 4.255395321 | F146: 3.865895531 | G146: 3.732253382 | H146: 3.964125211
A147: ASFALTOS DILUÍDOS CM-30 | B147: 2020-05-01 | C147: 3.249134658 | D147: 3.637769912 | E147: 4.113544882 | F147: 3.760550026 | G147: 3.710618099 | H147: 3.65617504
A148: ASFALTOS DILUÍDOS CM-30 | B148: 2020-06-01 | C148: 4.017903076 | D148: 3.567031492 | E148: 4.277369171 | F148: 3.937886485 | G148: 3.625830069 | H148: 3.924524506
A149: ASFALTOS DILUÍDOS CM-30 | B149: 2020-07-01 | C149: 3.840497509 | D149: 3.51327048 | E149: 4.21549069 | F149: 3.954223886 | G149: 3.688841275 | H149: 3.843774448
A150: ASFALTOS DILUÍDOS CM-30 | B150: 2020-08-01 | C150: 4.174467203 | D150: 3.465394219 | E150: 4.277710211 | F150: 4.06746494 | G150: 3.62858863 | H150: 3.947166917
A151: ASFALTOS DILUÍDOS CM-30 | B151: 2020-09-01 | C151: 4.167371331 | D151: 3.746360816 | E151: 4.167424356 | F151: 3.795621791 | G151: 3.627729935 | H151: 3.973129945
A152: ASFALTOS DILUÍDOS CM-30 | B152: 2020-10-01 | C152: 4.408099527 | D152: 3.718989878 | E152: 4.278979192 | F152: 4.008746906 | G152: 3.591048183 | H152: 4.03964377
A153: ASFALTOS DILUÍDOS CM-30 | B153: 2020-11-01 | C153: 4.056306006 | D153: 3.969209281 | E153: 4.547900893 | F153: 4.27945542 | G153: 3.973347244 | H153: 4.175826149
A154: ASFALTOS DILUÍDOS CM-30 | B154: 2020-12-01 | C154: 4.132064138 | D154: 3.851632751 | E154: 4.426704386 | F154: 3.906236422 | G154: 3.8709398 | H154: 4.035347374
A155: ASFALTOS DILUÍDOS CM-30 | B155: 2021-01-01 | C155: 3.489836333 | D155: 3.951525937 | E155: 4.628269702 | F155: 4.011577011 | G155: 3.935136638 | H155: 3.917092391
A156: ASFALTOS DILUÍDOS CM-30 | B156: 2021-02-01 | C156: 4.099318116 | D156: 4.267109523 | E156: 4.832061615 | F156: 4.414202706 | G156: 4.149048932 | H156: 4.26819704
A157: ASFALTOS DILUÍDOS CM-30 | B157: 2021-03-01 | C157: 4.528355792 | D157: 4.239831731 | E157: 4.926314562 | F157: 4.269697839 | G157: 4.130655409 | H157: 4.377833785
A158: ASFALTOS DILUÍDOS CM-30 | B158: 2021-04-01 | C158: 4.349271867 | D158: 4.086995154 | E158: 4.477597522 | F158: 4.156113398 | G158: 4.044189822 | H158: 4.253361798
A159: ASFALTOS DILUÍDOS CM-30 | B159: 2021-05-01 | C159: 4.488889413 | D159: 4.707945815 | E159: 5.101489686 | F159: 4.784034896 | G159: 4.523986615 | H159: 4.790548085
A160: ASFALTOS DILUÍDOS CM-30 | B160: 2021-06-01 | C160: 4.010467711 | D160: 4.479592126 | E160: 5.113041212 | F160: 4.779739905 | G160: 4.721214307 | H160: 4.764890884
A161: ASFALTOS DILUÍDOS CM-30 | B161: 2021-07-01 | C161: 4.752234128 | D161: 4.559350506 | E161: 5.004758283 | F161: 4.80272972 | G161: 4.748550678 | H161: 4.817586047
A162: ASFALTOS DILUÍDOS CM-30 | B162: 2021-08-01 | C162: 5.085284532 | D162: 4.772501255 | E162: 5.198537142 | F162: 5.244735259 | G162: 4.76131175 | H162: 5.0981692
A163: ASFALTOS DILUÍDOS CM-30 | B163: 2021-09-01 | C163: 5.110300267 | D163: 4.538072365 | E163: 5.241721185 | F163: 5.017144197 | G163: 4.862861245 | H163: 5.016958886
A164: ASFALTOS DILUÍDOS CM-30 | B164: 2021-10-01 | C164: 5.080697261 | D164: 4.66826742 | E164: 5.119544199 | F164: 5.384779065 | G164: 4.658516432 | H164: 5.021294312
A165: ASFALTOS DILUÍDOS CM-30 | B165: 2021-11-01 | C165: 5.436518753 | D165: 5.08776781 | E165: 5.150063985 | F165: 5.634257884 | G165: 5.174530131 | H165: 5.228141289
A166: ASFALTOS DILUÍDOS CM-30 | B166: 2021-12-01 | C166: 5.184291386 | D166: 4.975486975 | E166: 5.572122251 | F166: 6.135655205 | G166: 5.01180992 | H166: 5.339565801
A167: ASFALTOS DILUÍDOS CM-30 | B167: 2022-01-01 | C167: 4.928191974 | D167: 5.023555623 | E167: 6.018407512 | F167: 5.214773026 | G167: 5.481979244 | H167: 5.250789679
A168: ASFALTOS DILUÍDOS CM-30 | B168: 2022-02-01 | C168: 5.545684189 | D168: 5.708628413 | E168: 6.011065894 | F168: 4.8651 | G168: 5.763367147 | H168: 5.736057428
A169: ASFALTOS DILUÍDOS CM-30 | B169: 2022-03-01 | C169: 6.326844735 | D169: 5.644687904 | E169: 5.930807225 | F169: 6.181141143 | G169: 5.498041682 | H169: 5.922781038
A170: ASFALTOS DILUÍDOS CM-30 | B170: 2022-04-01 | C170: 5.974220681 | D170: 5.832747324 | E170: 6.206692615 | F170: 5.720329997 | G170: 6.17800291 | H170: 6.012354229
A171: ASFALTOS DILUÍDOS CM-30 | B171: 2022-05-01 | C171: 5.354015586 | D171: 5.464335309 | E171: 6.007611639 | F171: 5.995095583 | G171: 5.49095009 | H171: 5.670722744
A172: ASFALTOS DILUÍDOS CM-30 | B172: 2022-06-01 | C172: 5.802443798 | D172: 5.316964203 | E172: 5.25267889 | F172: 5.813931518 | G172: 5.644996328 | H172: 5.469498687
A173: ASFALTOS DILUÍDOS CM-30 | B173: 2022-07-01 | C173: 5.965614765 | D173: 5.829314879 | E173: 5.919099711 | F173: 5.742484775 | G173: 5.674430543 | H173: 5.862020702
A174: ASFALTOS DILUÍDOS CM-30 | B174: 2022-08-01 | C174: 6.424230463 | D174: 5.758256878 | E174: 5.752352843 | F174: 5.791905352 | G174: 5.31271724 | H174: 5.823186051
A175: ASFALTOS DILUÍDOS CM-30 | B175: 2022-09-01 | C175: 5.540097074 | D175: 5.609921619 | E175: 5.963592489 | F175: 5.302181194 | G175: 4.977929161 | H175: 5.699429921
A176: ASFALTOS DILUÍDOS CM-30 | B176: 2022-10-01 | C176: 4.785670999 | D176: 4.727521094 | E176: 5.339105147 | F176: 4.851160007 | G176: 4.532580513 | H176: 5.041661715
A177: ASFALTOS DILUÍDOS CM-30 | B177: 2022-11-01 | C177: 7.765855923 | D177: 4.775654982 | E177: 5.237626127 | F177: 4.636383138 | G177: 4.460593179 | H177: 5.074993862
A178: ASFALTOS DILUÍDOS CM-30 | B178: 2022-12-01 | C178: 4.65725 | D178: 4.966905362 | E178: 5.655161554 | F178: 4.840935672 | G178: 4.661007861 | H178: 5.11324949
A179: ASFALTOS DILUÍDOS CM-30 | B179: 2023-01-01 | C179: 4.948950319 | D179: 5.056264922 | E179: 5.359597966 | F179: 4.426497959 | G179: 4.103267888 | H179: 4.715605129
A180: ASFALTOS DILUÍDOS CM-30 | B180: 2023-02-01 | C180: 5.407494667 | D180: 4.335771195 | E180: 4.746646601 | F180: 4.674884727 | G180: 4.014547173 | H180: 4.417800736
A181: ASFALTOS DILUÍDOS CM-30 | B181: 2023-03-01 | C181: 4.99131 | D181: 4.01354912 | E181: 4.74625028 | F181: 4.08071937 | G181: 4.082484954 | H181: 4.270345723
A182: ASFALTOS DILUÍDOS CM-30 | B182: 2023-04-01 | C182: 4.438479015 | D182: 4.094201354 | E182: 5.135816186 | F182: 4.368265095 | G182: 3.859308149 | H182: 4.153818797
A183: ASFALTOS DILUÍDOS CM-30 | B183: 2023-05-01 | C183: 5.018589297 | D183: 4.506282643 | E183: 5.616638293 | F183: 4.034756925 | G183: 4.063701717 | H183: 4.686492725
A184: ASFALTOS DILUÍDOS CM-30 | B184: 2023-06-01 | C184: 4.439644526 | D184: 4.495805354 | E184: 5.228174524 | F184: 3.772028745 | G184: 4.009042073 | H184: 4.588045148
A185: ASFALTOS DILUÍDOS CM-30 | B185: 2023-07-01 | C185: 4.360399352 | D185: 4.250187634 | E185: 6.188049155 | F185: 3.699216781 | G185: 4.315773768 | H185: 4.790717553
A186: ASFALTOS DILUÍDOS CM-30 | B186: 2023-08-01 | C186: 4.043215999 | D186: 4.100901709 | E186: 5.414198228 | F186: 3.964297949 | G186: 4.055989778 | H186: 4.607810697
A187: ASFALTOS DILUÍDOS CM-30 | B187: 2023-09-01 | C187: 5.69501625 | D187: 4.358586276 | E187: 5.187252517 | F187: 4.112508656 | G187: 4.211646236 | H187: 4.748640211
A188: ASFALTOS DILUÍDOS CM-30 | B188: 2023-10-01 | C188: 5.685185 | D188: 4.294075647 | E188: 4.912919476 | F188: 4.365095101 | G188: 4.257370162 | H188: 4.609445905
A189: ASFALTOS DILUÍDOS CM-30 | B189: 2023-11-01 | C189: 4.815085397 | D189: 4.345599447 | E189: 5.404502747 | F189: 4.045271104 | G189: 4.164697405 | H189: 4.781498943
A190: ASFALTOS DILUÍDOS CM-30 | B190: 2023-12-01 | C190: 5.411492308 | D190: 4.700043896 | E190: 5.306415734 | F190: 4.313216862 | G190: 4.188732062 | H190: 4.664845353
A191: ASFALTOS DILUÍDOS CM-30 | B191: 2024-01-01 | C191: 3.716178391 | D191: 4.395163811 | E191: 4.888126947 | F191: 3.977196797 | G191: 4.057095331 | H191: 4.290228903
A192: ASFALTOS DILUÍDOS CM-30 | B192: 2024-02-01 | C192: 5.349588571 | D192: 4.281881871 | E192: 5.36118056 | F192: 4.287786155 | G192: 4.151112946 | H192: 4.366194996
A193: ASFALTOS DILUÍDOS CM-30 | B193: 2024-03-01 | C193: 6.437624165 | D193: 4.512948358 | E193: 4.994035932 | F193: 4.680610304 | G193: 4.197388123 | H193: 4.725137967
A194: ASFALTOS DILUÍDOS CM-30 | B194: 2024-04-01 | C194: 6.524010018 | D194: 5.333668875 | E194: 5.011370357 | F194: 3.991999626 | G194: 4.15116124 | H194: 4.439406986
A195: ASFALTOS DILUÍDOS CM-30 | B195: 2024-05-01 | C195: 6.61993633 | D195: *** | E195: 5.21538288 | F195: 4.24855796 | G195: 4.478170767 | H195: 4.960078568
A196: ASFALTOS DILUÍDOS CM-30 | B196: 2024-06-01 | C196: 6.461820806 | D196: 4.288169263 | E196: 4.921606124 | F196: 4.517339741 | G196: 4.897585787 | H196: 4.922850803
